Workbook

Sheet Nota
B2: Ces documents sont les fruits : | S2: VERSION E
B3: de mon expérience et des utilitaires de la restauration collective
B4: de formules et fonctions Excel mises sur le net par des passionnés | S4: dernière mise à jour : 19Décembre 2021
B5: A vous de les faire évoluer et de les modifier pour votre utilisation....... | S5: ="Page "&_xlfn.SHEET()&" sur "&_xlfn.SHEETS() -> Page 1 sur 16
B7: Adresse PC | D7: =CELL("nomfichier") -> E:\0-UPRT\1-UPRT.FR-SITE-WEB\re-recettes-jean-marc-catteau\re-catteau-galettes\[GA-pate.sud.finistere.xlsm]Modes.d'emploi
Y9: Mémo : couleurs diététique des aliments
B10: CONTENU DU CLASSEUR | Y10: Couleur diététique | AA10: Couleur diététique | AC10: Couleur diététique | AE10: Couleur diététique
C11: Vous êtes dans un classeur xlsm certaines feuilles contiennent du code VBA dans Worksheet | Y11: Protéines | AA11: Cuidités | AC11: Crudités | AE11: Féculent
Y12: Hex : #FF0000 | AA12: Hex : #99CC00 | AC12: Hex : #008000 | AE12: Hex : #800000
C13: COMMENT COPIER/ COLLER DANS UNE FEUILLE | Y13: Abats | AA13: Agrumes Pomme Pample.) | AC13: Agrumes Pomme Pample.) | AE13: Blé
Y14: Abattis | AA14: Artichaut | AC14: Avocat | AE14: Boulghour
C15: CODE VBA POUR METTRE EN SURBRILLANCE LA LIGNE ET LA COLONNE ACTIVES DANS EXCEL | Y15: Agneau | AA15: Asperges | AC15: Betteraves | AE15: Féves
Y16: Bœuf | AA16: Betteraves | AC16: Carottes | AE16: Févettes
C17: QU'EST-CE QU'UNE FICHE DE FABRICATION DE TYPE "POSTIT"© | Y17: Cailles | AA17: Carottes | AC17: Céléri branche | AE17: H. Cocos
D18: SERVICE AU POIDS Explication | Y18: Canard | AA18: Céléri branche | AC18: Céléri rave | AE18: H. Flageolets
Y19: Charcuteries | AA19: Céléri rave | AC19: Champignons | AE19: H. Noirs
C20: MODÈLE PORTRAIT 1 | Y20: Coquillages | AA20: Champignons | AC20: Chou blanc | AE20: H. Rouges
D21: Recette au poids et au NOMBRE DE GALETTES | Y21: Crustacés | AA21: Chou blanc | AC21: Chou rouge | AE21: H. Soisson
D22: 1 seule fiche imprimable sur feuille A4 | Y22: Dinde | AA22: Chou rouge | AC22: Choux Brocolis | AE22: H.Blancs
E23: ❼ A dupliquer pour | Y23: Farces | AA23: Choux Brocolis | AC23: Choux Chinois | AE23: Lentilles
E24: 2.5 | F24: 10 | Y24: Gibier à plumes | AA24: Choux Bruxelles | AC24: Choux fleur | AE24: Maïs
D25: pour 1 Kg | E25: Kg | F25: Galettes | Y25: Gibier à poil | AA25: Choux Chinois | AC25: Choux Romanesco | AE25: P.Terre
D26: Postit de 16 lignes de produits | Y26: Jus / Bouillon | AA26: Choux de Milan | AC26: Concombres | AE26: Pâtes
Y27: Lapin | AA27: Choux fleur | AC27: Courgettes | AE27: Pois chiches
C28: MODÈLE PORTRAIT 2 une fiche | Y28: Mouton | AA28: Choux Romanesco | AC28: Endives | AE28: Polenta
D29: 1 seule fiche imprimable sur feuille A4 | Y29: Œufs | AA29: Cœur de Palmier | AC29: Epinards | AE29: Riz
D30: Recette au nombre de PORTIONS | Y30: Poisson | AA30: Concombres | AC30: Fenouil | AE30: Rutabaga
D31: 2 blocs de 15 lignes sur une fiche imprimable sur feuille A4 | Y31: Porc | AA31: Courge | AC31: Navets | AE31: Semoule
Y32: Poule | AA32: Courgettes | AC32: Oignons | AE32: Topinambour
D33: ❹ Unités | E33: ❺ Poids | F33: ❸ Ingrédients | G33: ⑦ Quantités | H33: % | I33: ❻ Quoi | J33: ❹ Unités | K33: ❺ Poids | L33: ❸ Ingrédients | M33: ⑦ Quantités | N33: % | O33: ❻ Quoi | Y33: Poulet | AA33: Crosne | AC33: Poivrons jaunes
F34: S.Total saisi > | G34: 0.275 | L34: S.Total saisi > | M34: 0 | Y34: Veau | AA34: Endives | AC34: Poivrons rouges
D35: 8 | E35: 0.05 | F35: œufs | G35: 0.2 | H35: 0.7272727273 | I35: Kg | L35: Chair à saucisse | M35: 0 | O35: Kg | AA35: Epinards | AC35: Poivrons verts
Y36: Mode de cuisson | AA36: Fenouil | AC36: Radis noirs
C37: MODÈLE PORTRAIT 2 deux FICHES | Y37: Braisé | AA37: Navets | AC37: Radis roses
D38: 2 fiches imprimables sur feuille A4 | Y38: Confit | AA38: Oignons | AC38: Sal.Batavia
D39: Recette au nombre de PORTIONS comme le modèle précédent | Y39: Frit | AA39: Patisson | AC39: Sal.Chicorée
D40: 2 blocs de 15 lignes par fiche | Y40: Fumé | AA40: Poivrons jaunes | AC40: Sal.Cresson
Y41: Grillé | AA41: Poivrons rouges | AC41: Sal.Endive
C42: VOCABULAIRE PROFESSIONNEL | Y42: Nature | AA42: Poivrons verts | AC42: Sal.Feuille de chêne
D43: Vocabulaire " cuisine de composition" | Y43: Papillotes | AA43: Potiron | AC43: Sal.Frisée
D44: Vocabulaire"La CUISINE DE REFERENCE" Michel MAINCENT | Y44: Poché | AA44: Pousses de bambou | AC44: Sal.Iceberg
D45: Vocabulaire un verbe…une action | Y45: Poellé | AA45: Radis noirs | AC45: Sal.Krisette
D46: Quelques verbes d'action complémentaires | Y46: Râgouts | AA46: Radis roses | AC46: Sal.Laitue
D47: Le vocabulaire professionnel en pâtisserie | Y47: Rôti | AA47: Salade | AC47: Sal.Lola rosa
Y48: Saumuré | AA48: Salsifis | AC48: Sal.Mâche
C49: CUISINIERS : PESEZ …..EVITEZ LES VOLUMES , N'UTILISEZ QUE LES POIDS COMME LES PATISSIERS | Y49: Sauté avec Sauce | AA49: Soja | AC49: Sal.Mesclun
Y50: Sauté sans Sauce | AA50: Tomates cerises | AC50: Sal.Pissenlit
C51: POIDS DES FRUITS ET LÉGUMES | Y51: Vapeur | AA51: Tomates Marmande | AC51: Sal.Romaine
D52: Saisissez votre nombre d'unité (encre rouge)Modifiez le poids unitaire (encre verte) s'il n'est pas excact | AA52: Tomates olivette | AC52: Sal.Scarole
AA53: Tomates Romaine | AC53: Sal.Trévise
C54: TUTOS EXCEL YOUTUBE | AC54: Salade
D55: Il arrive que vous ayez 2 tutos pour la même fonction, | AC55: Salades composées
D56: c'est volontaire parce que le plus important c'est de cliquer sur le nom de l'auteur sous la vidéo pour découvrir sa liste | AC56: Salsifis
AC57: Soja
C58: FORMAT - FORMULES ET FONCTIONS | AC58: Tomates
D59: pour vous aider dans la conception de vos documents | AC59: Tomates cerises
AC60: Tomates Marmande
C61: EMOTICONES | AC61: Tomates olivette
D62: Copiez/Collez des émoticônes dans vos documents | AC62: Tomates Romaine
C64: POLICE DE SYMBOLES
D65: Comment choisir sa police de symboles
C67: Palette de couleurs Excel
D68: Lien > | E68: Codes de couleur HTML sécurisés pour le Web / Tableau de référence
D69: Lien > | E69: Correspondance des couleurs de peinture et convertisseur
B72: Quelques polices de caractères utilisées | Q72: Quelques formats utilisés
C73: Arial | E73: Calibri | G73: Rockwell | J73: Verdana | Q73: 15.5 > | S73: 15.5 | U73: 15.5 | W73: 15.5
C74: ARIAL | E74: CALIBRI | G74: ROCKWELL | J74: VERDANA | Q74: personnalisés > | S74: 0.000" Kg" | U74: 0" %" | W74: Monétaire
B76: Autres polices à découvrir
C77: ARIAL NARROW Arial Narrow | H77: COMIC SANS MF Comic Sans MF | P77: GIL SANS MT Gill Sans MT | V77: PALATINO LINOTYPE Palatino Linotype
C78: TAHOMA Tahoma | H78: TIMES NEW ROMAN Times New Roman | P78: TRBUCHET MF Trébuchet MF | V78: TW CEN MT Tw Cen MT
C79: VRINDA Vrinda
B80: Une numérotation avec couleur de police modifiable
C81: ❶ | D81: ❷ | E81: ❸ | F81: ❹ | G81: ❺ | H81: ❻ | I81: ❼ | J81: ❽ | K81: ❾ | L81: ❿ | M81: ⓫ | N81: ⓬ | O81: ⓭ | P81: ⓮ | Q81: ⓯ | R81: ⓰ | S81: ⓱ | T81: ⓲ | U81: ⓳ | V81: ⓴
C83: ❶ | D83: ❷ | E83: ❸ | F83: ❹ | G83: ❺ | H83: ❻ | I83: ❼ | J83: ❽ | K83: ❾ | L83: ❿ | M83: ⓫ | N83: ⓬ | O83: ⓭ | P83: ⓮ | Q83: ⓯ | R83: ⓰ | S83: ⓱ | T83: ⓲ | U83: ⓳ | V83: ⓴
C85: 1 | D85: 2 | E85: 3 | F85: 4 | G85: 5 | H85: 6 | I85: 7 | J85: 8 | K85: 9 | L85: 10 | M85: 11 | N85: 12 | O85: 13 | P85: 14 | Q85: 15 | R85: 16 | S85: 17 | T85: 18 | U85: 19 | V85: 20
C87: 1 | D87: 2 | E87: 3 | F87: 4 | G87: 5 | H87: 6 | I87: 7 | J87: 8 | K87: 9 | L87: 10 | M87: 11 | N87: 12 | O87: 13 | P87: 14 | Q87: 15 | R87: 16 | S87: 17 | T87: 18 | U87: 19 | V87: 20
C89: ⓪①②③④⑤⑥⑦⑧⑨⑩⑪⑫⑬⑭⑮⑯⑰⑱⑲⑳ | L89: couleur de police blanc sur fond gris à modifier pour vos documents
C90: cliquez sur la colonne C et sélectionnez dans la barre le numéro qui vous intéresse
C91: ⓿❶❷❸❹❺❻❼❽❾❿⓫⓬⓭⓮⓯⓰⓱⓲⓳⓴
B93: des caractères spéciaux
B94: ! | C94: " | D94: # | F94: % | G94: & | H94: @ | I94: ‰ | J94: ≈ | K94: ± | L94: » | M94: ¼ | N94: ½ | O94: ¾ | P94: ø | Q94: ► | R94: ◄ | S94: ▲ | T94: ▼ | U94: Φ
C96: 0.00\ " cm³" | F96: Format | cellule | personnalisé | 0" cm³"
C97: 3
H98: ou copier-coller | N98: X | O98: t | P98: u
C99: le ² se fait en tapant alt+0178 | H99: m² | I99: M² | J99: cm² | K99: ² | N99: Police Wingdings 3
C100: le ³ se fait en tapant alt+0179 | H100: m³ | I100: M³ | J100: cm³ | K100: ³ | N100: Z | O100: q | P100: p
C103: lien > | D103: Les unités pifométriques
C104: Je remercie chaleureusement les internautes passionnés qui élaborent et proposent des formules et fonctions imbriquées
B106: Transmettez votre savoir et votre savoir faire peu importe qui le récupère; pourvu qu'un plus grand nombre puisse en bénéficier.
B107: Joël LEBOUCHER …Octobre 2015
B108: un lien rompu ou devenu obsolète…..pas de panique…Google saura vous retrouver un document équivalent
B110: Site à découvrir
B111: SPACE pour Suivi et Programmation d'ACtivités en Equipe est un outil destiné à permettre un suivi exhaustif des activités d'une équipe.
A112: lien > | C112: Fil de discussion dédié à ce programme
A113: > | B113: http://www.excel-downloads.com/remository/Download/Professionnels/Planification-et-gestion-de-projets/SPACE.html | AF113: FIN
AF114: =ADDRESS(ROW(),COLUMN(),4) -> AF114

Sheet Modes.d'emploi
B2: Mode d'emploi du modèle 1 | P2: Mode d'emploi du modèle 2
Q4: 12 | R4: 12 | S4: 19 | T4: 12 | U4: 12
C5: Récap du Mode d'emploi de la fiche recette | H5: ICI | Q5: Récap du Mode d'emploi de la fiche recette | W5: ICI
C7: Recette au poids et au NOMBRE DE GALETTES | H7: Sur la tranche des fiches indiquez : CETTE RECETTE EST A CLASSER DANS QUELLE FAMILLE | I7: =H7 -> Sur la tranche des fiches indiquez : CETTE RECETTE EST A CLASSER DANS QUELLE FAMILLE | Q7: Recette au nombre de PORTIONS | W7: Sur la tranche des fiches indiquez : DANS QUELLE FAMILLE CETTE RECETTE EST A CLASSER | X7: =W7 -> Sur la tranche des fiches indiquez : DANS QUELLE FAMILLE CETTE RECETTE EST A CLASSER
C9: à saisir | J9: J'ai volontairement augmenté le nombre de portions ❺ pour diminuer le poids pour 1 galette en g ⑥ à vous d'ajuster selon votre clientèle | Q9: à saisir | Y9: J'ai parfois volontairement augmenté le nombre de portions ❽ pour diminuer le poids pour 1 portion ⑩ qui ne convenait pas à mes convives
C10: ❶ NOM de la recette a saisir et N° ou lettre Alpha | Q10: ① NOM de la recette a saisir et N° ou lettre Alpha
C12: ❷ Unités.Poids.Compositon | Q12: ② saisissez le nom de Auteur
C13: Poids à saisir en Kg
C14: Exep. 3 œufs de 0.050 | J14: le surlignage des lignes et colonnes s'obtient avec une Mise en forme conditionnelle MFC avec cette formule =OU(LIGNE()=CELLULE("ligne");COLONNE()=CELLULE("colonne")) | Q14: Poids à saisir en Kg | Y14: le surlignage des lignes et colonnes s'obtient avec une Mise en forme conditionnelle MFC avec cette formule =OU(LIGNE()=CELLULE("ligne");COLONNE()=CELLULE("colonne"))
D15: ❷ Unités | E15: ❷ Poids | F15: ❸ Quoi | Q15: Exep. 3 œufs de 0.050
D16: 3 | E16: 0.05 | F16: kg | Q16: ❹ Unités | R16: ❺ Poids | S16: ❸ les Ingrédients | T16: ⑦ Quantités | U16: ❻ Quoi
C17: ou | D17: 3 | F17: Œufs | Q17: 3 | R17: 0.05 | S17: œufs | T17: 2.5 | U17: Kg
C18: ou œufs liquides | J18: et cette commande de code dans Worksheet | R18: 0.15 | S18: ou œufs liquides | T18: 0.725 | U18: Kg | Y18: et cette commande de code dans Worksheet
E19: 0.15 | F19: kg | J19: Private Sub Worksheet_SelectionChange(ByVal Target As Range) | Q19: 3 | S19: œufs | T19: 12 | U19: œufs | Y19: Private Sub Worksheet_SelectionChange(ByVal Target As Range)
C20: ❸ Lorsque vous avez des produits à l'unité réduisez les décimales pour une meilleure lecture | J20: Calculate | Q20: ⑦ Lorsque vous avez des produits à l'unité réduisez les décimales pour une meilleure lecture | Y20: Calculate
J21: End Sub | Y21: End Sub
C22: utilisez le pinceau pour ce faire | J22: 15 | K22: 15 | L22: 15 | M22: 15 | N22: largeur de colonnes | T22: ⑦ Quantités | U22: ❻ Quoi | Y22: 15 | Z22: 15 | AA22: 15 | AB22: 15
C23: pour 1 Kg | D23: Kg | E23: Galettes | S23: utilisez le pinceau pour ce faire | T23: 12 | U23: œufs
C24: 1 | D24: 1 | E24: 1.2 | J24: total saisi > | K24: SI(ESTVIDE(Q5);R5;Q5*R5)+SI(ESTVIDE(Q6);R6;Q6*R6) etc… | Y24: Cours VBA : les événements Worksheet
J25: pour 1 Kg | K25: SI(ESTVIDE(B11);C11/C26;SI(ESTVIDE(C11);B11/C26;(C11*B11)/C26)) | Q25: ❽ Nombre de portions prévues par l'Auteur | Y25: Lien> | Z25: https://www.exceltip.com/events-in-vba/the-worksheet-events-in-excel-vba.html
C26: ❹ Référence Auteur | J26: Kg | K26: E11*F8 | Q26: Poids total Auteur ⑨ somme des colonnes ❺ Poids | Y26: Lien> | Z26: https://www.excel-pratique.com/fr/vba/evenements_feuille
J27: Galettes | K27: SI(ESTVIDE(B11);C11/C26*H8;SI(ESTVIDE(C11);B11/(C26*H8);(C11*B11)/(C26*H8))) | Q27: formule utilisée | R27: SI(ESTVIDE(B34);C34;B34*C34)+SI(ESTVIDE(B35);C35;B35*C35) etc..
C28: ❺ Nb de portions prévues par l'Auteur de la recette | Q28: cette formule multiplie les Unités ❹ mais n'additionne que les Poids ❺ | Y28: lien > | Z28: Les unités pifométriques
J29: Cours VBA : les événements Worksheet
G30: < Largeurs de colonnes | J30: Lien> | K30: https://www.exceltip.com/events-in-vba/the-worksheet-events-in-excel-vba.html | Q30: ⑩ poids pour 1 portion | Y30: Impression Portrait 1 recette par feuille A4
C31: Vous pouvez augmenter ou diminuer le poids pour une galette en g ⑥ en augmentant ou diminuant le Nb.portions prévues ❺ | J31: Lien> | K31: https://www.excel-pratique.com/fr/vba/evenements_feuille | Q31: Vous pouvez intervenir sur le poids portion ⑩ en augmentant ou en diminuant le nombre de portions ❽
Y32: ="Page "&_xlfn.SHEET()&" sur "&_xlfn.SHEETS() -> Page 2 sur 16
J33: lien > | K33: Les unités pifométriques
Q34: ⓫ Combien de Portions voulez vous faire | X34: Avant de saisir quoi que ce soit dans une cellule - cliquez dessus pour vérifier qu'il n'y ait pas de formule
C35: ❼ Dupliquer pour : | J35: Impression Portrait 1 recette par feuille A4 | R35: ⑫ Poids à fabriquer = ⑩ X ⓫
C36: vous avez le choix pour un poids ou pour un nombre de crêpes | R36: ⑬ Contrôle Total saisi somme des colonnes ⑦ Quantités
J37: ="Page "&_xlfn.SHEET()&" sur "&_xlfn.SHEETS() -> Page 2 sur 16 | Q37: formule utilisée | R37: SI(ESTNUM(C34);E34)+SI(ESTNUM(C35);E35) etc..
C38: après avoir saisi le poids de votre garniture ❽ | Q38: cette formule n'additionne que les quantités ⑦ à condition qu'il y ait eu un nombre saisi en Poids ❺
J39: PHASES ESSENTIELLES DE PROGRESSION
C40: ⑨ AUTEUR : de la recette | J40: soyez concis 1 verbe = 1 action | Q40: autrement dit elle ne mélange pas ❹ Unités et ❺ Poids sinon allez expliquer à Excel qu'1 œuf ne fait pas 1 Kg
J41: Utilisez le vocabulaire professionnel
J42: la numérotation est automatique
C43: ⑩ saisissez le lien internet de la recette ou de l'Auteur | K43: lorsque vous saisissez du texte | Q43: ④ PHASES ESSENTIELLES DE PROGRESSION
J44: dans la colonne C | Q44: soyez concis 1 verbe = 1 action
C45: 10 | D45: 10 | E45: 10 | F45: 10 | K45: si vous ne voulez pas de numérotation | Q45: Utilisez le vocabulaire professionnel
K46: saisissez votre texte dans la colonne D | Q46: la numérotation est automatique
J47: formule utilisée : SI(ESTVIDE(C30);"";GRANDE.VALEUR(B29:B29;1)+1) | R47: lorsque vous saisissez du texte
Q48: dans la colonne C ou dans la colonne L
R49: si vous ne voulez pas de numérotation
R50: saisissez votre texte dans la colonne D ou K
Q51: formule utilisée :
Q52: colonne B
Q53: SI(ESTVIDE(C27);"";GRANDE.VALEUR(B16:B26;1)+1) | U53: Colonne M
U54: SI(ESTVIDE(L27);"";GRANDE.VALEUR(M15:M26;1)+1)
Q55: 12 | R55: 12 | S55: 19 | T55: 12 | U55: 12 | V55: < Largeurs de colonnes
AC57: FIN
AC58: =ADDRESS(ROW(),COLUMN(),4) -> AC58

Sheet Comment copier-coller
C3: Si vous êtes dans un classeur xlsm c'est que certaines feuilles contiennent du code VBA dans Worksheet
C4: et si vous voulez coller quoi que ce soit dans la feuille vous devez procéder comme suit :
D5: 1 clic droit sur le ruban en haut de l'écran (personnaliser le ruban)
D13: 2 cocher Développeur OK
D14: 3 cliquer sur le logo Mode de création
D19: maintenant vous pouvez copier coller ce que vous voulez
D20: ensuite décliquez sur le logo et décochez le développeur si vous n'en avez plus besoin
K22: ="Page "&_xlfn.SHEET()&" sur "&_xlfn.SHEETS() -> Page 3 sur 16
C48: Pour coller sur une feuille contenant du code VBA
C50: Mettez en surbrillance la ligne et la colonne actives dans Excel
C52: Voici les étapes pour mettre en surbrillance la ligne et la colonne actives lors de la sélection :
C54: Sélectionnez l'ensemble de données dans lequel vous mettez en surbrillance la ligne/colonne active.
C55: Allez dans l'onglet Accueil.
C56: Cliquez sur Mise en forme conditionnelle, puis sur Nouvelle règle.
C57: Dans la boîte de dialogue Nouvelle règle de formatage, sélectionnez "Utiliser une formule pour déterminer les cellules à formater".
C58: Dans le champ Description de la règle, saisissez la formule : =OR(CELL(“col”)=COLUMN(),CELL(“row”)=ROW())
C59: Cliquez sur le bouton Format et spécifiez le formatage (la couleur dans laquelle vous souhaitez mettre la ligne/colonne en surbrillance).
C60: Cliquez sur OK.
C62: Les étapes ci-dessus ont pris soin de mettre en surbrillance la ligne active et la colonne active (avec la même couleur) chaque fois qu'il y a un événement de changement de sélection .
C64: Cependant, pour que cela fonctionne, vous devez placer un simple code VBA dans le worksheet

Sheet Code VBA
C3: Mettre en surbrillance la ligne et la colonne actives dans Excel
C4: Comment faire :
C6: Première étape
C7: cliquez sur l'onglet de la page
C8: clic droit Visualiser le code et coller les 3 lignes suivantes dans Worksheet
C9: Private Sub Worksheet_SelectionChange(ByVal Target As Range)
C10: Calculate
C11: End Sub
C13: pour les couleurs c'est de la mise en forme conditionnelle avec cette formule :
C14: =OU(LIGNE()=CELLULE("ligne");COLONNE()=CELLULE("colonne"))
C16: Comment faire :
C18: Sélectionnez l'ensemble de données dans lequel vous mettez en surbrillance la ligne/colonne active.
C19: Allez dans l'onglet Accueil.
C20: Cliquez sur Mise en forme conditionnelle, puis sur Nouvelle règle.
C21: Dans la boîte de dialogue Nouvelle règle de formatage, sélectionnez "Utiliser une formule pour déterminer les cellules à formater".
C22: Dans le champ Description de la règle, saisissez la formule : ' =OU(LIGNE()=CELLULE("ligne");COLONNE()=CELLULE("colonne"))
C23: Cliquez sur le bouton Format et spécifiez le formatage (la couleur dans laquelle vous souhaitez mettre la ligne/colonne en surbrillance).
C24: Cliquez sur OK.
O25: ="Page "&_xlfn.SHEET()&" sur "&_xlfn.SHEETS() -> Page 4 sur 16

Sheet qu'est-ce qu'un "Postit"
A1: 3 | B1: =CELL("largeur",B1) -> 11 | C1: 11 | D1: 11 | E1: 11 | F1: 11 | G1: 11 | H1: 11 | I1: 11 | J1: 11 | K1: 11 | L1: 11 | M1: 11 | N1: 11 | O1: 11 | P1: 11 | Q1: =CELL("largeur",Q1) -> 11 | R1: <fonction CELLULE("largeur";Q1)
A2: Mise à jour du 2 Décembre 2021
P4: ="Page "&_xlfn.SHEET()&" sur "&_xlfn.SHEETS() -> Page 5 sur 16
C7: QU'EST-CE QU'UNE FICHE DE FABRICATION DE TYPE "POSTIT"© | S7: SERVICE AU POIDS Explication
C8: Tel un Postit © c'est une fiche Excel autonome facilement copiable et transposable dans n'importe quelle feuille
C9: Lien > | D9: Mettez la collaboration au coeur de votre environnement de travail | T9: Cela demande un peu plus d'attention que pour le service à la portion
C10: "POSTIT" QUEL INTÉRÊT | T10: les poids - les cuillères à café le nombre de pièces : tout est mélangé
C11: Chaque postit étant indépendant vous pouvez le copier et le coller dans n'importe quelle feuille Excel | T11: si bien que vous obtenez un poids total ④ complètement faux
C12: pour vous constituer un répertoire | T12: c'est pourquoi ② vous avez 2 colonnes 1 pour les (unités ou quantités) l'autre pour les poids
C13: Vous pouvez assembler plusieurs postit(s) sur une même feuille pour créer votre recette
C14: Exemple : pour une recette de gateau…allez chercher dans vos répertoires la recette du biscuit qui vous convient | T14: Formule :
C15: le mieux ajoutez une ou deux crèmes qui vont bien et terminez en ajoutant un postit éléments de décor | T15: Quantité de chaque produit | W15: X par ce que vous voulez dupliquer ⑥
C16: Idem pour des recettes de cuisine faites des répertoires : | T16: ❺ Référence Auteur
C17: de garnitures aromatiques de cuisson
C18: de sauces diverses et variées | T18: Convertissez tout de suite les volumes en poids sur la base de 1L = 1Kg
C19: de garnitures de finitions ou de décor | T19: ¼ de botte de fines herbes - allez expliquer cela à Excel (0.25)
C20: Faites "votre marché" dans vos répertoires et assemblez le tout sur une même feuille Excel | T20: ½ citron 0.5 ¾ de litre 0.75
C21: comment copier un "Postit" : cliquez sur la cellule ICI dans l'angle gauche puis déportez la souris vers la droit le postit | T21: Exemple
C22: est sélectionné il ne vous reste plus qu'a le copier et le coller dans votre répertoire | T22: Qt. Auteur
O23: ne sont "postit" que les fiches avec cellule | P23: ICI | Q23: ICI | T23: Unités | U23: Poids | X23: Denrées | Z23: Quoi
C24: Liens > | D24: Comment créer une Arborescence de dossiers | T24: ② | X24: ① | Z24: ③
D25: La méthode simple pour classer ses dossiers, fichiers et documents sur son ordinateur | T25: 0.25 | X25: ¼ de botte de fines herbe | Y25: =IF(ISBLANK(T25),U25,IF(ISBLANK(U25),T25,T25*U25)) -> 0.25 | Z25: bottes
D26: Organiser vos documents (nommer, stocker, classer…) | T26: 0.5 | X26: ½ citron | Y26: =IF(ISBLANK(T26),U26,IF(ISBLANK(U26),T26,T26*U26)) -> 0.5 | Z26: citrons
D27: Windows 10 : 15 astuces pour maîtriser l’explorateur de fichiers comme un pro | T27: 0.75 | X27: ¾ de litre | Y27: 0.75 | Z27: litres
T28: 10 | X28: jaunes d'œufs | Y28: 10 | Z28: jaunes
C29: Bonne utilisation. A vous de faire évoluer ces documents…et n'hésitez pas à tramsmettre vos savoirs faire…… | T29: 15 | U29: 0.03 | X29: blancs d'œufs de 30g | Y29: 0.45 | Z29: kg
C30: pour aider les jeunes en formation ou donner des idées à vos collègues des métiers de bouche | U30: 0.2 | X30: OU jaunes d'œufs liquides | Y30: 0.2 | Z30: kg
C31: Joël Leboucher | U31: 0.125 | X31: farine | Y31: =IF(ISBLANK(T31),U31,IF(ISBLANK(U31),T31,T31*U31)) -> 0.125 | Z31: kg
C32: Adaptation 2016 : Joël Leboucher..UPRT "Union des Personnels de la Restauration Territoriale" membre du réseau RESTAU'CO
T33: ❺ Référence Auteur
T34: soit vous saisisez le total ④ dans la cellule ❺ ou mettez les 2 cellules en liaison en liaison =
T36: soit vous faites le choix de dupliquer la recette à partir d'une denrée Exemple farine
T37: ❺ Référence Auteur | W37: ⑤ Dupliqué pour
T38: 0.125 | U38: Kg de farine | W38: 1 | X38: =U38 -> Kg de farine
T40: OU Autre portions.couverts.plaques etc
T42: Si vous supprimez des lignes inutiles
T43: ne pas supprimer ces 4 lignes | V43: ❹ > | W43: SI(ESTVIDE(#REF!);#REF!;#REF!*#REF!)
V44: Supprimez les erreurs #REF! dans la barre de formule
T46: saisissez le NOM DE LA RECETTE | W46: ICI EGALEMENT
V47: Traçabilité | W47: Auteur >
V48: si vous utilisez cette recette pour une | W48: < recette pour CHARLOTTE POIRE CARAMEL
V49: autre utilisation vous aurez une traçabilité
W50: Préparation > | X50: 2 | Y50: Cuisson > | Z50: 2
X51: saissez un nombre la cellule est formatée pour ajouter mn
S53: Ce modèle de fiche s'utilise comme un "Postit"
S54: Exemples que des recettes sans procédures - des fiches avec procédures en dessous etc..soyez imaginatif
S56: Lien internet > vous pouvez coller des liens internet pour retrouver une recette sur le web | W56: Saisissez votre texte faire court et concis
W57: 1 verbe = 1 action
T60: Recette et progression peuvent être utilisés comme "postits" indépendants.Vous pouvez donc les copier/déplacer comme vous le voulez
T65: Option d'affichage : décocher : Afficher un zéro dans les cellules qui ont une valeur nulle
S76: SERVICE A LA PORTION
T78: Vous pouvez détourner et simplifier l'utilisation de cette fiche
T79: en cellule ❺ saisissez un nombre de portions - de plaques -de louches
T80: ou tout ce que vous voulez
T81: en cellule ⑥ saisissez ce que vous voulez obtenir
S83: 12 | T83: 12 | U83: 12 | V83: 12 | W83: 12 | X83: 12 | Y83: 12 | Z83: 12 | AA83: FIN
AA84: =ADDRESS(ROW(),COLUMN(),4) -> AA84

Sheet Modèle.Portrait.1
A2: ICI | B2: ① | C2: NOM DU PLAT | H2: N°5 | J2: Récap du Mode d'emploi de la fiche recette | O2: ICI
A4: CETTE RECETTE EST A CLASSER DANS QUELLE FAMILLE | B4: ⑨ AUTEUR : ? | F4: Recette éditée le : | G4: =NOW() -> 2021-12-20T19:39:32.240 | J4: Recette au poids et au NOMBRE DE GALETTES | O4: Sur la tranche des fiches indiquez : CETTE RECETTE EST A CLASSER DANS QUELLE FAMILLE | P4: =O4 -> Sur la tranche des fiches indiquez : CETTE RECETTE EST A CLASSER DANS QUELLE FAMILLE
B5: ❹ Référence Auteur
B6: =C26 -> 0.55 | C6: Kg | G6: ❽ poids d'une portion en g > | H6: 120 | J6: à saisir | Q6: J'ai volontairement augmenté le nombre de portions ❺ pour diminuer le poids pour 1 galette en g ⑥ à vous d'ajuster selon votre clientèle
B7: 15 | C7: < Nb.portions prévues ❺ | F7: ❼ A dupliquer pour | J7: ❶ NOM de la recette a saisir et N° ou lettre Alpha
B8: =(B6/B7)*1000 -> 36.66666667 | C8: < poids pour une galette en g ⑥ | F8: 2.5 | G8: 10 | H8: =H6*G8/1000 -> 1.2
B9: ❷ Unités | C9: ❷ Poids | D9: ❷ Compositon | E9: pour 1 Kg | F9: Kg | G9: Galettes | H9: ❸ Quoi | J9: ❷ Unités.Poids.Compositon
E10: =IF(ISBLANK(B10),C10/C26,IF(ISBLANK(C10),B10/C26,(C10*B10)/C26)) -> 0 | F10: =E10*F8 -> 0 | G10: =IF(ISBLANK(B10),C10/C26*H8,IF(ISBLANK(C10),B10/(C26*H8),(C10*B10)/(C26*H8))) -> 0 | J10: Poids à saisir en Kg
B11: 8 | C11: 0.05 | D11: œufs | E11: =IF(ISBLANK(B11),C11/C26,IF(ISBLANK(C11),B11/C26,(C11*B11)/C26)) -> 0.7272727273 | F11: =E11*F8 -> 1.818181818 | G11: =+IF(ISBLANK(B11),C11/C26*H8,IF(ISBLANK(C11),B11/(C26*H8),(C11*B11)/(C26*H8))) -> 0.6060606061 | H11: Kg | J11: Exep. 3 œufs de 0.050 | Q11: le surlignage des lignes et colonnes s'obtient avec une Mise en forme conditionnelle MFC avec cette formule =OU(LIGNE()=CELLULE("ligne");COLONNE()=CELLULE("colonne"))
C12: 0.15 | D12: ou œufs liquides | E12: =IF(ISBLANK(B12),C12/C26,IF(ISBLANK(C12),B12/C26,(C12*B12)/C26)) -> 0.2727272727 | F12: =E12*F8 -> 0.6818181818 | G12: =IF(ISBLANK(B12),C12/C26*H8,IF(ISBLANK(C12),B12/(C26*H8),(C12*B12)/(C26*H8))) -> 0.3272727273 | H12: Kg | K12: ❷ Unités | L12: ❷ Poids | M12: ❸ Quoi
B13: 3 | D13: œufs | E13: =IF(ISBLANK(B13),C13/C26,IF(ISBLANK(C13),B13/C26,(C13*B13)/C26)) -> 5.454545455 | F13: =E13*F8 -> 13.63636364 | G13: =IF(ISBLANK(B13),C13/C26*H8,IF(ISBLANK(C13),B13/(C26*H8),(C13*B13)/(C26*H8))) -> 4.545454545 | H13: œufs | K13: 3 | L13: 0.05 | M13: kg
E14: =IF(ISBLANK(B14),C14/C26,IF(ISBLANK(C14),B14/C26,(C14*B14)/C26)) -> 0 | F14: =E14*F8 -> 0 | G14: =IF(ISBLANK(B14),C14/C26*H8,IF(ISBLANK(C14),B14/(C26*H8),(C14*B14)/(C26*H8))) -> 0 | J14: ou | K14: 3 | M14: Œufs
E15: =IF(ISBLANK(B15),C15/C26,IF(ISBLANK(C15),B15/C26,(C15*B15)/C26)) -> 0 | F15: =E15*F8 -> 0 | G15: =IF(ISBLANK(B15),C15/C26*H8,IF(ISBLANK(C15),B15/(C26*H8),(C15*B15)/(C26*H8))) -> 0 | J15: ou œufs liquides | Q15: et cette commande de code dans Worksheet
E16: =IF(ISBLANK(B16),C16/C26,IF(ISBLANK(C16),B16/C26,(C16*B16)/C26)) -> 0 | F16: =E16*F8 -> 0 | G16: =+IF(ISBLANK(B16),C16/C26*H8,IF(ISBLANK(C16),B16/(C26*H8),(C16*B16)/(C26*H8))) -> 0 | L16: 0.15 | M16: kg | Q16: Private Sub Worksheet_SelectionChange(ByVal Target As Range)
E17: =IF(ISBLANK(B17),C17/C26,IF(ISBLANK(C17),B17/C26,(C17*B17)/C26)) -> 0 | F17: =E17*F8 -> 0 | G17: =IF(ISBLANK(B17),C17/C26*H8,IF(ISBLANK(C17),B17/(C26*H8),(C17*B17)/(C26*H8))) -> 0 | J17: ❸ Lorsque vous avez des produits à l'unité réduisez les décimales pour une meilleure lecture | Q17: Calculate
E18: =IF(ISBLANK(B18),C18/C26,IF(ISBLANK(C18),B18/C26,(C18*B18)/C26)) -> 0 | F18: =E18*F8 -> 0 | G18: =IF(ISBLANK(B18),C18/C26*H8,IF(ISBLANK(C18),B18/(C26*H8),(C18*B18)/(C26*H8))) -> 0 | Q18: End Sub
E19: =IF(ISBLANK(B19),C19/C26,IF(ISBLANK(C19),B19/C26,(C19*B19)/C26)) -> 0 | F19: =E19*F8 -> 0 | G19: =IF(ISBLANK(B19),C19/C26*H8,IF(ISBLANK(C19),B19/(C26*H8),(C19*B19)/(C26*H8))) -> 0 | J19: utilisez le pinceau pour ce faire | Q19: 15 | R19: 15 | S19: 15 | T19: 15 | U19: largeur de colonnes
E20: =IF(ISBLANK(B20),C20/C26,IF(ISBLANK(C20),B20/C26,(C20*B20)/C26)) -> 0 | F20: =E20*F8 -> 0 | G20: =IF(ISBLANK(B20),C20/C26*H8,IF(ISBLANK(C20),B20/(C26*H8),(C20*B20)/(C26*H8))) -> 0 | J20: pour 1 Kg | K20: Kg | L20: Galettes
E21: =IF(ISBLANK(B21),C21/C26,IF(ISBLANK(C21),B21/C26,(C21*B21)/C26)) -> 0 | F21: =E21*F8 -> 0 | G21: =IF(ISBLANK(B21),C21/C26*H8,IF(ISBLANK(C21),B21/(C26*H8),(C21*B21)/(C26*H8))) -> 0 | J21: 1 | K21: 1 | L21: 1.2 | Q21: total saisi > | R21: SI(ESTVIDE(Q5);R5;Q5*R5)+SI(ESTVIDE(Q6);R6;Q6*R6) etc…
E22: =IF(ISBLANK(B22),C22/C26,IF(ISBLANK(C22),B22/C26,(C22*B22)/C26)) -> 0 | F22: =E22*F8 -> 0 | G22: =IF(ISBLANK(B22),C22/C26*H8,IF(ISBLANK(C22),B22/(C26*H8),(C22*B22)/(C26*H8))) -> 0 | Q22: pour 1 Kg | R22: SI(ESTVIDE(B11);C11/C26;SI(ESTVIDE(C11);B11/C26;(C11*B11)/C26))
E23: =IF(ISBLANK(B23),C23/C26,IF(ISBLANK(C23),B23/C26,(C23*B23)/C26)) -> 0 | F23: =E23*F8 -> 0 | G23: =IF(ISBLANK(B23),C23/C26*H8,IF(ISBLANK(C23),B23/(C26*H8),(C23*B23)/(C26*H8))) -> 0 | J23: ❹ Référence Auteur | Q23: Kg | R23: E11*F8
E24: =IF(ISBLANK(B24),C24/C26,IF(ISBLANK(C24),B24/C26,(C24*B24)/C26)) -> 0 | F24: =E24*F8 -> 0 | G24: =IF(ISBLANK(B24),C24/C26*H8,IF(ISBLANK(C24),B24/(C26*H8),(C24*B24)/(C26*H8))) -> 0 | Q24: Galettes | R24: SI(ESTVIDE(B11);C11/C26*H8;SI(ESTVIDE(C11);B11/(C26*H8);(C11*B11)/(C26*H8)))
E25: =IF(ISBLANK(B25),C25/C26,IF(ISBLANK(C25),B25/C26,(C25*B25)/C26)) -> 0 | F25: =E25*F8 -> 0 | G25: =IF(ISBLANK(B25),C25/C26*H8,IF(ISBLANK(C25),B25/(C26*H8),(C25*B25)/(C26*H8))) -> 0 | J25: ❺ Nb de portions prévues par l'Auteur de la recette
B26: total saisi > | C26: =IF(ISBLANK(B10),C10,B10*C10)+IF(ISBLANK(B11),C11,B11*C11)+IF(ISBLANK(B12),C12,B12*C12)+IF(ISBLANK(B13),C13,B13*C13)+IF(ISBLANK(B14),C14,B14*C14)+IF(ISBLANK(B15),C15,B15*C15)+IF(ISBLANK(B16),C16,B16*C16)+IF(ISBLANK(B17),C17,B17*C17)+IF(ISBLANK(B18),C18,B18*C18)+IF(ISBLANK(B19),C19,B19*C19)+IF(ISBLANK(B20),C20,B20*C20)+IF(ISBLANK(B21),C21,B21*C21)+IF(ISBLANK(B22),C22,B22*C22)+IF(ISBLANK(B23),C23,B23*C23)+IF(ISBLANK(B24),C24,B24*C24)+IF(ISBLANK(B25),C25,B25*C25) -> 0.55 | E26: 0 | F26: 0 | Q26: Cours VBA : les événements Worksheet
B27: ⑩ Lien> | N27: < Largeurs de colonnes | Q27: Lien> | R27: https://www.exceltip.com/events-in-vba/the-worksheet-events-in-excel-vba.html
B28: =CELL("filename",M2) -> E:\Joël Leboucher\Téléchargements\[GA-modele.de.fiche.pour.galettes.xlsm]Modèle.Portrait.1 | J28: Vous pouvez augmenter ou diminuer le poids pour une galette en g ⑥ en augmentant ou diminuant le Nb.portions prévues ❺ | Q28: Lien> | R28: https://www.excel-pratique.com/fr/vba/evenements_feuille
B29: 0 | C29: MÉTHODE D'EXÉCUTION
B30: =IF(ISBLANK(C30),"",LARGE(B29:B29,1)+1) -> 1 | C30: soyez concis 1 verbe = 1 action | Q30: lien > | R30: Les unités pifométriques
B31: =IF(ISBLANK(C31),"",LARGE(B29:B30,1)+1) -> 2 | C31: Utilisez le vocabulaire professionnel
B32: =IF(ISBLANK(C32),"",LARGE(B29:B31,1)+1) -> 3 | C32: la numérotation est automatique | J32: ❼ Dupliquer pour : | Q32: Impression Portrait 1 recette par feuille A4
B33: =IF(ISBLANK(C33),"",LARGE(B29:B32,1)+1) ->  | D33: lorsque vous saisissez du texte | J33: vous avez le choix pour un poids ou pour un nombre de crêpes
B34: =IF(ISBLANK(C34),"",LARGE(B29:B33,1)+1) -> 4 | C34: dans la colonne C | Q34: ="Page "&_xlfn.SHEET()&" sur "&_xlfn.SHEETS() -> Page 6 sur 16
B35: =IF(ISBLANK(C35),"",LARGE(B29:B34,1)+1) ->  | D35: si vous ne voulez pas de numérotation | J35: après avoir saisi le poids de votre crêpe ❽
B36: =IF(ISBLANK(C36),"",LARGE(B29:B35,1)+1) ->  | D36: saisissez votre texte dans la colonne D ou + | Q36: PHASES ESSENTIELLES DE PROGRESSION
B37: =IF(ISBLANK(C37),"",LARGE(B29:B36,1)+1) ->  | J37: ⑨ AUTEUR : de la recette | Q37: soyez concis 1 verbe = 1 action
B38: =IF(ISBLANK(C38),"",LARGE(B29:B37,1)+1) ->  | Q38: Utilisez le vocabulaire professionnel
B39: =IF(ISBLANK(C39),"",LARGE(B29:B38,1)+1) ->  | Q39: la numérotation est automatique
B40: =IF(ISBLANK(C40),"",LARGE(B29:B39,1)+1) ->  | J40: ⑩ saisissez le lien internet de la recette ou de l'Auteur | R40: lorsque vous saisissez du texte
B41: =IF(ISBLANK(C41),"",LARGE(B29:B40,1)+1) ->  | Q41: dans la colonne C
B42: =+IF(ISBLANK(C42),"",LARGE(B29:B41,1)+1) ->  | J42: 10 | K42: 10 | L42: 10 | M42: 10 | R42: si vous ne voulez pas de numérotation
B43: =IF(ISBLANK(C43),"",LARGE(B29:B42,1)+1) ->  | D43: 0 | R43: saisissez votre texte dans la colonne D
B44: Conception 1998 Cuisine centrale de Clamart Joël Leboucher - Adaptation 2009 Cuisine Centrale de Rochefort sur mer mise à jour décembre 2021 sur un document avec code VBA..de D.DEMILLY | Q44: formule utilisée : SI(ESTVIDE(C30);"";GRANDE.VALEUR(B29:B29;1)+1)
B45: 9.14 | C45: 9 | D45: 30 | E45: 10 | F45: 9 | G45: 11 | H45: 11 | I45: Largeurs de colonnes
C47: ENTETES DE RECHANGE
B49: ① | C49: Servez vous du pinceau Mise en forme pour changer les couleurs d'entête des recettes ou collez celles-ci à la place | H49: Codes ou N°
A52: ICI | B52: ① | C52: DIVERS | H52: DIV001
A55: ICI | B55: ① | C55: brun PATISSERIE | H55: PAT001
A58: ICI | B58: ① | C58: bleu vert DESSERTS | H58: DES001
A61: ICI | B61: ① | C61: bleu LAITAGES FROMAGES | H61: LAI001
A64: ICI | B64: ① | C64: bleu moyen LAITAGES + FÉCULENTS | H64: LFC001
A67: ICI | B67: ① | C67: vert brillant ACCOMPAGNEMENT COMPOSÉS VERTS | H67: ACC001
A70: ICI | B70: ① | C70: orange PLATS COMPLETS | H70: PLC001
A73: ICI | B73: ① | C73: bleu ciel POISSON | H73: POI001
A76: ICI | B76: ① | C76: or VOLAILLES | H76: VOL001
A79: ICI | B79: ① | C79: rouge VIANDE | H79: VIA001
A82: ICI | B82: ① | C82: rose PLAT PRINCIPAL | H82: PLA001
A85: ICI | B85: ① | C85: marron FÉCULENTS | H85: FEC001
A88: ICI | B88: ① | C88: citron vert CUIDITÉS | H88: CUI001
A91: ICI | B91: ① | C91: vert CRUDITÉS | H91: CRU001
A94: ICI | B94: ① | C94: violet ENTRÉES CHAUDES | H94: ENT001
A97: ICI | B97: ① | C97: vert marin ENTRÉES FROIDES | H97: ENT001 | U97: FIN
U98: =ADDRESS(ROW(),COLUMN(),4) -> U98

Sheet Modèle.Portrait.2.une.fiche
A1: 3 | B1: 5 | C1: 11 | D1: 30 | E1: 12 | F1: 11 | G1: 10 | H1: 5 | I1: 11 | J1: 30 | K1: 12 | L1: 11 | M1: 10 | O1: 12 | P1: 12 | Q1: 19 | R1: 12 | S1: 12
A2: Recettes de ? | O2: Récap du Mode d'emploi de la fiche recette | U2: ICI
O4: Recette au nombre de PORTIONS | U4: Sur la tranche des fiches indiquez : DANS QUELLE FAMILLE CETTE RECETTE EST A CLASSER | V4: =U4 -> Sur la tranche des fiches indiquez : DANS QUELLE FAMILLE CETTE RECETTE EST A CLASSER
A5: ICI | B5: ① | C5: NOM DU PLAT | L5: 9
O6: à saisir | W6: J'ai parfois volontairement augmenté le nombre de portions ❽ pour diminuer le poids pour 1 portion ⑩ qui ne convenait pas à mes convives
A7: Sur la tranche des fiches indiquez : DANS QUELLE FAMILLE CETTE RECETTE EST A CLASSER | C7: ② Auteur > | D7: Robert | O7: ① NOM de la recette a saisir et N° ou lettre Alpha
L8: ⓫
B9: 10 | C9: ❽ Nombre de portions | J9: A dupliquer pour | L9: 5 | O9: ② saisissez le nom de Auteur
B11: =C50+I50 -> 0.55 | F11: ⑩ poids pour 1 portion | G11: =B11/B9 -> 0.055 | K11: ⑫ Poids à fabriquer | L11: =G11*L9 -> 0.275 | O11: Poids à saisir en Kg | W11: le surlignage des lignes et colonnes s'obtient avec une Mise en forme conditionnelle MFC avec cette formule =OU(LIGNE()=CELLULE("ligne");COLONNE()=CELLULE("colonne"))
O12: Exep. 3 œufs de 0.050
B13: ⑨ Poids total Auteur | E13: Recette éditée le | F13: =NOW() -> 2021-12-20T19:39:32.240 | K13: ⑬ Contrôle Total saisi | L13: =E33+K33 -> 0.275 | O13: ❹ Unités | P13: ❺ Poids | Q13: ❸ les Ingrédients | R13: ⑦ Quantités | S13: ❻ Quoi
O14: 3 | P14: 0.05 | Q14: œufs | R14: 2.5 | S14: Kg
C15: Vous pouvez intervenir sur le poids portion ⑩ en modifiant le nombre de portions ❽ | I15: ⓫ Combien de Portions voulez vous faire | M15: =LARGE(B16:B31,1) -> 4 | P15: 0.15 | Q15: ou œufs liquides | R15: 0.725 | S15: Kg | W15: et cette commande de code dans Worksheet
B16: 0 | C16: ④ PHASES ESSENTIELLES DE PROGRESSION | M16: =+IF(ISBLANK(L16),"",LARGE(M15:M15,1)+1) ->  | O16: 3 | Q16: œufs | R16: 12 | S16: œufs | W16: Private Sub Worksheet_SelectionChange(ByVal Target As Range)
B17: =IF(ISBLANK(C17),"",LARGE(B16:B16,1)+1) ->  | M17: =+IF(ISBLANK(L17),"",LARGE(M15:M16,1)+1) ->  | O17: ⑦ Lorsque vous avez des produits à l'unité réduisez les décimales pour une meilleure lecture | W17: Calculate
B18: =+IF(ISBLANK(C18),"",LARGE(B16:B17,1)+1) -> 1 | C18: soyez concis 1 verbe = 1 action | M18: =+IF(ISBLANK(L18),"",LARGE(M15:M17,1)+1) ->  | W18: End Sub
B19: =IF(ISBLANK(C19),"",LARGE(B16:B18,1)+1) -> 2 | C19: Utilisez le vocabulaire professionnel | L19: la numérotation est automatique | M19: =+IF(ISBLANK(L19),"",LARGE(M15:M18,1)+1) -> 5 | R19: ⑦ Quantités | S19: ❻ Quoi | W19: 15 | X19: 15 | Y19: 15 | Z19: 15 | AA19: largeur de colonnes
B20: =IF(ISBLANK(C20),"",LARGE(B16:B19,1)+1) -> 3 | C20: la numérotation est automatique | K20: lorsque vous saisissez du texte | M20: =+IF(ISBLANK(L20),"",LARGE(M15:M19,1)+1) ->  | Q20: utilisez le pinceau pour ce faire | R20: 12 | S20: œufs
B21: =IF(ISBLANK(C21),"",LARGE(B16:B20,1)+1) ->  | D21: lorsque vous saisissez du texte | L21: dans la colonne C ou dans la colonne L | M21: =+IF(ISBLANK(L21),"",LARGE(M15:M20,1)+1) -> 6 | W21: Cours VBA : les événements Worksheet
B22: =IF(ISBLANK(C22),"",LARGE(B16:B21,1)+1) -> 4 | C22: dans la colonne C ou dans la colonne L | M22: =+IF(ISBLANK(L22),"",LARGE(M15:M21,1)+1) ->  | O22: ❽ Nombre de portions prévues par l'Auteur | W22: Lien> | X22: https://www.exceltip.com/events-in-vba/the-worksheet-events-in-excel-vba.html
B23: =IF(ISBLANK(C23),"",LARGE(B16:B22,1)+1) ->  | D23: si vous ne voulez pas de numérotation | L23: si vous ne voulez pas de numérotation | M23: =+IF(ISBLANK(L23),"",LARGE(M15:M22,1)+1) -> 7 | O23: Poids total Auteur ⑨ somme des colonnes ❺ Poids | W23: Lien> | X23: https://www.excel-pratique.com/fr/vba/evenements_feuille
B24: =IF(ISBLANK(C24),"",LARGE(B16:B23,1)+1) ->  | D24: saisissez votre texte dans la colonne D ou K | K24: saisissez votre texte dans la colonne K | M24: =+IF(ISBLANK(L24),"",LARGE(M15:M23,1)+1) ->  | O24: formule utilisée | P24: SI(ESTVIDE(B34);C34;B34*C34)+SI(ESTVIDE(B35);C35;B35*C35) etc..
B25: =IF(ISBLANK(C25),"",LARGE(B16:B24,1)+1) ->  | M25: =+IF(ISBLANK(L25),"",LARGE(M15:M24,1)+1) ->  | O25: cette formule multiplie les Unités ❹ mais n'additionne que les Poids ❺ | W25: lien > | X25: Les unités pifométriques
B26: =IF(ISBLANK(C26),"",LARGE(B16:B25,1)+1) ->  | M26: =+IF(ISBLANK(L26),"",LARGE(M15:M25,1)+1) -> 
B27: =+IF(ISBLANK(C27),"",LARGE(B16:B26,1)+1) ->  | M27: =+IF(ISBLANK(L27),"",LARGE(M15:M26,1)+1) ->  | O27: ⑩ poids pour 1 portion | W27: Impression Portrait 1 recette par feuille A4
B28: =IF(ISBLANK(C28),"",LARGE(B16:B27,1)+1) ->  | M28: =+IF(ISBLANK(L28),"",LARGE(M15:M27,1)+1) ->  | O28: Vous pouvez intervenir sur le poids portion ⑩ en augmentant ou en diminuant le nombre de portions ❽
B29: =IF(ISBLANK(C29),"",LARGE(B16:B28,1)+1) ->  | M29: =+IF(ISBLANK(L29),"",LARGE(M15:M28,1)+1) ->  | W29: ="Page "&_xlfn.SHEET()&" sur "&_xlfn.SHEETS() -> Page 7 sur 16
B30: =IF(ISBLANK(C30),"",LARGE(B16:B29,1)+1) ->  | M30: =+IF(ISBLANK(L30),"",LARGE(M15:M29,1)+1) -> 
B31: =IF(ISBLANK(C31),"",LARGE(B16:B30,1)+1) ->  | M31: =+IF(ISBLANK(L31),"",LARGE(M15:M30,1)+1) ->  | O31: ⓫ Combien de Portions voulez vous faire | W31: Avant de saisir quoi que ce soit dans une cellule - cliquez dessus pour vérifier qu'il n'y ait pas de formule
B32: ❹ Unités | C32: ❺ Poids | D32: ❸ Ingrédients | E32: ⑦ Quantités | F32: % | G32: ❻ Quoi | H32: ❹ Unités | I32: ❺ Poids | J32: ❸ Ingrédients | K32: ⑦ Quantités | L32: % | M32: ❻ Quoi | P32: ⑫ Poids à fabriquer = ⑩ X ⓫
D33: S.Total saisi > | E33: =IF(ISNUMBER(C34),E34)+IF(ISNUMBER(C35),E35)+IF(ISNUMBER(C36),E36)+IF(ISNUMBER(C37),E37)+IF(ISNUMBER(C38),E38)+IF(ISNUMBER(C39),E39)+IF(ISNUMBER(C40),E40)+IF(ISNUMBER(C41),E41)+IF(ISNUMBER(C42),E42)+IF(ISNUMBER(C43),E43)+IF(ISNUMBER(C44),E44)+IF(ISNUMBER(C45),E45)+IF(ISNUMBER(C46),E46)+IF(ISNUMBER(C47),E47)+IF(ISNUMBER(C48),E48) -> 0.275 | J33: S.Total saisi > | K33: =IF(ISNUMBER(I34),K34)+IF(ISNUMBER(I35),K35)+IF(ISNUMBER(I36),K36)+IF(ISNUMBER(I37),K37)+IF(ISNUMBER(I38),K38)+IF(ISNUMBER(I39),K39)+IF(ISNUMBER(I40),K40)+IF(ISNUMBER(I41),K41)+IF(ISNUMBER(I42),K42)+IF(ISNUMBER(I43),K43)+IF(ISNUMBER(I44),K44)+IF(ISNUMBER(I45),K45)+IF(ISNUMBER(I46),K46)+IF(ISNUMBER(I47),K47)+IF(ISNUMBER(I48),K48) -> 0 | P33: ⑬ Contrôle Total saisi somme des colonnes ⑦ Quantités
B34: 8 | C34: 0.05 | D34: œufs | E34: =IF(ISBLANK(B34),C34/B11*L11,IF(ISBLANK(C34),B34/B11*L11,(B34*C34)/B11*L11)) -> 0.2 | F34: =IF(ISNUMBER(C34),E34/L13,"") -> 0.7272727273 | G34: Kg | J34: Chair à saucisse | K34: =IF(ISBLANK(H34),I34/B11*L11,IF(ISBLANK(I34),H34/B11*L11,(H34*I34)/B11*L11)) -> 0 | L34: =IF(ISNUMBER(I34),K34/L13,"") ->  | M34: Kg | O34: formule utilisée | P34: SI(ESTNUM(C34);E34)+SI(ESTNUM(C35);E35) etc..
C35: 0.15 | D35: ou œufs liquides | E35: =IF(ISBLANK(B35),C35/B11*L11,IF(ISBLANK(C35),B35/B11*L11,(B35*C35)/B11*L11)) -> 0.075 | F35: =IF(ISNUMBER(C35),E35/L13,"") -> 0.2727272727 | G35: Kg | K35: =IF(ISBLANK(H35),I35/B11*L11,IF(ISBLANK(I35),H35/B11*L11,(H35*I35)/B11*L11)) -> 0 | L35: =IF(ISNUMBER(I35),K35/L13,"") ->  | M35: Kg | O35: cette formule n'additionne que les quantités ⑦ à condition qu'il y ait eu un nombre saisi en Poids ❺
B36: 3 | D36: œufs | E36: =IF(ISBLANK(B36),C36/B11*L11,IF(ISBLANK(C36),B36/B11*L11,(B36*C36)/B11*L11)) -> 1.5 | F36: =IF(ISNUMBER(C36),E36/L13,"") ->  | G36: œufs | K36: =IF(ISBLANK(H36),I36/B11*L11,IF(ISBLANK(I36),H36/B11*L11,(H36*I36)/B11*L11)) -> 0 | L36: =IF(ISNUMBER(I36),K36/L13,"") ->  | M36: Kg
E37: =IF(ISBLANK(B37),C37/B11*L11,IF(ISBLANK(C37),B37/B11*L11,(B37*C37)/B11*L11)) -> 0 | F37: =IF(ISNUMBER(C37),E37/L13,"") ->  | G37: Kg | K37: =IF(ISBLANK(H37),I37/B11*L11,IF(ISBLANK(I37),H37/B11*L11,(H37*I37)/B11*L11)) -> 0 | L37: =IF(ISNUMBER(I37),K37/L13,"") ->  | M37: Kg | O37: autrement dit elle ne mélange pas ❹ Unités et ❺ Poids sinon allez expliquer à Excel qu'1 œuf ne fait pas 1 Kg
E38: =IF(ISBLANK(B38),C38/B11*L11,IF(ISBLANK(C38),B38/B11*L11,(B38*C38)/B11*L11)) -> 0 | F38: =IF(ISNUMBER(C38),E38/L13,"") ->  | G38: Kg | K38: =IF(ISBLANK(H38),I38/B11*L11,IF(ISBLANK(I38),H38/B11*L11,(H38*I38)/B11*L11)) -> 0 | L38: =IF(ISNUMBER(I38),K38/L13,"") ->  | M38: Kg
E39: =IF(ISBLANK(B39),C39/B11*L11,IF(ISBLANK(C39),B39/B11*L11,(B39*C39)/B11*L11)) -> 0 | F39: =IF(ISNUMBER(C39),E39/L13,"") ->  | G39: Kg | K39: =IF(ISBLANK(H39),I39/B11*L11,IF(ISBLANK(I39),H39/B11*L11,(H39*I39)/B11*L11)) -> 0 | L39: =IF(ISNUMBER(I39),K39/L13,"") ->  | M39: Kg
E40: =IF(ISBLANK(B40),C40/B11*L11,IF(ISBLANK(C40),B40/B11*L11,(B40*C40)/B11*L11)) -> 0 | F40: =IF(ISNUMBER(C40),E40/L13,"") ->  | G40: Kg | K40: =IF(ISBLANK(H40),I40/B11*L11,IF(ISBLANK(I40),H40/B11*L11,(H40*I40)/B11*L11)) -> 0 | L40: =IF(ISNUMBER(I40),K40/L13,"") ->  | M40: Kg | O40: ④ PHASES ESSENTIELLES DE PROGRESSION
E41: =IF(ISBLANK(B41),C41/B11*L11,IF(ISBLANK(C41),B41/B11*L11,(B41*C41)/B11*L11)) -> 0 | F41: =IF(ISNUMBER(C41),E41/L13,"") ->  | G41: Kg | K41: =IF(ISBLANK(H41),I41/B11*L11,IF(ISBLANK(I41),H41/B11*L11,(H41*I41)/B11*L11)) -> 0 | L41: =IF(ISNUMBER(I41),K41/L13,"") ->  | M41: Kg | O41: soyez concis 1 verbe = 1 action
E42: =IF(ISBLANK(B42),C42/B11*L11,IF(ISBLANK(C42),B42/B11*L11,(B42*C42)/B11*L11)) -> 0 | F42: =IF(ISNUMBER(C42),E42/L13,"") ->  | G42: Kg | K42: =IF(ISBLANK(H42),I42/B11*L11,IF(ISBLANK(I42),H42/B11*L11,(H42*I42)/B11*L11)) -> 0 | L42: =IF(ISNUMBER(I42),K42/L13,"") ->  | M42: Kg | O42: Utilisez le vocabulaire professionnel
E43: =IF(ISBLANK(B43),C43/B11*L11,IF(ISBLANK(C43),B43/B11*L11,(B43*C43)/B11*L11)) -> 0 | F43: =IF(ISNUMBER(C43),E43/L13,"") ->  | G43: Kg | K43: =IF(ISBLANK(H43),I43/B11*L11,IF(ISBLANK(I43),H43/B11*L11,(H43*I43)/B11*L11)) -> 0 | L43: =IF(ISNUMBER(I43),K43/L13,"") ->  | M43: Kg | O43: la numérotation est automatique
E44: =IF(ISBLANK(B44),C44/B11*L11,IF(ISBLANK(C44),B44/B11*L11,(B44*C44)/B11*L11)) -> 0 | F44: =IF(ISNUMBER(C44),E44/L13,"") ->  | G44: Kg | K44: =IF(ISBLANK(H44),I44/B11*L11,IF(ISBLANK(I44),H44/B11*L11,(H44*I44)/B11*L11)) -> 0 | L44: =IF(ISNUMBER(I44),K44/L13,"") ->  | M44: Kg | P44: lorsque vous saisissez du texte
E45: =IF(ISBLANK(B45),C45/B11*L11,IF(ISBLANK(C45),B45/B11*L11,(B45*C45)/B11*L11)) -> 0 | F45: =IF(ISNUMBER(C45),E45/L13,"") ->  | G45: Kg | K45: =IF(ISBLANK(H45),I45/B11*L11,IF(ISBLANK(I45),H45/B11*L11,(H45*I45)/B11*L11)) -> 0 | L45: =IF(ISNUMBER(I45),K45/L13,"") ->  | M45: Kg | O45: dans la colonne C ou dans la colonne L
E46: =IF(ISBLANK(B46),C46/B11*L11,IF(ISBLANK(C46),B46/B11*L11,(B46*C46)/B11*L11)) -> 0 | F46: =IF(ISNUMBER(C46),E46/L13,"") ->  | G46: Kg | K46: =IF(ISBLANK(H46),I46/B11*L11,IF(ISBLANK(I46),H46/B11*L11,(H46*I46)/B11*L11)) -> 0 | L46: =IF(ISNUMBER(I46),K46/L13,"") ->  | M46: Kg | P46: si vous ne voulez pas de numérotation
E47: =IF(ISBLANK(B47),C47/B11*L11,IF(ISBLANK(C47),B47/B11*L11,(B47*C47)/B11*L11)) -> 0 | F47: =IF(ISNUMBER(C47),E47/L13,"") ->  | G47: Kg | K47: =IF(ISBLANK(H47),I47/B11*L11,IF(ISBLANK(I47),H47/B11*L11,(H47*I47)/B11*L11)) -> 0 | L47: =IF(ISNUMBER(I47),K47/L13,"") ->  | M47: Kg | P47: saisissez votre texte dans la colonne D ou K
E48: =IF(ISBLANK(B48),C48/B11*L11,IF(ISBLANK(C48),B48/B11*L11,(B48*C48)/B11*L11)) -> 0 | F48: =IF(ISNUMBER(C48),E48/L13,"") ->  | G48: Kg | K48: =IF(ISBLANK(H48),I48/B11*L11,IF(ISBLANK(I48),H48/B11*L11,(H48*I48)/B11*L11)) -> 0 | L48: =IF(ISNUMBER(I48),K48/L13,"") ->  | M48: Kg | O48: formule utilisée :
O49: colonne B
C50: =IF(ISBLANK(B34),C34,B34*C34)+IF(ISBLANK(B35),C35,B35*C35)+IF(ISBLANK(B36),C36,B36*C36)+IF(ISBLANK(B37),C37,B37*C37)+IF(ISBLANK(B38),C38,B38*C38)+IF(ISBLANK(B39),C39,B39*C39)+IF(ISBLANK(B40),C40,B40*C40)+IF(ISBLANK(B41),C41,B41*C41)+IF(ISBLANK(B42),C42,B42*C42)+IF(ISBLANK(B43),C43,B43*C43)+IF(ISBLANK(B44),C44,B44*C44)+IF(ISBLANK(B45),C45,B45*C45)+IF(ISBLANK(B46),C46,B46*C46)+IF(ISBLANK(B47),C47,B47*C47)+IF(ISBLANK(B48),C48,B48*C48) -> 0.55 | D50: < S.total Auteur - S.total saisi > | E50: =IF(ISNUMBER(C34),E34)+IF(ISNUMBER(C35),E35)+IF(ISNUMBER(C36),E36)+IF(ISNUMBER(C37),E37)+IF(ISNUMBER(C38),E38)+IF(ISNUMBER(C39),E39)+IF(ISNUMBER(C40),E40)+IF(ISNUMBER(C41),E41)+IF(ISNUMBER(C42),E42)+IF(ISNUMBER(C43),E43)+IF(ISNUMBER(C44),E44)+IF(ISNUMBER(C45),E45)+IF(ISNUMBER(C46),E46)+IF(ISNUMBER(C47),E47)+IF(ISNUMBER(C48),E48) -> 0.275 | H50: S.total Auteur > | I50: =IF(ISBLANK(H34),I34,H34*I34)+IF(ISBLANK(H35),I35,H35*I35)+IF(ISBLANK(H36),I36,H36*I36)+IF(ISBLANK(H37),I37,H37*I37)+IF(ISBLANK(H38),I38,H38*I38)+IF(ISBLANK(H39),I39,H39*I39)+IF(ISBLANK(H40),I40,H40*I40)+IF(ISBLANK(H41),I41,H41*I41)+IF(ISBLANK(H42),I42,H42*I42)+IF(ISBLANK(H43),I43,H43*I43)+IF(ISBLANK(H44),I44,H44*I44)+IF(ISBLANK(H45),I45,H45*I45)+IF(ISBLANK(H46),I46,H46*I46)+IF(ISBLANK(H47),I47,H47*I47)+IF(ISBLANK(H48),I48,H48*I48)+IF(ISBLANK(H49),I49,H49*I49) -> 0 | K50: Total Auteur > | L50: =I50+C50 -> 0.55 | O50: SI(ESTVIDE(C27);"";GRANDE.VALEUR(B16:B26;1)+1) | S50: Colonne M
B51: =CELL("nomfichier") -> E:\0-UPRT\1-UPRT.FR-SITE-WEB\re-recettes-jean-marc-catteau\re-catteau-galettes\[GA-pate.sud.finistere.xlsm]Modes.d'emploi | S51: SI(ESTVIDE(L27);"";GRANDE.VALEUR(M15:M26;1)+1)
B52: Adaptation : Joël Leboucher..UPRT "Union des Personnels de la Restauration Territoriale" membre du réseau RESTAU'CO | O52: 12 | P52: 12 | Q52: 19 | R52: 12 | S52: 12 | T52: < Largeurs de colonnes
B53: 5 | C53: 11 | D53: 30 | E53: 12 | F53: 11 | G53: 10 | H53: 5 | I53: 11 | J53: 30 | K53: 12 | L53: 11 | M53: 10 | N53: < Largeurs de colonnes
B56: ① | C56: Servez vous du pinceau Mise en forme pour changer les couleurs d'entête des recettes ou collez celles-ci à la place | L56: Codes ou N°
A59: ICI | B59: ① | C59: DIVERS | L59: DIV001
A62: ICI | B62: ① | C62: brun PATISSERIE | L62: PAT001
A65: ICI | B65: ① | C65: bleu vert DESSERTS | L65: DES001
A68: ICI | B68: ① | C68: bleu LAITAGES FROMAGES | L68: LAI001
A71: ICI | B71: ① | C71: bleu moyen LAITAGES + FÉCULENTS | L71: LFC001
A74: ICI | B74: ① | C74: vert brillant ACCOMPAGNEMENT COMPOSÉS VERTS | L74: ACC001
A77: ICI | B77: ① | C77: orange PLATS COMPLETS | L77: PLC001
A80: ICI | B80: ① | C80: bleu ciel POISSON | L80: POI001
A83: ICI | B83: ① | C83: or VOLAILLES | L83: VOL001
AA84: 0
AA85: 0
A86: ICI | B86: ① | C86: rouge VIANDE | L86: VIA001 | AA86: 0
AA87: 0
AA88: 0
A89: ICI | B89: ① | C89: rose PLAT PRINCIPAL | L89: PLA001 | AA89: 0
AA90: 0
AA91: 0
A92: ICI | B92: ① | C92: marron FÉCULENTS | L92: FEC001 | AA92: 0
AA93: 0
AA94: 0
A95: ICI | B95: ① | C95: citron vert CUIDITÉS | L95: CUI001 | AA95: 0
AA96: 0
AA97: 0
A98: ICI | B98: ① | C98: vert CRUDITÉS | L98: CRU001 | AA98: 0
AA99: 0
AA100: 0
A101: ICI | B101: ① | C101: violet ENTRÉES CHAUDES | L101: ENT001 | AA101: 0
AA102: 0
AA103: 0
A104: ICI | B104: ① | C104: vert marin ENTRÉES FROIDES | L104: ENT001 | AA104: 0
AA105: 0
AA106: 0
AA107: FIN
AA108: =ADDRESS(ROW(),COLUMN(),4) -> AA108

Sheet Modèle.Portrait.2.deux.FICHES
A1: 3 | B1: 5 | C1: 11 | D1: 30 | E1: 12 | F1: 11 | G1: 10 | H1: 5 | I1: 11 | J1: 30 | K1: 12 | L1: 11 | M1: 10 | O1: 3 | P1: 5 | Q1: 11 | R1: 30 | S1: 12 | T1: 11 | U1: 10 | V1: 5 | W1: 11 | X1: 30 | Y1: 12 | Z1: 11 | AA1: 10 | AC1: 12 | AD1: 12 | AE1: 19 | AF1: 12 | AG1: 12
A2: Recettes de ? | O2: Recettes de ? | AC2: Récap du Mode d'emploi de la fiche recette | AI2: ICI
AC4: Recette au nombre de PORTIONS | AI4: Sur la tranche des fiches indiquez : DANS QUELLE FAMILLE CETTE RECETTE EST A CLASSER | AJ4: =AI4 -> Sur la tranche des fiches indiquez : DANS QUELLE FAMILLE CETTE RECETTE EST A CLASSER
A5: ICI | B5: ① | C5: NOM DU PLAT | L5: 9 | O5: ICI | P5: ① | Q5: NOM DU PLAT | Z5: 9
AC6: à saisir | AK6: J'ai parfois volontairement augmenté le nombre de portions ❽ pour diminuer le poids pour 1 portion ⑩ qui ne convenait pas à mes convives
A7: Sur la tranche des fiches indiquez : DANS QUELLE FAMILLE CETTE RECETTE EST A CLASSER | C7: ② Auteur > | D7: Robert | O7: Sur la tranche des fiches indiquez : DANS QUELLE FAMILLE CETTE RECETTE EST A CLASSER | Q7: ② Auteur > | R7: Robert | AC7: ① NOM de la recette a saisir et N° ou lettre Alpha
L8: ⓫ | Z8: ⓫
B9: 10 | C9: ❽ Nombre de portions | J9: A dupliquer pour | L9: 5 | P9: 10 | Q9: ❽ Nombre de portions | X9: A dupliquer pour | Z9: 5 | AC9: ② saisissez le nom de Auteur
B11: =C50+I50 -> 0.55 | F11: ⑩ poids pour 1 portion | G11: =B11/B9 -> 0.055 | K11: ⑫ Poids à fabriquer | L11: =G11*L9 -> 0.275 | P11: =Q50+W50 -> 0.55 | T11: ⑩ poids pour 1 portion | U11: =P11/P9 -> 0.055 | Y11: ⑫ Poids à fabriquer | Z11: =U11*Z9 -> 0.275 | AC11: Poids à saisir en Kg | AK11: le surlignage des lignes et colonnes s'obtient avec une Mise en forme conditionnelle MFC avec cette formule =OU(LIGNE()=CELLULE("ligne");COLONNE()=CELLULE("colonne"))
AC12: Exep. 3 œufs de 0.050
B13: ⑨ Poids total Auteur | E13: Recette éditée le | F13: =NOW() -> 2021-12-20T19:39:32.240 | K13: ⑬ Contrôle Total saisi | L13: =E33+K33 -> 0.275 | P13: ⑨ Poids total Auteur | S13: Recette éditée le | T13: =NOW() -> 2021-12-20T19:39:32.240 | Y13: ⑬ Contrôle Total saisi | Z13: =S33+Y33 -> 0.275 | AC13: ❹ Unités | AD13: ❺ Poids | AE13: ❸ les Ingrédients | AF13: ⑦ Quantités | AG13: ❻ Quoi
AC14: 3 | AD14: 0.05 | AE14: œufs | AF14: 2.5 | AG14: Kg
C15: Vous pouvez intervenir sur le poids portion ⑩ en modifiant le nombre de portions ❽ | I15: ⓫ Combien de Portions voulez vous faire | M15: =LARGE(B16:B31,1) -> 4 | Q15: Vous pouvez intervenir sur le poids portion ⑩ en modifiant le nombre de portions ❽ | W15: ⓫ Combien de Portions voulez vous faire | AA15: =LARGE(P16:P31,1) -> 4 | AD15: 0.15 | AE15: ou œufs liquides | AF15: 0.725 | AG15: Kg | AK15: et cette commande de code dans Worksheet
B16: 0 | C16: ④ PHASES ESSENTIELLES DE PROGRESSION | M16: =+IF(ISBLANK(L16),"",LARGE(M15:M15,1)+1) ->  | P16: 0 | Q16: ④ PHASES ESSENTIELLES DE PROGRESSION | AA16: =+IF(ISBLANK(Z16),"",LARGE(AA15:AA15,1)+1) ->  | AC16: 3 | AE16: œufs | AF16: 12 | AG16: œufs | AK16: Private Sub Worksheet_SelectionChange(ByVal Target As Range)
B17: =IF(ISBLANK(C17),"",LARGE(B16:B16,1)+1) ->  | M17: =+IF(ISBLANK(L17),"",LARGE(M15:M16,1)+1) ->  | P17: =IF(ISBLANK(Q17),"",LARGE(P16:P16,1)+1) ->  | AA17: =+IF(ISBLANK(Z17),"",LARGE(AA15:AA16,1)+1) ->  | AC17: ⑦ Lorsque vous avez des produits à l'unité réduisez les décimales pour une meilleure lecture | AK17: Calculate
B18: =+IF(ISBLANK(C18),"",LARGE(B16:B17,1)+1) -> 1 | C18: soyez concis 1 verbe = 1 action | M18: =+IF(ISBLANK(L18),"",LARGE(M15:M17,1)+1) ->  | P18: =+IF(ISBLANK(Q18),"",LARGE(P16:P17,1)+1) -> 1 | Q18: soyez concis 1 verbe = 1 action | AA18: =+IF(ISBLANK(Z18),"",LARGE(AA15:AA17,1)+1) ->  | AK18: End Sub
B19: =IF(ISBLANK(C19),"",LARGE(B16:B18,1)+1) -> 2 | C19: Utilisez le vocabulaire professionnel | L19: la numérotation est automatique | M19: =+IF(ISBLANK(L19),"",LARGE(M15:M18,1)+1) -> 5 | P19: =IF(ISBLANK(Q19),"",LARGE(P16:P18,1)+1) -> 2 | Q19: Utilisez le vocabulaire professionnel | Z19: la numérotation est automatique | AA19: =+IF(ISBLANK(Z19),"",LARGE(AA15:AA18,1)+1) -> 5 | AF19: ⑦ Quantités | AG19: ❻ Quoi | AK19: 15 | AL19: 15 | AM19: 15 | AN19: 15 | AO19: largeur de colonnes
B20: =IF(ISBLANK(C20),"",LARGE(B16:B19,1)+1) -> 3 | C20: la numérotation est automatique | K20: lorsque vous saisissez du texte | M20: =+IF(ISBLANK(L20),"",LARGE(M15:M19,1)+1) ->  | P20: =IF(ISBLANK(Q20),"",LARGE(P16:P19,1)+1) -> 3 | Q20: la numérotation est automatique | Y20: lorsque vous saisissez du texte | AA20: =+IF(ISBLANK(Z20),"",LARGE(AA15:AA19,1)+1) ->  | AE20: utilisez le pinceau pour ce faire | AF20: 12 | AG20: œufs
B21: =IF(ISBLANK(C21),"",LARGE(B16:B20,1)+1) ->  | D21: lorsque vous saisissez du texte | L21: dans la colonne C ou dans la colonne L | M21: =+IF(ISBLANK(L21),"",LARGE(M15:M20,1)+1) -> 6 | P21: =IF(ISBLANK(Q21),"",LARGE(P16:P20,1)+1) ->  | R21: lorsque vous saisissez du texte | Z21: dans la colonne C ou dans la colonne L | AA21: =+IF(ISBLANK(Z21),"",LARGE(AA15:AA20,1)+1) -> 6 | AK21: Cours VBA : les événements Worksheet
B22: =IF(ISBLANK(C22),"",LARGE(B16:B21,1)+1) -> 4 | C22: dans la colonne C ou dans la colonne L | M22: =+IF(ISBLANK(L22),"",LARGE(M15:M21,1)+1) ->  | P22: =IF(ISBLANK(Q22),"",LARGE(P16:P21,1)+1) -> 4 | Q22: dans la colonne C ou dans la colonne L | AA22: =+IF(ISBLANK(Z22),"",LARGE(AA15:AA21,1)+1) ->  | AC22: ❽ Nombre de portions prévues par l'Auteur | AK22: Lien> | AL22: https://www.exceltip.com/events-in-vba/the-worksheet-events-in-excel-vba.html
B23: =IF(ISBLANK(C23),"",LARGE(B16:B22,1)+1) ->  | D23: si vous ne voulez pas de numérotation | L23: si vous ne voulez pas de numérotation | M23: =+IF(ISBLANK(L23),"",LARGE(M15:M22,1)+1) -> 7 | P23: =IF(ISBLANK(Q23),"",LARGE(P16:P22,1)+1) ->  | R23: si vous ne voulez pas de numérotation | Z23: si vous ne voulez pas de numérotation | AA23: =+IF(ISBLANK(Z23),"",LARGE(AA15:AA22,1)+1) -> 7 | AC23: Poids total Auteur ⑨ somme des colonnes ❺ Poids | AK23: Lien> | AL23: https://www.excel-pratique.com/fr/vba/evenements_feuille
B24: =IF(ISBLANK(C24),"",LARGE(B16:B23,1)+1) ->  | D24: saisissez votre texte dans la colonne D ou K | K24: saisissez votre texte dans la colonne K | M24: =+IF(ISBLANK(L24),"",LARGE(M15:M23,1)+1) ->  | P24: =IF(ISBLANK(Q24),"",LARGE(P16:P23,1)+1) ->  | R24: saisissez votre texte dans la colonne D ou K | Y24: saisissez votre texte dans la colonne K | AA24: =+IF(ISBLANK(Z24),"",LARGE(AA15:AA23,1)+1) ->  | AC24: formule utilisée | AD24: SI(ESTVIDE(B34);C34;B34*C34)+SI(ESTVIDE(B35);C35;B35*C35) etc..
B25: =IF(ISBLANK(C25),"",LARGE(B16:B24,1)+1) ->  | M25: =+IF(ISBLANK(L25),"",LARGE(M15:M24,1)+1) ->  | P25: =IF(ISBLANK(Q25),"",LARGE(P16:P24,1)+1) ->  | AA25: =+IF(ISBLANK(Z25),"",LARGE(AA15:AA24,1)+1) ->  | AC25: cette formule multiplie les Unités ❹ mais n'additionne que les Poids ❺ | AK25: lien > | AL25: Les unités pifométriques
B26: =IF(ISBLANK(C26),"",LARGE(B16:B25,1)+1) ->  | M26: =+IF(ISBLANK(L26),"",LARGE(M15:M25,1)+1) ->  | P26: =IF(ISBLANK(Q26),"",LARGE(P16:P25,1)+1) ->  | AA26: =+IF(ISBLANK(Z26),"",LARGE(AA15:AA25,1)+1) -> 
B27: =+IF(ISBLANK(C27),"",LARGE(B16:B26,1)+1) ->  | M27: =+IF(ISBLANK(L27),"",LARGE(M15:M26,1)+1) ->  | P27: =+IF(ISBLANK(Q27),"",LARGE(P16:P26,1)+1) ->  | AA27: =+IF(ISBLANK(Z27),"",LARGE(AA15:AA26,1)+1) ->  | AC27: ⑩ poids pour 1 portion | AK27: Impression Portrait 1 recette par feuille A4
B28: =IF(ISBLANK(C28),"",LARGE(B16:B27,1)+1) ->  | M28: =+IF(ISBLANK(L28),"",LARGE(M15:M27,1)+1) ->  | P28: =IF(ISBLANK(Q28),"",LARGE(P16:P27,1)+1) ->  | AA28: =+IF(ISBLANK(Z28),"",LARGE(AA15:AA27,1)+1) ->  | AC28: Vous pouvez intervenir sur le poids portion ⑩ en augmentant ou en diminuant le nombre de portions ❽
B29: =IF(ISBLANK(C29),"",LARGE(B16:B28,1)+1) ->  | M29: =+IF(ISBLANK(L29),"",LARGE(M15:M28,1)+1) ->  | P29: =IF(ISBLANK(Q29),"",LARGE(P16:P28,1)+1) ->  | AA29: =+IF(ISBLANK(Z29),"",LARGE(AA15:AA28,1)+1) ->  | AK29: ="Page "&_xlfn.SHEET()&" sur "&_xlfn.SHEETS() -> Page 8 sur 16
B30: =IF(ISBLANK(C30),"",LARGE(B16:B29,1)+1) ->  | M30: =+IF(ISBLANK(L30),"",LARGE(M15:M29,1)+1) ->  | P30: =IF(ISBLANK(Q30),"",LARGE(P16:P29,1)+1) ->  | AA30: =+IF(ISBLANK(Z30),"",LARGE(AA15:AA29,1)+1) -> 
B31: =IF(ISBLANK(C31),"",LARGE(B16:B30,1)+1) ->  | M31: =+IF(ISBLANK(L31),"",LARGE(M15:M30,1)+1) ->  | P31: =IF(ISBLANK(Q31),"",LARGE(P16:P30,1)+1) ->  | AA31: =+IF(ISBLANK(Z31),"",LARGE(AA15:AA30,1)+1) ->  | AC31: ⓫ Combien de Portions voulez vous faire | AK31: Avant de saisir quoi que ce soit dans une cellule - cliquez dessus pour vérifier qu'il n'y ait pas de formule
B32: ❹ Unités | C32: ❺ Poids | D32: ❸ Ingrédients | E32: ⑦ Quantités | F32: % | G32: ❻ Quoi | H32: ❹ Unités | I32: ❺ Poids | J32: ❸ Ingrédients | K32: ⑦ Quantités | L32: % | M32: ❻ Quoi | P32: ❹ Unités | Q32: ❺ Poids | R32: ❸ Ingrédients | S32: ⑦ Quantités | T32: % | U32: ❻ Quoi | V32: ❹ Unités | W32: ❺ Poids | X32: ❸ Ingrédients | Y32: ⑦ Quantités | Z32: % | AA32: ❻ Quoi | AD32: ⑫ Poids à fabriquer = ⑩ X ⓫
D33: S.Total saisi > | E33: =IF(ISNUMBER(C34),E34)+IF(ISNUMBER(C35),E35)+IF(ISNUMBER(C36),E36)+IF(ISNUMBER(C37),E37)+IF(ISNUMBER(C38),E38)+IF(ISNUMBER(C39),E39)+IF(ISNUMBER(C40),E40)+IF(ISNUMBER(C41),E41)+IF(ISNUMBER(C42),E42)+IF(ISNUMBER(C43),E43)+IF(ISNUMBER(C44),E44)+IF(ISNUMBER(C45),E45)+IF(ISNUMBER(C46),E46)+IF(ISNUMBER(C47),E47)+IF(ISNUMBER(C48),E48) -> 0.275 | J33: S.Total saisi > | K33: =IF(ISNUMBER(I34),K34)+IF(ISNUMBER(I35),K35)+IF(ISNUMBER(I36),K36)+IF(ISNUMBER(I37),K37)+IF(ISNUMBER(I38),K38)+IF(ISNUMBER(I39),K39)+IF(ISNUMBER(I40),K40)+IF(ISNUMBER(I41),K41)+IF(ISNUMBER(I42),K42)+IF(ISNUMBER(I43),K43)+IF(ISNUMBER(I44),K44)+IF(ISNUMBER(I45),K45)+IF(ISNUMBER(I46),K46)+IF(ISNUMBER(I47),K47)+IF(ISNUMBER(I48),K48) -> 0 | R33: S.Total saisi > | S33: =IF(ISNUMBER(Q34),S34)+IF(ISNUMBER(Q35),S35)+IF(ISNUMBER(Q36),S36)+IF(ISNUMBER(Q37),S37)+IF(ISNUMBER(Q38),S38)+IF(ISNUMBER(Q39),S39)+IF(ISNUMBER(Q40),S40)+IF(ISNUMBER(Q41),S41)+IF(ISNUMBER(Q42),S42)+IF(ISNUMBER(Q43),S43)+IF(ISNUMBER(Q44),S44)+IF(ISNUMBER(Q45),S45)+IF(ISNUMBER(Q46),S46)+IF(ISNUMBER(Q47),S47)+IF(ISNUMBER(Q48),S48) -> 0.275 | X33: S.Total saisi > | Y33: =IF(ISNUMBER(W34),Y34)+IF(ISNUMBER(W35),Y35)+IF(ISNUMBER(W36),Y36)+IF(ISNUMBER(W37),Y37)+IF(ISNUMBER(W38),Y38)+IF(ISNUMBER(W39),Y39)+IF(ISNUMBER(W40),Y40)+IF(ISNUMBER(W41),Y41)+IF(ISNUMBER(W42),Y42)+IF(ISNUMBER(W43),Y43)+IF(ISNUMBER(W44),Y44)+IF(ISNUMBER(W45),Y45)+IF(ISNUMBER(W46),Y46)+IF(ISNUMBER(W47),Y47)+IF(ISNUMBER(W48),Y48) -> 0 | AD33: ⑬ Contrôle Total saisi somme des colonnes ⑦ Quantités
B34: 8 | C34: 0.05 | D34: œufs | E34: =IF(ISBLANK(B34),C34/B11*L11,IF(ISBLANK(C34),B34/B11*L11,(B34*C34)/B11*L11)) -> 0.2 | F34: =IF(ISNUMBER(C34),E34/L13,"") -> 0.7272727273 | G34: Kg | J34: Chair à saucisse | K34: =IF(ISBLANK(H34),I34/B11*L11,IF(ISBLANK(I34),H34/B11*L11,(H34*I34)/B11*L11)) -> 0 | L34: =IF(ISNUMBER(I34),K34/L13,"") ->  | M34: Kg | P34: 8 | Q34: 0.05 | R34: œufs | S34: =IF(ISBLANK(P34),Q34/P11*Z11,IF(ISBLANK(Q34),P34/P11*Z11,(P34*Q34)/P11*Z11)) -> 0.2 | T34: =IF(ISNUMBER(Q34),S34/Z13,"") -> 0.7272727273 | U34: Kg | X34: Chair à saucisse | Y34: =IF(ISBLANK(V34),W34/P11*Z11,IF(ISBLANK(W34),V34/P11*Z11,(V34*W34)/P11*Z11)) -> 0 | Z34: =IF(ISNUMBER(W34),Y34/Z13,"") ->  | AA34: Kg | AC34: formule utilisée | AD34: SI(ESTNUM(C34);E34)+SI(ESTNUM(C35);E35) etc..
C35: 0.15 | D35: ou œufs liquides | E35: =IF(ISBLANK(B35),C35/B11*L11,IF(ISBLANK(C35),B35/B11*L11,(B35*C35)/B11*L11)) -> 0.075 | F35: =IF(ISNUMBER(C35),E35/L13,"") -> 0.2727272727 | G35: Kg | K35: =IF(ISBLANK(H35),I35/B11*L11,IF(ISBLANK(I35),H35/B11*L11,(H35*I35)/B11*L11)) -> 0 | L35: =IF(ISNUMBER(I35),K35/L13,"") ->  | M35: Kg | Q35: 0.15 | R35: ou œufs liquides | S35: =IF(ISBLANK(P35),Q35/P11*Z11,IF(ISBLANK(Q35),P35/P11*Z11,(P35*Q35)/P11*Z11)) -> 0.075 | T35: =IF(ISNUMBER(Q35),S35/Z13,"") -> 0.2727272727 | U35: Kg | Y35: =IF(ISBLANK(V35),W35/P11*Z11,IF(ISBLANK(W35),V35/P11*Z11,(V35*W35)/P11*Z11)) -> 0 | Z35: =IF(ISNUMBER(W35),Y35/Z13,"") ->  | AA35: Kg | AC35: cette formule n'additionne que les quantités ⑦ à condition qu'il y ait eu un nombre saisi en Poids ❺
B36: 3 | D36: œufs | E36: =IF(ISBLANK(B36),C36/B11*L11,IF(ISBLANK(C36),B36/B11*L11,(B36*C36)/B11*L11)) -> 1.5 | F36: =IF(ISNUMBER(C36),E36/L13,"") ->  | G36: œufs | K36: =IF(ISBLANK(H36),I36/B11*L11,IF(ISBLANK(I36),H36/B11*L11,(H36*I36)/B11*L11)) -> 0 | L36: =IF(ISNUMBER(I36),K36/L13,"") ->  | M36: Kg | P36: 3 | R36: œufs | S36: =IF(ISBLANK(P36),Q36/P11*Z11,IF(ISBLANK(Q36),P36/P11*Z11,(P36*Q36)/P11*Z11)) -> 1.5 | T36: =IF(ISNUMBER(Q36),S36/Z13,"") ->  | U36: œufs | Y36: =IF(ISBLANK(V36),W36/P11*Z11,IF(ISBLANK(W36),V36/P11*Z11,(V36*W36)/P11*Z11)) -> 0 | Z36: =IF(ISNUMBER(W36),Y36/Z13,"") ->  | AA36: Kg
E37: =IF(ISBLANK(B37),C37/B11*L11,IF(ISBLANK(C37),B37/B11*L11,(B37*C37)/B11*L11)) -> 0 | F37: =IF(ISNUMBER(C37),E37/L13,"") ->  | G37: Kg | K37: =IF(ISBLANK(H37),I37/B11*L11,IF(ISBLANK(I37),H37/B11*L11,(H37*I37)/B11*L11)) -> 0 | L37: =IF(ISNUMBER(I37),K37/L13,"") ->  | M37: Kg | S37: =IF(ISBLANK(P37),Q37/P11*Z11,IF(ISBLANK(Q37),P37/P11*Z11,(P37*Q37)/P11*Z11)) -> 0 | T37: =IF(ISNUMBER(Q37),S37/Z13,"") ->  | U37: Kg | Y37: =IF(ISBLANK(V37),W37/P11*Z11,IF(ISBLANK(W37),V37/P11*Z11,(V37*W37)/P11*Z11)) -> 0 | Z37: =IF(ISNUMBER(W37),Y37/Z13,"") ->  | AA37: Kg | AC37: autrement dit elle ne mélange pas ❹ Unités et ❺ Poids sinon allez expliquer à Excel qu'1 œuf ne fait pas 1 Kg
E38: =IF(ISBLANK(B38),C38/B11*L11,IF(ISBLANK(C38),B38/B11*L11,(B38*C38)/B11*L11)) -> 0 | F38: =IF(ISNUMBER(C38),E38/L13,"") ->  | G38: Kg | K38: =IF(ISBLANK(H38),I38/B11*L11,IF(ISBLANK(I38),H38/B11*L11,(H38*I38)/B11*L11)) -> 0 | L38: =IF(ISNUMBER(I38),K38/L13,"") ->  | M38: Kg | S38: =IF(ISBLANK(P38),Q38/P11*Z11,IF(ISBLANK(Q38),P38/P11*Z11,(P38*Q38)/P11*Z11)) -> 0 | T38: =IF(ISNUMBER(Q38),S38/Z13,"") ->  | U38: Kg | Y38: =IF(ISBLANK(V38),W38/P11*Z11,IF(ISBLANK(W38),V38/P11*Z11,(V38*W38)/P11*Z11)) -> 0 | Z38: =IF(ISNUMBER(W38),Y38/Z13,"") ->  | AA38: Kg
E39: =IF(ISBLANK(B39),C39/B11*L11,IF(ISBLANK(C39),B39/B11*L11,(B39*C39)/B11*L11)) -> 0 | F39: =IF(ISNUMBER(C39),E39/L13,"") ->  | G39: Kg | K39: =IF(ISBLANK(H39),I39/B11*L11,IF(ISBLANK(I39),H39/B11*L11,(H39*I39)/B11*L11)) -> 0 | L39: =IF(ISNUMBER(I39),K39/L13,"") ->  | M39: Kg | S39: =IF(ISBLANK(P39),Q39/P11*Z11,IF(ISBLANK(Q39),P39/P11*Z11,(P39*Q39)/P11*Z11)) -> 0 | T39: =IF(ISNUMBER(Q39),S39/Z13,"") ->  | U39: Kg | Y39: =IF(ISBLANK(V39),W39/P11*Z11,IF(ISBLANK(W39),V39/P11*Z11,(V39*W39)/P11*Z11)) -> 0 | Z39: =IF(ISNUMBER(W39),Y39/Z13,"") ->  | AA39: Kg
E40: =IF(ISBLANK(B40),C40/B11*L11,IF(ISBLANK(C40),B40/B11*L11,(B40*C40)/B11*L11)) -> 0 | F40: =IF(ISNUMBER(C40),E40/L13,"") ->  | G40: Kg | K40: =IF(ISBLANK(H40),I40/B11*L11,IF(ISBLANK(I40),H40/B11*L11,(H40*I40)/B11*L11)) -> 0 | L40: =IF(ISNUMBER(I40),K40/L13,"") ->  | M40: Kg | S40: =IF(ISBLANK(P40),Q40/P11*Z11,IF(ISBLANK(Q40),P40/P11*Z11,(P40*Q40)/P11*Z11)) -> 0 | T40: =IF(ISNUMBER(Q40),S40/Z13,"") ->  | U40: Kg | Y40: =IF(ISBLANK(V40),W40/P11*Z11,IF(ISBLANK(W40),V40/P11*Z11,(V40*W40)/P11*Z11)) -> 0 | Z40: =IF(ISNUMBER(W40),Y40/Z13,"") ->  | AA40: Kg | AC40: ④ PHASES ESSENTIELLES DE PROGRESSION
E41: =IF(ISBLANK(B41),C41/B11*L11,IF(ISBLANK(C41),B41/B11*L11,(B41*C41)/B11*L11)) -> 0 | F41: =IF(ISNUMBER(C41),E41/L13,"") ->  | G41: Kg | K41: =IF(ISBLANK(H41),I41/B11*L11,IF(ISBLANK(I41),H41/B11*L11,(H41*I41)/B11*L11)) -> 0 | L41: =IF(ISNUMBER(I41),K41/L13,"") ->  | M41: Kg | S41: =IF(ISBLANK(P41),Q41/P11*Z11,IF(ISBLANK(Q41),P41/P11*Z11,(P41*Q41)/P11*Z11)) -> 0 | T41: =IF(ISNUMBER(Q41),S41/Z13,"") ->  | U41: Kg | Y41: =IF(ISBLANK(V41),W41/P11*Z11,IF(ISBLANK(W41),V41/P11*Z11,(V41*W41)/P11*Z11)) -> 0 | Z41: =IF(ISNUMBER(W41),Y41/Z13,"") ->  | AA41: Kg | AC41: soyez concis 1 verbe = 1 action
E42: =IF(ISBLANK(B42),C42/B11*L11,IF(ISBLANK(C42),B42/B11*L11,(B42*C42)/B11*L11)) -> 0 | F42: =IF(ISNUMBER(C42),E42/L13,"") ->  | G42: Kg | K42: =IF(ISBLANK(H42),I42/B11*L11,IF(ISBLANK(I42),H42/B11*L11,(H42*I42)/B11*L11)) -> 0 | L42: =IF(ISNUMBER(I42),K42/L13,"") ->  | M42: Kg | S42: =IF(ISBLANK(P42),Q42/P11*Z11,IF(ISBLANK(Q42),P42/P11*Z11,(P42*Q42)/P11*Z11)) -> 0 | T42: =IF(ISNUMBER(Q42),S42/Z13,"") ->  | U42: Kg | Y42: =IF(ISBLANK(V42),W42/P11*Z11,IF(ISBLANK(W42),V42/P11*Z11,(V42*W42)/P11*Z11)) -> 0 | Z42: =IF(ISNUMBER(W42),Y42/Z13,"") ->  | AA42: Kg | AC42: Utilisez le vocabulaire professionnel
E43: =IF(ISBLANK(B43),C43/B11*L11,IF(ISBLANK(C43),B43/B11*L11,(B43*C43)/B11*L11)) -> 0 | F43: =IF(ISNUMBER(C43),E43/L13,"") ->  | G43: Kg | K43: =IF(ISBLANK(H43),I43/B11*L11,IF(ISBLANK(I43),H43/B11*L11,(H43*I43)/B11*L11)) -> 0 | L43: =IF(ISNUMBER(I43),K43/L13,"") ->  | M43: Kg | S43: =IF(ISBLANK(P43),Q43/P11*Z11,IF(ISBLANK(Q43),P43/P11*Z11,(P43*Q43)/P11*Z11)) -> 0 | T43: =IF(ISNUMBER(Q43),S43/Z13,"") ->  | U43: Kg | Y43: =IF(ISBLANK(V43),W43/P11*Z11,IF(ISBLANK(W43),V43/P11*Z11,(V43*W43)/P11*Z11)) -> 0 | Z43: =IF(ISNUMBER(W43),Y43/Z13,"") ->  | AA43: Kg | AC43: la numérotation est automatique
E44: =IF(ISBLANK(B44),C44/B11*L11,IF(ISBLANK(C44),B44/B11*L11,(B44*C44)/B11*L11)) -> 0 | F44: =IF(ISNUMBER(C44),E44/L13,"") ->  | G44: Kg | K44: =IF(ISBLANK(H44),I44/B11*L11,IF(ISBLANK(I44),H44/B11*L11,(H44*I44)/B11*L11)) -> 0 | L44: =IF(ISNUMBER(I44),K44/L13,"") ->  | M44: Kg | S44: =IF(ISBLANK(P44),Q44/P11*Z11,IF(ISBLANK(Q44),P44/P11*Z11,(P44*Q44)/P11*Z11)) -> 0 | T44: =IF(ISNUMBER(Q44),S44/Z13,"") ->  | U44: Kg | Y44: =IF(ISBLANK(V44),W44/P11*Z11,IF(ISBLANK(W44),V44/P11*Z11,(V44*W44)/P11*Z11)) -> 0 | Z44: =IF(ISNUMBER(W44),Y44/Z13,"") ->  | AA44: Kg | AD44: lorsque vous saisissez du texte
E45: =IF(ISBLANK(B45),C45/B11*L11,IF(ISBLANK(C45),B45/B11*L11,(B45*C45)/B11*L11)) -> 0 | F45: =IF(ISNUMBER(C45),E45/L13,"") ->  | G45: Kg | K45: =IF(ISBLANK(H45),I45/B11*L11,IF(ISBLANK(I45),H45/B11*L11,(H45*I45)/B11*L11)) -> 0 | L45: =IF(ISNUMBER(I45),K45/L13,"") ->  | M45: Kg | S45: =IF(ISBLANK(P45),Q45/P11*Z11,IF(ISBLANK(Q45),P45/P11*Z11,(P45*Q45)/P11*Z11)) -> 0 | T45: =IF(ISNUMBER(Q45),S45/Z13,"") ->  | U45: Kg | Y45: =IF(ISBLANK(V45),W45/P11*Z11,IF(ISBLANK(W45),V45/P11*Z11,(V45*W45)/P11*Z11)) -> 0 | Z45: =IF(ISNUMBER(W45),Y45/Z13,"") ->  | AA45: Kg | AC45: dans la colonne C ou dans la colonne L
E46: =IF(ISBLANK(B46),C46/B11*L11,IF(ISBLANK(C46),B46/B11*L11,(B46*C46)/B11*L11)) -> 0 | F46: =IF(ISNUMBER(C46),E46/L13,"") ->  | G46: Kg | K46: =IF(ISBLANK(H46),I46/B11*L11,IF(ISBLANK(I46),H46/B11*L11,(H46*I46)/B11*L11)) -> 0 | L46: =IF(ISNUMBER(I46),K46/L13,"") ->  | M46: Kg | S46: =IF(ISBLANK(P46),Q46/P11*Z11,IF(ISBLANK(Q46),P46/P11*Z11,(P46*Q46)/P11*Z11)) -> 0 | T46: =IF(ISNUMBER(Q46),S46/Z13,"") ->  | U46: Kg | Y46: =IF(ISBLANK(V46),W46/P11*Z11,IF(ISBLANK(W46),V46/P11*Z11,(V46*W46)/P11*Z11)) -> 0 | Z46: =IF(ISNUMBER(W46),Y46/Z13,"") ->  | AA46: Kg | AD46: si vous ne voulez pas de numérotation
E47: =IF(ISBLANK(B47),C47/B11*L11,IF(ISBLANK(C47),B47/B11*L11,(B47*C47)/B11*L11)) -> 0 | F47: =IF(ISNUMBER(C47),E47/L13,"") ->  | G47: Kg | K47: =IF(ISBLANK(H47),I47/B11*L11,IF(ISBLANK(I47),H47/B11*L11,(H47*I47)/B11*L11)) -> 0 | L47: =IF(ISNUMBER(I47),K47/L13,"") ->  | M47: Kg | S47: =IF(ISBLANK(P47),Q47/P11*Z11,IF(ISBLANK(Q47),P47/P11*Z11,(P47*Q47)/P11*Z11)) -> 0 | T47: =IF(ISNUMBER(Q47),S47/Z13,"") ->  | U47: Kg | Y47: =IF(ISBLANK(V47),W47/P11*Z11,IF(ISBLANK(W47),V47/P11*Z11,(V47*W47)/P11*Z11)) -> 0 | Z47: =IF(ISNUMBER(W47),Y47/Z13,"") ->  | AA47: Kg | AD47: saisissez votre texte dans la colonne D ou K
E48: =IF(ISBLANK(B48),C48/B11*L11,IF(ISBLANK(C48),B48/B11*L11,(B48*C48)/B11*L11)) -> 0 | F48: =IF(ISNUMBER(C48),E48/L13,"") ->  | G48: Kg | K48: =IF(ISBLANK(H48),I48/B11*L11,IF(ISBLANK(I48),H48/B11*L11,(H48*I48)/B11*L11)) -> 0 | L48: =IF(ISNUMBER(I48),K48/L13,"") ->  | M48: Kg | S48: =IF(ISBLANK(P48),Q48/P11*Z11,IF(ISBLANK(Q48),P48/P11*Z11,(P48*Q48)/P11*Z11)) -> 0 | T48: =IF(ISNUMBER(Q48),S48/Z13,"") ->  | U48: Kg | Y48: =IF(ISBLANK(V48),W48/P11*Z11,IF(ISBLANK(W48),V48/P11*Z11,(V48*W48)/P11*Z11)) -> 0 | Z48: =IF(ISNUMBER(W48),Y48/Z13,"") ->  | AA48: Kg | AC48: formule utilisée :
AC49: colonne B
C50: =IF(ISBLANK(B34),C34,B34*C34)+IF(ISBLANK(B35),C35,B35*C35)+IF(ISBLANK(B36),C36,B36*C36)+IF(ISBLANK(B37),C37,B37*C37)+IF(ISBLANK(B38),C38,B38*C38)+IF(ISBLANK(B39),C39,B39*C39)+IF(ISBLANK(B40),C40,B40*C40)+IF(ISBLANK(B41),C41,B41*C41)+IF(ISBLANK(B42),C42,B42*C42)+IF(ISBLANK(B43),C43,B43*C43)+IF(ISBLANK(B44),C44,B44*C44)+IF(ISBLANK(B45),C45,B45*C45)+IF(ISBLANK(B46),C46,B46*C46)+IF(ISBLANK(B47),C47,B47*C47)+IF(ISBLANK(B48),C48,B48*C48) -> 0.55 | D50: < S.total Auteur - S.total saisi > | E50: =IF(ISNUMBER(C34),E34)+IF(ISNUMBER(C35),E35)+IF(ISNUMBER(C36),E36)+IF(ISNUMBER(C37),E37)+IF(ISNUMBER(C38),E38)+IF(ISNUMBER(C39),E39)+IF(ISNUMBER(C40),E40)+IF(ISNUMBER(C41),E41)+IF(ISNUMBER(C42),E42)+IF(ISNUMBER(C43),E43)+IF(ISNUMBER(C44),E44)+IF(ISNUMBER(C45),E45)+IF(ISNUMBER(C46),E46)+IF(ISNUMBER(C47),E47)+IF(ISNUMBER(C48),E48) -> 0.275 | H50: S.total Auteur > | I50: =IF(ISBLANK(H34),I34,H34*I34)+IF(ISBLANK(H35),I35,H35*I35)+IF(ISBLANK(H36),I36,H36*I36)+IF(ISBLANK(H37),I37,H37*I37)+IF(ISBLANK(H38),I38,H38*I38)+IF(ISBLANK(H39),I39,H39*I39)+IF(ISBLANK(H40),I40,H40*I40)+IF(ISBLANK(H41),I41,H41*I41)+IF(ISBLANK(H42),I42,H42*I42)+IF(ISBLANK(H43),I43,H43*I43)+IF(ISBLANK(H44),I44,H44*I44)+IF(ISBLANK(H45),I45,H45*I45)+IF(ISBLANK(H46),I46,H46*I46)+IF(ISBLANK(H47),I47,H47*I47)+IF(ISBLANK(H48),I48,H48*I48)+IF(ISBLANK(H49),I49,H49*I49) -> 0 | K50: Total Auteur > | L50: =I50+C50 -> 0.55 | Q50: =IF(ISBLANK(P34),Q34,P34*Q34)+IF(ISBLANK(P35),Q35,P35*Q35)+IF(ISBLANK(P36),Q36,P36*Q36)+IF(ISBLANK(P37),Q37,P37*Q37)+IF(ISBLANK(P38),Q38,P38*Q38)+IF(ISBLANK(P39),Q39,P39*Q39)+IF(ISBLANK(P40),Q40,P40*Q40)+IF(ISBLANK(P41),Q41,P41*Q41)+IF(ISBLANK(P42),Q42,P42*Q42)+IF(ISBLANK(P43),Q43,P43*Q43)+IF(ISBLANK(P44),Q44,P44*Q44)+IF(ISBLANK(P45),Q45,P45*Q45)+IF(ISBLANK(P46),Q46,P46*Q46)+IF(ISBLANK(P47),Q47,P47*Q47)+IF(ISBLANK(P48),Q48,P48*Q48) -> 0.55 | R50: < S.total Auteur - S.total saisi > | S50: =IF(ISNUMBER(Q34),S34)+IF(ISNUMBER(Q35),S35)+IF(ISNUMBER(Q36),S36)+IF(ISNUMBER(Q37),S37)+IF(ISNUMBER(Q38),S38)+IF(ISNUMBER(Q39),S39)+IF(ISNUMBER(Q40),S40)+IF(ISNUMBER(Q41),S41)+IF(ISNUMBER(Q42),S42)+IF(ISNUMBER(Q43),S43)+IF(ISNUMBER(Q44),S44)+IF(ISNUMBER(Q45),S45)+IF(ISNUMBER(Q46),S46)+IF(ISNUMBER(Q47),S47)+IF(ISNUMBER(Q48),S48) -> 0.275 | V50: S.total Auteur > | W50: =IF(ISBLANK(V34),W34,V34*W34)+IF(ISBLANK(V35),W35,V35*W35)+IF(ISBLANK(V36),W36,V36*W36)+IF(ISBLANK(V37),W37,V37*W37)+IF(ISBLANK(V38),W38,V38*W38)+IF(ISBLANK(V39),W39,V39*W39)+IF(ISBLANK(V40),W40,V40*W40)+IF(ISBLANK(V41),W41,V41*W41)+IF(ISBLANK(V42),W42,V42*W42)+IF(ISBLANK(V43),W43,V43*W43)+IF(ISBLANK(V44),W44,V44*W44)+IF(ISBLANK(V45),W45,V45*W45)+IF(ISBLANK(V46),W46,V46*W46)+IF(ISBLANK(V47),W47,V47*W47)+IF(ISBLANK(V48),W48,V48*W48)+IF(ISBLANK(V49),W49,V49*W49) -> 0 | Y50: Total Auteur > | Z50: =W50+Q50 -> 0.55 | AC50: SI(ESTVIDE(C27);"";GRANDE.VALEUR(B16:B26;1)+1) | AG50: Colonne M
B51: =CELL("nomfichier") -> E:\0-UPRT\1-UPRT.FR-SITE-WEB\re-recettes-jean-marc-catteau\re-catteau-galettes\[GA-pate.sud.finistere.xlsm]Modes.d'emploi | P51: =CELL("nomfichier") -> E:\0-UPRT\1-UPRT.FR-SITE-WEB\re-recettes-jean-marc-catteau\re-catteau-galettes\[GA-pate.sud.finistere.xlsm]Modes.d'emploi | AG51: SI(ESTVIDE(L27);"";GRANDE.VALEUR(M15:M26;1)+1)
B52: Adaptation : Joël Leboucher..UPRT "Union des Personnels de la Restauration Territoriale" membre du réseau RESTAU'CO | P52: Adaptation : Joël Leboucher..UPRT "Union des Personnels de la Restauration Territoriale" membre du réseau RESTAU'CO | AC52: 12 | AD52: 12 | AE52: 19 | AF52: 12 | AG52: 12 | AH52: < Largeurs de colonnes
B53: 5 | C53: 11 | D53: 30 | E53: 12 | F53: 11 | G53: 10 | H53: 5 | I53: 11 | J53: 30 | K53: 12 | L53: 11 | M53: 10 | N53: < Largeurs de colonnes | P53: 5 | Q53: 11 | R53: 30 | S53: 12 | T53: 11 | U53: 10 | V53: 5 | W53: 11 | X53: 30 | Y53: 12 | Z53: 11 | AA53: 10
B56: ① | C56: Servez vous du pinceau Mise en forme pour changer les couleurs d'entête des recettes ou collez celles-ci à la place | L56: Codes ou N° | P56: ① | Q56: Servez vous du pinceau Mise en forme pour changer les couleurs d'entête des recettes ou collez celles-ci à la place | Z56: Codes ou N°
A59: ICI | B59: ① | C59: DIVERS | L59: DIV001 | O59: ICI | P59: ① | Q59: DIVERS | Z59: DIV001
A62: ICI | B62: ① | C62: brun PATISSERIE | L62: PAT001 | O62: ICI | P62: ① | Q62: brun PATISSERIE | Z62: PAT001
A65: ICI | B65: ① | C65: bleu vert DESSERTS | L65: DES001 | O65: ICI | P65: ① | Q65: bleu vert DESSERTS | Z65: DES001
A68: ICI | B68: ① | C68: bleu LAITAGES FROMAGES | L68: LAI001 | O68: ICI | P68: ① | Q68: bleu LAITAGES FROMAGES | Z68: LAI001
A71: ICI | B71: ① | C71: bleu moyen LAITAGES + FÉCULENTS | L71: LFC001 | O71: ICI | P71: ① | Q71: bleu moyen LAITAGES + FÉCULENTS | Z71: LFC001
A74: ICI | B74: ① | C74: vert brillant ACCOMPAGNEMENT COMPOSÉS VERTS | L74: ACC001 | O74: ICI | P74: ① | Q74: vert brillant ACCOMPAGNEMENT COMPOSÉS VERTS | Z74: ACC001
A77: ICI | B77: ① | C77: orange PLATS COMPLETS | L77: PLC001 | O77: ICI | P77: ① | Q77: orange PLATS COMPLETS | Z77: PLC001
A80: ICI | B80: ① | C80: bleu ciel POISSON | L80: POI001 | O80: ICI | P80: ① | Q80: bleu ciel POISSON | Z80: POI001
A83: ICI | B83: ① | C83: or VOLAILLES | L83: VOL001 | O83: ICI | P83: ① | Q83: or VOLAILLES | Z83: VOL001
AO84: 0
AO85: 0
A86: ICI | B86: ① | C86: rouge VIANDE | L86: VIA001 | O86: ICI | P86: ① | Q86: rouge VIANDE | Z86: VIA001 | AO86: 0
AO87: 0
AO88: 0
A89: ICI | B89: ① | C89: rose PLAT PRINCIPAL | L89: PLA001 | O89: ICI | P89: ① | Q89: rose PLAT PRINCIPAL | Z89: PLA001 | AO89: 0
AO90: 0
AO91: 0
A92: ICI | B92: ① | C92: marron FÉCULENTS | L92: FEC001 | O92: ICI | P92: ① | Q92: marron FÉCULENTS | Z92: FEC001 | AO92: 0
AO93: 0
AO94: 0
A95: ICI | B95: ① | C95: citron vert CUIDITÉS | L95: CUI001 | O95: ICI | P95: ① | Q95: citron vert CUIDITÉS | Z95: CUI001 | AO95: 0
AO96: 0
AO97: 0
A98: ICI | B98: ① | C98: vert CRUDITÉS | L98: CRU001 | O98: ICI | P98: ① | Q98: vert CRUDITÉS | Z98: CRU001 | AO98: 0
AO99: 0
AO100: 0
A101: ICI | B101: ① | C101: violet ENTRÉES CHAUDES | L101: ENT001 | O101: ICI | P101: ① | Q101: violet ENTRÉES CHAUDES | Z101: ENT001 | AO101: 0
AO102: 0
AO103: 0
A104: ICI | B104: ① | C104: vert marin ENTRÉES FROIDES | L104: ENT001 | O104: ICI | P104: ① | Q104: vert marin ENTRÉES FROIDES | Z104: ENT001 | AO104: 0
AO105: 0
AO106: 0
AO107: FIN
AO108: =ADDRESS(ROW(),COLUMN(),4) -> AO108

Sheet Vocabulaire
B1: Mise à jour du 14 Décembre 2021 | I1: ="Page "&_xlfn.SHEET()&" sur "&_xlfn.SHEETS() -> Page 9 sur 16
W2: VOCABULAIRE PROFESSIONNEL un verbe…une action | AP2: Le vocabulaire professionnel en pâtisserie
B3: VOCABULAIRE PROFESSIONNEL " CUISINE DE COMPOSITION" | L3: VOCABULAIRE PROFESSIONNEL "La CUISINE DE REFERENCE" Michel MAINCENT | W3: En complément vous avez des liens en bas de page | AH3: Quelques verbes d'action complémentaires | AR3: faire court …1 verbe = 1 action | AV3: EXEMPLE UN PEU PLUS LONG :
C4: A | E4: E | G4: P | I4: R | M4: A | O4: D | Q4: H | S4: R | W4: A | Y4: D | AA4: F | AC4: M | AE4: R | AG4: T | AH4: 1 | AI4: accomplir | AK4: =AH59+1 -> 57 | AL4: générer | AO4: Lien > | AP4: http://www.juliemyrtille.com/lexique_du_patissier/ | AR4: PHASES ESSENTIELLES DE PROGRESSION | AV4: PHASES ESSENTIELLES DE PROGRESSION
B5: 1 | C5: Abaisser la temp. à coeur | D5: =B22+1 -> 16 | E5: Egrener | F5: =D26+1 -> 32 | G5: Parfumer | H5: =F24+1 -> 51 | I5: Respecter le délai de 2 H | L5: 1 | M5: Abaisser | N5: =L52+1 -> 46 | O5: Dépouiller | P5: =N52+1 -> 91 | Q5: Habiller | R5: =P52+1 -> 130 | S5: Réduire | V5: 1 | W5: Abaisser | X5: =V62+1 -> 56 | Y5: Dauber | Z5: =X63+1 -> 113 | AA5: Façonner | AB5: =Z62+1 -> 163 | AC5: Macérer | AD5: =AB62+1 -> 217 | AE5: Rabattre | AF5: =AD57+1 -> 268 | AG5: Tabler | AH5: =LARGE(AH4:AH4,1)+1 -> 2 | AI5: acheter | AK5: =LARGE(AK4:AK4,1)+1 -> 58 | AL5: gérer | AP5: A | AS5: Exemple pour un filet de sole Duglére | AW5: Exemple pour une brandade de morue Bénédictine
B6: =LARGE(B5:B5,1)+1 -> 2 | C6: Accompagner | D6: =LARGE(D5:D5,1)+1 -> 17 | E6: Eliminer | F6: =LARGE(F5:F5,1)+1 -> 33 | G6: Parsemer | H6: =LARGE(H5:H5,1)+1 -> 52 | I6: Retirer | L6: =LARGE(L5:L5,1)+1 -> 2 | M6: Abricoter | N6: =LARGE(N5:N5,1)+1 -> 47 | O6: Dérober | P6: =LARGE(P5:P5,1)+1 -> 92 | Q6: Hacher | R6: =LARGE(R5:R5,1)+1 -> 131 | S6: Relever | V6: =LARGE(V5:V5,1)+1 -> 2 | W6: Abaisser la temp. à coeur | X6: =LARGE(X5:X5,1)+1 -> 57 | Y6: Décanter | Z6: =LARGE(Z5:Z5,1)+1 -> 114 | AA6: Faire bouillir | AB6: =LARGE(AB5:AB5,1)+1 -> 164 | AC6: Maintenir en temp. sup à 63° | AD6: =LARGE(AD5:AD5,1)+1 -> 218 | AE6: Raccourcir | AF6: =LARGE(AF5:AF5,1)+1 -> 269 | AG6: Tailler | AH6: =LARGE(AH4:AH5,1)+1 -> 3 | AI6: achever | AK6: =LARGE(AK4:AK5,1)+1 -> 59 | AL6: identifier | AP6: Abaisse : morceau de pâte que l’on étale au rouleau à une épaisseur voulue | AR6: 1 | AS6: habiller les soles
B7: =LARGE(B5:B6,1)+1 -> 3 | C7: Additionner | D7: =LARGE(D5:D6,1)+1 -> 18 | E7: Enfourner | F7: =LARGE(F5:F6,1)+1 -> 34 | G7: Peler | H7: =LARGE(H5:H6,1)+1 -> 53 | I7: Retourner | L7: =LARGE(L5:L6,1)+1 -> 3 | M7: Arroser | N7: =LARGE(N5:N6,1)+1 -> 48 | O7: Désosser | P7: =LARGE(P5:P6,1)+1 -> 93 | Q7: Historier | R7: =LARGE(R5:R6,1)+1 -> 132 | S7: Remonter | V7: =LARGE(V5:V6,1)+1 -> 3 | W7: Abricoter | X7: =LARGE(X5:X6,1)+1 -> 58 | Y7: Décercler | Z7: =LARGE(Z5:Z6,1)+1 -> 115 | AA7: Farcir | AB7: =LARGE(AB5:AB6,1)+1 -> 165 | AC7: Manchonner | AD7: =LARGE(AD5:AD6,1)+1 -> 219 | AE7: Rafraîchir | AF7: =LARGE(AF5:AF6,1)+1 -> 270 | AG7: Tamiser | AH7: =LARGE(AH4:AH6,1)+1 -> 4 | AI7: activer | AK7: =LARGE(AK4:AK6,1)+1 -> 60 | AL7: imaginer | AP7: Abaisser : étaler une pâte au rouleau à une épaisseur voulue. | AR7: 2 | AS7: les dépouiller | AV7: ❶ | AW7: Mise en place du poste de travail
B8: =LARGE(B5:B7,1)+1 -> 4 | C8: Adjoindre | D8: =LARGE(D5:D7,1)+1 -> 19 | E8: Enfourner | F8: =LARGE(F5:F7,1)+1 -> 35 | G8: Porter à ébullition | H8: =LARGE(H5:H7,1)+1 -> 54 | I8: Rincer | L8: =LARGE(L5:L7,1)+1 -> 4 | M8: Assaisonner | N8: =LARGE(N5:N7,1)+1 -> 49 | O8: Dessécher | Q8: I | R8: =LARGE(R5:R7,1)+1 -> 133 | S8: Revenir | V8: =LARGE(V5:V7,1)+1 -> 4 | W8: Accoler | X8: =LARGE(X5:X7,1)+1 -> 59 | Y8: Décorer | Z8: =LARGE(Z5:Z7,1)+1 -> 116 | AA8: Farder | AB8: =LARGE(AB5:AB7,1)+1 -> 166 | AC8: Manier | AD8: =LARGE(AD5:AD7,1)+1 -> 220 | AE8: Raidir | AF8: =LARGE(AF5:AF7,1)+1 -> 271 | AG8: Tamponner | AH8: =LARGE(AH4:AH7,1)+1 -> 5 | AI8: agrandir | AK8: =LARGE(AK4:AK7,1)+1 -> 61 | AL8: inscrire | AP8: Abricoter : étendre une confiture d’abricot à l’aide d’un pinceau sur un entremets, sur une tarte ou une préparation pour la rendre brillante et la protéger en surface en limitant les risques de dessèchement et de brunissement enzymatique. | AR8: 3 | AS8: les mettre en filet | AV8: 1 | AW8: verifier les DLC
B9: =LARGE(B5:B8,1)+1 -> 5 | C9: Agir rapidement | D9: =LARGE(D5:D8,1)+1 -> 20 | E9: Etaler | F9: =LARGE(F5:F8,1)+1 -> 36 | G9: Préchauffer | I9: S | M9: B | N9: =LARGE(N5:N8,1)+1 -> 50 | O9: Détendre | P9: =LARGE(P5:P8,1)+1 -> 94 | Q9: Inciser | R9: =LARGE(R5:R8,1)+1 -> 134 | S9: Rissoler | V9: =LARGE(V5:V8,1)+1 -> 5 | W9: Accompagner | X9: =LARGE(X5:X8,1)+1 -> 60 | Y9: Décortiquer | Z9: =LARGE(Z5:Z8,1)+1 -> 117 | AA9: Fariner | AB9: =LARGE(AB5:AB8,1)+1 -> 167 | AC9: Manipuler | AD9: =LARGE(AD5:AD8,1)+1 -> 221 | AE9: Rassir | AF9: =LARGE(AF5:AF8,1)+1 -> 272 | AG9: Tapisser | AH9: =LARGE(AH4:AH8,1)+1 -> 6 | AI9: ajuster | AK9: =LARGE(AK4:AK8,1)+1 -> 62 | AL9: insérer | AP9: Accoler : réunir, rassembler deux ou plusieurs éléments pour constituer un gâteau, un élément de fabrication ou autre. | AR9: 4 | AS9: dégorger le tout 1/2 heure à l'eau fraiche | AV9: 2 | AW9: peser les denrées
B10: =LARGE(B5:B9,1)+1 -> 6 | C10: Ajouter | E10: F | F10: =LARGE(F5:F9,1)+1 -> 37 | G10: Prélever | H10: =LARGE(H5:H9,1)+1 -> 55 | I10: Saupoudrer | L10: =LARGE(L5:L9,1)+1 -> 5 | M10: Barder | N10: =LARGE(N5:N9,1)+1 -> 51 | O10: Dorer | Q10: L | R10: =LARGE(R5:R9,1)+1 -> 135 | S10: Rompre | V10: =LARGE(V5:V9,1)+1 -> 6 | W10: Additionner | X10: =LARGE(X5:X9,1)+1 -> 61 | Y10: Décuire | Z10: =LARGE(Z5:Z9,1)+1 -> 118 | AA10: Festonner | AB10: =LARGE(AB5:AB9,1)+1 -> 168 | AC10: Marbrer | AD10: =LARGE(AD5:AD9,1)+1 -> 222 | AE10: Rayer | AF10: =LARGE(AF5:AF9,1)+1 -> 273 | AG10: Terminer | AH10: =LARGE(AH4:AH9,1)+1 -> 7 | AI10: améliorer | AK10: =LARGE(AK4:AK9,1)+1 -> 63 | AL10: inspecter | AP10: Appareil : mélange de différentes substances alimentaires entrant dans la composition d’une préparation de pâtisserie. | AR10: 5 | AS10: hacher finement oignons et échalotes | AV10: 3 | AW10: sélectionner le matériel
B11: =LARGE(B5:B10,1)+1 -> 7 | C11: Aplatir | D11: =LARGE(D5:D10,1)+1 -> 21 | E11: Faire bouillir | F11: =LARGE(F5:F10,1)+1 -> 38 | G11: Préparer | H11: =LARGE(H5:H10,1)+1 -> 56 | I11: Servir | L11: =LARGE(L5:L10,1)+1 -> 6 | M11: Beurrer | N11: =LARGE(N5:N10,1)+1 -> 52 | O11: Dresser | P11: =LARGE(P5:P10,1)+1 -> 95 | Q11: Lier | R11: =LARGE(R5:R10,1)+1 -> 136 | S11: Rôtir | V11: =LARGE(V5:V10,1)+1 -> 7 | W11: Adjoindre | X11: =LARGE(X5:X10,1)+1 -> 62 | Y11: Déffilandrer | Z11: =LARGE(Z5:Z10,1)+1 -> 119 | AA11: Fileter | AB11: =LARGE(AB5:AB10,1)+1 -> 169 | AC11: Mariner | AD11: =LARGE(AD5:AD10,1)+1 -> 223 | AE11: Réaliser | AF11: =LARGE(AF5:AF10,1)+1 -> 274 | AG11: Tomber | AH11: =LARGE(AH4:AH10,1)+1 -> 8 | AI11: aménager | AK11: =LARGE(AK4:AK10,1)+1 -> 64 | AL11: installer | AP11: Apprêt : technique survenant après le façonnage d’une pâte levée fermentée (pain, brioche…), pour assurer le développement des pièces par la fermentation avant la cuisson. | AR11: 6 | AS11: monder épépiner concasser les tomates | AV11: 4 | AW11: désinfecter le matériel et le poste de travail suivant la procédure
C12: B | E12: G | F12: =LARGE(F5:F11,1)+1 -> 39 | G12: Protéger | H12: =LARGE(H5:H11,1)+1 -> 57 | I12: Snacker | L12: =LARGE(L5:L11,1)+1 -> 7 | M12: Blanchir | O12: E | P12: =LARGE(P5:P11,1)+1 -> 96 | Q12: Limoner | S12: S | V12: =LARGE(V5:V11,1)+1 -> 8 | W12: Agir rapidement | X12: =LARGE(X5:X11,1)+1 -> 63 | Y12: Déglacer | Z12: =LARGE(Z5:Z11,1)+1 -> 120 | AA12: Fixer | AB12: =LARGE(AB5:AB11,1)+1 -> 170 | AC12: Marquer | AD12: =LARGE(AD5:AD11,1)+1 -> 224 | AE12: Réchauffer en moins d'1 H | AF12: =LARGE(AF5:AF11,1)+1 -> 275 | AG12: Torréfier | AH12: =LARGE(AH4:AH11,1)+1 -> 9 | AI12: analyser | AK12: =LARGE(AK4:AK11,1)+1 -> 65 | AL12: inventer | AP12: Aromatiser : incorporer un arôme ou un aromate à une préparation. | AR12: 7 | AS12: concasser le persil
B13: =LARGE(B5:B12,1)+1 -> 8 | C13: Battre | D13: =LARGE(D5:D12,1)+1 -> 22 | E13: Garnir | G13: R | I13: T | L13: =LARGE(L5:L12,1)+1 -> 8 | M13: Blondir | N13: =LARGE(N5:N12,1)+1 -> 53 | O13: Ebarber | P13: =LARGE(P5:P12,1)+1 -> 97 | Q13: Lisser | R13: =LARGE(R5:R12,1)+1 -> 137 | S13: Saigner | V13: =LARGE(V5:V12,1)+1 -> 9 | W13: Ajouter | X13: =LARGE(X5:X12,1)+1 -> 64 | Y13: Dégorger | Z13: =LARGE(Z5:Z12,1)+1 -> 121 | AA13: Flamber | AB13: =LARGE(AB5:AB12,1)+1 -> 171 | AC13: Masquer | AD13: =LARGE(AD5:AD12,1)+1 -> 225 | AE13: Recouvrir | AF13: =LARGE(AF5:AF12,1)+1 -> 276 | AG13: Tourer | AH13: =LARGE(AH4:AH12,1)+1 -> 10 | AI13: appliquer | AK13: =LARGE(AK4:AK12,1)+1 -> 66 | AL13: inventorier | AP13: B | AR13: 8 | AS13: pocher les filets pliés à très court mouillement
C14: C | E14: I | F14: =LARGE(F5:F13,1)+1 -> 40 | G14: Réaliser | H14: =LARGE(H5:H13,1)+1 -> 58 | I14: Terminer | L14: =LARGE(L5:L13,1)+1 -> 9 | M14: Bouler | N14: =LARGE(N5:N13,1)+1 -> 54 | O14: Ecailler | P14: =LARGE(P5:P13,1)+1 -> 98 | Q14: Lustrer | R14: =LARGE(R5:R13,1)+1 -> 138 | S14: Saisir | V14: =LARGE(V5:V13,1)+1 -> 10 | W14: Aplatir | X14: =LARGE(X5:X13,1)+1 -> 65 | Y14: Dégourdir | Z14: =LARGE(Z5:Z13,1)+1 -> 122 | AA14: Flanquer | AB14: =LARGE(AB5:AB13,1)+1 -> 172 | AC14: Masser | AD14: =LARGE(AD5:AD13,1)+1 -> 226 | AE14: Rectifier | AF14: =LARGE(AF5:AF13,1)+1 -> 277 | AG14: Tourner | AH14: =LARGE(AH4:AH13,1)+1 -> 11 | AI14: approuver | AK14: =LARGE(AK4:AK13,1)+1 -> 67 | AL14: localiser | AP14: Beurrer : | AS14: sur toute cette garniture avec un peu de vin blanc | AV14: ❷ | AW14: Préparations préliminaires
B15: =LARGE(B5:B14,1)+1 -> 9 | C15: Chauffer | D15: =LARGE(D5:D14,1)+1 -> 23 | E15: Incorporer | F15: =LARGE(F5:F14,1)+1 -> 41 | G15: Réchauffer en moins d'1 H | I15: U | L15: =LARGE(L5:L14,1)+1 -> 10 | M15: Braiser | N15: =LARGE(N5:N14,1)+1 -> 55 | O15: Ecaler | Q15: M | R15: =LARGE(R5:R14,1)+1 -> 139 | S15: Sangler | V15: =LARGE(V5:V14,1)+1 -> 11 | W15: Aromatiser | X15: =LARGE(X5:X14,1)+1 -> 66 | Y15: Dégraisser | Z15: =LARGE(Z5:Z14,1)+1 -> 123 | AA15: Fleurer | AB15: =LARGE(AB5:AB14,1)+1 -> 173 | AC15: Mélanger | AD15: =LARGE(AD5:AD14,1)+1 -> 227 | AE15: Réduire | AF15: =LARGE(AF5:AF14,1)+1 -> 278 | AG15: Travailler | AH15: =LARGE(AH4:AH14,1)+1 -> 12 | AI15: archiver | AK15: =LARGE(AK4:AK14,1)+1 -> 68 | AL15: maintenir | AP15: – ajouter de beurre à une sauce | AR15: 9 | AS15: cuire 4 à 6 mn | AV15: 1 | AW15: La veille, décongeler les filets de morue suivant la procédure.
B16: =LARGE(B5:B15,1)+1 -> 10 | C16: Conserver | D16: =LARGE(D5:D15,1)+1 -> 24 | E16: Indications packaging | F16: =LARGE(F5:F15,1)+1 -> 42 | G16: Recouvrir | H16: =LARGE(H5:H15,1)+1 -> 59 | I16: Utiliser | L16: =LARGE(L5:L15,1)+1 -> 11 | M16: Brider | N16: =LARGE(N5:N15,1)+1 -> 56 | O16: Ecorcher | P16: =LARGE(P5:P15,1)+1 -> 99 | Q16: Macérer | R16: =LARGE(R5:R15,1)+1 -> 140 | S16: Sauter | V16: =LARGE(V5:V15,1)+1 -> 12 | W16: Arroser | X16: =LARGE(X5:X15,1)+1 -> 67 | Y16: Déhousser | Z16: =LARGE(Z5:Z15,1)+1 -> 124 | AA16: Foisonner | AB16: =LARGE(AB5:AB15,1)+1 -> 174 | AC16: Meringuer | AD16: =LARGE(AD5:AD15,1)+1 -> 228 | AE16: Refroidir | AF16: =LARGE(AF5:AF15,1)+1 -> 279 | AG16: Tremper | AH16: =LARGE(AH4:AH15,1)+1 -> 13 | AI16: assembler | AK16: =LARGE(AK4:AK15,1)+1 -> 69 | AL16: manier | AP16: – enduire un moule ou un ustensile de beurre afin d’empêcher les mets d’attacher au fond ou aux parois. | AR16: 10 | AS16: débarrasser les filets sur plat beurré
B17: =LARGE(B5:B16,1)+1 -> 11 | C17: Contrôler | E17: J | F17: =LARGE(F5:F16,1)+1 -> 43 | G17: Rectifier | I17: V | M17: C | N17: =LARGE(N5:N16,1)+1 -> 57 | O17: Ecosser | P17: =LARGE(P5:P16,1)+1 -> 100 | Q17: Manchonner | R17: =LARGE(R5:R16,1)+1 -> 141 | S17: Serrer | V17: =LARGE(V5:V16,1)+1 -> 13 | W17: Assaisonner | X17: =LARGE(X5:X16,1)+1 -> 68 | Y17: Délayer | Z17: =LARGE(Z5:Z16,1)+1 -> 125 | AA17: Foncer | AB17: =LARGE(AB5:AB16,1)+1 -> 175 | AC17: Mettre au point | AD17: =LARGE(AD5:AD16,1)+1 -> 229 | AE17: Régénérer | AF17: =LARGE(AF5:AF16,1)+1 -> 280 | AG17: Tronçonner | AH17: =LARGE(AH4:AH16,1)+1 -> 14 | AI17: attacher | AK17: =LARGE(AK4:AK16,1)+1 -> 70 | AL17: manœuvrer | AP17: – incorporer du beurre dans la détrempe d’une pâte feuilletée ou d’une pâte levée feuilletée, pour le tourage. | AR17: 11 | AS17: les tenir au chaud | AV17: 2 | AW17: Éventuellement, dessaler par trempage dans un grand volume d'eau.
C18: D | D18: =LARGE(D5:D17,1)+1 -> 25 | E18: Jeter | F18: =LARGE(F5:F17,1)+1 -> 44 | G18: Refroidir | H18: =LARGE(H5:H17,1)+1 -> 60 | I18: Vérifier la temp. | L18: =LARGE(L5:L17,1)+1 -> 12 | M18: Canneler | N18: =LARGE(N5:N17,1)+1 -> 58 | O18: Ecumer | P18: =LARGE(P5:P17,1)+1 -> 101 | Q18: Marbrer | R18: =LARGE(R5:R17,1)+1 -> 142 | S18: Singer | W18: B | X18: =LARGE(X5:X17,1)+1 -> 69 | Y18: Démouler | Z18: =LARGE(Z5:Z17,1)+1 -> 126 | AA18: Fondre | AB18: =LARGE(AB5:AB17,1)+1 -> 176 | AC18: Mettre en cuisson | AD18: =LARGE(AD5:AD17,1)+1 -> 230 | AE18: Réhydrater | AF18: =LARGE(AF5:AF17,1)+1 -> 281 | AG18: Trousser | AH18: =LARGE(AH4:AH17,1)+1 -> 15 | AI18: attribuer | AK18: =LARGE(AK4:AK17,1)+1 -> 71 | AL18: mesurer | AP18: Bain-marie : eau plus ou moins chaude dans laquelle on place des récipients contenant des préparations à cuire ou à tenir au chaud. | AR18: 12 | AS18: réduire la garniture presque à sec
B19: =LARGE(B5:B18,1)+1 -> 12 | C19: Décorer | E19: L | F19: =LARGE(F5:F18,1)+1 -> 45 | G19: Réhydrater | H19: =LARGE(H5:H18,1)+1 -> 61 | I19: Verser | L19: =LARGE(L5:L18,1)+1 -> 13 | M19: Caraméliser | N19: =LARGE(N5:N18,1)+1 -> 59 | O19: Effilandrer | P19: =LARGE(P5:P18,1)+1 -> 102 | Q19: Mariner | R19: =LARGE(R5:R18,1)+1 -> 143 | S19: Suer | V19: =LARGE(V5:V18,1)+1 -> 14 | W19: Barder | X19: =LARGE(X5:X18,1)+1 -> 70 | Y19: Dénerver | Z19: =LARGE(Z5:Z18,1)+1 -> 127 | AA19: Fouetter | AB19: =LARGE(AB5:AB18,1)+1 -> 177 | AC19: Mijoter | AD19: =LARGE(AD5:AD18,1)+1 -> 231 | AE19: Relâcher | AF19: =LARGE(AF5:AF18,1)+1 -> 282 | AG19: Turbiner | AH19: =LARGE(AH4:AH18,1)+1 -> 16 | AI19: brancher | AK19: =LARGE(AK4:AK18,1)+1 -> 72 | AL19: mettre | AP19: Battre : agiter vigoureusement une préparation à l’aide d’un fouet, pour la rendre homogène ou lui donner du volume (foisonnement). | AR19: 13 | AS19: monter au beurre | AV19: 3 | AW19: Plaquer les filets sur 5 bacs GN 1/1 H 25 perforés.
B20: =LARGE(B5:B19,1)+1 -> 13 | C20: Délayer | D20: =LARGE(D5:D19,1)+1 -> 26 | E20: Laver | F20: =LARGE(F5:F19,1)+1 -> 46 | G20: Remonter en température | L20: =LARGE(L5:L19,1)+1 -> 14 | M20: Châtrer | N20: =LARGE(N5:N19,1)+1 -> 60 | O20: Effiler | P20: =LARGE(P5:P19,1)+1 -> 103 | Q20: Masquer | S20: T | V20: =LARGE(V5:V19,1)+1 -> 15 | W20: Battre | X20: =LARGE(X5:X19,1)+1 -> 71 | Y20: Dénoyauter | Z20: =LARGE(Z5:Z19,1)+1 -> 128 | AA20: Fouler | AB20: =LARGE(AB5:AB19,1)+1 -> 178 | AC20: Mixer | AD20: =LARGE(AD5:AD19,1)+1 -> 232 | AE20: Relever | AH20: =LARGE(AH4:AH19,1)+1 -> 17 | AI20: calculer | AK20: =LARGE(AK4:AK19,1)+1 -> 73 | AL20: moderniser | AP20: Beurre clarifié : beurre fondu et décanté dont on a éliminé de la caséine et du petit lait. | AR20: 14 | AS20: napper les filets
B21: =LARGE(B5:B20,1)+1 -> 14 | C21: Disperser | E21: M | F21: =LARGE(F5:F20,1)+1 -> 47 | G21: Remplacer | L21: =LARGE(L5:L20,1)+1 -> 15 | M21: Chaufroiter | N21: =LARGE(N5:N20,1)+1 -> 61 | O21: Egermer | P21: =LARGE(P5:P20,1)+1 -> 104 | Q21: Masser | R21: =LARGE(R5:R20,1)+1 -> 144 | S21: Tailler | V21: =LARGE(V5:V20,1)+1 -> 16 | W21: Beurrer | X21: =LARGE(X5:X20,1)+1 -> 72 | Y21: Denteler | Z21: =LARGE(Z5:Z20,1)+1 -> 129 | AA21: Fourrer | AB21: =LARGE(AB5:AB20,1)+1 -> 179 | AC21: Modeler | AD21: =LARGE(AD5:AD20,1)+1 -> 233 | AE21: Remonter en température | AG21: U | AH21: =LARGE(AH4:AH20,1)+1 -> 18 | AI21: cataloguer | AK21: =LARGE(AK4:AK20,1)+1 -> 74 | AL21: monter | AP21: Beurre en pommade : beurre ramolli ayant la consistance d’une pommade. | AR21: 15 | AS21: servir sans attendre | AV21: 4 | AW21: Mettre les bacs sur l'échelle de four
B22: =LARGE(B5:B21,1)+1 -> 15 | C22: Disposer | D22: =LARGE(D5:D21,1)+1 -> 27 | E22: Maintenir en temp. sup à 63° | F22: =LARGE(F5:F21,1)+1 -> 48 | G22: Remuer | L22: =LARGE(L5:L21,1)+1 -> 16 | M22: Chemiser | N22: =LARGE(N5:N21,1)+1 -> 62 | O22: Egoutter | P22: =LARGE(P5:P21,1)+1 -> 105 | Q22: Meringuer | R22: =LARGE(R5:R21,1)+1 -> 145 | S22: Tamiser | V22: =LARGE(V5:V21,1)+1 -> 17 | W22: Blanchir | X22: =LARGE(X5:X21,1)+1 -> 73 | Y22: Dépouiller | Z22: =LARGE(Z5:Z21,1)+1 -> 130 | AA22: Fraiser | AB22: =LARGE(AB5:AB21,1)+1 -> 180 | AC22: Moiner | AD22: =LARGE(AD5:AD21,1)+1 -> 234 | AE22: Remplacer | AF22: =LARGE(AF5:AF21,1)+1 -> 283 | AG22: Upériser | AH22: =LARGE(AH4:AH21,1)+1 -> 19 | AI22: centraliser | AK22: =LARGE(AK4:AK21,1)+1 -> 75 | AL22: naviguer | AP22: Blanchiment : phénomène de déstabilisation d’une fabrication de chocolat, correspondants à la migration en surface des cristaux de sucre, liée à une conservation en atmosphère humide et/ou un travail du chocolat à des températures inadaptées. | AV22: 5 | AW22: et réserver au froid en attente de cuisson.
D23: =LARGE(D5:D22,1)+1 -> 28 | E23: Manipuler | F23: =LARGE(F5:F22,1)+1 -> 49 | G23: Répartir | L23: =LARGE(L5:L22,1)+1 -> 17 | M23: Chiqueter | N23: =LARGE(N5:N22,1)+1 -> 63 | O23: Egrapper | P23: =LARGE(P5:P22,1)+1 -> 106 | Q23: Mijoter | R23: =LARGE(R5:R22,1)+1 -> 146 | S23: Tamponner | V23: =LARGE(V5:V22,1)+1 -> 18 | W23: Blondir | X23: =LARGE(X5:X22,1)+1 -> 74 | Y23: Dérober | Z23: =LARGE(Z5:Z22,1)+1 -> 131 | AA23: Frapper | AB23: =LARGE(AB5:AB22,1)+1 -> 181 | AC23: Monder | AD23: =LARGE(AD5:AD22,1)+1 -> 235 | AE23: Remuer | AF23: =LARGE(AF5:AF22,1)+1 -> 284 | AG23: Utiliser | AH23: =LARGE(AH4:AH22,1)+1 -> 20 | AI23: chercher | AK23: =LARGE(AK4:AK22,1)+1 -> 76 | AL23: nettoyer | AP23: Blanchir : travailler ensemble le jaune d’œuf et le sucre au fouet jusqu’à ce que le mélange devienne mousseux. | AS23: source : Fiches techniques de cuisine Annette et Jean Pierre DOMERGUES | AV23: 6 | AW23: Au cutter, hacher finement l'ail. Réserver.
D24: =LARGE(D5:D23,1)+1 -> 29 | E24: Mélanger | F24: =LARGE(F5:F23,1)+1 -> 50 | G24: Repasser | L24: =LARGE(L5:L23,1)+1 -> 18 | M24: Ciseler | N24: =LARGE(N5:N23,1)+1 -> 64 | O24: Egrener | P24: =LARGE(P5:P23,1)+1 -> 107 | Q24: Monder | R24: =LARGE(R5:R23,1)+1 -> 147 | S24: Tapisser | V24: =LARGE(V5:V23,1)+1 -> 19 | W24: Bouler | X24: =LARGE(X5:X23,1)+1 -> 75 | Y24: Désosser | Z24: =LARGE(Z5:Z23,1)+1 -> 132 | AA24: Fraser | AB24: =LARGE(AB5:AB23,1)+1 -> 182 | AC24: Monter | AD24: =LARGE(AD5:AD23,1)+1 -> 236 | AE24: Répartir | AH24: =LARGE(AH4:AH23,1)+1 -> 21 | AI24: classifier | AK24: =LARGE(AK4:AK23,1)+1 -> 77 | AL24: optimiser | AP24: Bouler : façonner à la main une pâte pour lui donner la forme d’une boule. | AV24: 7 | AW24: Chauffer le lait et le maintenir au chaud.
D25: =LARGE(D5:D24,1)+1 -> 30 | E25: Mettre en cuisson | L25: =LARGE(L5:L24,1)+1 -> 19 | M25: Citronner | N25: =LARGE(N5:N24,1)+1 -> 65 | O25: Emincer | P25: =LARGE(P5:P24,1)+1 -> 108 | Q25: Monter | R25: =LARGE(R5:R24,1)+1 -> 148 | S25: Tourer | V25: =LARGE(V5:V24,1)+1 -> 20 | W25: Braiser | X25: =LARGE(X5:X24,1)+1 -> 76 | Y25: Dessécher | Z25: =LARGE(Z5:Z24,1)+1 -> 133 | AA25: Frémir | AB25: =LARGE(AB5:AB24,1)+1 -> 183 | AC25: Mortifier | AD25: =LARGE(AD5:AD24,1)+1 -> 237 | AE25: Repasser | AG25: V | AH25: =LARGE(AH4:AH24,1)+1 -> 22 | AI25: commander | AK25: =LARGE(AK4:AK24,1)+1 -> 78 | AL25: ordonnancer | AP25: Brunissement enzymatique : c’est le phénomène qui se produit au contact de l’air à la suite d’opérations ou de traitements de divers végétaux (épluchage, taille) lesquels dégradent la structure végétale externe. Le phénomène conduit à un changement de couleur brun caractéristique du fruit). | AS25: Editeur DOMERGUES 4 rue de la Bourie Rouge 45 000 ORLÉANS 1981 | AV25: 8 | AW25: Porter à ébullition la crème fraîche
D26: =LARGE(D5:D25,1)+1 -> 31 | E26: Mixer | L26: =LARGE(L5:L25,1)+1 -> 20 | M26: Clarifier | N26: =LARGE(N5:N25,1)+1 -> 66 | O26: Enrober | P26: =LARGE(P5:P25,1)+1 -> 109 | Q26: Mortifier | R26: =LARGE(R5:R25,1)+1 -> 149 | S26: Tourner | V26: =LARGE(V5:V25,1)+1 -> 21 | W26: Brider | X26: =LARGE(X5:X25,1)+1 -> 77 | Y26: Détailler | Z26: =LARGE(Z5:Z25,1)+1 -> 134 | AA26: Frire | AB26: =LARGE(AB5:AB25,1)+1 -> 184 | AC26: Mouiller | AD26: =LARGE(AD5:AD25,1)+1 -> 238 | AE26: Réserver | AF26: =LARGE(AF5:AF25,1)+1 -> 285 | AG26: Vanner | AH26: =LARGE(AH4:AH25,1)+1 -> 23 | AI26: compiler | AK26: =LARGE(AK4:AK25,1)+1 -> 79 | AL26: organiser | AP26: C | AV26: 9 | AW26: et la maintenir au chaud en attente d'utilisation
L27: =LARGE(L5:L26,1)+1 -> 21 | M27: Coller | N27: =LARGE(N5:N26,1)+1 -> 67 | O27: Eplucher | P27: =LARGE(P5:P26,1)+1 -> 110 | Q27: Mouiller | R27: =LARGE(R5:R26,1)+1 -> 150 | S27: Travailler | V27: =LARGE(V5:V26,1)+1 -> 22 | W27: Broyer | X27: =LARGE(X5:X26,1)+1 -> 78 | Y27: Détendre | AB27: =LARGE(AB5:AB26,1)+1 -> 185 | AC27: Mouler | AD27: =LARGE(AD5:AD26,1)+1 -> 239 | AE27: Respecter le délai de 2 H | AF27: =LARGE(AF5:AF26,1)+1 -> 286 | AG27: Vérifier la temp. | AH27: =LARGE(AH4:AH26,1)+1 -> 24 | AI27: compter | AK27: =LARGE(AK4:AK26,1)+1 -> 80 | AL27: planifier | AP27: Candir : technique qui consiste à immerger des confiseries, des décors, dans un sirop de sucre afin d’obtenir une cristallisation de sucre en surface. | AV27: 10 | AW27: Au pinceau, badigeonner de beurre 8 bacs GN 1/1 H 65
L28: =LARGE(L5:L27,1)+1 -> 22 | M28: Compoter | N28: =LARGE(N5:N27,1)+1 -> 68 | O28: Escaloper | Q28: N | R28: =LARGE(R5:R27,1)+1 -> 151 | S28: Tremper | V28: =LARGE(V5:V27,1)+1 -> 23 | W28: Brûler | X28: =LARGE(X5:X27,1)+1 -> 79 | Y28: Détremper | AA28: G | AB28: =LARGE(AB5:AB27,1)+1 -> 186 | AC28: Mousser | AD28: =LARGE(AD5:AD27,1)+1 -> 240 | AE28: Retirer | AF28: =LARGE(AF5:AF27,1)+1 -> 287 | AG28: Verser | AH28: =LARGE(AH4:AH27,1)+1 -> 25 | AI28: concevoir | AK28: =LARGE(AK4:AK27,1)+1 -> 81 | AL28: préparer | AP28: Canneler : c’est le fait de faire de petites cannelures peu profondes à l’aide d’un couteau à canneler (appelé aussi canneleur) sur la surface de certains fruits & légumes (oranges, citrons, carottes…) pour améliorer leur présentation.
L29: =LARGE(L5:L28,1)+1 -> 23 | M29: Concasser | N29: =LARGE(N5:N28,1)+1 -> 69 | O29: Etuver | P29: =LARGE(P5:P28,1)+1 -> 111 | Q29: Nacrer | R29: =LARGE(R5:R28,1)+1 -> 152 | S29: Tronçonner | X29: =LARGE(X5:X28,1)+1 -> 80 | Y29: Disperser | Z29: =LARGE(Z5:Z28,1)+1 -> 135 | AA29: Garnir | AC29: N | AD29: =LARGE(AD5:AD28,1)+1 -> 241 | AE29: Retomber | AF29: =LARGE(AF5:AF28,1)+1 -> 288 | AG29: Videler | AH29: =LARGE(AH4:AH28,1)+1 -> 26 | AI29: conduire | AK29: =LARGE(AK4:AK28,1)+1 -> 82 | AL29: présenter | AP29: Caramélisation : phénomène correspondant au changement de couleur consécutif à une dégradation du saccharose au contact d’une source de chaleur importante. C’est une réaction de brunissement non enzymatique.
L30: =LARGE(L5:L29,1)+1 -> 24 | M30: Confire | N30: =LARGE(N5:N29,1)+1 -> 70 | O30: Evider | P30: =LARGE(P5:P29,1)+1 -> 112 | Q30: Napper | R30: =LARGE(R5:R29,1)+1 -> 153 | S30: Trousser | W30: C | X30: =LARGE(X5:X29,1)+1 -> 81 | Y30: Disposer | Z30: =LARGE(Z5:Z29,1)+1 -> 136 | AA30: Gerber | AB30: =LARGE(AB5:AB29,1)+1 -> 187 | AC30: Nacrer | AD30: =LARGE(AD5:AD29,1)+1 -> 242 | AE30: Retourner | AF30: =LARGE(AF5:AF29,1)+1 -> 289 | AG30: Voiler | AH30: =LARGE(AH4:AH29,1)+1 -> 27 | AI30: consigner | AK30: =LARGE(AK4:AK29,1)+1 -> 83 | AL30: prévoir | AP30: Caraméliser : enduire un moule ou une pâtisserie de sucre cuit au caramel. | AV30: ❸ | AW30: Préparer la purée
L31: =LARGE(L5:L30,1)+1 -> 25 | M31: Contiser | N31: =LARGE(N5:N30,1)+1 -> 71 | O31: Exprimer | R31: =LARGE(R5:R30,1)+1 -> 154 | S31: Turbiner | V31: =LARGE(V5:V30,1)+1 -> 24 | W31: Candir | X31: =LARGE(X5:X30,1)+1 -> 82 | Y31: Dorer | Z31: =LARGE(Z5:Z30,1)+1 -> 137 | AA31: Glacer | AB31: =LARGE(AB5:AB30,1)+1 -> 188 | AC31: Napper | AD31: =LARGE(AD5:AD30,1)+1 -> 243 | AE31: Revenir | AH31: =LARGE(AH4:AH30,1)+1 -> 28 | AI31: constituer | AK31: =LARGE(AK4:AK30,1)+1 -> 84 | AL31: produire | AP31: Chablonner : appliquer du chocolat de couverture ou de la pâte à glacer à la base des entremets, petits gâteaux, des ganaches, pour faciliter leur manipulation avant leur montage ou découpage. | AR31: Lien > | AS31: Lexique en français de la boucherie Wiktionnaire | AV31: 1 | AW31: Préparer la purée déshydratée en suivant les indications du fabricant.
L32: =LARGE(L5:L31,1)+1 -> 26 | M32: Corner | O32: F | Q32: P | V32: =LARGE(V5:V31,1)+1 -> 25 | W32: Canneler | X32: =LARGE(X5:X31,1)+1 -> 83 | Y32: Doubler | Z32: =LARGE(Z5:Z31,1)+1 -> 138 | AA32: Gommer | AC32: P | AD32: =LARGE(AD5:AD31,1)+1 -> 244 | AE32: Rincer | AG32: Z | AH32: =LARGE(AH4:AH31,1)+1 -> 29 | AI32: construire | AK32: =LARGE(AK4:AK31,1)+1 -> 85 | AL32: programmer | AP32: Chemiser : appliquer contre la paroi intérieur d’un moule ou d’une caissette, une couche de pâte, de biscuit, de gelée, de chocolat, de glace, de farine etc…
L33: =LARGE(L5:L32,1)+1 -> 27 | M33: Corser | N33: =LARGE(N5:N32,1)+1 -> 72 | O33: Farcir | P33: =LARGE(P5:P32,1)+1 -> 113 | Q33: Paner | S33: V | V33: =LARGE(V5:V32,1)+1 -> 26 | W33: Caraméliser | X33: =LARGE(X5:X32,1)+1 -> 84 | Y33: Dresser | Z33: =LARGE(Z5:Z32,1)+1 -> 139 | AA33: Grainer | AB33: =LARGE(AB5:AB32,1)+1 -> 189 | AC33: Panacher | AD33: =LARGE(AD5:AD32,1)+1 -> 245 | AE33: Rioler | AF33: =LARGE(AF5:AF32,1)+1 -> 290 | AG33: Zester | AH33: =LARGE(AH4:AH32,1)+1 -> 30 | AI33: contrôler | AK33: =LARGE(AK4:AK32,1)+1 -> 86 | AL33: rebâtir | AP33: Chiqueter : tailler le tour d’une pièce de feuilletage avant la cuisson avec la lame d’un couteau pour lui donner un aspect particulier. | AR33: Lien > | AS33: Lexique en français de la cuisine Wiktionnaire | AV33: 2 | AW33: Mettre au point l'assaisonnement.
L34: =LARGE(L5:L33,1)+1 -> 28 | M34: Coucher | N34: =LARGE(N5:N33,1)+1 -> 73 | O34: Festonner | P34: =LARGE(P5:P33,1)+1 -> 114 | Q34: Papilloter | R34: =LARGE(R5:R33,1)+1 -> 155 | S34: Vanner | V34: =LARGE(V5:V33,1)+1 -> 27 | W34: Caraméliser | Z34: =LARGE(Z5:Z33,1)+1 -> 140 | AA34: Graisser | AB34: =LARGE(AB5:AB33,1)+1 -> 190 | AC34: Paner | AD34: =LARGE(AD5:AD33,1)+1 -> 246 | AE34: Rissoler | AH34: =LARGE(AH4:AH33,1)+1 -> 31 | AI34: couper | AK34: =LARGE(AK4:AK33,1)+1 -> 87 | AL34: réceptionner | AP34: Confire : remplacer l’eau de végétation des fruits par un sirop à la suite d’immersions multiples et répétées dans un sirop de sucre de plus en plus concentré. | AV34: 3 | AW34: Muscader légèrement.
L35: =LARGE(L5:L34,1)+1 -> 29 | M35: Coucher | N35: =LARGE(N5:N34,1)+1 -> 74 | O35: Flamber | P35: =LARGE(P5:P34,1)+1 -> 115 | Q35: Passer | R35: =LARGE(R5:R34,1)+1 -> 156 | S35: Videler | V35: =LARGE(V5:V34,1)+1 -> 28 | W35: Cerner | Y35: E | Z35: =LARGE(Z5:Z34,1)+1 -> 141 | AA35: Gratiner | AB35: =LARGE(AB5:AB34,1)+1 -> 191 | AC35: Papilloter | AD35: =LARGE(AD5:AD34,1)+1 -> 247 | AE35: Rompre | AH35: =LARGE(AH4:AH34,1)+1 -> 32 | AI35: créer | AK35: =LARGE(AK4:AK34,1)+1 -> 88 | AL35: reconstruire | AP35: Corner : utiliser une corne à l’intérieur d’un récipient pour récupérer le maximum d’appareil. | AR35: Lien > | AS35: Spécificités et usages du vocabulaire des "métiers de la bouche" | AV35: 4 | AW35: Réserver au chaud.
L36: =LARGE(L5:L35,1)+1 -> 30 | M36: Crémer | N36: =LARGE(N5:N35,1)+1 -> 75 | O36: Flanquer | P36: =LARGE(P5:P35,1)+1 -> 116 | Q36: Persiller | R36: =LARGE(R5:R35,1)+1 -> 157 | S36: Voiler | V36: =LARGE(V5:V35,1)+1 -> 29 | W36: Chablonner | X36: =LARGE(X5:X35,1)+1 -> 85 | Y36: Ebarber | Z36: =LARGE(Z5:Z35,1)+1 -> 142 | AA36: Griller | AB36: =LARGE(AB5:AB35,1)+1 -> 192 | AC36: Parer | AD36: =LARGE(AD5:AD35,1)+1 -> 248 | AE36: Rôtir | AH36: =LARGE(AH4:AH35,1)+1 -> 33 | AI36: creuser | AK36: =LARGE(AK4:AK35,1)+1 -> 89 | AL36: réduire | AP36: Corps : terme appliqué à une pâte pour désigner son élasticité, sa résistance après son pétrissage, résultant de la formation de gluten. | AW36: Ou marquer la cuisson des pommes de terre pour la réalisation de la purée fraîche.
L37: =LARGE(L5:L36,1)+1 -> 31 | M37: Crever | N37: =LARGE(N5:N36,1)+1 -> 76 | O37: Fleurer | P37: =LARGE(P5:P36,1)+1 -> 117 | Q37: Piler | V37: =LARGE(V5:V36,1)+1 -> 30 | W37: Châtrer | X37: =LARGE(X5:X36,1)+1 -> 86 | Y37: Ebaucher | Z37: =LARGE(Z5:Z36,1)+1 -> 143 | AA37: H | AB37: =LARGE(AB5:AB36,1)+1 -> 193 | AC37: Parfumer | AD37: =LARGE(AD5:AD36,1)+1 -> 249 | AE37: Rouler | AH37: =LARGE(AH4:AH36,1)+1 -> 34 | AI37: cultiver | AK37: =LARGE(AK4:AK36,1)+1 -> 90 | AL37: régler | AP37: Corser : donner de l’élasticité à une pâte en la pétrissant davantage.
L38: =LARGE(L5:L37,1)+1 -> 32 | M38: Cuire | N38: =LARGE(N5:N37,1)+1 -> 77 | O38: Foisonner | P38: =LARGE(P5:P37,1)+1 -> 118 | Q38: Pincer | S38: Z | V38: =LARGE(V5:V37,1)+1 -> 31 | W38: Chauffer | X38: =LARGE(X5:X37,1)+1 -> 87 | Y38: Ecailler | Z38: =LARGE(Z5:Z37,1)+1 -> 144 | AA38: Habiller | AB38: =LARGE(AB5:AB37,1)+1 -> 194 | AC38: Parsemer | AD38: =LARGE(AD5:AD37,1)+1 -> 250 | AE38: Roussir | AH38: =LARGE(AH4:AH37,1)+1 -> 35 | AI38: décentraliser | AK38: =LARGE(AK4:AK37,1)+1 -> 91 | AL38: réguler | AP38: Coucher (synonyme de dresser) : façonner à la poche à douille généralement sur plaque ou tapis anti-adhérant, papier sulfurisé des appareils mous (pâte à choux, biscuits, meringues). | AS38: Quelques expressions
M39: D | N39: =LARGE(N5:N38,1)+1 -> 78 | O39: Foncer | P39: =LARGE(P5:P38,1)+1 -> 119 | Q39: Piquer | R39: =LARGE(R5:R38,1)+1 -> 158 | S39: Zester | V39: =LARGE(V5:V38,1)+1 -> 32 | W39: Chaufroiter | X39: =LARGE(X5:X38,1)+1 -> 88 | Y39: Ecaler | Z39: =LARGE(Z5:Z38,1)+1 -> 145 | AA39: Hacher | AB39: =LARGE(AB5:AB38,1)+1 -> 195 | AC39: Passer | AH39: =LARGE(AH4:AH38,1)+1 -> 36 | AI39: décharger | AK39: =LARGE(AK4:AK38,1)+1 -> 92 | AL39: remodeler | AP39: Crémer : travailler une matière grasse seule ou avec du sucre, afin de lui donner la consistance d’une crème. | AV39: ❹ | AW39: Confectionner la brandade de morue
L40: =LARGE(L5:L39,1)+1 -> 33 | M40: Décanter | N40: =LARGE(N5:N39,1)+1 -> 79 | O40: Fondre | P40: =LARGE(P5:P39,1)+1 -> 120 | Q40: Pocher | V40: =LARGE(V5:V39,1)+1 -> 33 | W40: Chemiser | X40: =LARGE(X5:X39,1)+1 -> 89 | Y40: Echauder | Z40: =LARGE(Z5:Z39,1)+1 -> 146 | AA40: Historier | AB40: =LARGE(AB5:AB39,1)+1 -> 196 | AC40: Pasteuriser | AE40: S | AH40: =LARGE(AH4:AH39,1)+1 -> 37 | AI40: dessiner | AK40: =LARGE(AK4:AK39,1)+1 -> 93 | AL40: remplacer | AP40: Crouter : opération permettant de sécher à l’air ou en étuve une fabrication crue ou cuite afin d’obtenir une pellicule sèche et résistante à sa surface (biscuit cuillère, macarons…). | AR40: 1 | AS40: désinfecter le matériel | AV40: 1 | AW40: Préchauffer le four sur la position vapeur
L41: =LARGE(L5:L40,1)+1 -> 34 | M41: Décercler | N41: =LARGE(N5:N40,1)+1 -> 80 | O41: Fouler | P41: =LARGE(P5:P40,1)+1 -> 121 | Q41: Poêler | V41: =LARGE(V5:V40,1)+1 -> 34 | W41: Chevaucher | X41: =LARGE(X5:X40,1)+1 -> 90 | Y41: Ecorcher | Z41: =LARGE(Z5:Z40,1)+1 -> 147 | AA41: Huiler | AB41: =LARGE(AB5:AB40,1)+1 -> 197 | AC41: Peler | AD41: =LARGE(AD5:AD40,1)+1 -> 251 | AE41: Sabler | AH41: =LARGE(AH4:AH40,1)+1 -> 38 | AI41: documenter | AK41: =LARGE(AK4:AK40,1)+1 -> 94 | AL41: rénover | AP41: D | AR41: 2 | AS41: désinfecter le poste de travail | AV41: 2 | AW41: Cuire les filets à la vapeur 7 minutes environ
L42: =LARGE(L5:L41,1)+1 -> 35 | M42: Décortiquer | N42: =LARGE(N5:N41,1)+1 -> 81 | O42: Fraiser | P42: =LARGE(P5:P41,1)+1 -> 122 | Q42: Pousser | V42: =LARGE(V5:V41,1)+1 -> 35 | W42: Chiqueter | X42: =LARGE(X5:X41,1)+1 -> 91 | Y42: Ecosser | AB42: =LARGE(AB5:AB41,1)+1 -> 198 | AC42: Persiller | AD42: =LARGE(AD5:AD41,1)+1 -> 252 | AE42: Saigner | AH42: =LARGE(AH4:AH41,1)+1 -> 39 | AI42: écouler | AK42: =LARGE(AK4:AK41,1)+1 -> 95 | AL42: réorganiser | AP42: Décercler : retirer avec précaution le cercle d’un fond de tarte ou d’un entremet. | AR42: 3 | AS42: etager les bacs sur l'échelle de cuisson | AW42: Ne pas trop cuire au risque de retirer les propriétés gluantes de la morue
L43: =LARGE(L5:L42,1)+1 -> 36 | M43: Décuire | N43: =LARGE(N5:N42,1)+1 -> 82 | O43: Fileter | P43: =LARGE(P5:P42,1)+1 -> 123 | Q43: Puncher | V43: =LARGE(V5:V42,1)+1 -> 36 | W43: Ciseler | X43: =LARGE(X5:X42,1)+1 -> 92 | Y43: Ecumer | AA43: I | AB43: =LARGE(AB5:AB42,1)+1 -> 199 | AC43: Peser | AD43: =LARGE(AD5:AD42,1)+1 -> 253 | AE43: Saisir | AH43: =LARGE(AH4:AH42,1)+1 -> 40 | AI43: écrire | AK43: =LARGE(AK4:AK42,1)+1 -> 96 | AL43: réparer | AP43: Décoction : solution obtenue par l’action prolongée de l’eau bouillante sur une plante aromatique. | AR43: 4 | AS43: selectionner le matériel
L44: =LARGE(L5:L43,1)+1 -> 37 | M44: Déffilandrer | N44: =LARGE(N5:N43,1)+1 -> 83 | O44: Frapper | Q44: Q | V44: =LARGE(V5:V43,1)+1 -> 37 | W44: Citronner | X44: =LARGE(X5:X43,1)+1 -> 93 | Y44: Effilandrer | Z44: =LARGE(Z5:Z43,1)+1 -> 148 | AA44: Imbiber | AB44: =LARGE(AB5:AB43,1)+1 -> 200 | AC44: Pétrir | AD44: =LARGE(AD5:AD43,1)+1 -> 254 | AE44: Sangler | AH44: =LARGE(AH4:AH43,1)+1 -> 41 | AI44: édifier | AK44: =LARGE(AK4:AK43,1)+1 -> 97 | AL44: résoudre | AP44: Dessécher : déshydrater, faire évaporer l’excédent d’eau se trouvant dans une préparation en la chauffant sur feu doux dans une étuve ou dans un four (ex : pâte à choux) | AR44: 5 | AS44: suivre les protocoles | AV44: 3 | AW44: Effeuiller les filets de morue cuits.
L45: =LARGE(L5:L44,1)+1 -> 38 | M45: Déglacer | N45: =LARGE(N5:N44,1)+1 -> 84 | O45: Frémir | P45: =LARGE(P5:P44,1)+1 -> 124 | Q45: Quadriller | V45: =LARGE(V5:V44,1)+1 -> 38 | W45: Clarifier | X45: =LARGE(X5:X44,1)+1 -> 94 | Y45: Effiler | Z45: =LARGE(Z5:Z44,1)+1 -> 149 | AA45: Inciser | AB45: =LARGE(AB5:AB44,1)+1 -> 201 | AC45: Piler | AD45: =LARGE(AD5:AD44,1)+1 -> 255 | AE45: Saumurer | AH45: =LARGE(AH4:AH44,1)+1 -> 42 | AI45: effectuer | AK45: =LARGE(AK4:AK44,1)+1 -> 98 | AL45: réviser | AP45: Détailler : découper des morceaux de pâte de forme bien déterminée dans une abaisse de pâte, à l’aide d’un couteau ou d’un découpoir. | AV45: 4 | AW45: Dans une sauteuse, faire chauffer l'huile d'olive
L46: =LARGE(L5:L45,1)+1 -> 39 | M46: Dégorger | N46: =LARGE(N5:N45,1)+1 -> 85 | O46: Frire | V46: =LARGE(V5:V45,1)+1 -> 39 | W46: Clouter | X46: =LARGE(X5:X45,1)+1 -> 95 | Y46: Egermer | Z46: =LARGE(Z5:Z45,1)+1 -> 150 | AA46: Incorporer | AB46: =LARGE(AB5:AB45,1)+1 -> 202 | AC46: Pincer | AD46: =LARGE(AD5:AD45,1)+1 -> 256 | AE46: Saupoudrer | AH46: =LARGE(AH4:AH45,1)+1 -> 43 | AI46: élaborer | AK46: =LARGE(AK4:AK45,1)+1 -> 99 | AL46: revoir | AP46: Détrempe : mélange de farine, d’eau et de sel servant de base à la pâte feuilleté et à la pâte levée feuilleté. | AV46: 5 | AW46: ajouter la morue effeuillée et l'ail
L47: =LARGE(L5:L46,1)+1 -> 40 | M47: Dégourdir | O47: G | Q47: R | V47: =LARGE(V5:V46,1)+1 -> 40 | W47: Coller | X47: =LARGE(X5:X46,1)+1 -> 96 | Y47: Egoutter | Z47: =LARGE(Z5:Z46,1)+1 -> 151 | AA47: Indications packaging | AB47: =LARGE(AB5:AB46,1)+1 -> 203 | AC47: Piquer | AD47: =LARGE(AD5:AD46,1)+1 -> 257 | AE47: Sauter | AH47: =LARGE(AH4:AH46,1)+1 -> 44 | AI47: emplir | AK47: =LARGE(AK4:AK46,1)+1 -> 100 | AL47: sensibiliser | AP47: E | AR47: 1 | AS47: eplucher-laver-désinfecter | AV47: 6 | AW47: travailler à la spatule
L48: =LARGE(L5:L47,1)+1 -> 41 | M48: Dégraisser | N48: =LARGE(N5:N47,1)+1 -> 86 | O48: Glacer | P48: =LARGE(P5:P47,1)+1 -> 125 | Q48: Rabattre | V48: =LARGE(V5:V47,1)+1 -> 41 | W48: Compoter | X48: =LARGE(X5:X47,1)+1 -> 97 | Y48: Egrapper | Z48: =LARGE(Z5:Z47,1)+1 -> 152 | AA48: Infuser | AB48: =LARGE(AB5:AB47,1)+1 -> 204 | AC48: Plaquer | AD48: =LARGE(AD5:AD47,1)+1 -> 258 | AE48: Serrer | AH48: =LARGE(AH4:AH47,1)+1 -> 45 | AI48: employer | AK48: =LARGE(AK4:AK47,1)+1 -> 101 | AL48: simplifier | AP48: Écumer : c’est éliminer les impuretés qui se forment à la surface de cuisson de sucre, confitures, gelées à l’aide d’une écumoire. | AR48: 2 | AS48: faire tremper | AW48: (ou travailler directement la morue effeuillée dans la cuve du batteur).
L49: =LARGE(L5:L48,1)+1 -> 42 | M49: Déhousser | N49: =LARGE(N5:N48,1)+1 -> 87 | O49: Gommer | P49: =LARGE(P5:P48,1)+1 -> 126 | Q49: Rafraîchir | V49: =LARGE(V5:V48,1)+1 -> 42 | W49: Concasser | X49: =LARGE(X5:X48,1)+1 -> 98 | Y49: Egrener | AB49: =LARGE(AB5:AB48,1)+1 -> 205 | AC49: Pocher | AD49: =LARGE(AD5:AD48,1)+1 -> 259 | AE49: Servir | AH49: =LARGE(AH4:AH48,1)+1 -> 46 | AI49: enregistrer | AK49: =LARGE(AK4:AK48,1)+1 -> 102 | AL49: soulever | AP49: Émonder : retirer les peaux, pellicules et enveloppe de certains fruits ou légumes. | AR49: 3 | AS49: habiller les soles
L50: =LARGE(L5:L49,1)+1 -> 43 | M50: Dénerver | N50: =LARGE(N5:N49,1)+1 -> 88 | O50: Graisser | P50: =LARGE(P5:P49,1)+1 -> 127 | Q50: Raidir | V50: =LARGE(V5:V49,1)+1 -> 43 | W50: Confire | X50: =LARGE(X5:X49,1)+1 -> 99 | Y50: Eliminer | AA50: J | AB50: =LARGE(AB5:AB49,1)+1 -> 206 | AC50: Poêler | AD50: =LARGE(AD5:AD49,1)+1 -> 260 | AE50: Singer | AH50: =LARGE(AH4:AH49,1)+1 -> 47 | AI50: entretenir | AK50: =LARGE(AK4:AK49,1)+1 -> 103 | AL50: standardiser | AP50: Émulsionner : opération consistant à provoquer la dispersion d’un liquide dans un autre liquide ou d’une matière non miscible (ex : ganache). | AR50: 4 | AS50: hacher finement | AV50: 7 | AW50: Mettre la morue travaillée dans la grande cuve du batteur
L51: =LARGE(L5:L50,1)+1 -> 44 | M51: Dénoyauter | N51: =LARGE(N5:N50,1)+1 -> 89 | O51: Gratiner | P51: =LARGE(P5:P50,1)+1 -> 128 | Q51: Rassir | V51: =LARGE(V5:V50,1)+1 -> 44 | W51: Conserver | X51: =LARGE(X5:X50,1)+1 -> 100 | Y51: Emonder | Z51: =LARGE(Z5:Z50,1)+1 -> 153 | AA51: Jeter | AB51: =LARGE(AB5:AB50,1)+1 -> 207 | AC51: Porter à ébullition | AD51: =LARGE(AD5:AD50,1)+1 -> 261 | AE51: Siroper | AH51: =LARGE(AH4:AH50,1)+1 -> 48 | AI51: envoyer | AK51: =LARGE(AK4:AK50,1)+1 -> 104 | AL51: superviser | AP51: Évider : éliminer, extraire l’intérieur de certains fruits (ex : citrons, orange). | AR51: 5 | AS51: laver à grande eau
L52: =LARGE(L5:L51,1)+1 -> 45 | M52: Denteler | N52: =LARGE(N5:N51,1)+1 -> 90 | O52: Griller | P52: =LARGE(P5:P51,1)+1 -> 129 | Q52: Rayer | V52: =LARGE(V5:V51,1)+1 -> 45 | W52: Contiser | X52: =LARGE(X5:X51,1)+1 -> 101 | Y52: Émulsionner | AB52: =LARGE(AB5:AB51,1)+1 -> 208 | AC52: Poudrer | AD52: =LARGE(AD5:AD51,1)+1 -> 262 | AE52: Siroter | AH52: =LARGE(AH4:AH51,1)+1 -> 49 | AI52: ériger | AK52: =LARGE(AK4:AK51,1)+1 -> 105 | AL52: surveiller | AP52: F | AR52: 6 | AS52: peser les denrées | AV52: 8 | AW52: A la feuille en première vitesse, incorporer progressivement le lait et la crème
V53: =LARGE(V5:V52,1)+1 -> 46 | W53: Contrôler | X53: =LARGE(X5:X52,1)+1 -> 102 | Y53: Enfourner | AA53: L | AB53: =LARGE(AB5:AB52,1)+1 -> 209 | AC53: Pousser | AD53: =LARGE(AD5:AD52,1)+1 -> 263 | AE53: Snacker | AH53: =LARGE(AH4:AH52,1)+1 -> 50 | AI53: établir | AK53: =LARGE(AK4:AK52,1)+1 -> 106 | AL53: tester | AP53: Façonner : c’est donner une forme particulière à toute sortes de pâtes par un travail manuel ou mécanique avant cuisson. | AR53: 7 | AS53: trier et tremper
V54: =LARGE(V5:V53,1)+1 -> 47 | W54: Corner | X54: =LARGE(X5:X53,1)+1 -> 103 | Y54: Enrober | Z54: =LARGE(Z5:Z53,1)+1 -> 154 | AA54: Larder | AB54: =LARGE(AB5:AB53,1)+1 -> 210 | AC54: Praliner | AD54: =LARGE(AD5:AD53,1)+1 -> 264 | AE54: Sonder | AH54: =LARGE(AH4:AH53,1)+1 -> 51 | AI54: étendre | AK54: =LARGE(AK4:AK53,1)+1 -> 107 | AL54: transformer | AP54: Festonner : constituer des bordures décoratives ou des formes arrondies sur des pâtisseries (ex : pithiviers, tartelette…). | AR54: 8 | AS54: vérifier les DLC | AW54: Éventuellement, mettre au point la consistance en ajoutant du lait, de l'huile d'oli­ve ou de la crème
V55: =LARGE(V5:V54,1)+1 -> 48 | W55: Corser | X55: =LARGE(X5:X54,1)+1 -> 104 | Y55: Eplucher | Z55: =LARGE(Z5:Z54,1)+1 -> 155 | AA55: Laver | AB55: =LARGE(AB5:AB54,1)+1 -> 211 | AC55: Préchauffer | AD55: =LARGE(AD5:AD54,1)+1 -> 265 | AE55: Stériliser | AH55: =LARGE(AH4:AH54,1)+1 -> 52 | AI55: examiner | AK55: =LARGE(AK4:AK54,1)+1 -> 108 | AL55: trier | AP55: Fleurer : saupoudrer de farine un tour, une plaque ou un moule afin d’empêcher certaines préparations de coller.
V56: =LARGE(V5:V55,1)+1 -> 49 | W56: Coucher | X56: =LARGE(X5:X55,1)+1 -> 105 | Y56: Equeter | Z56: =LARGE(Z5:Z55,1)+1 -> 156 | AA56: Lever | AB56: =LARGE(AB5:AB55,1)+1 -> 212 | AC56: Prélever | AD56: =LARGE(AD5:AD55,1)+1 -> 266 | AE56: Suer | AH56: =LARGE(AH4:AH55,1)+1 -> 53 | AI56: exécuter | AK56: =LARGE(AK4:AK55,1)+1 -> 109 | AL56: utiliser | AP56: Foncer : tapisser l’intérieur d’un moule ou d’un cercle avec de la pâte, pour qu’elle épouse parfaitement sa forme. | AR56: 1 | AS56: ciseler finement | AW56: On doit obtenir une pâte homogène et compacte
V57: =LARGE(V5:V56,1)+1 -> 50 | W57: Craquer | X57: =LARGE(X5:X56,1)+1 -> 106 | Y57: Escaloper | Z57: =LARGE(Z5:Z56,1)+1 -> 157 | AA57: Lier | AB57: =LARGE(AB5:AB56,1)+1 -> 213 | AC57: Préparer | AD57: =LARGE(AD5:AD56,1)+1 -> 267 | AE57: Surgeler | AH57: =LARGE(AH4:AH56,1)+1 -> 54 | AI57: exploiter | AK57: =LARGE(AK4:AK56,1)+1 -> 110 | AL57: vaporiser | AP57: Fond : pâtisseries utilisée comme base de fabrication et constituant généralement la couche inférieure des gâteaux. | AR57: 2 | AS57: couper en 2 | AV57: 9 | AW57: Poivrer et muscader
V58: =LARGE(V5:V57,1)+1 -> 51 | W58: Crémer | X58: =LARGE(X5:X57,1)+1 -> 107 | Y58: Etaler | Z58: =LARGE(Z5:Z57,1)+1 -> 158 | AA58: Limoner | AB58: =LARGE(AB5:AB57,1)+1 -> 214 | AC58: Protéger | AH58: =LARGE(AH4:AH57,1)+1 -> 55 | AI58: extraire | AK58: =LARGE(AK4:AK57,1)+1 -> 111 | AL58: vérifier | AP58: Foisonnement: phénomène résultant d’une augmentation de volume d’une fabrication par incorporation de gaz. | AV58: 10 | AW58: Finir de lier la brandade en ajoutant la purée.
V59: =LARGE(V5:V58,1)+1 -> 52 | W59: Crever | X59: =LARGE(X5:X58,1)+1 -> 108 | Y59: Etoffer | Z59: =LARGE(Z5:Z58,1)+1 -> 159 | AA59: Lisser | AB59: =LARGE(AB5:AB58,1)+1 -> 215 | AC59: Puncher | AH59: =LARGE(AH4:AH58,1)+1 -> 56 | AI59: faire | AP59: Fraser : écraser les ingrédients d’une pâte pour les agglomérer soit sur le marbre avec la paume de la main en la poussant devant soi, soit au batteur en écrasant avec la paume de sa main sur les parois. | AV59: 11 | AW59: Travailler
V60: =LARGE(V5:V59,1)+1 -> 53 | W60: Crouter | X60: =LARGE(X5:X59,1)+1 -> 109 | Y60: Etouffer | Z60: =LARGE(Z5:Z59,1)+1 -> 160 | AA60: Lustrer | AP60: G | AR60: 1 | AS60: adjoindre de la creme | AV60: 12 | AW60: Rectifier la consistance
V61: =LARGE(V5:V60,1)+1 -> 54 | W61: Cuire | X61: =LARGE(X5:X60,1)+1 -> 110 | Y61: Etuver | Z61: =LARGE(Z5:Z60,1)+1 -> 161 | AA61: Luter | AC61: Q | AP61: Garnir : remplir avec une préparation de crème ou autres un fond de gâteau, un moule, une poche. | AR61: 2 | AS61: ajouter dans l'ordre les autres éléments
V62: =LARGE(V5:V61,1)+1 -> 55 | W62: Culotter | X62: =LARGE(X5:X61,1)+1 -> 111 | Y62: Evider | Z62: =LARGE(Z5:Z61,1)+1 -> 162 | AA62: Lyophiliser | AB62: =LARGE(AB5:AB61,1)+1 -> 216 | AC62: Quadriller | AP62: Glacer : | AR62: 3 | AS62: arroser de beurre noisette | AV62: ❺ | AW62: Décanter la préparation
X63: =LARGE(X5:X62,1)+1 -> 112 | Y63: Exprimer | AP63: – action de recouvrir partiellement ou entièrement la surface d’une pâtisserie avec un glaçage (ex : fondant) | AR63: 4 | AS63: arroser de liqueur | AV63: 1 | AW63: Dans les 8 bacs GN 1/1 beurrés, répartir la brandade Bénédictine
AP64: – rendre brillant la surface d’une pâtisserie avec du sirop avant le passage au four ou saupoudrer une pièce de sucre glace et la passer au four, le temps de caraméliser le sucre. | AR64: 5 | AS64: beurrer grassement
AP65: Grainage : phénomène résultant de la déstabilisation d’une mousse alimentaire (ex : blancs montés) ou d’une émulsion mousseuse (ex : crème fouettée) à la suite d’un battage prolongé. | AR65: 6 | AS65: blanchir-rafraichir-couper | AV65: 2 | AW65: Égaliser la surface
W66: Lien > | X66: Lexique en français de la boucherie | AP66: Graisser : enduire d’une couche de matière grasse à l’aide d’un pinceau ou d’une bombe à graisse les parois d’un moule ou une plaque. | AR66: 7 | AS66: crémer-réduire | AV66: 3 | AW66: Saupoudrer d'emmenthal râpé
W67: Lien > | X67: Le dictionnaire du boucher | AP67: I | AR67: 8 | AS67: passer la sauce | AV67: 4 | AW67: Parsemer de parcelles de beurre
W68: Verbes d'action Lien > | X68: https://www.unamur.be/services/sevrexe/prodoc/documents-mission-accompagnement-prodoc-AL/verbes-actions | AP68: Imbiber : c’est faire pénétrer un liquide (sirop, alcool, liqueur etc…) dans une préparation dans le but de la rendre moins sèche ou dans le but de la parfumer. | AR68: 9 | AS68: reviser l'assaisonnement | AV68: 5 | AW68: Étager les bacs sur l'échelle de cuisson
AP69: Infuser : opération consistant à placer une substance aromatique dans un liquide chauffé au préalable, pendant un temps déterminé et à couvert pour capter son arôme. | AR69: 10 | AS69: saler en cours de cuisson
AP70: L | AR70: 11 | AS70: saupoudrer légèrement | AV70: ❻ | AW70: Gratiner
AP71: Lisser : mélanger une préparation pour la rendre homogène. | AR71: 12 | AS71: vérifier la consistance | AV71: 1 | AW71: Passer au four en chaleur sèche à + 170 °C
AP72: Lustrer : recouvrir de nappage de gelée ou de beurre fondu, une préparation afin de lui donner un aspect brillant. | AV72: 2 | AW72: et gratiner légèrement la surface
AP73: M | AV73: 3 | AW73: Respecter la procédure de fin de cuisson
AP74: Macérer : opération consistant à faire tremper un corps dans un liquide froid pour en extraire les parties solubles ou un produit alimentaire pour le parfumer ou le conserver. | AR74: 1 | AS74: déglacer au vin blanc | AV74: 4 | AW74: Stocker en armoire chaude et maintenir à + 63 °C, en attente de consommation.
AP75: Marbrer : réaliser divers dessins sur des gâteaux glacés (au fondant, au nappage etc …) pour améliorer leur présentation. | AR75: 2 | AS75: dégraisser en partie
AP76: Masquer : recouvrir un entremets ou un fond de plat d’une légère couche de crème, de sauce ou de gelée. | AR76: 3 | AS76: égoutter et débarrasser
AP77: Monter : | AR77: 4 | AS77: étuver au beurre | AV77: ❼ | AW77: Dresser et servir
AP78: – battre au fouet une substance ou un appareil pour le rendre plus léger et en augmenter le volume (ex : blanc en neige). | AR78: 5 | AS78: faire sauter vivement | AV78: 1 | AW78: Détailler chaque bac GN en 12 portions
AP79: – assembler les différentes parties d’une pâtisserie pour en faire un gâteau plus ou moins important (monter un entremet, pièce montée). | AR79: 6 | AS79: faire suer | AV79: 2 | AW79: Servir une portion sur chaque assiette et garnir de toasts (facultatif)
AP80: Mouler : verser une substance ou une préparation liquide ou semi-liquide dans un moule pour en obtenir une reproduction de sa forme après solidification. | AR80: 7 | AS80: incorporer dans la sauce | AV80: 3
AP81: N | AR81: 8 | AS81: lier la cuisson
AP82: Napper : verser sur un met chaud ou froid une sauce, une gelée, ou une crème pour le recouvrir complètement. | AR82: 9 | AS82: lustrer à l'huie | AV82: ❽ | AW82: Commentaires
AP83: P | AR83: 10 | AS83: monter au beurre | AV83: Ⓐ | AW83: La brandade de morue n'est constituée que de poisson
AP84: Pasteuriser : action de soumettre une préparation à un traitement thermique (Température inférieure à 100°C), pendant un temps défini, afin de détruire d’éventuels germes pathogènes et de prolonger leur conservations. | AR84: 11 | AS84: mouiller au vin blanc
AP85: Passer : faire traverser un liquide dans un ustensile percé de trous pour en retenir en général les impuretés (ex : chinois, passoire, tamis). | AR85: 12 | AS85: napper de sauce | AV85: Ⓑ | AW85: C'est à tort que l'on appelle brandade celle additionnée de purée de pomme de terre
AP86: Pâton : nom donné à un morceau de pâte pesé et prêt à être façonné. | AR86: 13 | AS86: porter à ébullition
AP87: Piquer : percer de nombreux petits trous la surface d’une abaisse de pâte à l’aide d’une fourchette ou d’un pique vite, dans le but d’empêcher la formation de boursouflures durant la cuisson. | AR87: 14 | AS87: rafraichir et égoutter | AV87: Ⓒ | AW87: La brandade de morue peut être accompagnée
AP88: Pincer : faire un décor sur le pourtour d’une tarte à l’aide d’une pince spéciale. | AR88: 15 | AS88: réduire le vin | AV88: 1 | AW88: de pommes de terre à l'anglaise
AP89: Pocher : opération qui consiste à cuire une préparation ou des aliments dans un liquide (eau, sirop, etc…) à une température basse, généralement comprise entre 70° et 85°C. | AR89: 16 | AS89: sauter au beurre et à l'huile | AV89: 2 | AW89: en robe des champs
AP90: Pointage : technique survenant après le pétrissage d’une pâte levée, fermentée, permettant à la première fermentation de se réaliser et de développer des arômes caractéristiques, mais aussi de renforcer le corps de la pâte avant son façonnage. | AV90: 3 | AW90: ou de pommes purée à l'huile d'olive
AP91: Punch : mélange de sirop de sucre et d’un autre ingrédient (alcool, café, jus ou purée de fruits, vanille etc…). | AV91: 4 | AW91: et de croûtons frits
AP92: Puncher (synonyme d’imbiber): rayer avec la pointe de la lame d’un couteau d’office, inciser de raies parallèles la surface de certains gâteaux préalablement passée à la dorure afin de parfaire la présentation. | AR92: 1 | AS92: cuire à couvert
AP93: R | AR93: 2 | AS93: cuire à feu doux
AP94: Retomber : se dit d’une pâte, d’un appareil dont le volume diminue après avoir augmenté pendant le montage ou la cuisson. | AR94: 3 | AS94: cuire a feu vif | AW94: Cette Méthode de fabrication est citée à titre d'exemple
AP95: Rognures : chutes de pâtisseries provenant de découpes de pâtes, d’entremets. | AR95: 4 | AS95: cuire à four moyen
AP96: Rompre : actions manuelles consistant après un certain temps de pointage, a rabattre une pâte levée, fermentée, pour en chasser les gaz produits, avant le façonnage. | AR96: 5 | AS96: cuire à la vapeur | AW96: Je vous conseille de faire l'acquisition de l'excellent ouvrage de Michel Grossmann et Alain Le Franc
AP97: Ruban : préparation qui, après avoir été travaillé au fouet ou à la spatule, se glisse comme un ruban lorsqu’on la fait retomber de hauteur (ex : génoise). | AR97: 6 | AS97: cuire à l'eau salée
AP98: S | AR98: 7 | AS98: cuire légèrement croquant
AP99: Sabler : opération qui consiste à brasser de la farine et de la matière grasse jusqu’à l’obtention d’un mélange rappelant la texture du sable. | AR99: 8 | AS99: cuire sans coloration | AW99: LA CUISINE DE COLLECTIVITÉ
AP100: T | AR100: 9 | AS100: enfourner et cuire | AW100: Cuisine et Pâtisserie
AP101: Tabler : technique de pré-cristallisation du chocolat de couverture sur un marbre. | AR101: 10 | AS101: finir de cuire | AW101: 300 Fiches Techniques
AR102: 11 | AS102: griller et finir au four | AW102: Éditions BPI 2006
AP103: Tourer : action de plier en trois ou en quatre un pâton de pâte levée, feuilletée, après l’avoir allongée. | AR103: 12 | AS103: laisser cuire
AP104: Tremper : | AR104: 13 | AS104: passer au four très chaud
AP105: – imbiber une pièce de pâtisseries avec du sirop | AR105: 14 | AS105: piquer la sonde à cœur
AP106: – enrober des bonbons, des intérieurs, des fruits dans du chocolat de couverture ou du fondant. | AR106: 15 | AS106: préchauffer le four
AP107: V
AP108: Vanner : remuer une sauce ou une crème pendant son refroidissement pour la rendre homogène, limité son dessèchement en surface et accélérer sa descente en température.
AP109: Z | AR109: 1 | AS109: disperser au fouet
AP110: Zeste : peau découpée dans l’écorce des agrumes. | AR110: 2 | AS110: dresser à la poche
AP111: Zester : retirer la partie extérieure de l’écorce d’agrumes (citrons, oranges, pamplemousse….) à l’aide d’un zesteur ou d’une râpe. | AR111: 3 | AS111: dresser sur assiette
AR112: 4 | AS112: mélanger et porter à ébullition
AR113: 5 | AS113: mixer et passer au chinois
AO114: Lien > | AP114: https://www.passionpatisserie.fr/lexique | AR114: 6 | AS114: rectifier l'assaisonnement
AR115: 7 | AS115: rendre onctueux l'appareil
AO116: Lien > | AP116: http://devenir.patissier.free.fr/cours-CAP-vocabulaire-professionnel-eleve.pdf | AR116: 8 | AS116: répartir le fond de cuisson
AO118: Lien > | AP118: http://technologiepatisserie.blogspot.com/p/le-vocabulaire-professionnel-en.html
AR119: 1 | AS119: débarrasser dans un récipient
AO120: Lien > | AP120: https://devenirpatissier.fr/vocabulaire-professionnel/ | AR120: 2 | AS120: filmer et stocker en chambre froide
AR121: 3 | AS121: refroidir en cellule
AO122: Lien > | AP122: https://www.encoreungateau.com/pourquoi-un-blog-de-patisserie/vocabulaire-du-patissier/ | AR122: 4 | AS122: réserver au frais
AR123: 5 | AS123: réserver au froid
AR124: 6 | AS124: reserver dans des bacs
AR125: 7 | AS125: stocker en chambre froide
AR128: 1 | AS128: maintenir à température + 63°C
AR129: 2 | AS129: maintenir au bain marie + 65°C
AR130: 3 | AS130: maintenir au froid + 3°C maxi
AR131: 4 | AS131: servir tiède

Sheet Cuisiniers.Pesez
A1: =CELL("largeur",A1) -> 3 | B1: 15 | C1: 15 | D1: 15 | E1: 15 | F1: 15 | G1: 15 | H1: 15 | I1: 15 | J1: 15 | K1: 15 | L1: 15 | M1: 15 | N1: 15 | O1: 11 | P1: 16 | Q1: 11
B2: Cuisiniers : PESEZ …..Evitez les volumes , n'utilisez que les poids comme les pâtissiers
B3: Les cuisiniers "sont des artistes"……..ce qui ne doit pas les empêcher … d'UTILISEZ UNE BALANCE…...les résultats seront plus réguliers
B4: Cuisiniers : PESEZ …..même le sel…..on ne sale pas 50L de sauce à la "chichette" au "pif" ou à l'expérience
B5: la sauce crémée ne se sale pas comme la sauce tomatée etc…….
B6: lien > | C6: Les unités pifométriques
B8: Mise à jour du 16 décembre 2017 - Annule ou complète les versions précédentes lies liens sont parfois éphémères; pas de panique…..demandez à Google …il vous retrouvera un lien équivalent
B12: J'attire votre attention pour la saisie des quantités supposons qu'il y ait 400g de viande 2 œufs ou 2 pieds de veau et 5 cl de crème dans la recette …..Excel aura du mal à faire la différence
C14: ATTENTION : les saisies des poids unitaires se font en gramme
C16: Unités | D16: Quoi | E16: Poids Unitaire | F16: ❹ ingrédients | N16: quelques numérotation pour les process
C18: pour 1.050Kg saisissez 1050 la cellule est formatée pour ajouter g | N18: ❶
E19: 1050 | F19: bœuf | N19: ❷ | O19: Vous pouvez coller ces formes dans vos fiches
E20: 400 | F20: veau | N20: ❸
N21: ❹
C22: le poids UNITAIRE pour les RECETTES AU POIDS est indispensable | N22: ❺
C23: (pas le poids des 2 œufs "100g" mais le poids d'UN œuf de 50g par exemple) | N23: ❻
N24: ❼
C25: Unités | D25: Quoi | E25: Poids Unitaire | F25: ❹ ingrédients | N25: ❽
C26: 2 | D26: œufs | E26: 50 | F26: Œufs de 50 g | N26: ❾
C27: saisir QUOI pour les œufs n'est pas obligatoire | N27: ❿
C28: mais pour une pincée d'épices…une cuillère à café….une brindille c'est indispensable | N28: ⓫
N29: ⓬
C30: Recettes à la PORTION | N30: ⓭
C31: pour les recettes à la portion vous avez la possibilité de ne pas ajouter le poids unitaire de certains ingrédients | N31: ⓮
C32: si vous saisissez 2 œufs c'est possible; mais pas dans la même colonne cela fausserait le poids total | N32: ⓯
C33: Excel calculera 2 comme 2 Kg | N33: ⓰
C34: donc pour les produits à l'unité saisissez vos valeurs dans la première colonne | N34: ⓱
N35: ⓲
C36: Unités | D36: Quoi | E36: Poids Unitaire | F36: ❹ ingrédients | H36: FORMATS POUR LES FICHES AU Kg | K36: rapportez tout au Kg = 0,400 Kg de viande | N36: ⓳
C37: 2 | D37: œufs | F37: Œufs de 50 g | G37: 2 | H37: œufs | I37: 0.05 | J37: 2 | K37: œufs | L37: 0.05 | M37: Œufs de 50 g | N37: ⓴
C38: 5 | D38: C/C | F38: vinaigre | G38: 5 | H38: C/C | J38: 5 | K38: C/C | M38: vinaigre
C39: 1 | D39: pincée | F39: paprika | G39: 1 | H39: pincée | J39: 1 | K39: pincée | M39: paprika | O39: symbole diamètre
C40: 1 | D40: branche | F40: laurier | G40: 1 | H40: branche | J40: 1 | K40: branche | M40: laurier | O40: Ø
C41: 1 | D41: pied | F41: pied de veau | G41: 1 | H41: pied | J41: 1 | K41: pied | M41: pied de veau | O41: 
N42:  | O42: 
C43: les ¼ de botte de fines herbes en 0,25 les demi = 0.5 les 3/4 = 0.75
C44: idem pour les feuilles de gélatine les pieds de veau -les feuilles de basilic etc…. | M44: Avant de saisir quoi que ce soit dans une cellule cliquez dessus pour vérifier qu'il n'y ait pas de formule
C45: 0.5 | D45: feuilles | F45: gélatine | H45: C/C | I45: cuillère/Café
C46: 0.25 | D46: botte | F46: fines herbes | H46: C/P | I46: cuillère/Potage
C48: Convertissez tout de suite les volumes en poids sur la base de 1L = 1Kg
C49: 5 cl = 50g
C50: sauf cas exeptionnel pour recettes de précision
D51: Pour le lait entier, la densité donnée habituellement est de 1,030 par rapport à l'eau qui est de 1. | M51: Pour imprimer : sélectionnez les recettes qui vous conviennent : définir la zone d'impression -Mise à l'échelle : Ajuster la feuille à 1 page
D52: On peut donc considérer que les 0,030 corespondent à la graisse du lait entier.
D53: Pour le lait demi-écrémé, la graisse ne devrait représenter que 0,030/2, donc 0,015.
D54: Donc la masse d'un litre de lait demi-écrémé doit être de 1,015 Kg (1015 g).
C58: Poids des aliments sur internet
B59: lien > | C59: http://www.aliments.org/poids.htm | M59: les valeurs #DIV/0! indiquent seulement que les recettes sont "vierges" sur la feuille de saisie
B61: lien > | C61: http://www.nubel.be/fra/manual/liste_des_denrees_alimentaires.asp
C63: Tableau des calibres Fruits Frais | M63: si vous n'utilisez pas toutes les lignes vous pouvez masquer cette valeur par une couleur de police BLANC
B64: lien > | C64: http://www.crenoexpert.fr/flipbooks/expproduit/TABLEAUX-CALIBRES-FRUITS-2.pdf
B66: lien > | C66: ff-documents-apprentis-Patissiers.xlsx
B68: lien > | C68: ff-Croquis.xlsx | M68: POUR LES FICHES RECETTES A LA PORTION
M69: Nb de portions Si vous estimez que les grammages sont trop ou pas assez copieux pour vos convives : modifiez les sur ces tableaux les modifications se feront sur le tableau à imprimer
B70: lien > | C70: ff-qualiterecettes2007.xls
B72: lien > | C72: ff-tableau-cuisson.pdf
M73: Pas assez copieux : diminuez le nombre de portions cela augmentera les grammages à la portion sur le tableau à imprimer
B74: lien > | C74: PT-bonnes-pratiques.doc
B76: lien > | C76: Banque d'images pour agrémenter vos documents | M76: Trop copieux : augmentez le nombre de portions cela diminuera les grammages à la portion sur le tableau à imprimer
C82: Numérotation Format : Images pour compléter parce que les Symboles sont limités au N° 20
B86: formats personnalisés
B88: 0.00\ " cm³" | C88: 3 | E88: Dans caractères spéciaux => symboles => Nombres et symboles. Là tu descends (tu as d'abord une série de nombre entourés, puis des nombres sous fractions, ...) et enfin tu as deux lignes de 0 à 9 écrit petit, ceux sont eux, les exposants et les indices.
B90: le ³ se fait en tapant alt+0179
B92: le ² se fait en tapant alt+0178
F94: ou en copier-coller | G94: m² | H94: M² | I94: m³ | J94: M³ | K94: cm² | L94: cm³
B96: Format | cellule | personnalisé | 0" m²" | F96: ❶ | G96: ❷ | H96: ❸ | I96: ❹ | J96: ❺ | K96: X | L96: t
B98: ❻ | C98: ❼ | D98: ❽ | E98: ❾ | F98: ❿ | G98: ⓫ | H98: ⓬ | I98: ⓭ | J98: ⓮ | K98: Z | L98: q
D100: N° de colonne | E100: =COLUMN() -> 5 | G100: Adresse de cellule | H100: =ADDRESS(ROW(),COLUMN(),4) -> H100 | K100: u | L100: p
D102: Fonction : Adresse colonne | E102: =LEFT(ADDRESS(1,COLUMN(),4),LEN(ADDRESS(1,COLUMN(),4))-1) -> E | G102: N° de ligne | H102: =ROW() -> 102 | J102: le ³ se fait en tapant alt+0179
C104: Adresse PC | D104: =CELL("nomfichier") -> E:\0-UPRT\1-UPRT.FR-SITE-WEB\re-recettes-jean-marc-catteau\re-catteau-galettes\[GA-pate.sud.finistere.xlsm]Modes.d'emploi
B107: A | C107: TEST POLICE DE CARACTERES
B108: B | C108: Saisir une ou des lettres / nombres ou une phrase cellule C jaune
B109: C | C109: Saisir ICI
C110: Sélectionnez toute les cellules ci-dessous et changez de police de caractère pour voir
B111: C | C111: =C109 -> Saisir ICI
B114: A | C114: =+C107 -> TEST POLICE DE CARACTERES
B117: B | C117: =+C108 -> Saisir une ou des lettres / nombres ou une phrase cellule C jaune
C124: Tables des caractères Unicode - Alphanumériques cerclés
B125: lien > | C125: caractères Alphanumériques cerclés
B127: lien > | C127: http://unicode.org/
B129: lien > | C129: visualiseur d'Emoji et de symboles
C131: Sélection de polices pour l'école
B132: lien > | C132: https://pragmatice.net/kitinstit/3_installer_produire_polices_selection.htm
B134: lien > | C134: http://www.philing.net/
C136: Petites leçons de Typographie
B137: lien > | C137: http://jacques-andre.fr/faqtypo/lessons.pdf
C139: Document à télécharger
B140: lien > | C140: Mémo caractères spéciaux sous Windows
C142: Polices de Caractères à Télécharger
B143: lien > | C143: http://fr.fontriver.com/
B145: lien > | C145: http://fr.fonts2u.com/category.html?id=21
C147: Retrouver une police utilisée - TechTour : Démo
B148: lien > | C148: https://www.youtube.com/watch?v=wMgBzUHzKvM
B151: 3 sites à conserver pour vos recherches de formules Excel
C152: https://web.archive.org/web/20150919082310/http://www.excelabo.net/
C154: http://www.mdf-xlpages.com/modules/publisher/
C156: Excel Québec : Formules et fonctions Excel
C158: https://www.excel-downloads.com/resources/
B160: Utilitaire pour supprimer les espace vides dans une phrase
D161: exemple de texte avec espaces (83 caractères en comptant les espaces)
D162: •Contamination microbiologique (B) •Multiplication des germes (B)
D163: •Contaminationmicrobiologique(B)•Multiplicationdesgermes(B) | I163: 59 caractères en comptant les points
B164: Collez votre texte avec espaces dans la cellule blanche
D165: =LEN(F165) -> 58 | E165: Caractères | F165: Utilitaire pour supprimer les espace vides dans une phrase
B167: Récupérez votre texte dans la cellule verte
D168: =LEN(F168) -> 50 | E168: Caractères | F168: =SUBSTITUTE(F165," ","") -> Utilitairepoursupprimerlesespacevidesdansunephrase
C169: cliquez sur la cellule verte puis sur sur Copier
C170: placez vous dans votre document :
C171: puis collage spécial Valeur pour ne pas copier la formule
C173: la formule utilisée : | D173: SUBSTITUE(G525;" ";"")
D176: Excel Québec : Formules et fonctions Excel
C178: Quelques fonctions d'excel | I178: Publié le | J178: Vues
C179: Rechercher une Fonction | I179: 2013-05-28 | J179: 4416
C180: T() - Tester et renvoyer du texte | I180: 2012-07-02 | J180: 14900
C181: EPURAGE() - Supprimer certains caractères indésirables | I181: 2012-06-02 | J181: 36257
C182: REMPLACER() - Echanger une chaîne de caractères par une autre | I182: 2012-06-02 | J182: 14390
C183: CTXT() - Convertir un nombre en texte | I183: 2012-05-23 | J183: 48910
C184: REPT() - Répéter des caractères un certain nombre de fois | I184: 2012-04-26 | J184: 14751
C185: L'Assistant Somme Conditionnelle | I185: 2011-11-01 | J185: 10084
C186: CELLULE() - Nom de l'onglet, du fichier ou du répertoire dans une cellule | I186: 2010-10-03 | J186: 45222
C187: EXACT() - Comparer deux chaînes de texte | I187: 2010-04-26 | J187: 65784
C188: Purgez les espaces inutiles ! | I188: 2010-04-05 | J188: 96965
C189: SUPPRESPACE() - Supprimer les espaces inutiles dans une cellule | I189: 2010-04-05 | J189: 45902
C190: STXT() - Extraire une chaîne de caractères au sein d'une autre | I190: 2010-03-13 | J190: 122444
C191: CHERCHE() TROUVE() - Retourne la position d'une chaîne de caractères | I191: 2010-01-04 | J191: 100241
C192: NBCAR() - Compter les caractères d'une chaîne de texte ou d'une plage de cellules | I192: 2009-11-21 | J192: 23956
C193: SUBSTITUE() - Remplacer une chaîne de texte par une autre | I193: 2009-11-08 | J193: 113684
C194: CAR() - CODE() : Utilisation des codes caractères | I194: 2009-10-25 | J194: 27154
C195: CONCATENER() - Assembler plusieurs chaînes de texte en une seule. | I195: 2009-10-10 | J195: 25774
C196: TEXTE() - Convertir une valeur numérique en texte formaté | I196: 2009-09-29 | J196: 79344
C197: DROITE() - GAUCHE() : Extraire les premiers ou derniers caractères d'une chaîne. | I197: 2009-09-12 | J197: 145176
C198: MAJUSCULE() - MINUSCULE() - NOMPROPRE(): Modifier la casse d'un texte | I198: 2009-08-23 | J198: 7657
C199: CNUM() - Convertir une chaîne en valeur numérique | I199: 2009-08-19 | J199: 45164
C200: DATEDIF() : Calculer la différence entre deux dates | I200: 2009-07-26 | J200: 105218
C201: Nommer une Plage Dynamique | I201: 2008-12-06 | J201: 59780
C202: Nommer une Plage de Cellules | I202: 2008-12-05 | J202: 75563
C203: Références Relatives & Absolues | I203: 2008-12-05 | J203: 15781
C204: Formule pour Nombres Premiers
C206: UN EXEMPLE DE GRAPHIQUE - cliquez dessus pour le modifier
A219: 1 | B219: TABLEAUX DIVERS A COPIER / COLLER DANS VOS DOCUMENTS
B220: Certains tableaux ont à peu près les mêmes fonctions pour vous laisser le libre choix en fonction de votre utilisation
B222: LIENS INTERNET POUR RECHERCHE DE FORMULES
B223: http://matoumatheux.ac-rennes.fr/sommaire.php?niv=6 | G223: Le sirop de menthe | K223: Le gâteau de riz | O223: Les rubans
B224: http://matoumatheux.ac-rennes.fr/admin/capture/chargement.htm | G224: Le cocktail mi-raisin | K224: Le far breton | O224: L'aire d'un disque
B225: http://matoumatheux.ac-rennes.fr/accueil.htm | G225: Le cocktail verger | K225: La boulangerie | O225: Le rayon d'un disque
B226: http://matoumatheux.ac-rennes.fr/divers/general/accueil.htm | G226: Le cocktail banane | K226: http://matoumatheux.ac-rennes.fr/geom/unite/accueil6.htm | O226: L'aire d'une couronne
B227: http://matoumatheux.ac-rennes.fr/divers/liens/liens.htm | G227: Le cocktail rouge | O227: L'aire latérale d'un cylindre
B228: La multiplication avec les doigts | G228: Le sirop de menthe | K228: Conversions d'unités de longueur | O228: Le volume d'un cylindre
B229: Classer des questions | G229: Rectangle ou disque | K229: Conversion d'unités de masse | O229: Le volume d'un cylindre
B230: Les seringues | G230: Segment | K230: Attaché à un piquet | O230: Le mille-feuille
B231: Les étiquettes | G231: Colorier un poisson | K231: Attaché à un piquet (1) | O231: L'aire d'un rectangle
B232: Le verre mesureur | G232: La crème pâtissière | K232: Le chien fait le tour de son domaine | O232: Le gâteau
O233: La casserole
G235: 177 vidéos dans cette partie
B236: http://webtv.ac-versailles.fr/restauration/Patisserie | G236: http://webtv.ac-versailles.fr/restauration/Patisserie | K236: http://chefsimon.lemonde.fr/recettes/tag/dessert | O236: https://www.google.fr/webhp?sourceid=chrome-instant&ion=1&espv=2&ie=UTF-8#q=RECETTES+PATISSERIE
B239: Vous recherchez un décor > | E239: cake design | G239: wedding cake photos | J239: wedding cake youtube | M239: FAIRE UN GÂTEAU VÉGÉTAL AVEC LES FLEURS DU JARDIN
A243: ICI | B243: Différentes formules pour calculer l'Aire ou surface du cercle | I243: CONVERSIONS
A244: Différentes formules pour calculer l'Aire ou surface du cercle | I244: 1m2 = 10.000 cm2 | L244: 1 cm = 0,01 m donc
I245: ou | L245: 1 cm² = 0,01 x 0,01 = 0,0001 m² = 10^-4 m²
B246: ❶ | C246: PI()*(Rayon^2) | I246: 1cm2=1/10.000 m2
B247: ❷ | C247: PI()*(Rayon*Rayon) | I247: 1cm^2=0.0001m^2 | L247: Pour passer de m² en cm² il faut faire l'inverse
B248: ❸ | C248: PI()*(Diamètre/2)*(Diamètre/2) | I248: 17 cm²=0.0017 m². | L248: 1 m = 100 cm
L249: 1 m² = 100 x 100 = 10 000 cm²
B251: Différentes formules pour calculer le volume d'un entremet | I251: 10 000 cm2 = 100 dm2 = 1 m2 | L251: copier/coller
I252: 1 cm2 = 0.001 dm2 = 0.00001 m2 | L252: 0 | M252: 0 | N252: 0 | O252: 0
B253: ❶ | C253: ((PI()*(Rayon^2)*Hauteur))
B254: ❷ | C254: (PI()*(Rayon*Rayon)*Hauteur)
B255: ❸ | C255: ((Diamètre/2)*(Diamètre/2)*3.1416)*Hauteur | I255: Nombre de parts et poids d'une portion
I256: Poids Total | J256: 8.35 | K256: poids d'1 portion | M256: 0.25 | N256: =IF(ISBLANK(M257),I260,M257) -> 33.4 | O256: parts
B257: L'aire d'un cercle de 22cm est égale à 3,14 x (11x11) = 379,94 cm2 | F257: =3.14*(11*11) -> 379.94
B258: L'aire d'un cercle de 22cm est égale à PI() x (11x11) = 380.13 cm2 | F258: PI()*(11*11) | K258: Nb de parts | M258: 70 | N258: =J256/M258 -> 0.1192857143 | O258: la portion
B259: Nb de cercles | C259: Diamètre | E259: rayon | F259: Aire ou Surface
B260: 1 | C260: 22 | E260: =C260/2 -> 11 | F260: =PI()*(E260^2) -> 380.1327111 | I260: =IF(ISBLANK(M256),0,J256/M256) -> 33.4
I261: Saisissez les valeurs dans les cellules fond jaune encre rouge
I262: Adaptation : Joël Leboucher..UPRT "Union des Personnels de la Restauration Territoriale" membre du réseau RESTAU'CO
B263: 1 | C263: 22 | E263: =C263/2 -> 11 | F263: =PI()*(E263^2) -> 380.1327111
B265: Pour intégrer ce tableau sous des documents Modèle B3-B -2015 réduisez la largeur des colonnes à 9 | I265: Transférer des cercles dans des cadres
B266: Sinon : Pour une meilleure lisibilité vous pouvez élargir les colonnes à 15 -ou Affichage Zoom 125%
B267: Adaptation : Joël Leboucher..UPRT "Union des Personnels de la Restauration Territoriale" membre du réseau RESTAU'CO | I267: CERCLES A TRANSFÉRER
I269: Nb de cercles | J269: Diamètre | K269: rayon | L269: Poids crème liquide | M269: Volume | N269: Coeff.
A270: ICI | B270: Gastro Norm
A271: Gastro Norm | B271: https://fr.wikipedia.org/wiki/Gastro_Norm | I271: 1 | J271: 22 | K271: =J271/2 -> 11 | L271: 0.15 | M271: =(PI()*(K271^2)*I271) -> 380.1327111 | N271: =N275 -> 1.57839613
B273: Le format de base est le GN 1/1, qui fait 530 x 325 mm. Les autres sont des multiples ou des sous-multiples de ce module de base. Les formats généralement rencontrés chez les professionnels sont1 : | I273: dans des moules et caisses rectangles
I275: 1 | J275: 30 | K275: 20 | L275: =(L271*N271)*I271 -> 0.2367594195 | M275: =(J275*K275)*I275 -> 600 | N275: =M275/M271 -> 1.57839613
I277: Nb de moules | J277: Longueur | K277: Largeur | L277: Poids crème liquide | M277: Volume | N277: Coeff.
I279: Saisissez vos valeurs dans les cellules fond jaune encre rouge
I280: Lien Auteur: | J280: http://www.cestmafournee.com/2013/06/quelles-quantites-pour-mon-moule.html
I281: Adaptation : Joël Leboucher..UPRT "Union des Personnels de la Restauration Territoriale" membre du réseau RESTAU'CO
I284: Différentes formules pour calculer le volume d'un cylindre (cercle à tarte)
B287: Les profondeurs les plus courantes sont 20, 40, 65, 100, 150 et 200 mm. | I287: Nb de cercles | J287: Diamètre | K287: rayon | L287: Hauteur | M287: Volume
I289: 1 | J289: 22 | K289: =J289/2 -> 11 | L289: 1 | M289: =((PI()*(K289^2)*L289))*I289 -> 380.1327111
B291: Calculez le volume des moules et cadres rectangles | I291: Nb de cercles | J291: Diamètre | K291: Hauteur | M291: Volume
B293: Nb de moules | C293: Longueur | D293: Largeur | E293: Hauteur | F293: Volume | I293: 1 | J293: 22 | K293: 1 | M293: =(((J293/2)*(J293/2)*3.1416)*K293)*I293 -> 380.1336
B295: 1 | C295: 30 | D295: 20 | E295: 1 | F295: =((C295*D295)*E295)*B295 -> 600 | I295: Nb de cercles | J295: Diamètre | K295: Hauteur | L295: Nb de parts | M295: Volume
B297: Saisissez vos valeurs dans les cellules fond jaune encre rouge | I297: 1 | J297: 22 | K297: 1 | L297: 3 | M297: =(((J297/2)*(J297/2)*PI()*K297)*I297)/L297 -> 126.7109037
B298: Adaptation : Joël Leboucher..UPRT "Union des Personnels de la Restauration Territoriale" membre du réseau RESTAU'CO
I299: Saisissez vos valeurs dans les cellules fond jaune encre rouge
I300: Adaptation : Joël Leboucher..UPRT "Union des Personnels de la Restauration Territoriale" membre du réseau RESTAU'CO
B303: Quel poids de pâte ou de liquide faut-il dans un ou des cercle (s)
B305: QUE VOULEZ VOUS FAIRE
... 412 more rows

Sheet Poids fruits et légumes
B1: POIDS DES FRUITS ET LÉGUMES …décembre 2017 annule et remplace les versions précédentes
B2: Saisissez votre nombre d'unité (encre rouge)Modifiez le poids unitaire (encre verte) s'il n'est pas excact | I2: Saisissez votre nombre d'unité (encre rouge)Modifiez le poids unitaire (encre verte) s'il n'est pas excact | P2: Saisissez votre nombre d'unité (encre rouge)Modifiez le poids unitaire (encre verte) s'il n'est pas excact
B5: N° | C5: Produits | D5: Poids unitaire | E5: Nb d'unités | F5: Poids en Gr | G5: Poids en Kg | I5: N° | J5: Produits | K5: Poids unitaire | L5: Nb d'unités | M5: Poids en Gr | N5: Poids en Kg | P5: N° | Q5: Produits | R5: Poids unitaire | S5: Nb d'unités | T5: Poids en Gr | U5: Poids en Kg
C6: A | J6: G | Q6: R | X6: 4.1. Poids et mesures (A-C) | AF6: Poids moyen (à la pièce, en grammes). | AV6: LIENS
B7: 1 | C7: Abricot | D7: 55 | E7: 10 | F7: =(D7*E7) -> 550 | G7: =F7/1000 -> 0.55 | I7: =B66+1 -> 56 | J7: Hareng | K7: 170 | L7: 10 | M7: =(K7*L7) -> 1700 | N7: =M7/1000 -> 1.7 | P7: =I68+1 -> 113 | Q7: Raisin sec Tasse thé de 15 cl | R7: 20 | S7: 10 | T7: =(R7*S7) -> 200 | U7: =T7/1000 -> 0.2
B8: =LARGE(B7:B7,1)+1 -> 2 | C8: Ail gousse | D8: 5 | E8: 10 | F8: 50 | G8: 0.05 | I8: =LARGE(I7:I7,1)+1 -> 57 | J8: Haricot sec Verre de 20 cl | K8: 160 | L8: 10 | M8: =(K8*L8) -> 1600 | N8: 1.6 | P8: =LARGE(P7:P7,1)+1 -> 114 | Q8: Riz long Verre de 20 cl | R8: 125 | S8: 10 | T8: 1250 | U8: 1.25 | X8: Aliment | Y8: Mesure de capacité | Z8: Poids | AB8: Aliment | AC8: Mesure de capacité | AD8: Poids | AF8: Biscuit sec : 10. Biscotte : 18. Croissant : 50. | AV8: http://www.nubel.be/fra/manual/liste_des_denrees_alimentaires.asp
B9: =LARGE(B7:B8,1)+1 -> 3 | C9: Ail gousse moyenne | D9: 8 | E9: 10 | F9: 80 | G9: 0.08 | I9: =LARGE(I7:I8,1)+1 -> 58 | J9: Homard moyen | K9: 885 | L9: 10 | M9: 8850 | N9: 8.85 | Q9: S | R9: 0 | T9: 0 | U9: 0
B10: =LARGE(B7:B9,1)+1 -> 4 | C10: Ail tête | D10: 50 | E10: 10 | F10: 500 | G10: 0.5 | I10: =LARGE(I7:I9,1)+1 -> 59 | J10: Homard petit | K10: 500 | L10: 10 | M10: 5000 | N10: 5 | P10: =LARGE(P7:P9,1)+1 -> 115 | Q10: Sardine | R10: 45 | S10: 10 | T10: 450 | U10: 0.45 | X10: Ananas (frais)/ananas (boîte) | Y10: 1 tranche moyenne | Z10: 100 g/35 g | AB10: Mandarine | AC10: 1 moyenne | AD10: 60 g | AF10: Crustacés (entiers) : écrevisse 34, homard 885. | AV10: https://www.nubel.be/fra/default.aspx
B11: =LARGE(B7:B10,1)+1 -> 5 | C11: Ananas | D11: 2000 | E11: 10 | F11: 20000 | G11: 20 | J11: L | K11: 0 | M11: 0 | N11: 0 | P11: =LARGE(P7:P10,1)+1 -> 116 | Q11: Sel 1 pincée | R11: 1 | S11: 10 | T11: 10 | U11: 0.01 | X11: Avocat | Y11: 1 moyen | Z11: 160 g | AB11: Mangue | AC11: 1 moyenne | AD11: 200 g
B12: =LARGE(B7:B11,1)+1 -> 6 | C12: Artichaut | D12: 350 | E12: 10 | F12: 3500 | G12: 3.5 | I12: =LARGE(I7:I11,1)+1 -> 60 | J12: Lapin vidé | K12: 1500 | L12: 10 | M12: 15000 | N12: 15 | P12: =LARGE(P7:P11,1)+1 -> 117 | Q12: Sel fin 1 cuillère café rase | R12: 50 | S12: 10 | T12: 500 | U12: 0.5 | X12: Abricot (sans noyau) | Y12: 1 | Z12: 150 g | AB12: Maquereau fumé | AC12: 1 filet | AD12: 145 g | AF12: Fromages : camembert 250, livarot 500, pont-l'évêque 320, petit-suisse 25-30, yaourt (petit pot) 120-150. | AV12: POIDS MOYEN BRUT DE LA PIÈCE | AX12: http://www.basesdelacuisine.com/Cadre1/z1/pp80.htm
B13: =LARGE(B7:B12,1)+1 -> 7 | C13: Avocat 1/2 | D13: 110 | E13: 10 | F13: 1100 | G13: 1.1 | I13: =LARGE(I7:I12,1)+1 -> 61 | J13: Lentilles Verre de 20 cl | K13: 150 | L13: 10 | M13: 1500 | N13: 1.5 | P13: =LARGE(P7:P12,1)+1 -> 118 | Q13: Sel fin 1 cuillère soupe rase | R13: 15 | S13: 10 | T13: 150 | U13: 0.15 | AB13: Margarine | AC13: 1 cuillère | AD13: 18 g
B14: =LARGE(B7:B13,1)+1 -> 8 | C14: Avocat entier | D14: 220 | E14: 10 | F14: 2200 | G14: 2.2 | J14: M | K14: 0 | M14: 0 | N14: 0 | P14: =LARGE(P7:P13,1)+1 -> 119 | Q14: Sel fin 1 tasse | R14: 200 | S14: 10 | T14: 2000 | U14: 2 | X14: Bacon | Y14: 1 fine tranche | Z14: 11 g | AB14: Mayonnaise | AC14: 1 cuillère | AD14: 25 g | AF14: Fruits : abricot 55, banane 150, citron 125, datte 10, figue sèche 42, figue fraîche 45, mandarine 100, noix 13, orange 180, pamplemousse 400, pêche 130, poire 180, pomme 120, pruneau 15. | AV14: Fruits et légumes frais Poids moyen d'une pièce | AY14: http://lahalledepessac.com/content/14-fruits-et-legumes-frais-poids-moyen-d-une-piece
C15: B | D15: 0 | F15: 0 | G15: 0 | I15: =LARGE(I7:I14,1)+1 -> 62 | J15: Maizena 1 cuillère soupe | K15: 10 | L15: 10 | M15: 100 | N15: 0.1 | P15: =LARGE(P7:P14,1)+1 -> 120 | Q15: Sel pour 1 Kg Blé | R15: 12 | S15: 10 | T15: 120 | U15: 0.12 | X15: Banane | Y15: 1 moyenne | Z15: 130 g | AB15: Melon | AC15: 1 moyen | AD15: 540 g
B16: =LARGE(B7:B15,1)+1 -> 9 | C16: Banane | D16: 120 | E16: 10 | F16: 1200 | G16: 1.2 | I16: =LARGE(I7:I15,1)+1 -> 63 | J16: Melon gros | K16: 800 | L16: 10 | M16: 8000 | N16: 8 | P16: =LARGE(P7:P15,1)+1 -> 121 | Q16: Sel pour 1 Kg Foie gras | R16: 12 | S16: 10 | T16: 120 | U16: 0.12 | X16: Beurre | Y16: 1 cuillère | Z16: 18 g | AB16: Merlan | AC16: 1 filet | AD16: 100 g | AF16: Légumes : artichaut 250, aubergine 225, chou 1 000, chou-fleur 1 200, laitue 500, romaine 400, chicorée frisée 400, melon 700-1 000, radis (la botte) 350, tomate 100, oignon 125. | AV16: TABLES DE GRAMMAGES | AW16: http://etab.ac-poitiers.fr/lycee-hotelier-la-rochelle/IMG/pdf/Grammage_4.pdf
B17: =LARGE(B7:B16,1)+1 -> 10 | C17: Baton de vanille | D17: 8 | E17: 10 | F17: 80 | G17: 0.08 | I17: =LARGE(I7:I16,1)+1 -> 64 | J17: Melon portion | K17: 500 | L17: 10 | M17: 5000 | N17: 5 | P17: =LARGE(P7:P16,1)+1 -> 122 | Q17: Sel pour 1 Kg Merguez | R17: 19 | S17: 10 | T17: 190 | U17: 0.19 | X17: Beurre de cacahuète | Y17: 1 cuillère | Z17: 15 g | AB17: Miel | AC17: 1 cuillère | AD17: 27 g
B18: =LARGE(B7:B17,1)+1 -> 11 | C18: Beurre 1 cuillère café | D18: 4 | E18: 10 | F18: 40 | G18: 0.04 | I18: =LARGE(I7:I17,1)+1 -> 65 | J18: Merlan | K18: 230 | L18: 10 | M18: 2300 | N18: 2.3 | P18: =LARGE(P7:P17,1)+1 -> 123 | Q18: Sel pour 1 Kg Pâtes alimentaires | R18: 12 | S18: 10 | T18: 120 | U18: 0.12 | X18: Bière (pils) | Y18: 1 verre à bière | Z18: 250 ml | AB18: Milk-shake | AC18: 1 verre | AD18: 150 ml | AF18: Poissons (entiers) : brochet 1 250, carpe 775, colin 2 000, daurade 600, églefin 350, hareng 170, saur 130, limande 150, maquereau 250, merlan 230, plie 160, sardine 45, truite 450, turbot 2 350. | AV18: POIDS MOYEN BRUT LEGUMES ET FRUITS | AX18: http://dmcwilshim.canalblog.com/archives/2009/01/18/12131475.html
B19: =LARGE(B7:B18,1)+1 -> 12 | C19: Beurre 1 cuillère soupe | D19: 15 | E19: 10 | F19: 150 | G19: 0.15 | I19: =LARGE(I7:I18,1)+1 -> 66 | J19: Mouton 1/2 carcasse | K19: 9.5 | L19: 10 | M19: 95 | N19: 0.095 | P19: =LARGE(P7:P18,1)+1 -> 124 | Q19: Sel pour 1 Kg Pommes terre | R19: 13 | S19: 10 | T19: 130 | U19: 0.13 | X19: Biscotte blanche/complète | Y19: 1 | Z19: 8 g/10 g | AB19: Moule | AC19: 1 pièce | AD19: 4 g
B20: =LARGE(B7:B19,1)+1 -> 13 | C20: Beurre 1 noisette | D20: 4 | E20: 10 | F20: 40 | G20: 0.04 | I20: =LARGE(I7:I19,1)+1 -> 67 | J20: Mouton carré couvert (5+3) | K20: 900 | L20: 10 | M20: 9000 | N20: 9 | P20: =LARGE(P7:P19,1)+1 -> 125 | Q20: Sel pour 1 Kg Saucisse a griller | R20: 12 | S20: 10 | T20: =(R20*S20)/1000 -> 0.12 | U20: 0.00012 | X20: Biscuit | Y20: 1 | Z20: 10 g | AB20: Muesli | AC20: 1 tasse à café | AD20: 50 g | AF20: Sucre (morceau) : 6. | AV20: Correspondance Calibre/ Poids fruits legumes
B21: =LARGE(B7:B20,1)+1 -> 14 | C21: Beurre 1 noix | D21: 15 | E21: 10 | F21: 150 | G21: 0.15 | I21: =LARGE(I7:I20,1)+1 -> 68 | J21: Mouton carré découvert (5) | K21: 900 | L21: 10 | M21: 9000 | N21: 9 | P21: =LARGE(P7:P20,1)+1 -> 126 | Q21: Sel pour 1 Kg Semoule a couscous | R21: 13 | S21: 10 | T21: =(R21*S21)/1000 -> 0.13 | U21: 0.00013 | X21: Biscuit apéritif | Y21: 1 pièce | Z21: 4 g
B22: =LARGE(B7:B21,1)+1 -> 15 | C22: Beurre 1 tasse | D22: 200 | E22: 10 | F22: 2000 | G22: 2 | I22: =LARGE(I7:I21,1)+1 -> 69 | J22: Mouton cervelle | K22: 230 | L22: 10 | M22: 2300 | N22: 2.3 | P22: =LARGE(P7:P21,1)+1 -> 127 | Q22: Semoule Tasse thé de 15 cl | R22: 110 | S22: 10 | T22: =(R22*S22)/1000 -> 1.1 | U22: 0.0011 | X22: Biscuit au chocolat | Y22: 1 | Z22: 20 g | AB22: Nectarine | AC22: 1 | AD22: 95 g | AF22: Viandes : lapin (vidé) 1 500 ; oie (entière) 5 500 ; poulet (entier) 1 800. Cervelle : bœuf 500, veau 300, mouton 100, porc 110. | AV22: https://portal.health.fgov.be/pls/portal/docs/PAGE/INTERNET_PG/HOMEPAGE_MENU/ABOUTUS1_MENU/INSTITUTIONSAPPARENTEES1_MENU/HOGEGEZONDHEIDSRAAD1_MENU/ADVIEZENENAANBEVELINGEN1_MENU/ADVIEZENENAANBEVELINGEN1_DOCS/6545-2_POIDSETMESURES_FR_2005_2.PDF
B23: =LARGE(B7:B22,1)+1 -> 16 | C23: Bœuf Cervelle | D23: 500 | E23: 10 | F23: 5000 | G23: 5 | I23: =LARGE(I7:I22,1)+1 -> 70 | J23: Mouton cœur | K23: 230 | L23: 10 | M23: 2300 | N23: 2.3 | P23: =LARGE(P7:P22,1)+1 -> 128 | Q23: Semoule Verre de 20 cl | R23: 130 | S23: 10 | T23: =(R23*S23)/1000 -> 1.3 | U23: 0.0013 | X23: Boudin blanc | Y23: 1 | Z23: 100 g | AB23: Noisettes | AC23: 10 pièces | AD23: 12 g | AF23: Cœur : bœuf 2 750, veau 500, mouton 230, porc 225. Foie : bœuf 8 500, veau 2 500, porc 750.
B24: =LARGE(B7:B23,1)+1 -> 17 | C24: Bœuf cœur | D24: 2750 | E24: 10 | F24: 27500 | G24: 27.5 | I24: =LARGE(I7:I23,1)+1 -> 71 | J24: Mouton épaule | K24: 1.7 | L24: 10 | M24: 17 | N24: 0.017 | P24: =LARGE(P7:P23,1)+1 -> 129 | Q24: Sole T1 | R24: 280 | S24: 10 | T24: =(R24*S24) -> 2800 | U24: 2.8 | X24: Boudin noir | Y24: 1 | Z24: 100 g | AF24: Langue : bœuf 4 000, veau 1 000. Pied de porc 200. Ris de veau 750. Rognon : bœuf 1 000, veau 250, porc 170. | AV24: http://www.aliments.org/poids.htm
B25: =LARGE(B7:B24,1)+1 -> 18 | C25: Bœuf entrecôte | D25: 6000 | E25: 10 | F25: 60000 | G25: 60 | I25: =LARGE(I7:I24,1)+1 -> 72 | J25: Mouton gigot raccourci | K25: 2.2 | L25: 10 | M25: 22 | N25: 0.022 | P25: =LARGE(P7:P24,1)+1 -> 130 | Q25: Sole T2 | R25: 350 | S25: 10 | T25: 3500 | U25: 3.5 | X25: Boudoir | Y25: 1 | Z25: 5,5 g | AB25: Oeuf cuit | AC25: 1 | AD25: 50 g
B26: =LARGE(B7:B25,1)+1 -> 19 | C26: Bœuf faux filet | D26: 8000 | E26: 10 | F26: 80000 | G26: 80 | I26: =LARGE(I7:I25,1)+1 -> 73 | J26: Mouton selle anglaise | K26: 2 | L26: 10 | M26: 20 | N26: 0.02 | P26: =LARGE(P7:P25,1)+1 -> 131 | Q26: Sole T3 | R26: 500 | S26: 10 | T26: 5000 | U26: 5 | AB26: Oignon | AC26: 1 moyen | AD26: 115 g | AV26: http://www.astro.ulg.ac.be/cours/magain/stat/stat52.html
B27: =LARGE(B7:B26,1)+1 -> 20 | C27: Bœuf filet | D27: 4200 | E27: 10 | F27: 42000 | G27: 42 | J27: N | K27: 0 | M27: 0 | N27: 0 | P27: =LARGE(P7:P26,1)+1 -> 132 | Q27: Sole T4 + de | R27: 600 | S27: 10 | T27: 6000 | U27: 6 | X27: Cabillaud | Y27: 1 darne | Z27: 175 g | AB27: Olive | AC27: 1 moyenne | AD27: 4 g | AF27: Modification. Poids brut d'aliments résultant de la cuisson de:
B28: =LARGE(B7:B27,1)+1 -> 21 | C28: Bœuf foie | D28: 8500 | E28: 10 | F28: 85000 | G28: 85 | I28: =LARGE(I7:I27,1)+1 -> 74 | J28: Noix | K28: 8 | L28: 10 | M28: 80 | N28: 0.08 | P28: =LARGE(P7:P27,1)+1 -> 133 | Q28: Sole T4 + de | R28: 800 | S28: 10 | T28: 8000 | U28: 8 | X28: Cacahuètes | Y28: 1 cuillère/10 pièces | Z28: 20 g/20 g | AB28: Omelette (1 œuf) | AC28: 1 | AD28: 60 g | AV28: lien : une portion c'est combien sur la nutrition.fr
B29: =LARGE(B7:B28,1)+1 -> 22 | C29: Bœuf langue | D29: 4000 | E29: 10 | F29: 40000 | G29: 40 | I29: =LARGE(I7:I28,1)+1 -> 75 | J29: Noix épluchées Tasse thé de 15 cl | K29: 50 | L29: 10 | M29: 500 | N29: 0.5 | P29: =LARGE(P7:P28,1)+1 -> 134 | Q29: Sucre morceaux | R29: 5 | S29: 10 | T29: 50 | U29: 0.05 | X29: Café/thé | Y29: 1 tasse | Z29: 125g | AB29: Orange | AC29: 1 moyenne | AD29: 140 g | AF29: 100 g d'aliments crus. Farineux : coquillettes 385, macaronis 400, nouilles 385, riz 295, spaghettis 385.
B30: =LARGE(B7:B29,1)+1 -> 23 | C30: Bœuf rognon | D30: 1000 | E30: 10 | F30: 10000 | G30: 10 | J30: O | K30: 0 | M30: 0 | N30: 0 | P30: =LARGE(P7:P29,1)+1 -> 135 | Q30: Sucre semoule 1 cuillère café | R30: 5 | S30: 10 | T30: 50 | U30: 0.05 | X30: Cake | Y30: 1 fine tranche | Z30: 30 g
B31: =LARGE(B7:B30,1)+1 -> 24 | C31: Bœuf train côtes milieu | D31: 8500 | E31: 10 | F31: 85000 | G31: 85 | I31: =LARGE(I7:I30,1)+1 -> 76 | J31: Oeuf le blanc | K31: 30 | L31: 10 | M31: 300 | N31: 0.3 | P31: =LARGE(P7:P30,1)+1 -> 136 | Q31: Sucre semoule 1 cuillère soupe | R31: 15 | S31: 10 | T31: 150 | U31: 0.15 | X31: Cake fourré aux fruits | Y31: 1 fine tranche | Z31: 35 g | AB31: Pain blanc/gris | AC31: 1 tranche carrée | AD31: 27 g | AF31: 100 g d'aliments crus. Légumes frais : artichauts 87, asperges 87, bettes 90, betteraves rouges à l'eau 91, au four 57, carottes à l'eau 100, à l'étouffée 64,
B32: =LARGE(B7:B31,1)+1 -> 25 | C32: Brochet | D32: 1250 | E32: 10 | F32: 12500 | G32: 12.5 | I32: =LARGE(I7:I31,1)+1 -> 77 | J32: Oeuf gros | K32: 60 | L32: 10 | M32: 600 | N32: 0.6 | P32: =LARGE(P7:P31,1)+1 -> 137 | Q32: Sucre semoule 1 tasse | R32: 200 | S32: 10 | T32: 2000 | U32: 2 | X32: Canard/faisan | Y32: 1 portion | Z32: 125 g | AB32: Pain blanc/gris | AC32: 1 tranche ronde | AD32: 29 g
C33: C | F33: 0 | G33: 0 | I33: =LARGE(I7:I32,1)+1 -> 78 | J33: Oeuf moyen | K33: 50 | L33: 10 | M33: 500 | N33: 0.5 | P33: =LARGE(P7:P32,1)+1 -> 138 | Q33: Sucre Verre de 20 cl | R33: 150 | S33: 10 | T33: 1500 | U33: 1.5 | X33: Carambole | Y33: 1 pièce | Z33: 155 g | AB33: Pain complet | AC33: 1 tranche carrée | AD33: 35 g | AF33: 100 g d'aliments crus. légumes frais : , céleris (côtes) 94, raves cuites à l'eau 91, sautées 54, champignons de couche frits 83,
B34: =LARGE(B7:B33,1)+1 -> 26 | C34: Cacao poudre 1 cuillère soupe | D34: 8 | E34: 10 | F34: 80 | G34: 0.08 | I34: =LARGE(I7:I33,1)+1 -> 79 | J34: Oeuf petit | K34: 40 | L34: 10 | M34: 400 | N34: 0.4 | Q34: T | R34: 0 | T34: 0 | U34: 0 | X34: Carotte | Y34: 1 moyenne | Z34: 100 g | AB34: Pain complet | AC34: 1 tranche ronde | AD34: 45 g
B35: =LARGE(B7:B34,1)+1 -> 27 | C35: Cacao Tasse thé de 15 cl | D35: 120 | E35: 10 | F35: 1200 | G35: 1.2 | I35: =LARGE(I7:I34,1)+1 -> 80 | J35: Œufs 1 douzaine | K35: 50 | L35: 12 | M35: 600 | N35: 0.6 | P35: =LARGE(P7:P34,1)+1 -> 139 | Q35: Tapioca Tasse thé de 15 cl | R35: 100 | S35: 10 | T35: 1000 | U35: 1 | X35: Céleri rave, cru | Y35: 1 portion | Z35: 85 g | AB35: Pain grillé blanc/gris | AC35: 1 | AD35: 21 g | AF35: 100 g d'aliments crus. légumes frais : chou vert, cuit à l'eau 92, à l'étouffée 64, de Bruxelles 86, -fleur 92,
B36: =LARGE(B7:B35,1)+1 -> 28 | C36: Canard vidé | D36: 1500 | E36: 10 | F36: 15000 | G36: 15 | I36: =LARGE(I7:I35,1)+1 -> 81 | J36: Œufs blanc d' | K36: 30 | L36: 10 | M36: 300 | N36: 0.3 | P36: =LARGE(P7:P35,1)+1 -> 140 | Q36: Thon boite 1/10 | R36: 80 | S36: 10 | T36: 800 | U36: 0.8 | X36: Céréales de petit déjeuner | Y36: 1 tasse à café | Z36: 40 g | AB36: Pain d'épices | AC36: 1 tranche | AD36: 23 g
B37: =LARGE(B7:B36,1)+1 -> 29 | C37: Carotte moyenne | D37: 120 | E37: 10 | F37: 1200 | G37: 1.2 | I37: =LARGE(I7:I36,1)+1 -> 82 | J37: Œufs entiers | K37: 50 | L37: 10 | M37: 500 | N37: 0.5 | P37: =LARGE(P7:P36,1)+1 -> 141 | Q37: Thon boite 1/3 saladière | R37: 260 | S37: 10 | T37: 2600 | U37: 2.6 | X37: Cerise (sans noyau) | Y37: 1 | Z37: 4 g | AB37: Pain de seigle | AC37: 1 tranche | AD37: 40 g | AF37: 100 g d'aliments crus. légumes frais : épinards cuits à l'eau ou au jus 83, haricots verts cuits à l'eau 104, à l'étouffée 90, navets, cuits à l'eau 95, à l'étouffée 92,
B38: =LARGE(B7:B37,1)+1 -> 30 | C38: Céléri 1 branche | D38: 35 | E38: 10 | F38: 350 | G38: 0.35 | I38: =LARGE(I7:I37,1)+1 -> 83 | J38: Œufs jaune | K38: 20 | L38: 10 | M38: 200 | N38: 0.2 | P38: =LARGE(P7:P37,1)+1 -> 142 | Q38: Thon boite 1/5 | R38: 160 | S38: 10 | T38: 1600 | U38: 1.6 | X38: Cervelas | Y38: 1 | Z38: 150 g | AB38: Pain de viande | AC38: 1 fine tranche | AD38: 30 g
B39: =LARGE(B7:B38,1)+1 -> 31 | C39: Céléri rave | D39: 1000 | E39: 10 | F39: 10000 | G39: 10 | I39: =LARGE(I7:I38,1)+1 -> 84 | J39: Oignon moyen | K39: 70 | L39: 10 | M39: 700 | N39: 0.7 | P39: =LARGE(P7:P38,1)+1 -> 143 | Q39: Thon boite 1/6 basse | R39: 430 | S39: 10 | T39: 4300 | U39: 4.3 | X39: Champignon, cuit | Y39: 1 cuillère | Z39: 30 g | AB39: Pain français (baguette) | AC39: 1 moyen | AD39: 260 g | AF39: 100 g d'aliments crus. légumes frais : poireaux 81, p. de terre en robe des champs 98, à l'anglaise 95, au four 80, en purée 119, en ragoût 154, frites 44 1,
B40: =LARGE(B7:B39,1)+1 -> 32 | C40: Cerises | D40: 65 | E40: 10 | F40: 650 | G40: 0.65 | I40: =LARGE(I7:I39,1)+1 -> 85 | J40: Olives | K40: 4 | L40: 10 | M40: 40 | N40: 0.04 | P40: =LARGE(P7:P39,1)+1 -> 144 | Q40: Thon boite 1/8 | R40: 52 | S40: 10 | T40: 520 | U40: 0.52 | X40: Chicon | Y40: 1 | Z40: 100 g | AB40: Pamplemousse | AC40: 1 moyen | AD40: 200 g
B41: =LARGE(B7:B40,1)+1 -> 33 | C41: Choux fleur | D41: 1500 | E41: 10 | F41: 15000 | G41: 15 | I41: =LARGE(I7:I40,1)+1 -> 86 | J41: Orange | K41: 240 | L41: 10 | M41: 2400 | N41: 2.4 | P41: =LARGE(P7:P40,1)+1 -> 145 | Q41: Thon boite 4/4 saladière | R41: 118 | S41: 10 | T41: 1180 | U41: 1.18 | X41: Chips | Y41: 1 paquet | Z41: 30 g | AB41: Papaye | AC41: 1 moyenne | AD41: 125 g | AF41: 100 g d'aliments crus. légumes frais : , potiron 55, scarole 71, tomates frites 69. Légumes secs : fèves 310, haricots 270,
B42: =LARGE(B7:B41,1)+1 -> 34 | C42: Choux vert | D42: 2000 | E42: 10 | F42: 20000 | G42: 20 | I42: =LARGE(I7:I41,1)+1 -> 87 | J42: Orange moyenne | K42: 140 | L42: 10 | M42: 1400 | N42: 1.4 | P42: =LARGE(P7:P41,1)+1 -> 146 | Q42: Tomate grosse | R42: 110 | S42: 10 | T42: 1100 | U42: 1.1 | X42: Chocolat | Y42: 1 barre | Z42: 25 g | AB42: Parmesan | AC42: 1 cuillère | AD42: 10 g
B43: =LARGE(B7:B42,1)+1 -> 35 | C43: Citron moyen | D43: 80 | E43: 10 | F43: 800 | G43: 0.8 | J43: P | K43: 0 | M43: 0 | N43: 0 | P43: =LARGE(P7:P42,1)+1 -> 147 | Q43: Tomate moyenne | R43: 50 | S43: 10 | T43: 500 | U43: 0.5 | X43: Chou de Bruxelles, cuit | Y43: 1 cuillère | Z43: 40 g | AB43: Pastèque | AC43: 1 moyenne | AD43: 1125 g | AF43: 100 g d'aliments crus. légumes frais : ,, pois cassés 400.
B44: =LARGE(B7:B43,1)+1 -> 36 | C44: Clémentine | D44: 70 | E44: 10 | F44: 700 | G44: 0.7 | I44: =LARGE(I7:I43,1)+1 -> 88 | J44: Pamplemousse | K44: 400 | L44: 10 | M44: 4000 | N44: 4 | P44: =LARGE(P7:P43,1)+1 -> 148 | Q44: Tomate petite | R44: 50 | S44: 10 | T44: 500 | U44: 0.5 | X44: Chou-fleur/brocoli, cuit | Y44: 1 cuillère | Z44: 30 g | AB44: Pâte à tartiner (choco) | AC44: 1 cuillère | AD44: 33 g
B45: =LARGE(B7:B44,1)+1 -> 37 | C45: Colin | D45: 2000 | E45: 10 | F45: 20000 | G45: 20 | I45: =LARGE(I7:I44,1)+1 -> 89 | J45: Pêche | K45: 120 | L45: 10 | M45: 1200 | N45: 1.2 | P45: =LARGE(P7:P44,1)+1 -> 149 | Q45: Truite portion | R45: 250 | S45: 10 | T45: 2500 | U45: 2.5 | X45: Citron | Y45: 1 moyen | Z45: 70 g | AB45: Pâté de foie | AC45: 1 cuillère | AD45: 15 g | AF45: 100 g d'aliments crus. l Poissons : au court-bouillon 95, frits 81. Crevettes : 97.
B46: =LARGE(B7:B45,1)+1 -> 38 | C46: Concombre | D46: 200 | E46: 10 | F46: 2000 | G46: 2 | I46: =LARGE(I7:I45,1)+1 -> 90 | J46: Pied veau | K46: 1 | L46: 10 | M46: 10 | N46: 0.01 | P46: =LARGE(P7:P45,1)+1 -> 150 | Q46: Turbot | R46: 3500 | S46: 10 | T46: 35000 | U46: 35 | X46: Clémentine | Y46: 1 | Z46: 35 g | AB46: Pâtes, cuites | AC46: 1 tasse à café | AD46: 210 g
B47: =LARGE(B7:B46,1)+1 -> 39 | C47: Coquillette Verre de 20 cl | D47: 120 | E47: 10 | F47: 1200 | G47: 1.2 | I47: =LARGE(I7:I46,1)+1 -> 91 | J47: Poireau beau | K47: 200 | L47: 10 | M47: 2000 | N47: 2 | Q47: V | R47: 0 | T47: 0 | U47: 0 | X47: Compote de pommes | Y47: 1 cuillère | Z47: 40 g | AB47: Pâtes, sèches | AC47: 1 tasse à café | AD47: 70 g | AF47: 100 g d'aliments crus. Viandes : bœuf : bifteck grillé 88, au gril 83, au plat 88, rôti (1/2 h) 77, bouilli 83.
B48: =LARGE(B7:B47,1)+1 -> 40 | C48: Courgette | D48: 350 | E48: 10 | F48: 3500 | G48: 3.5 | I48: =LARGE(I7:I47,1)+1 -> 92 | J48: Poireau blanc de | K48: 40 | L48: 10 | M48: 400 | N48: 0.4 | P48: =LARGE(P7:P47,1)+1 -> 151 | Q48: Veau carré couvert (5+3) | R48: 2200 | S48: 10 | T48: 22000 | U48: 22 | X48: Concombre, cru | Y48: 1 portion | Z48: 85 g | AB48: Pêche (sans noyau) | AC48: 1 | AD48: 125 g
B49: =LARGE(B7:B48,1)+1 -> 41 | C49: Cresson botte | D49: 200 | E49: 10 | F49: 2000 | G49: 2 | I49: =LARGE(I7:I48,1)+1 -> 93 | J49: Poireau moyen | K49: 150 | L49: 10 | M49: 1500 | N49: 1.5 | P49: =LARGE(P7:P48,1)+1 -> 152 | Q49: Veau carré découvert (5) | R49: 2000 | S49: 10 | T49: 20000 | U49: 20 | X49: Confiture | Y49: 1 cuillère | Z49: 30 g | AB49: Pickles | AC49: 1 cuillère | AD49: 15 g | AF49: 100 g d'aliments crus. Viandes : Veau : à la poêle 93, rôti (3/4 d'h) 74. Mouton : rôti 73, sauté 69.
B50: =LARGE(B7:B49,1)+1 -> 42 | C50: Cuillère café liquide | D50: 5 | E50: 10 | F50: 50 | G50: 0.05 | I50: =LARGE(I7:I49,1)+1 -> 94 | J50: Poivron | K50: 150 | L50: 10 | M50: 1500 | N50: 1.5 | P50: =LARGE(P7:P49,1)+1 -> 153 | Q50: Veau cervelle | R50: 300 | S50: 10 | T50: 3000 | U50: 3 | X50: Corned-beef | Y50: 1 fine tranche | Z50: 20 g | AB50: Pistolet | AC50: 1 | AD50: 45 g
B51: =LARGE(B7:B50,1)+1 -> 43 | C51: Cuillère soupe liquide | D51: 10 | E51: 10 | F51: 100 | G51: 0.1 | I51: =LARGE(I7:I50,1)+1 -> 95 | J51: Pomelos 1/2 | K51: 200 | L51: 10 | M51: 2000 | N51: 2 | P51: =LARGE(P7:P50,1)+1 -> 154 | Q51: Veau cœur | R51: 900 | S51: 10 | T51: 9000 | U51: 9 | X51: Corn Flakes | Y51: 1 tasse à café | Z51: 30 g | AB51: Plie | AC51: 1 pièce | AD51: 135 g | AF51: 100 g d'aliments crus. Viandes : Porc : côtelette 83, rôti 64. Cheval : bifteck à la poêle 93. Foie : 91. Boudin : 94. Saucisse fraîche : 92.
C52: D | D52: 0 | F52: 0 | G52: 0 | I52: =LARGE(I7:I51,1)+1 -> 96 | J52: Pomme | K52: 140 | L52: 10 | M52: 1400 | N52: 1.4 | P52: =LARGE(P7:P51,1)+1 -> 155 | Q52: Veau Foie | R52: 3500 | S52: 10 | T52: 35000 | U52: 35 | X52: Couque à la crème | Y52: 1 | Z52: 80 g | AB52: Poire | AC52: 1 moyenne | AD52: 160 g
B53: =LARGE(B7:B52,1)+1 -> 44 | C53: Daurade | D53: 600 | E53: 10 | F53: 6000 | G53: 6 | I53: =LARGE(I7:I52,1)+1 -> 97 | J53: Pomme de terre moyenne | K53: 100 | L53: 10 | M53: 1000 | N53: 1 | P53: =LARGE(P7:P52,1)+1 -> 156 | Q53: Veau langue | R53: 1200 | S53: 10 | T53: 12000 | U53: 12 | X53: Couque au beurre | Y53: 1 | Z53: 75 g | AB53: Poireau, cuit | AC53: 1 cuillère | AD53: 45 g | AG53: Verres
C54: E | D54: 0 | F54: 0 | G54: 0 | I54: =LARGE(I7:I53,1)+1 -> 98 | J54: Pomme fruit grosse | K54: 150 | L54: 10 | M54: 1500 | N54: 1.5 | P54: =LARGE(P7:P53,1)+1 -> 157 | Q54: Veau noix | R54: 3100 | S54: 10 | T54: 31000 | U54: 31 | X54: Couque suisse | Y54: 1 longue / ronde | Z54: 75 g / 90 g | AB54: Poivron vert/jaune/rouge | AC54: 1 pièce | AD54: 185 g | AG54: Petit verre à eau/limonade, rempli normalement 150
B55: =LARGE(B7:B54,1)+1 -> 45 | C55: Eau grand verre à eau | D55: 200 | E55: 10 | F55: 2000 | G55: 2 | I55: =LARGE(I7:I54,1)+1 -> 99 | J55: Pomme fruit moyenne | K55: 100 | L55: 10 | M55: 1000 | N55: 1 | P55: =LARGE(P7:P54,1)+1 -> 158 | Q55: Veau noix patissière | R55: 2650 | S55: 10 | T55: 26500 | U55: 26.5 | X55: Courgette, cuite | Y55: 1 cuillère | Z55: 35 g | AB55: Pomme | AC55: 1 moyenne | AD55: 140 g
B56: =LARGE(B7:B55,1)+1 -> 46 | C56: Echalote belle | D56: 25 | E56: 10 | F56: 250 | G56: 0.25 | I56: =LARGE(I7:I55,1)+1 -> 100 | J56: Pomme terre grosse | K56: 200 | L56: 10 | M56: 2000 | N56: 2 | P56: =LARGE(P7:P55,1)+1 -> 159 | Q56: Veau ris | R56: 750 | S56: 10 | T56: 7500 | U56: 7.5 | X56: Cramique | Y56: 1 tranche | Z56: 40 g | AB56: Pomme de terre, cuite (ovale) | AC56: 1 | AD56: 50 g | AG56: Grand verre à eau/limonade, rempli normalement 250
B57: =LARGE(B7:B56,1)+1 -> 47 | C57: Echalote moyenne | D57: 18 | E57: 10 | F57: 180 | G57: 0.18 | I57: =LARGE(I7:I56,1)+1 -> 101 | J57: Pomme terre moyenne | K57: 120 | L57: 10 | M57: 1200 | N57: 1.2 | P57: =LARGE(P7:P56,1)+1 -> 160 | Q57: Veau rognon | R57: 350 | S57: 10 | T57: 3500 | U57: 3.5 | X57: Crème | Y57: 1 cuillère | Z57: 24 g | AB57: Pomme de terre, rôtie | AC57: 1 cuillère | AD57: 30 g
B58: =LARGE(B7:B57,1)+1 -> 48 | C58: Echalote petite | D58: 10 | E58: 10 | F58: 100 | G58: 0.1 | I58: =LARGE(I7:I57,1)+1 -> 102 | J58: Pomme terre petite | K58: 80 | L58: 10 | M58: 800 | N58: 0.8 | P58: =LARGE(P7:P57,1)+1 -> 161 | Q58: Veau sous noix | R58: 6200 | S58: 10 | T58: 62000 | U58: 62 | X58: Crème à fouetter | Y58: 1 cuillère | Z58: 12 g | AB58: Porto | AC58: 1 petit verre | AD58: 75 ml | AG58: Verre à vin: blanc/rouge, rempli normalement 125
B59: =LARGE(B7:B58,1)+1 -> 49 | C59: Ecrevisse | D59: 35 | E59: 10 | F59: 350 | G59: 0.35 | I59: =LARGE(I7:I58,1)+1 -> 103 | J59: Porc cervelle | K59: 225 | L59: 10 | M59: 2250 | N59: 2.25 | X59: Crème glacée | Y59: 1 boule | Z59: 50 g | AB59: Poulet, poitrine (sans peau) | AC59: 1 filet | AD59: 160 g
C60: F | D60: 0 | F60: 0 | G60: 0 | I60: =LARGE(I7:I59,1)+1 -> 104 | J60: Porc cœur | K60: 225 | L60: 10 | M60: 2250 | N60: 2.25 | X60: Crêpe | Y60: 1 pièce | Z60: 60 g | AB60: Poulet, cuisse(sans peau) | AC60: 1 cuisse | AD60: 165 g | AG60: Verre à mousseux, rempli normalement 100
B61: =LARGE(B7:B60,1)+1 -> 50 | C61: Farine 1 cuillère café | D61: 3 | E61: 10 | F61: 30 | G61: 0.03 | I61: =LARGE(I7:I60,1)+1 -> 105 | J61: Porc foie | K61: 750 | L61: 10 | M61: 7500 | N61: 7.5 | X61: Crevettes | Y61: 1 cuillère | Z61: 18 g | AB61: Praline | AC61: 1 | AD61: 15 g
B62: =LARGE(B7:B61,1)+1 -> 51 | C62: Farine 1 cuillère soupe | D62: 8 | E62: 10 | F62: 80 | G62: 0.08 | I62: =LARGE(I7:I61,1)+1 -> 106 | J62: Porc jambon | K62: 8.6 | L62: 10 | M62: 86 | N62: 0.086 | X62: Croissant | Y62: 1 moyen | Z62: 50 g | AB62: Prune, sans noyau | AC62: 1 moyenne | AD62: 55 g | AG62: Verre à bière, rempli normalement 250 et 330
B63: =LARGE(B7:B62,1)+1 -> 52 | C63: Farine 1 tasse | D63: 100 | E63: 10 | F63: 1000 | G63: 1 | I63: =LARGE(I7:I62,1)+1 -> 107 | J63: Porc longe | K63: 11.5 | L63: 10 | M63: 115 | N63: 0.115 | X63: Croque-monsieur | Y63: 1 | Z63: 135 g | AB63: Prune, sèche | AC63: 1 | AD63: 6 g
B64: =LARGE(B7:B63,1)+1 -> 53 | C64: Farine Tasse thé de 15 cl | D64: 100 | E64: 10 | F64: 1000 | G64: 1 | I64: =LARGE(I7:I63,1)+1 -> 108 | J64: Porc poitrine | K64: 3.75 | L64: 10 | M64: 37.5 | N64: 0.0375 | X64: Croquette de pomme de terre (c) | Y64: 1 moyenne | Z64: 27 g | AB64: Pudding | AC64: 1 portion | AD64: 125 g/200 g | AG64: Lors de l’établissement du poids des denrées alimentaires liquides (boissons alcoolisées,
B65: =LARGE(B7:B64,1)+1 -> 54 | C65: Farine Verre de 20 cl | D65: 135 | E65: 10 | F65: 1350 | G65: 1.35 | I65: =LARGE(I7:I64,1)+1 -> 109 | J65: Porc rognon | K65: 170 | L65: 10 | M65: 1700 | N65: 1.7 | AB65: Purée de pommes de terre | AC65: 1 cuillère/portion | AD65: 50 g/160 g
B66: =LARGE(B7:B65,1)+1 -> 55 | C66: Fraise | D66: 12 | E66: 10 | F66: 120 | G66: 0.12 | I66: =LARGE(I7:I65,1)+1 -> 110 | J66: Poulet 4/4 | K66: 1000 | L66: 10 | M66: 10000 | N66: 10 | AG66: lait, lait chocolaté et lait de soja, milkshake et yaourt) les "ml" ont été assimilés aux "g"
I67: =LARGE(I7:I66,1)+1 -> 111 | J67: Poulet pac | K67: 1500 | L67: 10 | M67: 15000 | N67: 15 | X67: Aliment | Y67: Mesure de capacité | Z67: Poids | AB67: Aliment | AC67: Mesure de capacité | AD67: Poids | AG67: (source 7.104).
I68: =LARGE(I7:I67,1)+1 -> 112 | J68: Pruneau | K68: 15 | L68: 10 | M68: 150 | N68: 0.15
X69: Datte sèche (sans noyau) | Y69: 1 | Z69: 9 g | AB69: Radis | AC69: 1 pièce | AD69: 6 g | AG69: Pour la crème glacée et la mousse, le facteur de conversion est mentionné dans la colonne
AB70: Raisin | AC70: 1 | AD70: 7 g | AG70: précisions.
X71: Éclair au chocolat | Y71: 1 pièce | Z71: 115 g | AB71: Raisin, sec | AC71: 1 cuillère | AD71: 12 g
X72: Edam jeune | Y72: 1 fine tranche | Z72: 25 g | AB72: Ravioli | AC72: 1 portion | AD72: 400 g
AB73: Riz au lait, vanille | AC73: 1 portion | AD73: 100 g/200 g | AF73: Nota : (1) En cuisant, les pommes frites absorbent 8 à 10 % de matières grasses.
X74: Farine | Y74: 1 cuillère | Z74: 12 g | AB74: Riz, cuit | AC74: 1 portion | AD74: 150 g | AF74: Besoins journaliers (limites moyennes) | AG74: En grammes | AJ74: En milligrammes
X75: Fécule de pomme de terre | Y75: 1 cuillère | Z75: 12 g | AB75: Riz, non cuit | AC75: 1 sachet | AD75: 62,5 g | AG75: Protides | AH75: Lipides | AI75: Glucides | AJ75: Calcium 7 | AK75: Phosphore | AL75: Fer | AM75: Vit. C
X76: Fenouil | Y76: 1 | Z76: 200 g | AF76: Jeunes
X77: Fève de soja, cuite | Y77: 1 tasse à café | Z77: 140 g | AB77: Salami | AC77: 1 fine tranche | AD77: 9 g | AF77: 2 à 4 ans | AG77: 30/35 | AH77: 32 | AI77: 200/250 | AJ77: 700/750 | AK77: 650/700 | AL77: 40/94 | AM77: 40/60
X78: Figue, sèche | Y78: 1 pièce | Z78: 20 g | AB78: Sandwich sucré | AC78: 1 | AD78: 40 g | AF78: 4 à 6 ans | AG78: 35/40 | AH78: 33 | AI78: 200/250 | AJ78: 600/800 | AK78: 600/800 | AL78: 40/94 | AM78: 40/60
X79: Filet d'Anvers | Y79: 1 tranche | Z79: 15 g | AB79: Sardine | AC79: 1 pièce | AD79: 33 g | AF79: 6 à 10 ans | AG79: 45/55 | AH79: 37 | AI79: 300/340 | AJ79: 850/950 | AK79: 850/950 | AL79: 40/94 | AM79: 40/60
X80: Flétan, fumé | Y80: 1 fine tranche | Z80: 30 g | AB80: Saumon | AC80: 1 tranche | AD80: 180 g | AF80: 10 à 12 ans (filles 9 à 11) | AG80: 60/65 | AH80: 50 | AI80: 350/400 1 | AJ80: 1 000/1 200 | AK80: 1 100/1 300 | AL80: 20/30 | AM80: 60/100
X81: Flocons d'avoine | Y81: 1 tasse à café | Z81: 45 g | AB81: Saumon, fumé | AC81: 1 fine tranche | AD81: 30 g | AF81: 12 à 15 ans (filles 11 à 13) | AG81: 5/9 2 | AH81: 65 | AI81: 440/550 3 | AJ81: 1 200/1 400 | AK81: 1 300/1 500 | AL81: 20/30 | AM81: 60/100
X82: Fraise | Y82: 1 moyenne | Z82: 15 g | AB82: Sel | AC82: 1 cuillère | AD82: 15 g | AF82: 15 à 20 ans (filles 13 à 18) | AG82: 75/100 4 | AH82: 75 | AI82: 550/600 5 | AJ82: 1 400/1 600 | AK82: 1 500/1 700 | AL82: 20/30 | AM82: 60/100
X83: Frangipane | Y83: 1 part | Z83: 100 g | AB83: Soupe | AC83: 1 tasse/1 assiette | AD83: 300 ml/250 ml | AF83: Hommes
X84: Frites | Y84: 1 portion | Z84: 250 g | AB84: Spaghetti, préparé | AC84: 1 assiette | AD84: 300 g | AF84: Vie sédentaire | AG84: 75/85 4 | AH84: 60 | AI84: 400/500 | AJ84: 800/900 | AK84: 1 200/1 400 | AL84: 18/20 | AM84: 70/80
X85: Fromage frais | Y85: 1 cuillère | Z85: 25 g | AB85: Spéculoos | AC85: 1 pièce | AD85: 7 g | AF85: Travail de force
X86: Fromage fondu | Y86: 1 portion/cuillère | Z86: 20 g/15 g | AB86: Sucre | AC86: 1 cuillère/morceau | AD86: 15 g/6 g | AF86: 4e et 3e cat. | AG86: 85/110 | AH86: 75 | AI86: 550/700 | AJ86: 1 000/1 200 | AK86: 1 500/1 800 | AL86: 23/26 | AM86: 90/110
X87: Fruit de la passion | Y87: 1 moyen | Z87: 15 g | AB87: Sucre impalpable | AC87: 1 cuillère | AD87: 6 g | AF87: 2e et 1re cat. | AG87: 100/110 | AH87: 95 | AI87: 850/1 000 | AJ87: 1 400/1 600 | AK87: 2 000/2 400 | AL87: 30/45 | AM87: 130/150
AF88: Femmes
X89: Galette de riz | Y89: 1 pièce | Z89: 7 g | AB89: Tarte à la confiture | AC89: 1 part | AD89: 80 g | AF89: Vie sédentaire | AG89: 65/75 4 | AH89: 50 | AI89: 350/400 | AJ89: 800/900 | AK89: 1 000/1 200 | AL89: 15/20 | AM89: 60/70
X90: Gaufre au chocolat | Y90: 1 moyenne | Z90: 60 g | AB90: Tarte au riz | AC90: 1 part | AD90: 140 g | AF90: Enceintes (5e-9e mois) 6 | AG90: 90/110 | AH90: 80 | AI90: 500/550 | AJ90: 1 500/2 000 | AK90: 1 500/2 000 | AL90: 20/25 | AM90: 100/150
X91: Gaufre de Liège | Y91: 1 moyenne | Z91: 55 g | AB91: Tarte aux fruits | AC91: 1 part | AD91: 165 g | AF91: Allaitant 6 | AG91: 100/110 | AH91: 80 | AI91: 500/550 | AJ91: 1 500/2 000 | AK91: 1 500/2 000 | AL91: 20/25 | AM91: 100/150
X92: Gouda | Y92: 1 fine tranche | Z92: 20 g | AB92: Tarte aux mattons | AC92: 1 morceau | AD92: 120 g | AF92: Vieillards 6 | AG92: 65 | AH92: 45 | AI92: 300/400 | AJ92: 900/1 000 | AK92: 900/1 000 | AL92: 14/16 | AM92: 50/60
X93: Graisse de cuisson | Y93: 1 cuillère | Z93: 18 g | AB93: Toast | AC93: 1 pièce | AD93: 3 g
X94: Gruyère | Y94: 1 fine tranche | Z94: 25 g | AB94: Tomate | AC94: 1 moyenne | AD94: 150 g | AF94: Nota : Pour les filles : (1) 330/350, (2) 80/85, (3) 400/500, (4) 85-90, (5) 500/550. (6) Vie sédentaire ou légère activité. (7) Contenu surtout dans le fromage et le lait.
X95: Gruyère, râpé | Y95: 1 cuillère | Z95: 15 g | AB95: Truite | AC95: 1 pièce | AD95: 120 g
X97: Hamburger + sandwich | Y97: 1 moyenne | Z97: 130 g | AB97: Viande de porc, côtelette | AC97: 1 avec/sans côte | AD97: 175g /160 g
X98: Haricot blanc, cuit /sec | Y98: 1 cuillère | Z98: 35 g/105 g | AB98: Viande de porc, tranche | AC98: 1 | AD98: 150 g
X99: Hareng/maatje | Y99: 1 moyen | Z99: 80 g | AB99: Vin de table blanc/rouge | AC99: 1 verre | AD99: 125 ml
X100: Huile | Y100: 1 cuillère | Z100: 10 g | AB100: Yaourt | AC100: 1 cuillère | AD100: 25 g
X102: Jambon, cru, fumé | Y102: 1 fine tranche | Z102: 25 g | AB102: 4. MESURES DE CAPACITE*
X103: Jambon, cuit | Y103: 1 fine tranche | Z103: 45 g | AB103: Mesures de capacité calculées à partir d’eau | AD103: Poids en grammes
X104: Jambon de dinde | Y104: 1 fine tranche | Z104: 20 g
X105: Jambon de poulet | Y105: 1 fine tranche | Z105: 20 g | AB105: Cuillère à café | AD105: 4,5 g
X106: Jus de pomme/jus d'orange | Y106: 1 verre | Z106: 150 ml | AB106: Cuillère à soupe | AD106: 12 g
X107: Ketchup | Y107: 1 cuillère | Z107: 23 g | AB107: Cuillère à dessert | AD107: 8 g
X108: Kiwi | Y108: 1 moyen | Z108: 75 g | AB108: Cuillère à sauce | AD108: 25 g
AB109: Louche | AD109: 150 g
X110: Lait | Y110: 1 verre | Z110: 150 ml | AB110: Tasse à ras bord | AD110: 150 g
X111: Lait battu nature | Y111: 1 verre | Z111: 150 ml | AB111: Tasse liquide | AD111: 125 g
X112: Lait chocolaté | Y112: 1 petite bouteille | Z112: 200 ml | AB112: Grande tasse à ras bord | AD112: 250 g
X113: Lait concentré | Y113: 1 portion individuelle | Z113: 7,5 g | AB113: Grande tasse liquide | AD113: 225 g
X114: Langue de bœuf | Y114: 1 fine tranche | Z114: 15 g | AB114: Gobelet plastique à ras bord | AD114: 150 g
X115: Lapin/lièvre (cuisse) | Y115: 1 morceau | Z115: 250 g | AB115: Gobelet plastique liquide | AD115: 125 g
X116: Lard fumé | Y116: 1 petite tranche | Z116: 15 g | AB116: Bol de soupe à ras bord | AD116: 300 g
X117: Lasagne | Y117: 1 portion | Z117: 400 g | AB117: Bol de soupe liquide | AD117: 250 g
X118: Levure fraîche | Y118: 1 petit paquet | Z118: 42 g | AB118: Ravier à dessert | AD118: 150 g
X119: Limonade/cola/eau | Y119: 1 verre | Z119: 150 ml | AB119: Verre à limonade/eau | AD119: 150 g
X120: Litchi | Y120: 1 | Z120: 11 g | AB120: Verre à limonade grand | AD120: 250 g
AB121: Verre à vin rouge | AD121: 125 g
AB122: Verre à vin blanc | AD122: 125 g
AB123: Verre à champagne | AD123: 100 g
AB124: Verre à bière petit | AD124: 250 g
AB125: Verre à bière grand | AD125: 330 g
AB127: * Source:
AB128: Groupe de travail « Poids et mesures », Conseil Supérieur d’Hygiène.

Sheet Tutos Youtube
B2: TUTOS YOUTUBE
B5: Il arrive que vous ayez 2 tutos pour la même fonction, c'est volontaire parce que le plus important c'est de cliquer sur le nom de l'auteur sous la vidéo pour découvrir sa liste
O8: ="Page "&_xlfn.SHEET()&" sur "&_xlfn.SHEETS() -> Page 12 sur 16
C9: Je remercie chaleureusement les internautes passionnés qui élaborent et proposent des formules et fonctions imbriquées
C10: Ciquez sur les liens dans la colonne C
C11: 👇
B12: Excel principaux formats, actuels, ou obsolètes que nous allons pouvoir être amené à utiliser.
B13: Lien > | C13: https://www.excelformation.fr/formats-fichiers-excel.html
B15: Fichier XLS ou XLSX ?
B16: Lien > | C16: https://www.excel-exercice.com/fichier-xls-ou-xlsx/
B18: Lien > | C18: https://commentouvrir.com/extension/xlsm
C20: Les fichiers XLSM sont enregistrés au format Open XML introduit dans Microsoft Office 2007.
C21: Les fichiers XLSM sont des fichiers . XLSX , mais avec les macros activées.
C22: Une macro est une fonctionnalité utile qui fonctionne comme un script, ce qui permet aux utilisateurs d'automatiser des tâches répétitives.
C24: Comment créer un fichier XLSM ?
C25: Pour enregistrer sous forme de classeur prenant en charge les macros :
C26: 1. cliquer sur Non.
C27: 2. Dans la boîte de dialogue Enregistrer sous, dans la zone de liste Enregistrer en tant que type,
C28: sélectionnez Classeur Excel prenant en charge les macros (*. xlsm).
C29: 3. Cliquez sur Enregistrer.
C31: Comment convertir un fichier XLSM en xlsx ?
C32: Vous pouvez même utiliser Google Sheets pour convertir un fichier XLSM dans un format différent.
C33: Avec le fichier ouvert là-bas, allez à Déposez le > Télécharger pour le télécharger sous forme de fichier XLSX, ODS, PDF, HTML, CSV ou TSV.
B35: Modifier une macro
B36: Lien > | C36: https://support.microsoft.com/fr-fr/office/modifier-une-macro-ed9e8c3d-58fd-47a1-83eb-bdee680376bb
B38: Enregistrer une macro
B39: Lien > | C39: https://support.microsoft.com/fr-fr/office/enregistrer-une-macro-24a026ef-3145-4bf8-a5f2-2fc7889ff74a
B41: MACRO: SÉLECTIONNER TOUTE LA LIGNE ET LA COLONNE ACTIVE DANS UN TABLEAU EN VBA - DOCTEUR EXCEL
B42: Lien > | C42: https://www.youtube.com/watch?v=um737ZwwwoU
B44: Afficher les outils pour les macros - Excel
B45: Lien > | C45: https://www.pcastuces.com/pratique/astuces/5664.htm
C47: Vous avez besoin de travailler avec des macros dans Excel ?
C48: Affichez l'onglet Développeur dans le ruban afin d'accéder rapidement aux outils pour gérer vos macros et votre code Visual Basic.
C49: 1. Cliquez avec le bouton droit de la souris sur le ruban et cliquez sur Personnaliser le ruban.
C51: Comment afficher code macro Excel ?
C52: Cliquez avec le bouton droit de la souris sur le ruban et cliquez sur Personnaliser le ruban.
C53: Cochez la case Développeur dans la liste Onglets principaux. Validez par OK.
C54: L'onglet Développeur est ajouté au ruban et vous permet d'accéder rapidement aux outils pour gérer vos macros et votre code Visual Basic.
C56: Comment compléter une macro Excel ?
C57: Sous l'onglet Développeur, dans le groupe Code, cliquez sur Macros.
C58: Dans la zone Nom de la macro, cliquez sur la macro à modifier. Cliquez sur Modifier.
B62: Lien > | C62: Https://cellulexcel.blogspot.com/p/excel-trucs-astuces.html
C64: COMMENT TAPER UNE FRACTION sans qu'Excel l'interpètre comme une date ----------------
C65: Taper un zéro, un espace et la fraction => 0 1/2
C67: COMMENT TAPER UNE ANNOTATION DANS UNE FORMULE ----------------
C68: Exemple en cellule C3
C69: * Taper la formule =A1+A2
C70: * Pour mémoriser une annotation ajouter +N("Votre annotation"). La fonction N transforme en zéro tout le texte placé en annotation et celle-ci reste visible
C71: * Formule finalisée => =A1+A2+N("Somme de la cellule A1 et A2")
C73: REPÉRER LES DOUBLONS DANS UNE COLONNE ----------------
C74: Exemple pour la colonne A
C75: * Sélectionnez la colonne A dans son intégralité.
C76: * Dans l'onglet Accueil sélectionnez Mise en forme conditionnelle
C77: * Cliquez sur Nouvelle Règle
C78: * Cliquez sur Utiliser une formule pour déterminer pour quelles cellules le format sera appliqué.
C79: * Insérez la formule suivante =NB.SI(A:A;A1)>1
C80: * Ensuite cliquez sur le bouton Format pour définir la mise en forme (Ex. Couleur de fond cliquez sur Remplissage)
C82: AJOUTER DE POINTS FIN DE MOT OU DE PHRASE POUR PLUS DE LISIBILITE ----------------
C83: Exemple : Total général .................................. 150,00 €
B86: Analyser vos formules avec F9
B87: Lien > | C87: https://www.excel-exercice.com/analyser-vos-formules-avec-f9/
B89: Lien > | C89: Trouver les liens externes d’un classeur
B91: Les formules logiques ET(), OU() et OUX() d’Excel pour combiner des tests
B92: Lien > | C92: https://www.youtube.com/watch?v=EbpC3cs2aTA
B94: Comment utiliser la formule MOD() pour calculer le reste d'une division euclidienne sur Excel
B95: Lien > | C95: https://www.youtube.com/watch?v=UnkKrv53fiA
B97: Comment arrondir un nombre sur Excel (mise en forme ou formule : la bonne méthode)
B98: Lien > | C98: https://www.youtube.com/watch?v=ycuXhxLIeY8
B100: Les formules logiques ET(), OU() et OUX() d’Excel pour combiner des tests
B101: Lien > | C101: https://www.youtube.com/watch?v=EbpC3cs2aTA
B103: Lien > | C103: Excel SI-ALORS: comment fonctionne la formule SI ?
B105: Lien > | C105: Faire des SI imbriqués dans Excel avec si.condition
B107: Lien > | C107: Fonction INDIRECT - Exemples d'application
B109: COMMENT CONVERTIR DES UNITÉS DE MESURE SUR EXCEL ? AVEC LA FONCTION CONVERT()
B110: Lien > | C110: https://www.youtube.com/watch?v=t9BfPsVC5hk
B114: Comment devenir plus productif grâce aux raccourcis clavier Excel
B115: Lien > | C115: https://www.youtube.com/watch?v=xyjZP4GMmSc
B117: Tracer facilement les bordures
B118: Lien > | C118: https://www.excel-exercice.com/bordures/
B120: Formation Excel 2016 Faire un tableau
B121: Lien > | C121: FENÊTRE EXCEL
B123: Lien > | C123: Déplacer ou copier des feuilles de calcul ou des données de feuille de calcul
B125: Lien > | C125: copier une feuille de calcul du classeur actuel
B127: Comment synthétiser les informations sur Excel : le mode plan
B128: Lien > | C128: https://www.youtube.com/watch?v=zFR8-vdbebo
B130: LES 3 MÉTHODES POUR TRANSFORMER DES LIGNES EN COLONNES SUR EXCEL : AVANTAGES ET INCONVÉNIENTS
B131: Lien > | C131: https://www.youtube.com/watch?v=OZoAZHIP-kk&t=630s
B133: COMMENT COMPTER LE NOMBRE DE FEUILLES, DE LIGNES OU DE COLONNES EXCEL ?
B134: Lien > | C134: https://www.youtube.com/watch?v=ljG0dl6aZOk
B136: COMMENT CLASSER SIMPLEMENT DES DONNÉES AVEC LA FONCTION RANG (AVEC OU SANS EX ÆQUO) EXCEL ?
B137: Lien > | C137: https://www.youtube.com/watch?v=XB7PbjxQgiQ
B139: Comment créer un moteur de recherche… avec deux formules et sans VBA sur Excel
B140: Lien > | C140: https://www.youtube.com/watch?v=S_rTf5wWhr8
B142: Créer la table des matières d’un classeur
B143: Lien > | C143: https://www.excel-exercice.com/creer-la-table-des-matieres-dun-classeur/
B145: Comment afficher plusieurs feuilles d'un même classeur en même temps sur Excel
B146: Lien > | C146: https://www.youtube.com/watch?v=ign5pz_-R_I
B148: 6 ASTUCES POUR IMPRIMER DES TABLEAUX EXCEL QUI DECHIRENT
B149: Lien > | C149: https://www.youtube.com/watch?v=eML_TISUYpw&t=31s
B151: COMMENT TRADUIRE UN TEXTE DANS TOUTES LES LANGUES EN UTILISANT UNE FONCTION EXCEL
B152: Lien > | C152: https://www.youtube.com/watch?v=wXenlFqrWWY
B154: Categorie : Manipulation
B155: Lien > | C155: https://www.excel-exercice.com/manipulation/
B157: Categorie : Les Add-Ins
B158: Lien > | C158: https://www.excel-exercice.com/add-in/
B160: Categorie : Nouveautés
B161: Lien > | C161: https://www.excel-exercice.com/nouveaute/
B165: Comment créer un mini comparateur de prix (récupérer les prix automatiquement ) sur Excel
B166: Lien > | C166: https://www.youtube.com/watch?v=jjhrpq-f-74&t=102s
B168: COMMENT CRÉER UNE LISTE DE COURSE AUTOMATIQUE AVEC UN TABLEAU CROISÉ DYNAMIQUE SUR EXCEL
B169: Lien > | C169: https://www.youtube.com/watch?v=_uhXSrAkHXc
B170: Mes recettes de cuisine sur Excel
B171: Lien > | C171: https://www.youtube.com/watch?v=KK9rJpuHmZA
B173: gérer, consulter, modifier vos propres recettes de cuisine par l’intermédiaire d'Excel
B174: Lien > | C174: https://cellulexcel.blogspot.com/p/blog-page_22.html
B176: CRÉER SON CARNET DE RECETTES PERSONNALISÉ : PAPIER OU DIGITAL ?
B177: Lien > | C177: https://mccascabel.fr/carnet-de-recettes-personnalise/
B179: Excel - Comment générer des QR Codes dans Excel ?
B180: Lien > | C180: https://www.youtube.com/watch?v=_JzUgEGWuk0
B182: la SOMME d'une plage de cellules en fonction de leur couleur de fond.
B183: Lien > | C183: https://cellulexcel.blogspot.com/p/somme.html
B187: Mettre en couleur toute une ligne dés qu'une cellule de cette ligne est remplie (excel)
B188: Lien > | C188: https://www.youtube.com/watch?v=21oGa9Q92s4
B189: Excelpourlesbulles > | D189: https://www.youtube.com/channel/UCoTqCeSunCB3-puwIicURbw
B191: Colorier une ligne entière avec formule
B192: Lien > | C192: https://www.excel-exercice.com/colorier-une-ligne-entiere/
B194: Somme Si Couleur
B195: Lien > | C195: https://www.youtube.com/watch?v=7amIEwzFoF0
B197: Comment Compter Et Additionner Les Cellules En Fonction De La Couleur D'arrière-Plan Dans Excel?
B198: Lien > | C198: https://fr.extendoffice.com/documents/excel/1155-excel-count-sum-cells-by-color.html
B200: Tutoriel Excel : compter et additionner les cellules par couleur ?
B201: Lien > | C201: https://www.cours-gratuit.com/tutoriel-excel/tutoriel-excel-comment-compter-et-additionner-les-cellules-par-couleur
B203: ---------------- COLORIER UNE COLONNE SUR DEUX ----------------
B204: Procédez de la même manière que précédemment mais en sélectionnant les colonnes ou une plage de cellules.
B205: Insérez la formule suivante => =EST.PAIR(COLONNE())
B206: Vous pouvez même coloriser vos ligne et vos colonnes en appliquant les deux formules précédentes sur un ensemble de plage de cellules.
B208: Mise en forme conditionnelle simple
B209: Lien > | C209: https://www.youtube.com/watch?v=xFOMtm4wRtE
B211: Colorier une ligne entière avec formule
B212: Lien > | C212: https://www.excel-exercice.com/colorier-une-ligne-entiere/
B214: Excel | Mise En Forme Conditionnelle sur toute une ligne
B215: Lien > | C215: https://www.youtube.com/watch?v=PbUvODhmdxI
B217: Excel - Mise en forme conditionnelle selon le contenu d'une autre cellule
B218: Lien > | C218: https://www.youtube.com/watch?v=Cxs3l7_EI4I
B219: Lecompagnon > | D219: https://www.youtube.com/c/lecompagnoninfo/videos
B221: Colorer des lignes de façon conditionnelle dans un tableau Excel
B222: Lien > | C222: https://www.youtube.com/watch?v=ZEL3mVdUCcg
B223: Bureautique Efficace > | D223: https://www.youtube.com/channel/UCmkKGwRm5LYN6zpgTVvNpdA/videos
B225: COMMENT SURLIGNER LA LIGNE DE LA CELLULE SÉLECTIONNÉE SUR EXCEL - TECHNIQUE AVANCÉE
B226: Lien > | C226: https://www.youtube.com/watch?v=OQJzipM0rgU
B228: Colorisation & autorisation saisie sur cellule
B229: Lien > | C229: https://forum.excel-pratique.com/excel/colorisation-autorisation-saisie-sur-cellule-121141#p739320
B231: Comment surligner la ligne de la cellule sélectionnée
B232: Lien > | C232: https://www.youtube.com/watch?v=Xvb1pAnQrts
B233: Excel Formation > | D233: https://www.youtube.com/c/ExcelFormation/videos
B235: Dans un premier temps sélectionnez les lignes, ou une plage de cellules que vous souhaitez coloriser une ligne sur deux puis cliquez sur : | M235: https://www.excel-exercice.com/nouveaute/
B236: 1) Mise en forme conditionnelle
B237: 2) Gérer les règles
B238: 3) sur Nouvelle Règle
B239: 4) puis choisissez Utiliser une formule pour déterminer pour quelles cellules le format sera appliqué
B240: 5) Inséser la formule suivante dans l'environnement "Appliquer une mise en forme aux valeurs pour lesquellles cette formule est vraie :" | M240: https://www.youtube.com/channel/UCmkKGwRm5LYN6zpgTVvNpdA/videos
C243: Quelques sites Excel pour vous aider à créer vos documents
B245: Fonctions complémentaires XLP
B246: liens > | C246: https://www.excel-pratique.com/fr/fonctions-complementaires.php
B248: Excel questions / Réponses
B249: liens > | C249: http://excel.engalere.com/tags/
B251: liens > | C251: https://www.excel-exercice.com/ | K251: Frédéric LE GUEN -
B253: Lien > | C253: https://www.youtube.com/user/ExcelExercice/videos
B255: Lien > | C255: https://www.youtube.com/watch?v=e2kzRDcW5iI | K255: Formation informatique avec Cedric -
B257: Lien > | C257: https://www.youtube.com/c/K%C3%A9vinBrundu/videos | K257: Kévin Brundu -
B259: Lien > | C259: https://support.microsoft.com/fr-fr/excel | K259: Aide & apprentissage d'Excel -
B261: Lien > | C261: https://www.youtube.com/c/TutoDeRien/playlists | K261: Tuto De Rien -
B263: Lien > | C263: https://www.excel-exercice.com/somme-si-ens/ | K263: Fonction SOMME.SI.ENS
B265: Lien > | C265: https://www.youtube.com/channel/UCK4qfUuh9kpBByJFIMBPTtA/playlists | K265: prof couillon -
B267: liens > | C267: https://www.youtube.com/watch?v=YfGrccEQGKk
B269: Lien > | C269: https://www.youtube.com/watch?v=li4XNespLxg
B271: Lien > | C271: Forum Bureautique
B273: Lien > | C273: Alternatives à Microsoft Excel : 5 programmes gratuits et convaincants
B275: Lien > | C275: Les 20 meilleurs Tricks Mathématiques
B277: Lien > | C277: https://support.office.com/fr-fr/article/combiner-le-texte-de-deux-cellules-ou-plus-en-une-cellule-81ba0946-ce78-42ed-b3c3-21340eb164a6 | N277: .
B279: Lien > | C279: https://www.youtube.com/watch?v=yk_ypXvUaHo | M279: Excel - fonctions date/heure
B281: lien > | C281: http://www.mdf-xlpages.com/modules/publisher/item.php?itemid=91
B283: Transmettez votre savoir et votre savoir faire peu importe qui le récupère; pourvu qu'un plus grand nombre puisse en bénéficier.
B284: Joël LEBOUCHER …Octobre 2015
B285: un lien rompu ou devenu obsolète…..pas de panique…Google saura vous retrouver un document équivalent | P285: Fin

Sheet Formats-Formules-Fonctions
A1: =CELL("largeur",A1) -> 15 | B1: 15 | C1: 15 | D1: 15 | E1: 15 | F1: 15 | G1: 15 | H1: 15 | I1: 15 | J1: 15 | K1: 15 | L1: 15 | M1: 15 | N1: 15 | O1: 15 | P1: 15 | Q1: 15 | R1: 15 | S1: 15 | T1: 15 | U1: 15 | V1: 15 | W1: 15 | X1: 15 | Y1: 15 | Z1: 15 | AA1: 15
B3: Quelques format - formules et fonctions | P3: Mise à jour du 14 Décembre 2021
B4: pour vous aider dans la conception de vos documents | P4: annule ou remplace les versions précédentes
P5: ="Page "&_xlfn.SHEET()&" sur "&_xlfn.SHEETS() -> Page 13 sur 16
C6: des fonctions
E7: à copier | G7: Fonction | L7: à copier | N7: Fonction
D8: N° de colonne | E8: =COLUMN() -> 5 | G8: =_xlfn.FORMULATEXT(E8) -> =COLONNE() | K8: Adresse de cellule | L8: =ADDRESS(ROW(),COLUMN(),4) -> L8 | N8: =_xlfn.FORMULATEXT(L8) -> =ADRESSE(LIGNE();COLONNE();4)
E9: à copier | G9: Fonction | L9: à copier | N9: Fonction
D10: N° de ligne | E10: =ROW() -> 10 | G10: =_xlfn.FORMULATEXT(E10) -> =LIGNE() | K10: largeur colonne | L10: =CELL("largeur",L10) -> 15 | N10: =_xlfn.FORMULATEXT(L10) -> =CELLULE("largeur";L10)
E11: à copier | G11: Fonction
D12: Adresse colonne | E12: =LEFT(ADDRESS(1,COLUMN(),4),LEN(ADDRESS(1,COLUMN(),4))-1) -> E | G12: =_xlfn.FORMULATEXT(E12) -> =GAUCHE(ADRESSE(1;COLONNE();4);NBCAR(ADRESSE(1;COLONNE();4))-1)
L13: ="Page "&_xlfn.SHEET()&" sur "&_xlfn.SHEETS() -> Page 13 sur 16 | N13: Page &FEUILLE()&" sur "&FEUILLES()
F14: à copier
C15: Adresse classeur > | F15: =CELL("nomfichier") -> E:\0-UPRT\1-UPRT.FR-SITE-WEB\re-recettes-jean-marc-catteau\re-catteau-galettes\[GA-pate.sud.finistere.xlsm]Modes.d'emploi
F16: =_xlfn.FORMULATEXT(F15) -> =CELLULE("nomfichier")
F17: Fonction
B20: Pour récupérer des formules : 2 choix OU vous collez les 2 ou 3 lignes correspondantes dans votre feuille . OU vous cliquez dans la cellule de couleur , Copiez ...puis dans votre feuille : Collage spécial 1.2.3.Valeurs supprimez = Modifiez les Numéros de cellules dans la barre de formule PUIS CLIQUEZ A LA FIN DE LA FORMULE AVANT d'ajouter de nouveau = (ce qui modifie votre valeur en fonction) OU ajouter tout de suite = puis modifier les N° de cellules
C25: pour copier ou modifier une formule supprimez le signe = puis ajoutez le lorsque vous aurez terminé
C26: ce qui vous permettra de modifier en toute sécurité - sans ce signe = Excel considère que c'est du texte
C28: Adresses | D28: lien > | E28: http://www.mdf-xlpages.com/modules/publisher/item.php?itemid=91
Q31: Aide mémoire : sur une Équivalence litre / Kg
B32: Ligne | C32: Récupérer le nom du dossier (sans le chemin complet)
C33: =MID(LEFT(CELL("filename",A1),FIND("[",CELL("filename",A1))-2),SEARCH("µ",SUBSTITUTE(LEFT(CELL("filename",A1),FIND("[",CELL("filename",A1))-2),"\","µ",LEN(LEFT(CELL("filename",A1),FIND("[",CELL("filename",A1))-2))-LEN(SUBSTITUTE(LEFT(CELL("filename",A1),FIND("[",CELL("filename",A1))-2),"\",""))))+1,100) -> Téléchargements | Q33: sur la base eau : 1L = 1Kg | X33: Kg | Y33: hg | Z33: dag | AA33: gr
B34: =ROW() -> 34 | C34: =_xlfn.FORMULATEXT(C33) -> =STXT(GAUCHE(CELLULE("filename";A1);TROUVE("[";CELLULE("filename";A1))-2);CHERCHE("µ";SUBSTITUE(GAUCHE(CELLULE("filename";A1);TROUVE("[";CELLULE("filename";A1))-2);"\";"µ";NBCAR(GAUCHE(CELLULE("filename";A1);TROUVE("[";CELLULE("filename";A1))-2))-NBCAR(SUBSTITUE(GAUCHE(CELLULE("filename";A1);TROUVE("[";CELLULE("filename";A1))-2);"\";""))))+1;100) | O34: . | Q34: Litres (l.) | R34: Centilitres (cl.) | S34: Décilitres (dl.) | T34: Kilogrammes (kg.)
C35: Copiez la cellule jaune puis collage spécial Valeurs 1 2 3 dans votre cellule et conservez "A1" | U35: Kg | V35: cl | W35: ml | X35: L | Y35: dl | Z35: cl | AA35: ml
Q37: 1litre | R37: 100 cl | S37: 10 dl | T37: 1 kg | U37: 1 Kg | V37: 100 cl | W37: 1000 ml | X37: 1 | Y37: 5 | Z37: 0 | AA37: 0
B38: Ligne | C38: Pour avoir le nom de l'onglet
C39: =RIGHT(CELL("filename",A1),LEN(CELL("filename",A1))-SEARCH("]",CELL("filename",A1))) -> Formats-Formules-Fonctions | Q39: 1/2 litre | R39: 50 cl | S39: 5 dl | T39: 0,500 kg | U39: 0.1Kg | V39: 10 cl | W39: 100 ml | X39: 0 | Y39: 5 | Z39: 0 | AA39: 0
B40: =ROW() -> 40 | C40: =_xlfn.FORMULATEXT(C39) -> =DROITE(CELLULE("filename";A1);NBCAR(CELLULE("filename";A1))-CHERCHE("]";CELLULE("filename";A1)))
C41: Copiez la cellule jaune puis collage spécial Valeurs 1 2 3 dans votre cellule et conservez "A1" | Q41: 1/4 litre | R41: 25 cl | S41: 2,5 dl | T41: 0,250 kg | U41: 0.01Kg | V41: 1 cl | W41: 10ml | X41: 0 | Y41: 0 | Z41: 5 | AA41: 0
Q43: 1/8 litre | R43: 12, 5 c | S43: 1,25 dl | T43: 0,125 kg | U43: 0.001Kg | V43: 0.1 cl | W43: 1ml | X43: 0 | Y43: 0 | Z43: 0 | AA43: 5
B44: Ligne | C44: Pour avoir le nom du fichier
C45: =MID(CELL("filename",A1),SEARCH("[",CELL("filename",A1))+1,SEARCH("]",CELL("filename",A1))-SEARCH("[",CELL("filename",A1))-1) -> GA-modele.de.fiche.pour.galettes.xlsm | Q45: Lien > | R45: http://www.cuisinealafrancaise.com/fr/2-poids-et-mesures
B46: =ROW() -> 46 | C46: =_xlfn.FORMULATEXT(C45) -> {=STXT(CELLULE("filename";A1);CHERCHE("[";CELLULE("filename";A1))+1;CHERCHE("]";CELLULE("filename";A1))-CHERCHE("[";CELLULE("filename";A1))-1)} | O46: .
C47: Copiez la cellule jaune puis collage spécial Valeurs 1 2 3 dans votre cellule et conservez "A1" | R47: 1 gr = 0.002Kg > 2 zéros après la virgule du Kg
B50: Ligne | C50: Pour avoir le nom de l'onglet et du fichier
C51: =RIGHT(CELL("filename",A1),LEN(CELL("filename",A1))-SEARCH("[",CELL("filename",A1))+1) -> [GA-modele.de.fiche.pour.galettes.xlsm]Formats-Formules-Fonctions
B52: =ROW() -> 52 | C52: =_xlfn.FORMULATEXT(C51) -> =DROITE(CELLULE("filename";A1);NBCAR(CELLULE("filename";A1))-CHERCHE("[";CELLULE("filename";A1))+1)
C53: Copiez la cellule jaune puis collage spécial Valeurs 1 2 3 dans votre cellule et conservez "A1"
B56: Ligne | C56: Pour avoir le nom du répertoire:
C57: =LEFT(CELL("filename",A1),SEARCH("[",CELL("filename",A1))-1) -> E:\Joël Leboucher\Téléchargements\
B58: =ROW() -> 58 | C58: =_xlfn.FORMULATEXT(C57) -> {=GAUCHE(CELLULE("filename";A1);CHERCHE("[";CELLULE("filename";A1))-1)}
C59: Copiez la cellule jaune puis collage spécial Valeurs 1 2 3 dans votre cellule et conservez "A1"
B62: Ligne | C62: Pour avoir le nom du répertoire et du fichier:
C63: =LEFT(CELL("filename",A1),SEARCH("]",CELL("filename",A1))) -> E:\Joël Leboucher\Téléchargements\[GA-modele.de.fiche.pour.galettes.xlsm]
B64: =ROW() -> 64 | C64: =_xlfn.FORMULATEXT(C63) -> {=GAUCHE(CELLULE("filename";A1);CHERCHE("]";CELLULE("filename";A1)))}
C65: Copiez la cellule jaune puis collage spécial Valeurs 1 2 3 dans votre cellule et conservez "A1"
B68: Ligne | C68: Afficher les formules avec une fonction
B69: =ROW() -> 69 | C69: FORMULETEXTE(B2)
C70: Copiez la cellule jaune puis collage spécial Valeurs 1 2 3 dans votre cellule et modifiez le N°de cellule
B76: Ligne | C76: pour s'assurer que le fichier est bien l'original, utiliser cette formule qui récupère le nom complet du fichier.
B77: =ROW() -> 77 | C77: =CELL("nomfichier") -> E:\0-UPRT\1-UPRT.FR-SITE-WEB\re-recettes-jean-marc-catteau\re-catteau-galettes\[GA-pate.sud.finistere.xlsm]Modes.d'emploi | N77: .
C78: =_xlfn.FORMULATEXT(C77) -> =CELLULE("nomfichier")
C79: Copiez la cellule jaune puis collez la directement dans votre document
B82: Ligne | C82: pour marquer vos copies remplacez dans la formule les références en vert par les votres
B83: =ROW() -> 83 | C83: [ff-97-formats-formules-pourcentages.xlsx]sites";"";"ff-97-formats-formules-pourcentages COPIE"
C84: Copiez la cellule verte puis collez la directement dans votre document
B87: Ligne | C87: Si vous avez besoin de retirer les crochets vous pouvez utiliser la fonction SUBSTITUE():
C88: =SUBSTITUTE(SUBSTITUTE(RIGHT(CELL("filename",A1),LEN(CELL("filename",A1))-SEARCH("[",CELL("filename",A1))+1),"[",""),"]"," ") -> GA-modele.de.fiche.pour.galettes.xlsm Formats-Formules-Fonctions
B89: =ROW() -> 89 | C89: =_xlfn.FORMULATEXT(C88) -> =SUBSTITUE(SUBSTITUE(DROITE(CELLULE("filename";A1);NBCAR(CELLULE("filename";A1))-CHERCHE("[";CELLULE("filename";A1))+1);"[";"");"]";" ")
C90: Copiez la cellule jaune puis collage spécial Valeurs 1 2 3 dans votre cellule et conservez "A1"
B93: Ligne | C93: Si vous souhaitez retirer les crochets:
C94: =SUBSTITUTE(SUBSTITUTE(LEFT(CELL("filename",A1),SEARCH("]",CELL("filename",A1))),"[",""),"]","") -> E:\Joël Leboucher\Téléchargements\GA-modele.de.fiche.pour.galettes.xlsm
B95: =ROW() -> 95 | C95: =_xlfn.FORMULATEXT(C94) -> =SUBSTITUE(SUBSTITUE(GAUCHE(CELLULE("filename";A1);CHERCHE("]";CELLULE("filename";A1)));"[";"");"]";"")
C96: Copiez la cellule jaune puis collage spécial Valeurs 1 2 3 dans votre cellule et conservez "A1"
B99: Ligne | C99: pour marquer vos documents
C100: =IF(CELL("nomfichier",C55)="\\rcg006bur\usei_cartographie\[ff-29-formats-formules-pourcentages.xlsx]sites","","ff-29-formats-formules-pourcentages COPIE") -> ff-29-formats-formules-pourcentages COPIE
B101: =ROW() -> 101 | C101: =_xlfn.FORMULATEXT(C100) -> =SI(CELLULE("nomfichier";C55)="\\rcg006bur\usei_cartographie\[ff-29-formats-formules-pourcentages.xlsx]sites";"";"ff-29-formats-formules-pourcentages COPIE")
C102: Copiez la cellule jaune puis collez la dans votre cellule ne changez pas le N° de cellule
C105: Inverser la position du nom et du prénom
B106: Ligne | C106: il ne doit y avoir qu'un espace dans la chaine de caractères pour que cela fonctionne
B107: =ROW() -> 107 | C107: legendre paul | E107: =RIGHT(C107,LEN(C107)-SEARCH(" ",C107))&" "&LEFT(C107,SEARCH(" ",C107)) -> paul legendre
E108: =_xlfn.FORMULATEXT(E107) -> =DROITE(C107;NBCAR(C107)-CHERCHE(" ";C107))&" "&GAUCHE(C107;CHERCHE(" ";C107))
E109: Copiez les 4 cellules encadrées puis collage dans votre feuille. Changez Nom et prénon dans la cellule fond noir
C112: afficher le classement de toutes les cellules de la plage
B113: Ligne
B114: =ROW() -> 114 | C114: 5 | D114: =RANK(C114,C114:C118,0) -> 3 | E114: =_xlfn.FORMULATEXT(D114) -> =RANG(C114;C114:C118;0)
C115: 8 | D115: =RANK(C115,C114:C118,0) -> 1 | E115: remplacer 1 par 0 pour avoir un ordre croissant
C116: 4 | D116: =RANK(C116,C114:C118,0) -> 4
C117: 1 | D117: =RANK(C117,C114:C118,0) -> 5
C118: 7 | D118: =RANK(C118,C114:C118,0) -> 2
B119: Collez l'ensemble de ces cellules dans votre document et ajoutez des lignes. N'oubliez pas de figer par votre plage
C122: indiquer de façon visuelle le rang d'un nombre dans une série
C123: la fonction Rang permet de déterminer la position d'un nombre dans une liste d'arguments
C124: mais vous pouvez aussi y associer les fonctions REPT et CAR afin de donner un aspect visuel au résultat
C125: si par exemple la série de nombre en colonne C
B126: Ligne
B127: =ROW() -> 127 | C127: 5 | D127: =REPT(CHAR(7),RANK(C127,C127:C131,1)) ->  | E127: =_xlfn.FORMULATEXT(D127) -> =REPT(CAR(7);RANG(C127;C127:C131;1))
C128: 8 | D128: =REPT(CHAR(7),RANK(C128,C127:C131,1)) -> 
C129: 4 | D129: =REPT(CHAR(7),RANK(C129,C127:C131,1)) -> 
C130: 1 | D130: =REPT(CHAR(7),RANK(C130,C127:C131,1)) -> 
C131: 7 | D131: =REPT(CHAR(7),RANK(C131,C127:C131,1)) -> 
B132: Collez l'ensemble de ces cellules dans votre document et ajoutez des lignes. N'oubliez pas de figer par votre plage
C135: Dates - heures
B136: Lignes
B137: =ROW() -> 137 | C137: =TODAY() -> 2021-12-20 | G137: =_xlfn.FORMULATEXT(C137) -> =AUJOURDHUI()
C138: Format de cellule > Nombre > Date
B140: =ROW() -> 140 | C140: =NOW() -> 2021-12-20T19:39:32.240 | G140: =_xlfn.FORMULATEXT(C140) -> =MAINTENANT()
C141: Format de cellule > Nombre > Date
B143: =ROW() -> 143 | C143: =NOW() -> 2021-12-20T19:39:32.240 | G143: =_xlfn.FORMULATEXT(C143) -> =MAINTENANT()
D144: Format de cellule > | E144: jjjj mm mmm aaaa - hh"H"mm
B146: =ROW() -> 146 | C146: =NOW() -> 44550.81912 | G146: =_xlfn.FORMULATEXT(C146) -> =MAINTENANT()
C147: Format de cellule > Nombre > Heure
B149: =ROW() -> 149 | C149: =TODAY() -> 2021-12-20 | G149: =_xlfn.FORMULATEXT(C149) -> =AUJOURDHUI()
C150: Format de cellule > Nombre > Date
C154: N° de semaine - collez les cellules vertes dans votre tableau
B155: Lignes | C155: collez les cellules vertes dans votre tableau
B156: =ROW() -> 156 | C156: =INT((C149-(DATE(YEAR(C149-WEEKDAY(C149-1)+4),1,3)-WEEKDAY(DATE(YEAR(C149 -WEEKDAY(C149-1)+4),1,3)))+5)/7) -> 51
C157: =_xlfn.FORMULATEXT(C156) -> =ENT((C149-(DATE(ANNEE(C149-JOURSEM(C149-1)+4);1;3)-JOURSEM(DATE(ANNEE(C149 -JOURSEM(C149-1)+4);1;3)))+5)/7)
B159: =ROW() -> 159 | C159: =C156 -> 51
C160: =_xlfn.FORMULATEXT(C159) -> =C156 | D160: Format de cellule > Personnalisée > Semaine N °0
C164: afficher ler dernier vendredi du mois, pour une date saisie dans une autre cellule
B165: Lignes | C165: collez les cellules vertes dans votre tableau
B166: =ROW() -> 166 | C166: 2020-11-05
B167: =ROW() -> 167 | C167: =DATE(YEAR(C166),MONTH(C166)+1,1)-WEEKDAY(DATE(YEAR(C166),MONTH(C166)+1,2)) -> 2020-11-27
C168: =_xlfn.FORMULATEXT(C167) -> =DATE(ANNEE(C166);MOIS(C166)+1;1)-JOURSEM(DATE(ANNEE(C166);MOIS(C166)+1;2))
B170: =ROW() -> 170 | C170: =DATE(YEAR(C166),MONTH(C166)+1,1)-WEEKDAY(DATE(YEAR(C166),MONTH(C166)+1,2)) -> 2020-11-27
C171: =_xlfn.FORMULATEXT(C170) -> =DATE(ANNEE(C166);MOIS(C166)+1;1)-JOURSEM(DATE(ANNEE(C166);MOIS(C166)+1;2))
C172: 1;1=samedi | E172: 1;5=mardi
C173: 1;2= vendredi | E173: 1;6=lundi
C174: 1;3=jeudi | E174: 1;7=dimanche
C175: 1;4=mercredi
B179: Lignes | C179: autre solution
B180: =ROW() -> 180 | C180: 2020-12-25
B181: =ROW() -> 181 | C181: =DATE(YEAR(C180),MONTH(C180)+1,1)-MOD(DATE(YEAR(C180),MONTH(C180)+1,1)+5,7)-3 -> 44190 | G181: =_xlfn.FORMULATEXT(C181) -> =DATE(ANNEE(C180);MOIS(C180)+1;1)-MOD(DATE(ANNEE(C180);MOIS(C180)+1;1)+5;7)-3
B182: =ROW() -> 182 | C182: =DATE(YEAR(C180),MONTH(C180)+1,1)-MOD(DATE(YEAR(C180),MONTH(C180)+1,1)+5,7)-3 -> 2020-12-25 | G182: =DATE(ANNEE(C180);MOIS(C180)+1;1)-MOD(DATE(ANNEE(C180);MOIS(C180)+1;1)+5;7)-3
C183: collez les cellules vertes dans votre tableau
C195: Pour une hauteur de 15 mm,vous pouvez donc régler sur 42,5.
C196: La largeur de colonne est mesurée en caractères standards. Valeur d'exemple par défaut, de 10,71 correspondant à 60 points.
C197: Vous pouvez donc régler : pour 50 mm => 25,29 ; pour 30 mm => 15,14 ; pour 10 mm => 5.
C198: Format pesonnalisé coller : +[bleu]Standard;-[rouge]Standard;"" ;Standard
K206: < = imprim écran avec Greenshot
K208: lien > | L208: https://www.clubic.com/telecharger-fiche189780-greenshot.html
B223: Transmettez votre savoir et votre savoir faire peu importe qui le récupère; pourvu qu'un plus grand nombre puisse en bénéficier.
B224: Joël LEBOUCHER …Octobre 2015
B226: un lien rompu ou devenu obsolète…..pas de panique…Google saura vous retrouver un document équivalent

Sheet Emoticones
A1: Copiez/Collez des émoticones dans vos documents | AB1: ="Page "&_xlfn.SHEET()&" sur "&_xlfn.SHEETS() -> Page 14 sur 16
C3: Insérer des émojis dans Excel
C4: Lien> | D4: https://www.excel-exercice.com/ajouter-des-emojis-emoticones-dans-vos-formules-feuilles-graphiques/ | N4: Lien> | O4: https://emojis.wiki/fr/ | T4: Lien> | U4: https://fr.emojiguide.com/nourriture-boissons/ | Z4: Lien> | AA4: https://www.facebook.com/GetEmoji/
C6: Lien> | D6: https://emojiterra.com/fr/liste-fr/ | N6: Lien> | O6: https://www.emojiall.com/fr/all-emojis | T6: Lien> | U6: https://emojiguide.org/fr/ | Z6: Lien> | AA6: http://www.get-emoji.com/
C8: Lien> | D8: https://wprock.fr/t/emoji/ | N8: Lien> | O8: https://www.caracteres-speciaux.org/ | T8: Lien> | U8: https://emojipedia.org/ | Z8: Lien> | AA8: https://emojipedia.org/food-drink/
C10: Police > Segoe UI Emoji | D10: 🍏 🍎 🍐 🍊 🍋 🍌 🍉 🍇 🍓 🫐 🍈 🍒 🍑 🥭 🍍 🥥 🥝 🍅 🍆 🥑 🥦 🥬 🥒 🌶 🫑 🌽 🥕 🫒 🧄 🧅 🥔 🍠 🥐 🥯 🍞 🥖 🥨 🧀 🥚 🍳 🧈 🥞 🧇 🥓 🥩 🍗 🍖 🦴 🌭 🍔 🍟 🍕 🫓 🥪 🥙 🧆 🌮 🌯 🫔 🥗 🥘 🫕 🥫 🍝 🍜 🍲 🍛 🍣 🍱 🥟 🦪 🍤 🍙 🍚 🍘 🍥 🥠 🥮 🍢 🍡 🍧 🍨 🍦 🥧 🧁 🍰 🎂 🍮 🍭 🍬 🍫 🍿 🍩 🍪 🌰 🥜 🍯 🥛 🍼 🫖 ☕️ 🍵 🧃 🥤 🧋 🍶 🍺 🍻 🥂 🍷 🥃 🍸 🍹 🧉 🍾 🧊 🥄 🍴 🍽 🥣 🥡 🥢 🧂
C12: Police > Segoe UI Emoji | D12: 🚾 ♿️ 🅿️ 🛗 🈳 🈂️ 🛂 🛃 🛄 🛅 🚹 🚺 🚼 ⚧ 🚻 🚮 🎦 📶 🈁 🔣 ℹ️ 🔤 🔡 🔠 🆖 🆗 🆙 🆒 🆕 🆓 0️⃣ 1️⃣ 2️⃣ 3️⃣ 4️⃣ 5️⃣ 6️⃣ 7️⃣ 8️⃣ 9️⃣ 🔟 🔢 #️⃣ *️⃣ ⏏️ ▶️ ⏸ ⏯ ⏹ ⏺ ⏭ ⏮ ⏩ ⏪ ⏫ ⏬ ◀️ 🔼 🔽 ➡️ ⬅️ ⬆️ ⬇️ ↗️ ↘️ ↙️ ↖️ ↕️ ↔️ ↪️ ↩️ ⤴️ ⤵️ 🔀 🔁 🔂 🔄 🔃 🎵 🎶 ➕ ➖ ➗ ✖️
D14: 🤢 | E14: 🥴 | H14: 🥱 | I14: 😁 | J14: 😃 | M14: 😂 | N14: 🤓 | P14: 😴 | X14: 👨‍🍳 | AB14: < images
A16: 1 | B16: 26BD | C16: ⚽ | D16: ballon de football | F16: 325 | G16: 1F37E | H16: 🍾 | I16: bouteille avec bouchon éclatant | K16: 649 | L16: 1F4CF | M16: 📏 | N16: règle droite | P16: 973 | Q16: 1F6BA | R16: 🚺 | S16: chambre des femmes | U16: Comment insérer des émojis avec la formule UNICAR() d’Excel
A17: 2 | B17: 26BE | C17: ⚾ | D17: base-ball | F17: 326 | G17: 1F37F | H17: 🍿 | I17: pop-corn | K17: 650 | L17: 1F4D0 | M17: 📐 | N17: règle triangulaire | P17: 974 | Q17: 1F6BB | R17: 🚻 | S17: toilettes | U17: Lien> | V17: https://www.youtube.com/watch?v=6YvO8zQjX6Y
A18: 3 | B18: 23F8 | C18: ⏸ | D18: bouton pause | F18: 327 | G18: 1F380 | H18: 🎀 | I18: ruban | K18: 651 | L18: 1F4D1 | M18: 📑 | N18: onglets de signets | P18: 975 | Q18: 1F6BC | R18: 🚼 | S18: symbole bébé | U18: Insérer des émojis dans Excel
A19: 4 | B19: 23F9 | C19: ⏹ | D19: bouton d’arrêt | F19: 328 | G19: 1F381 | H19: 🎁 | I19: cadeau emballé | K19: 652 | L19: 1F4D2 | M19: 📒 | N19: grand livre | P19: 976 | Q19: 1F6BD | R19: 🚽 | S19: toilette | U19: Lien> | V19: https://www.excel-exercice.com/ajouter-des-emojis-emoticones-dans-vos-formules-feuilles-graphiques/
A20: 5 | B20: 23FA | C20: ⏺ | D20: bouton d’enregistrement | F20: 329 | G20: 1F382 | H20: 🎂 | I20: gâteau d'anniversaire | K20: 653 | L20: 1F4D3 | M20: 📓 | N20: carnet de notes | P20: 977 | Q20: 1F6BE | R20: 🚾 | S20: WC | V20: Le plus simple c'est d'utiliser le clavier virtuel ou visuel de Windows 10.
A21: 6 | B21: 2795 | C21: ➕ | D21: plus | F21: 330 | G21: 1F383 | H21: 🎃 | I21: jack-o-lantern | K21: 654 | L21: 1F4D4 | M21: 📔 | N21: carnet avec couverture décorative | P21: 978 | Q21: 1F6BF | R21: 🚿 | S21: douche
A22: 7 | B22: 2796 | C22: ➖ | D22: moins | F22: 331 | G22: 1F384 | H22: 🎄 | I22: Arbre de Noël | K22: 655 | L22: 1F4D5 | M22: 📕 | N22: livre fermé | P22: 979 | Q22: 1F6C0 | R22: 🛀 | S22: personne prenant un bain
A23: 8 | B23: 2797 | C23: ➗ | D23: diviser | F23: 332 | G23: 1F385 | H23: 🎅 | I23: Père Noël | K23: 656 | L23: 1F4D6 | M23: 📖 | N23: livre ouvert | P23: 980 | Q23: 1F6C1 | R23: 🛁 | S23: baignoire | U23: Comment utiliser les émoticônes sur Windows 10
A24: 9 | B24: 27B0 | C24: ➰ | D24: boucle bouclée | F24: 333 | G24: 1F386 | H24: 🎆 | I24: feu d’artifice | K24: 657 | L24: 1F4D7 | M24: 📗 | N24: livre vert | P24: 981 | Q24: 1F6C2 | R24: 🛂 | S24: contrôle des passeports | U24: . Appuyez sur l'un de ces raccourcis clavier :
A25: 10 | B25: 27BF | C25: ➿ | F25: 334 | G25: 1F387 | H25: 🎇 | I25: Cierge | K25: 658 | L25: 1F4D8 | M25: 📘 | N25: livre bleu | P25: 982 | Q25: 1F6C3 | R25: 🛃 | S25: douane | V25: Touche Windows et point/touche d'arrêt ( . )
A26: 11 | B26: FE0F | C26: ️ | F26: 335 | G26: 1F388 | H26: 🎈 | I26: ballon | K26: 659 | L26: 1F4D9 | M26: 📙 | N26: livre orange | P26: 983 | Q26: 1F6C4 | R26: 🛄 | S26: Bagages | V26: ou Touche Windows et touche point-virgule ( ; )
A27: 12 | B27: 3030 | C27: 〰 | F27: 336 | G27: 1F389 | H27: 🎉 | I27: popper de fête | K27: 660 | L27: 1F4DA | M27: 📚 | N27: Livres | P27: 984 | Q27: 1F6C5 | R27: 🛅 | S27: consigne à bagages
A28: 13 | B28: 303D | C28: 〽 | F28: 337 | G28: 1F38A | H28: 🎊 | I28: boule de confettis | K28: 661 | L28: 1F4DB | M28: 📛 | N28: badge nominatif | P28: 985 | Q28: 1F6CB | R28: 🛋 | S28: canapé et lampe
A29: 14 | B29: 203C | C29: ‼ | F29: 338 | G29: 1F38B | H29: 🎋 | I29: arbre tanabata | K29: 662 | L29: 1F4DC | M29: 📜 | N29: faire défiler | P29: 986 | Q29: 1F6CC | R29: 🛌 | S29: personne au lit
A30: 15 | B30: 2049 | C30: ⁉ | F30: 339 | G30: 1F38C | H30: 🎌 | I30: drapeaux croisés | K30: 663 | L30: 1F4DD | M30: 📝 | N30: mémo | P30: 987 | Q30: 1F6CD | R30: 🛍 | S30: sacs à provisions
A31: 16 | B31: 2B1B | C31: ⬛ | F31: 340 | G31: 1F38D | H31: 🎍 | I31: décoration en pin | K31: 664 | L31: 1F4DE | M31: 📞 | N31: récepteur téléphonique | P31: 988 | Q31: 1F6CE | R31: 🛎 | S31: cloche
A32: 17 | B32: 2B1C | C32: ⬜ | F32: 341 | G32: 1F38E | H32: 🎎 | I32: Poupées japonaises | K32: 665 | L32: 1F4DF | M32: 📟 | N32: téléavertisseur | P32: 989 | Q32: 1F6CF | R32: 🛏 | S32: lit
A33: 18 | B33: 23EA | C33: ⏪ | F33: 342 | G33: 1F38F | H33: 🎏 | I33: streamer de carpes | K33: 666 | L33: 1F4E0 | M33: 📠 | N33: télécopieur | P33: 990 | Q33: 1F6D0 | R33: 🛐 | S33: lieu de culte
A34: 19 | B34: 23EB | C34: ⏫ | F34: 343 | G34: 1F390 | H34: 🎐 | I34: carillon éolien | K34: 667 | L34: 1F4E1 | M34: 📡 | N34: antenne satellite | P34: 991 | Q34: 1F6D1 | R34: 🛑 | S34: Panneau stop
A35: 20 | B35: 23EC | C35: ⏬ | F35: 344 | G35: 1F391 | H35: 🎑 | I35: cérémonie d’observation de la lune | K35: 668 | L35: 1F4E2 | M35: 📢 | N35: haut-parleur | P35: 992 | Q35: 1F6D2 | R35: 🛒 | S35: caddie
A36: 21 | B36: 23ED | C36: ⏭ | F36: 345 | G36: 1F392 | H36: 🎒 | I36: sac à dos | K36: 669 | L36: 1F4E3 | M36: 📣 | N36: mégaphone | P36: 993 | Q36: 1F6D5 | R36: 🛕 | S36: temple hindou
A37: 22 | B37: 23EE | C37: ⏮ | F37: 346 | G37: 1F393 | H37: 🎓 | I37: casquette de graduation | K37: 670 | L37: 1F4E4 | M37: 📤 | N37: bac d’envoi | P37: 994 | Q37: 1F6D6 | R37: 🛖 | S37: hutte
A38: 23 | B38: 23EF | C38: ⏯ | F38: 347 | G38: 1F396 | H38: 🎖 | I38: médaille militaire | K38: 671 | L38: 1F4E5 | M38: 📥 | N38: bac de la boîte de réception | P38: 995 | Q38: 1F6D7 | R38: 🛗 | S38: ascenseur
A39: 24 | B39: 23F0 | C39: ⏰ | D39: réveille-matin | F39: 348 | G39: 1F397 | H39: 🎗 | I39: ruban de rappel | K39: 672 | L39: 1F4E6 | M39: 📦 | N39: colis | P39: 996 | Q39: 1F6DD | R39: 🛝
A40: 25 | B40: 23F1 | C40: ⏱ | D40: chronomètre | F40: 349 | G40: 1F399 | H40: 🎙 | I40: microphone de studio | K40: 673 | L40: 1F4E7 | M40: 📧 | N40: Messagerie électronique | P40: 997 | Q40: 1F6DE | R40: 🛞
A41: 26 | B41: 23F2 | C41: ⏲ | D41: chronomètre | F41: 350 | G41: 1F39A | H41: 🎚 | I41: curseur de niveau | K41: 674 | L41: 1F4E8 | M41: 📨 | N41: enveloppe entrante | P41: 998 | Q41: 1F6DF | R41: 🛟
A42: 27 | B42: 23F3 | C42: ⏳ | D42: horloge de minuterie | F42: 351 | G42: 1F39B | H42: 🎛 | I42: boutons de commande | K42: 675 | L42: 1F4E9 | M42: 📩 | N42: enveloppe avec flèche | P42: 999 | Q42: 1F6E0 | R42: 🛠 | S42: marteau et clé
A43: 28 | B43: 231A | C43: ⌚ | D43: sablier pas fait | F43: 352 | G43: 1F39E | H43: 🎞 | I43: cadres de film | K43: 676 | L43: 1F4EA | M43: 📪 | N43: boîte aux lettres fermée avec indicateur abaissé | P43: 1000 | Q43: 1F6E1 | R43: 🛡 | S43: bouclier
A44: 29 | B44: 231B | C44: ⌛ | D44: montre | F44: 353 | G44: 1F39F | H44: 🎟 | I44: billets d’entrée | K44: 677 | L44: 1F4EB | M44: 📫 | N44: boîte aux lettres fermée avec indicateur levé | P44: 1001 | Q44: 1F6E2 | R44: 🛢 | S44: tambour d’huile
A45: 30 | B45: 2328 | C45: ⌨ | D45: sablier fait | F45: 354 | G45: 1F3A0 | H45: 🎠 | I45: cheval de carrousel | K45: 678 | L45: 1F4EC | M45: 📬 | N45: ouvrir une boîte aux lettres avec un indicateur en relief | P45: 1002 | Q45: 1F6E3 | R45: 🛣 | S45: autoroute
A46: 31 | B46: 2935 | C46: ⤵ | D46: clavier | F46: 355 | G46: 1F3A1 | H46: 🎡 | I46: grande roue | K46: 679 | L46: 1F4ED | M46: 📭 | N46: ouvrir une boîte aux lettres avec un indicateur abaissé | P46: 1003 | Q46: 1F6E4 | R46: 🛤 | S46: voie ferrée
A47: 32 | B47: 2934 | C47: ⤴ | D47: flèche droite courbée vers le bas | F47: 356 | G47: 1F3A2 | H47: 🎢 | I47: montagnes russes | K47: 680 | L47: 1F4EE | M47: 📮 | N47: Postbox | P47: 1004 | Q47: 1F6E5 | R47: 🛥 | S47: bateau à moteur
A48: 33 | B48: 2B05 | C48: ⬅ | D48: flèche droite courbée vers le haut | F48: 357 | G48: 1F3A3 | H48: 🎣 | I48: canne à pêche | K48: 681 | L48: 1F4EF | M48: 📯 | N48: corne postale | P48: 1005 | Q48: 1F6E9 | R48: 🛩 | S48: petit avion
A49: 34 | B49: 2B06 | C49: ⬆ | D49: flèche gauche | F49: 358 | G49: 1F3A4 | H49: 🎤 | I49: microphone | K49: 682 | L49: 1F4F0 | M49: 📰 | N49: journal | P49: 1006 | Q49: 1F6EB | R49: 🛫 | S49: départ de l’avion
A50: 35 | B50: 2B07 | C50: ⬇ | D50: flèche vers le haut | F50: 359 | G50: 1F3A5 | H50: 🎥 | I50: caméra | K50: 683 | L50: 1F4F1 | M50: 📱 | N50: téléphone mobile | P50: 1007 | Q50: 1F6EC | R50: 🛬 | S50: arrivée en avion
A51: 36 | B51: 25AA | C51: ▪ | D51: flèche vers le bas | F51: 360 | G51: 1F3A6 | H51: 🎦 | I51: cinéma | K51: 684 | L51: 1F4F2 | M51: 📲 | N51: téléphone mobile avec flèche | P51: 1008 | Q51: 1F6F0 | R51: 🛰 | S51: satellite
A52: 37 | B52: 25AB | C52: ▫ | D52: petit carré noir | F52: 361 | G52: 1F3A7 | H52: 🎧 | I52: écouteur | K52: 685 | L52: 1F4F3 | M52: 📳 | N52: mode de vibration | P52: 1009 | Q52: 1F6F3 | R52: 🛳 | S52: Paquebot
A53: 38 | B53: 25B6 | C53: ▶ | D53: bouton de lecture | F53: 362 | G53: 1F3A8 | H53: 🎨 | I53: palette d’artistes | K53: 686 | L53: 1F4F4 | M53: 📴 | N53: téléphone portable éteint | P53: 1010 | Q53: 1F6F4 | R53: 🛴 | S53: trottinette
A54: 39 | B54: 25C0 | C54: ◀ | D54: bouton d’inversion | F54: 363 | G54: 1F3A9 | H54: 🎩 | I54: top a | K54: 687 | L54: 1F4F5 | M54: 📵 | N54: pas de téléphones portables | P54: 1011 | Q54: 1F6F5 | R54: 🛵 | S54: scooter
A55: 40 | B55: 261D | C55: ☝ | D55: index pointant vers le haut | F55: 364 | G55: 1F3AA | H55: 🎪 | I55: tente de cirque | K55: 688 | L55: 1F4F6 | M55: 📶 | N55: barres d’antenne | P55: 1012 | Q55: 1F6F6 | R55: 🛶 | S55: canoë
A56: 41 | B56: 2197 | C56: ↗ | D56: flèche haut-droite | F56: 365 | G56: 1F3AB | H56: 🎫 | I56: billet | K56: 689 | L56: 1F4F7 | M56: 📷 | N56: caméra | P56: 1013 | Q56: 1F6F7 | R56: 🛷 | S56: traîneau
A57: 42 | B57: 21AA | C57: ↪ | D57: flèche gauche courbée vers la droite | F57: 366 | G57: 1F3AC | H57: 🎬 | I57: clapper board | K57: 690 | L57: 1F4F8 | M57: 📸 | N57: appareil photo avec flash | P57: 1014 | Q57: 1F6F8 | R57: 🛸 | S57: soucoupe volante
A58: 43 | B58: 27A1 | C58: ➡ | D58: flèche droite | F58: 367 | G58: 1F3AD | H58: 🎭 | I58: arts du spectacle | K58: 691 | L58: 1F4F9 | M58: 📹 | N58: caméra vidéo | P58: 1015 | Q58: 1F6F9 | R58: 🛹 | S58: skateboard
A59: 44 | B59: 2198 | C59: ↘ | D59: flèche vers le bas à droite | F59: 368 | G59: 1F3AE | H59: 🎮 | I59: jeu vidéo | K59: 692 | L59: 1F4FA | M59: 📺 | N59: télévision | P59: 1016 | Q59: 1F6FA | R59: 🛺 | S59: pousse-pousse automobile
A60: 45 | B60: 2199 | C60: ↙ | D60: vers le bas à gauche | F60: 369 | G60: 1F3AF | H60: 🎯 | I60: Bulle | K60: 693 | L60: 1F4FB | M60: 📻 | N60: radio | P60: 1017 | Q60: 1F6FB | R60: 🛻 | S60: pick-up
A61: 46 | B61: 21A9 | C61: ↩ | D61: flèche droite courbée vers la gauche | F61: 370 | G61: 1F3B0 | H61: 🎰 | I61: Machine | K61: 694 | L61: 1F4FC | M61: 📼 | N61: Vidéos | P61: 1018 | Q61: 1F6FC | R61: 🛼 | S61: patin à roulettes
A62: 47 | B62: 2196 | C62: ↖ | D62: flèche haut-gauche | F62: 371 | G62: 1F3B1 | H62: 🎱 | I62: piscine 8 boule | K62: 695 | L62: 1F4FD | M62: 📽 | N62: projecteur de film | P62: 1019 | Q62: 1F7E0 | R62: 🟠 | S62: cercle orange
A63: 48 | B63: 2194 | C63: ↔ | D63: flèche gauche-droite | F63: 372 | G63: 1F3B2 | H63: 🎲 | I63: dé de jeu | K63: 696 | L63: 1F4FF | M63: 📿 | N63: chapelet | P63: 1020 | Q63: 1F7E1 | R63: 🟡 | S63: cercle jaune
A64: 49 | B64: 2195 | C64: ↕ | D64: flèche haut-bas | F64: 373 | G64: 1F3B3 | H64: 🎳 | I64: bowling | K64: 697 | L64: 1F500 | M64: 🔀 | N64: bouton de lecture aléatoire des pistes | P64: 1021 | Q64: 1F7E2 | R64: 🟢 | S64: cercle vert
A65: 50 | B65: 00A9 | C65: © | D65: copyright | F65: 374 | G65: 1F3B4 | H65: 🎴 | I65: cartes à jouer de fleurs | K65: 698 | L65: 1F501 | M65: 🔁 | N65: bouton répéter | P65: 1022 | Q65: 1F7E3 | R65: 🟣 | S65: cercle violet
A66: 51 | B66: 00AE | C66: ® | D66: recommandé | F66: 375 | G66: 1F3B5 | H66: 🎵 | I66: note de musique | K66: 699 | L66: 1F502 | M66: 🔂 | N66: répéter un seul bouton | P66: 1023 | Q66: 1F7E4 | R66: 🟤 | S66: cercle brun
A67: 52 | B67: 2600 | C67: ☀ | D67: soleil | F67: 376 | G67: 1F3B6 | H67: 🎶 | I67: notes de musique | K67: 700 | L67: 1F503 | M67: 🔃 | N67: flèches verticales dans le sens des aiguilles d’une montre | P67: 1024 | Q67: 1F7E5 | R67: 🟥 | S67: carré rouge
A68: 53 | B68: 2601 | C68: ☁ | D68: nuage | F68: 377 | G68: 1F3B7 | H68: 🎷 | I68: saxophone | K68: 701 | L68: 1F504 | M68: 🔄 | N68: bouton flèches dans le sens inverse des aiguilles d’une montre | P68: 1025 | Q68: 1F7E6 | R68: 🟦 | S68: carré bleu
A69: 54 | B69: 2602 | C69: ☂ | D69: parapluie | F69: 378 | G69: 1F3B8 | H69: 🎸 | I69: guitare | K69: 702 | L69: 1F505 | M69: 🔅 | N69: bouton dim | P69: 1026 | Q69: 1F7E7 | R69: 🟧 | S69: carré orange
A70: 55 | B70: 2603 | C70: ☃ | D70: bonhomme de neige | F70: 379 | G70: 1F3B9 | H70: 🎹 | I70: clavier musical | K70: 703 | L70: 1F506 | M70: 🔆 | N70: bouton lumineux | P70: 1027 | Q70: 1F7E8 | R70: 🟨 | S70: carré jaune
A71: 56 | B71: 2604 | C71: ☄ | D71: comète | F71: 380 | G71: 1F3BA | H71: 🎺 | I71: trompette | K71: 704 | L71: 1F507 | M71: 🔇 | N71: haut-parleur muet | P71: 1028 | Q71: 1F7E9 | R71: 🟩 | S71: carré vert
A72: 57 | B72: 260E | C72: ☎ | D72: téléphone | F72: 381 | G72: 1F3BB | H72: 🎻 | I72: violon | K72: 705 | L72: 1F508 | M72: 🔈 | N72: à faible volume | P72: 1029 | Q72: 1F7EA | R72: 🟪 | S72: carré violet
A73: 58 | B73: 2611 | C73: ☑ | D73: case à cocher avec coche | F73: 382 | G73: 1F3BC | H73: 🎼 | I73: partition musicale | K73: 706 | L73: 1F509 | M73: 🔉 | N73: haut-parleur volume moyen | P73: 1030 | Q73: 1F7EB | R73: 🟫 | S73: carré brun
A74: 59 | B74: 2620 | C74: ☠ | D74: crâne et os croisés | F74: 383 | G74: 1F3BD | H74: 🎽 | I74: chemise de course | K74: 707 | L74: 1F50A | M74: 🔊 | N74: haut-parleur volume élevé | P74: 1031 | Q74: 1F7F0 | R74: 🟰
A75: 60 | B75: 2622 | C75: ☢ | D75: radioactif | F75: 384 | G75: 1F3BE | H75: 🎾 | I75: tennis | K75: 708 | L75: 1F50B | M75: 🔋 | N75: pile | P75: 1032 | Q75: 1F90C | R75: 🤌 | S75: doigts pincés
A76: 61 | B76: 2623 | C76: ☣ | D76: Biohazard | F76: 385 | G76: 1F3BF | H76: 🎿 | I76: Skis | K76: 709 | L76: 1F50C | M76: 🔌 | N76: prise électrique | P76: 1033 | Q76: 1F90D | R76: 🤍 | S76: cœur blanc
A77: 62 | B77: 2626 | C77: ☦ | D77: croix orthodoxe | F77: 386 | G77: 1F3C0 | H77: 🏀 | I77: basket-ball | K77: 710 | L77: 1F50D | M77: 🔍 | N77: loupe inclinée vers la gauche | P77: 1034 | Q77: 1F90E | R77: 🤎 | S77: cœur brun
A78: 63 | B78: 262A | C78: ☪ | D78: étoile et croissant | F78: 387 | G78: 1F3C1 | H78: 🏁 | I78: drapeau à damier | K78: 711 | L78: 1F50E | M78: 🔎 | N78: loupe inclinée vers la droite | P78: 1035 | Q78: 1F90F | R78: 🤏 | S78: pincement de la main
A79: 64 | B79: 262E | C79: ☮ | D79: de paix | F79: 388 | G79: 1F3C2 | H79: 🏂 | I79: snowboarder | K79: 712 | L79: 1F50F | M79: 🔏 | N79: verrouillé avec un stylo | P79: 1036 | Q79: 1F910 | R79: 🤐 | S79: zipper-bouche visage
A80: 65 | B80: 262F | C80: ☯ | D80: Yin Yang | F80: 389 | G80: 1F3C3 | H80: 🏃 | I80: personne qui court | K80: 713 | L80: 1F510 | M80: 🔐 | N80: verrouillé avec clé | P80: 1037 | Q80: 1F911 | R80: 🤑 | S80: visage de bouche d’argent
A81: 66 | B81: 2638 | C81: ☸ | D81: roue du dharma | F81: 390 | G81: 1F3C4 | H81: 🏄 | I81: personne surfant | K81: 714 | L81: 1F511 | M81: 🔑 | N81: clé | P81: 1038 | Q81: 1F912 | R81: 🤒 | S81: visage avec thermomètre
A82: 67 | B82: 2639 | C82: ☹ | D82: visage fronçant les sourcils | F82: 391 | G82: 1F3C5 | H82: 🏅 | I82: médaille sportive | K82: 715 | L82: 1F512 | M82: 🔒 | N82: verrouillé | P82: 1039 | Q82: 1F913 | R82: 🤓 | S82: visage de nerd
A83: 68 | B83: 263A | C83: ☺ | D83: visage souriant | F83: 392 | G83: 1F3C6 | H83: 🏆 | I83: trophée | K83: 716 | L83: 1F513 | M83: 🔓 | N83: déverrouillé | P83: 1040 | Q83: 1F914 | R83: 🤔 | S83: visage pensant
A84: 69 | B84: 2640 | C84: ♀ | D84: signe féminin | F84: 393 | G84: 1F3C7 | H84: 🏇 | I84: courses de chevaux | K84: 717 | L84: 1F514 | M84: 🔔 | N84: cloche | P84: 1041 | Q84: 1F915 | R84: 🤕 | S84: visage avec bandage de tête
A85: 70 | B85: 2642 | C85: ♂ | D85: signe masculin | F85: 394 | G85: 1F3C8 | H85: 🏈 | I85: football américain | K85: 718 | L85: 1F515 | M85: 🔕 | N85: cloche avec barre oblique | P85: 1042 | Q85: 1F916 | R85: 🤖 | S85: robot
A86: 71 | B86: 2648 | C86: ♈ | D86: Bélier | F86: 395 | G86: 1F3C9 | H86: 🏉 | I86: rugby à XV | K86: 719 | L86: 1F516 | M86: 🔖 | N86: Signet | P86: 1043 | Q86: 1F917 | R86: 🤗 | S86: visage souriant avec les mains ouvertes
A87: 72 | B87: 2649 | C87: ♉ | D87: Taureau | F87: 396 | G87: 1F3CA | H87: 🏊 | I87: personne nageant | K87: 720 | L87: 1F517 | M87: 🔗 | N87: lien | P87: 1044 | Q87: 1F918 | R87: 🤘 | S87: signe des cornes
A88: 73 | B88: 264A | C88: ♊ | D88: Gémeaux | F88: 397 | G88: 1F3CB | H88: 🏋 | I88: personne soulevant des poids | K88: 721 | L88: 1F518 | M88: 🔘 | N88: bouton radio | P88: 1045 | Q88: 1F919 | R88: 🤙 | S88: appelez-moi la main
A89: 74 | B89: 264B | C89: ♋ | D89: Cancer | F89: 398 | G89: 1F3CC | H89: 🏌 | I89: personne golfeur | K89: 722 | L89: 1F519 | M89: 🔙 | N89: Flèche RETOUR | P89: 1046 | Q89: 1F91A | R89: 🤚 | S89: le dos levé de la main
A90: 75 | B90: 264C | C90: ♌ | D90: Lion | F90: 399 | G90: 1F3CD | H90: 🏍 | I90: motocyclette | K90: 723 | L90: 1F51A | M90: 🔚 | N90: Flèche END | P90: 1047 | Q90: 1F91B | R90: 🤛 | S90: poing tourné vers la gauche
A91: 76 | B91: 264D | C91: ♍ | D91: Vierge | F91: 400 | G91: 1F3CE | H91: 🏎 | I91: voiture de course | K91: 724 | L91: 1F51B | M91: 🔛 | N91: SUR! flèche | P91: 1048 | Q91: 1F91C | R91: 🤜 | S91: poing droit
A92: 77 | B92: 264E | C92: ♎ | D92: Piler | F92: 401 | G92: 1F3CF | H92: 🏏 | I92: jeu de cricket | K92: 725 | L92: 1F51C | M92: 🔜 | N92: Flèche SOON | P92: 1049 | Q92: 1F91D | R92: 🤝 | S92: poignée de main
A93: 78 | B93: 264F | C93: ♏ | D93: Scorpion | F93: 402 | G93: 1F3D0 | H93: 🏐 | I93: volley-ball | K93: 726 | L93: 1F51D | M93: 🔝 | N93: Flèche HAUT | P93: 1050 | Q93: 1F91E | R93: 🤞 | S93: croisons les doigts
A94: 79 | B94: 2650 | C94: ♐ | D94: Sagittaire | F94: 403 | G94: 1F3D1 | H94: 🏑 | I94: hockey sur gazon | K94: 727 | L94: 1F51E | M94: 🔞 | N94: personne de moins de dix-huit ans | P94: 1051 | Q94: 1F91F | R94: 🤟 | S94: geste d’amour-toi
A95: 80 | B95: 2651 | C95: ♑ | D95: Capricorne | F95: 404 | G95: 1F3D2 | H95: 🏒 | I95: hockey sur glace | K95: 728 | L95: 1F51F | M95: 🔟 | N95: keycap: 10 | P95: 1052 | Q95: 1F920 | R95: 🤠 | S95: visage de chapeau de cow-boy
A96: 81 | B96: 2652 | C96: ♒ | D96: Verseau | F96: 405 | G96: 1F3D3 | H96: 🏓 | I96: ping-pong | K96: 729 | L96: 1F520 | M96: 🔠 | N96: entrée latin majuscule | P96: 1053 | Q96: 1F921 | R96: 🤡 | S96: visage de clown
A97: 82 | B97: 2653 | C97: ♓ | D97: Poissons | F97: 406 | G97: 1F3D4 | H97: 🏔 | I97: montagne enneigée | K97: 730 | L97: 1F521 | M97: 🔡 | N97: entrée latin minuscule | P97: 1054 | Q97: 1F922 | R97: 🤢 | S97: visage nauséeux
A98: 83 | B98: 265F | C98: ♟ | D98: pion d’échecs | F98: 407 | G98: 1F3D5 | H98: 🏕 | I98: camping | K98: 731 | L98: 1F522 | M98: 🔢 | N98: numéros d’entrée | P98: 1055 | Q98: 1F923 | R98: 🤣 | S98: se rouler sur le sol en riant
A99: 84 | B99: 2660 | C99: ♠ | D99: costume de bêche | F99: 408 | G99: 1F3D6 | H99: 🏖 | I99: plage avec parasol | K99: 732 | L99: 1F523 | M99: 🔣 | N99: symboles d’entrée | P99: 1056 | Q99: 1F924 | R99: 🤤 | S99: visage bave
A100: 85 | B100: 2663 | C100: ♣ | D100: costume club | F100: 409 | G100: 1F3D7 | H100: 🏗 | I100: construction de bâtiments | K100: 733 | L100: 1F524 | M100: 🔤 | N100: saisir des lettres latines | P100: 1057 | Q100: 1F925 | R100: 🤥 | S100: visage couché
A101: 86 | B101: 2665 | C101: ♥ | D101: costume de cœur | F101: 410 | G101: 1F3D8 | H101: 🏘 | I101: Maisons | K101: 734 | L101: 1F525 | M101: 🔥 | N101: Feu | P101: 1058 | Q101: 1F926 | R101: 🤦 | S101: personne facepalming
A102: 87 | B102: 2666 | C102: ♦ | D102: costume diamant | F102: 411 | G102: 1F3D9 | H102: 🏙 | I102: Cityscape | K102: 735 | L102: 1F526 | M102: 🔦 | N102: torche | P102: 1059 | Q102: 1F927 | R102: 🤧 | S102: éternuements du visage
A103: 88 | B103: 2668 | C103: ♨ | D103: sources chaudes | F103: 412 | G103: 1F3DA | H103: 🏚 | I103: maison abandonnée | K103: 736 | L103: 1F527 | M103: 🔧 | N103: clé | P103: 1060 | Q103: 1F928 | R103: 🤨 | S103: visage avec sourcil levé
A104: 89 | B104: 2702 | C104: ✂ | D104: ciseaux | F104: 413 | G104: 1F3DB | H104: 🏛 | I104: bâtiment classique | K104: 737 | L104: 1F528 | M104: 🔨 | N104: marteau | P104: 1061 | Q104: 1F929 | R104: 🤩 | S104: frappé par une étoile
A105: 90 | B105: 2708 | C105: ✈ | D105: avion | F105: 414 | G105: 1F3DC | H105: 🏜 | I105: désert | K105: 738 | L105: 1F529 | M105: 🔩 | N105: écrou et boulon | P105: 1062 | Q105: 1F92A | R105: 🤪 | S105: visage loufoque
A106: 91 | B106: 2709 | C106: ✉ | D106: enveloppe | F106: 415 | G106: 1F3DD | H106: 🏝 | I106: île déserte | K106: 739 | L106: 1F52A | M106: 🔪 | N106: couteau de cuisine | P106: 1063 | Q106: 1F92B | R106: 🤫 | S106: visage qui s’était
A107: 92 | B107: 270C | C107: ✌ | D107: main de la victoire | F107: 416 | G107: 1F3DE | H107: 🏞 | I107: parc national | K107: 740 | L107: 1F52B | M107: 🔫 | N107: pistolet à eau | P107: 1064 | Q107: 1F92C | R107: 🤬 | S107: visage avec des symboles sur la bouche
A108: 93 | B108: 270D | C108: ✍ | D108: écrire la main | F108: 417 | G108: 1F3DF | H108: 🏟 | I108: stade | K108: 741 | L108: 1F52C | M108: 🔬 | N108: microscope | P108: 1065 | Q108: 1F92D | R108: 🤭 | S108: visage avec la main sur la bouche
A109: 94 | B109: 270F | C109: ✏ | D109: crayon | F109: 418 | G109: 1F3E0 | H109: 🏠 | I109: maison | K109: 742 | L109: 1F52D | M109: 🔭 | N109: télescope | P109: 1066 | Q109: 1F92E | R109: 🤮 | S109: vomissements au visage
A110: 95 | B110: 2712 | C110: ✒ | D110: plume noire | F110: 419 | G110: 1F3E1 | H110: 🏡 | I110: maison avec jardin | K110: 743 | L110: 1F52E | M110: 🔮 | N110: boule de cristal | P110: 1067 | Q110: 1F92F | R110: 🤯 | S110: tête qui explose
A111: 96 | B111: 2714 | C111: ✔ | D111: coche | F111: 420 | G111: 1F3E2 | H111: 🏢 | I111: de bureaux | K111: 744 | L111: 1F52F | M111: 🔯 | N111: étoile pointillée à six branches | P111: 1068 | Q111: 1F930 | R111: 🤰 | S111: femme enceinte
A112: 97 | B112: 2716 | C112: ✖ | D112: multiplier | F112: 421 | G112: 1F3E3 | H112: 🏣 | I112: Bureau de poste japonais | K112: 745 | L112: 1F530 | M112: 🔰 | N112: Symbole japonais pour débutant | P112: 1069 | Q112: 1F931 | R112: 🤱 | S112: l’allaitement
A113: 98 | B113: 271D | C113: ✝ | D113: croix latine | F113: 422 | G113: 1F3E4 | H113: 🏤 | I113: bureau de poste | K113: 746 | L113: 1F531 | M113: 🔱 | N113: emblème du trident | P113: 1070 | Q113: 1F932 | R113: 🤲 | S113: paumes ensemble
A114: 99 | B114: 2721 | C114: ✡ | D114: étoile de David | F114: 423 | G114: 1F3E5 | H114: 🏥 | I114: hôpital | K114: 747 | L114: 1F532 | M114: 🔲 | N114: bouton carré noir | P114: 1071 | Q114: 1F933 | R114: 🤳 | S114: selfie
A115: 100 | B115: 2733 | C115: ✳ | D115: astérisque à huit rayons | F115: 424 | G115: 1F3E6 | H115: 🏦 | I115: banque | K115: 748 | L115: 1F533 | M115: 🔳 | N115: bouton carré blanc | P115: 1072 | Q115: 1F934 | R115: 🤴 | S115: prince
A116: 101 | B116: 2734 | C116: ✴ | D116: étoile à huit branches | F116: 425 | G116: 1F3E7 | H116: 🏧 | I116: Panneau ATM | K116: 749 | L116: 1F534 | M116: 🔴 | N116: cercle rouge | P116: 1073 | Q116: 1F935 | R116: 🤵 | S116: personne en smoking
A117: 102 | B117: 2744 | C117: ❄ | D117: flocon de neige | F117: 426 | G117: 1F3E8 | H117: 🏨 | I117: hôtel | K117: 750 | L117: 1F535 | M117: 🔵 | N117: cercle bleu | P117: 1074 | Q117: 1F936 | R117: 🤶 | S117: Mme Claus
A118: 103 | B118: 2747 | C118: ❇ | D118: scintiller | F118: 427 | G118: 1F3E9 | H118: 🏩 | I118: love hôtel | K118: 751 | L118: 1F536 | M118: 🔶 | N118: grand diamant orange | P118: 1075 | Q118: 1F937 | R118: 🤷 | S118: personne haussant les épaules
A119: 104 | B119: 274E | C119: ❎ | D119: bouton de marque croisée | F119: 428 | G119: 1F3EA | H119: 🏪 | I119: dépanneur | K119: 752 | L119: 1F537 | M119: 🔷 | N119: grand diamant bleu | P119: 1076 | Q119: 1F938 | R119: 🤸 | S119: chariot de personne
A120: 105 | B120: 2753 | C120: ❓ | D120: point d’interrogation rouge | F120: 429 | G120: 1F3EB | H120: 🏫 | I120: école | K120: 753 | L120: 1F538 | M120: 🔸 | N120: petit diamant orange | P120: 1077 | Q120: 1F939 | R120: 🤹 | S120: personne jonglant
A121: 106 | B121: 2754 | C121: ❔ | D121: point d’interrogation blanc | F121: 430 | G121: 1F3EC | H121: 🏬 | I121: grand magasin | K121: 754 | L121: 1F539 | M121: 🔹 | N121: petit diamant bleu | P121: 1078 | Q121: 1F93A | R121: 🤺 | S121: personne escrime
A122: 107 | B122: 2755 | C122: ❕ | D122: point d’exclamation blanc | F122: 431 | G122: 1F3ED | H122: 🏭 | I122: usine | K122: 755 | L122: 1F53A | M122: 🔺 | N122: triangle rouge pointé vers le haut | P122: 1079 | Q122: 1F93C | R122: 🤼 | S122: les gens luttent
A123: 108 | B123: 2757 | C123: ❗ | D123: point d’exclamation rouge | F123: 432 | G123: 1F3EE | H123: 🏮 | I123: lanterne en papier rouge | K123: 756 | L123: 1F53B | M123: 🔻 | N123: triangle rouge pointé vers le bas | P123: 1080 | Q123: 1F93D | R123: 🤽 | S123: personne jouant au water-polo
A124: 109 | B124: 2763 | C124: ❣ | D124: exclamation du cœur | F124: 433 | G124: 1F3EF | H124: 🏯 | I124: Château japonais | K124: 757 | L124: 1F53C | M124: 🔼 | N124: bouton vers le haut | P124: 1081 | Q124: 1F93E | R124: 🤾 | S124: personne jouant au handball
A125: 110 | B125: 2764 | C125: ❤ | D125: cœur rouge | F125: 434 | G125: 1F3F0 | H125: 🏰 | I125: château | K125: 758 | L125: 1F53D | M125: 🔽 | N125: bouton vers le bas | P125: 1082 | Q125: 1F93F | R125: 🤿 | S125: masque de plongée
A126: 111 | B126: 2705 | C126: ✅ | D126: bouton de coche | F126: 435 | G126: 1F3F3 | H126: 🏳 | I126: drapeau blanc | K126: 759 | L126: 1F549 | M126: 🕉 | N126: À | P126: 1083 | Q126: 1F940 | R126: 🥀 | S126: fleur fanée
A127: 112 | B127: 270A | C127: ✊ | D127: poing levé | F127: 436 | G127: 1F3F4 | H127: 🏴 | I127: drapeau noir | K127: 760 | L127: 1F54A | M127: 🕊 | N127: où | P127: 1084 | Q127: 1F941 | R127: 🥁 | S127: tambour
A128: 113 | B128: 270B | C128: ✋ | D128: main levée | F128: 437 | G128: 1F3F5 | H128: 🏵 | I128: rosette | K128: 761 | L128: 1F54B | M128: 🕋 | N128: Kaaba | P128: 1085 | Q128: 1F942 | R128: 🥂 | S128: lunettes qui clignotent
A129: 114 | B129: 2728 | C129: ✨ | D129: Étincelles | F129: 438 | G129: 1F3F7 | H129: 🏷 | I129: étiquette | K129: 762 | L129: 1F54C | M129: 🕌 | N129: mosquée | P129: 1086 | Q129: 1F943 | R129: 🥃 | S129: verre tumbler
A130: 115 | B130: 274C | C130: ❌ | D130: marque croisée | F130: 439 | G130: 1F3F8 | H130: 🏸 | I130: badminton | K130: 763 | L130: 1F54D | M130: 🕍 | N130: synagogue | P130: 1087 | Q130: 1F944 | R130: 🥄 | S130: cuiller
A131: 116 | B131: 2614 | C131: ☔ | D131: parapluie avec gouttes de pluie | F131: 440 | G131: 1F3F9 | H131: 🏹 | I131: arc et flèche | K131: 764 | L131: 1F54E | M131: 🕎 | N131: ménorah | P131: 1088 | Q131: 1F945 | R131: 🥅 | S131: but net
A132: 117 | B132: 2615 | C132: ☕ | D132: boisson chaude | F132: 441 | G132: 1F3FA | H132: 🏺 | I132: amphore | K132: 765 | L132: 1F550 | M132: 🕐 | N132: une heure | P132: 1089 | Q132: 1F947 | R132: 🥇 | S132: Médaille de 1ère place
A133: 118 | B133: 267B | C133: ♻ | D133: symbole de recyclage | F133: 442 | G133: 1F400 | H133: 🐀 | I133: rat | K133: 766 | L133: 1F551 | M133: 🕑 | N133: deux heures | P133: 1090 | Q133: 1F948 | R133: 🥈 | S133: Médaille de 2e place
A134: 119 | B134: 23CF | C134: ⏏ | D134: bouton d’éjection | F134: 443 | G134: 1F401 | H134: 🐁 | I134: souris | K134: 767 | L134: 1F552 | M134: 🕒 | N134: trois heures | P134: 1091 | Q134: 1F949 | R134: 🥉 | S134: Médaille de 3ème place
A135: 120 | B135: 25FB | C135: ◻ | D135: carré moyen blanc | F135: 444 | G135: 1F402 | H135: 🐂 | I135: bœuf | K135: 768 | L135: 1F553 | M135: 🕓 | N135: quatre heures | P135: 1092 | Q135: 1F94A | R135: 🥊 | S135: gant de boxe
A136: 121 | B136: 25FC | C136: ◼ | D136: carré moyen noir | F136: 445 | G136: 1F403 | H136: 🐃 | I136: buffle d'Asie | K136: 769 | L136: 1F554 | M136: 🕔 | N136: cinq heures | P136: 1093 | Q136: 1F94B | R136: 🥋 | S136: uniforme d’arts martiaux
A137: 122 | B137: 25FD | C137: ◽ | D137: carré blanc moyen-petit | F137: 446 | G137: 1F404 | H137: 🐄 | I137: vache | K137: 770 | L137: 1F555 | M137: 🕕 | N137: six heures | P137: 1094 | Q137: 1F94C | R137: 🥌 | S137: pierre de curling
A138: 123 | B138: 25FE | C138: ◾ | D138: noir moyen-petit carré | F138: 447 | G138: 1F405 | H138: 🐅 | I138: tigre | K138: 771 | L138: 1F556 | M138: 🕖 | N138: sept heures | P138: 1095 | Q138: 1F94D | R138: 🥍 | S138: lacrosse
A139: 124 | B139: 26A0 | C139: ⚠ | D139: avertissement | F139: 448 | G139: 1F406 | H139: 🐆 | I139: léopard | K139: 772 | L139: 1F557 | M139: 🕗 | N139: huit heures | P139: 1096 | Q139: 1F94E | R139: 🥎 | S139: softball
A140: 125 | B140: 26A1 | C140: ⚡ | D140: haute tension | F140: 449 | G140: 1F407 | H140: 🐇 | I140: lapin | K140: 773 | L140: 1F558 | M140: 🕘 | N140: neuf heures | P140: 1097 | Q140: 1F94F | R140: 🥏 | S140: disque volant
A141: 126 | B141: 2618 | C141: ☘ | D141: trèfle | F141: 450 | G141: 1F408 | H141: 🐈 | I141: chat | K141: 774 | L141: 1F559 | M141: 🕙 | N141: dix heures | P141: 1098 | Q141: 1F950 | R141: 🥐 | S141: croissant
A142: 127 | B142: 267E | C142: ♾ | D142: Infini | F142: 451 | G142: 1F409 | H142: 🐉 | I142: dragon | K142: 775 | L142: 1F55A | M142: 🕚 | N142: onze heures | P142: 1099 | Q142: 1F951 | R142: 🥑 | S142: avocat
A143: 128 | B143: 267F | C143: ♿ | D143: symbole de fauteuil roulant | F143: 452 | G143: 1F40A | H143: 🐊 | I143: crocodile | K143: 776 | L143: 1F55B | M143: 🕛 | N143: Midi | P143: 1100 | Q143: 1F952 | R143: 🥒 | S143: concombre
A144: 129 | B144: 2692 | C144: ⚒ | D144: marteau et pic | F144: 453 | G144: 1F40B | H144: 🐋 | I144: baleine | K144: 777 | L144: 1F55C | M144: 🕜 | N144: un-trente | P144: 1101 | Q144: 1F953 | R144: 🥓 | S144: lard
A145: 130 | B145: 2693 | C145: ⚓ | D145: ancre | F145: 454 | G145: 1F40C | H145: 🐌 | I145: escargot | K145: 778 | L145: 1F55D | M145: 🕝 | N145: deux-trente | P145: 1102 | Q145: 1F954 | R145: 🥔 | S145: pomme de terre
A146: 131 | B146: 2694 | C146: ⚔ | F146: 455 | G146: 1F40D | H146: 🐍 | I146: serpent | K146: 779 | L146: 1F55E | M146: 🕞 | N146: trois-trente | P146: 1103 | Q146: 1F955 | R146: 🥕 | S146: carotte
A147: 132 | B147: 2695 | C147: ⚕ | F147: 456 | G147: 1F40E | H147: 🐎 | I147: cheval | K147: 780 | L147: 1F55F | M147: 🕟 | N147: quatre-trente | P147: 1104 | Q147: 1F956 | R147: 🥖 | S147: pain baguette
A148: 133 | B148: 2696 | C148: ⚖ | F148: 457 | G148: 1F40F | H148: 🐏 | I148: bélier | K148: 781 | L148: 1F560 | M148: 🕠 | N148: cinq-trente | P148: 1105 | Q148: 1F957 | R148: 🥗 | S148: salade verte
A149: 134 | B149: 2697 | C149: ⚗ | F149: 458 | G149: 1F410 | H149: 🐐 | I149: chèvre | K149: 782 | L149: 1F561 | M149: 🕡 | N149: six-trente | P149: 1106 | Q149: 1F958 | R149: 🥘 | S149: casserole peu profonde de nourriture
A150: 135 | B150: 2699 | C150: ⚙ | D150: engrenage | F150: 459 | G150: 1F411 | H150: 🐑 | I150: brebis | K150: 783 | L150: 1F562 | M150: 🕢 | N150: sept-trente | P150: 1107 | Q150: 1F959 | R150: 🥙 | S150: pain plat farci
A151: 136 | B151: 269B | C151: ⚛ | D151: symbole d’atome | F151: 460 | G151: 1F412 | H151: 🐒 | I151: singe | K151: 784 | L151: 1F563 | M151: 🕣 | N151: huit-trente | P151: 1108 | Q151: 1F95A | R151: 🥚 | S151: oeuf
A152: 137 | B152: 269C | C152: ⚜ | D152: fleur-de-lis | F152: 461 | G152: 1F413 | H152: 🐓 | I152: coq | K152: 785 | L152: 1F564 | M152: 🕤 | N152: neuf-trente | P152: 1109 | Q152: 1F95B | R152: 🥛 | S152: verre de lait
A153: 138 | B153: 26A7 | C153: ⚧ | D153: symbole transgenre | F153: 462 | G153: 1F414 | H153: 🐔 | I153: poulet | K153: 786 | L153: 1F565 | M153: 🕥 | N153: dix-trente | P153: 1110 | Q153: 1F95C | R153: 🥜 | S153: cacahuètes
A154: 139 | B154: 26AA | C154: ⚪ | D154: cercle blanc | F154: 463 | G154: 1F415 | H154: 🐕 | I154: chien | K154: 787 | L154: 1F566 | M154: 🕦 | N154: onze-trente | P154: 1111 | Q154: 1F95D | R154: 🥝 | S154: kiwi
A155: 140 | B155: 26AB | C155: ⚫ | D155: cercle noir | F155: 464 | G155: 1F416 | H155: 🐖 | I155: cochon | K155: 788 | L155: 1F567 | M155: 🕧 | N155: douze-trente | P155: 1112 | Q155: 1F95E | R155: 🥞 | S155: Crêpes
A156: 141 | B156: 26B0 | C156: ⚰ | D156: cercueil | F156: 465 | G156: 1F417 | H156: 🐗 | I156: verrat | K156: 789 | L156: 1F56F | M156: 🕯 | N156: bougie | P156: 1113 | Q156: 1F95F | R156: 🥟 | S156: boulette
A157: 142 | B157: 26B1 | C157: ⚱ | D157: urne funéraire | F157: 466 | G157: 1F418 | H157: 🐘 | I157: éléphant | K157: 790 | L157: 1F570 | M157: 🕰 | N157: horloge de cheminée | P157: 1114 | Q157: 1F960 | R157: 🥠 | S157: Biscuit
A158: 143 | B158: 26C4 | C158: ⛄ | D158: bonhomme de neige sans neige | F158: 467 | G158: 1F419 | H158: 🐙 | I158: pieuvre | K158: 791 | L158: 1F573 | M158: 🕳 | N158: trou | P158: 1115 | Q158: 1F961 | R158: 🥡 | S158: boîte à emporter
A159: 144 | B159: 26C5 | C159: ⛅ | D159: soleil derrière les nuages | F159: 468 | G159: 1F41A | H159: 🐚 | I159: coquille en spirale | K159: 792 | L159: 1F574 | M159: 🕴 | N159: personne en costume en lévitation | P159: 1116 | Q159: 1F962 | R159: 🥢 | S159: baguettes
A160: 145 | B160: 26C8 | C160: ⛈ | D160: nuage avec la foudre et la pluie | F160: 469 | G160: 1F41B | H160: 🐛 | I160: punaise | K160: 793 | L160: 1F575 | M160: 🕵 | N160: détective | P160: 1117 | Q160: 1F963 | R160: 🥣 | S160: bol avec cuillère
A161: 146 | B161: 26CE | C161: ⛎ | D161: Ophiuchus | F161: 470 | G161: 1F41C | H161: 🐜 | I161: sur | K161: 794 | L161: 1F576 | M161: 🕶 | N161: lunettes de soleil | P161: 1118 | Q161: 1F964 | R161: 🥤 | S161: tasse avec paille
A162: 147 | B162: 26CF | C162: ⛏ | D162: cueillir | F162: 471 | G162: 1F41D | H162: 🐝 | I162: abeille | K162: 795 | L162: 1F577 | M162: 🕷 | N162: araignée | P162: 1119 | Q162: 1F965 | R162: 🥥 | S162: noix de coco
A163: 148 | B163: 26D1 | C163: ⛑ | D163: casque de secouriste | F163: 472 | G163: 1F41E | H163: 🐞 | I163: coccinelle | K163: 796 | L163: 1F578 | M163: 🕸 | N163: toile d’araignée | P163: 1120 | Q163: 1F966 | R163: 🥦 | S163: brocoli
A164: 149 | B164: 26D3 | C164: ⛓ | D164: enchaîne | F164: 473 | G164: 1F41F | H164: 🐟 | I164: poisson | K164: 797 | L164: 1F579 | M164: 🕹 | N164: joystick | P164: 1121 | Q164: 1F967 | R164: 🥧 | S164: pied
A165: 150 | B165: 26D4 | C165: ⛔ | D165: entrée interdite | F165: 474 | G165: 1F420 | H165: 🐠 | I165: poissons tropicaux | K165: 798 | L165: 1F57A | M165: 🕺 | N165: homme dansant | P165: 1122 | Q165: 1F968 | R165: 🥨 | S165: bretzel
A166: 151 | B166: 26EA | C166: ⛪ | D166: église | F166: 475 | G166: 1F421 | H166: 🐡 | I166: Blowfish | K166: 799 | L166: 1F587 | M166: 🖇 | N166: trombones liés | P166: 1123 | Q166: 1F969 | R166: 🥩 | S166: coupe de viande
A167: 152 | B167: 26F0 | C167: ⛰ | D167: montagne | F167: 476 | G167: 1F422 | H167: 🐢 | I167: tortue | K167: 800 | L167: 1F58A | M167: 🖊 | N167: stylo | P167: 1124 | Q167: 1F96A | R167: 🥪 | S167: sandwich
A168: 153 | B168: 26F1 | C168: ⛱ | D168: parapluie au sol | F168: 477 | G168: 1F423 | H168: 🐣 | I168: poussin à couver | K168: 801 | L168: 1F58B | M168: 🖋 | N168: stylo | P168: 1125 | Q168: 1F96B | R168: 🥫 | S168: conserve
A169: 154 | B169: 26F2 | C169: ⛲ | D169: fontaine | F169: 478 | G169: 1F424 | H169: 🐤 | I169: bébé poussin | K169: 802 | L169: 1F58C | M169: 🖌 | N169: pinceau | P169: 1126 | Q169: 1F96C | R169: 🥬 | S169: vert feuillu
A170: 155 | B170: 26F3 | C170: ⛳ | D170: drapeau dans le trou | F170: 479 | G170: 1F425 | H170: 🐥 | I170: poussin face à l’avant | K170: 803 | L170: 1F58D | M170: 🖍 | N170: crayon | P170: 1127 | Q170: 1F96D | R170: 🥭 | S170: mangue
A171: 156 | B171: 26F4 | C171: ⛴ | D171: bac | F171: 480 | G171: 1F426 | H171: 🐦 | I171: oiseau | K171: 804 | L171: 1F590 | M171: 🖐 | N171: main avec les doigts écartés | P171: 1128 | Q171: 1F96E | R171: 🥮 | S171: gâteau de lune
A172: 157 | B172: 26F5 | C172: ⛵ | D172: voilier | F172: 481 | G172: 1F427 | H172: 🐧 | I172: pingouin | K172: 805 | L172: 1F595 | M172: 🖕 | N172: majeur | P172: 1129 | Q172: 1F96F | R172: 🥯 | S172: bagel
A173: 158 | B173: 26F7 | C173: ⛷ | D173: skieur | F173: 482 | G173: 1F428 | H173: 🐨 | I173: koala | K173: 806 | L173: 1F596 | M173: 🖖 | N173: santé vulcaine | P173: 1130 | Q173: 1F970 | R173: 🥰 | S173: visage souriant avec des cœurs
A174: 159 | B174: 26F8 | C174: ⛸ | D174: patin à glace | F174: 483 | G174: 1F429 | H174: 🐩 | I174: caniche | K174: 807 | L174: 1F5A4 | M174: 🖤 | N174: cœur noir | P174: 1131 | Q174: 1F971 | R174: 🥱 | S174: visage bâillant
A175: 160 | B175: 26F9 | C175: ⛹ | D175: rebondissant balle | F175: 484 | G175: 1F42A | H175: 🐪 | I175: chameau | K175: 808 | L175: 1F5A5 | M175: 🖥 | N175: ordinateur de bureau | P175: 1132 | Q175: 1F972 | R175: 🥲 | S175: visage souriant avec des larmes
A176: 161 | B176: 26FA | C176: ⛺ | D176: tente | F176: 485 | G176: 1F42B | H176: 🐫 | I176: chameau à deux bosses | K176: 809 | L176: 1F5A8 | M176: 🖨 | N176: imprimante | P176: 1133 | Q176: 1F973 | R176: 🥳 | S176: visage de fête
A177: 162 | B177: 26FD | C177: ⛽ | D177: pompe à carburant | F177: 486 | G177: 1F42C | H177: 🐬 | I177: dauphin | K177: 810 | L177: 1F5B1 | M177: 🖱 | N177: souris | P177: 1134 | Q177: 1F974 | R177: 🥴 | S177: visage woozy
A178: 163 | B178: 2B50 | C178: ⭐ | D178: étoile | F178: 487 | G178: 1F42D | H178: 🐭 | I178: visage de la souris | K178: 811 | L178: 1F5B2 | M178: 🖲 | N178: trackball | P178: 1135 | Q178: 1F975 | R178: 🥵 | S178: visage chaud
A179: 164 | B179: 2B55 | C179: ⭕ | D179: cercle rouge creux | F179: 488 | G179: 1F42E | H179: 🐮 | I179: visage de vache | K179: 812 | L179: 1F5BC | M179: 🖼 | N179: image encadrée | P179: 1136 | Q179: 1F976 | R179: 🥶 | S179: visage froid
A180: 165 | B180: 30 | C180: 0 | D180: keycap: 0 | F180: 489 | G180: 1F42F | H180: 🐯 | I180: visage de tigre | K180: 813 | L180: 1F5C2 | M180: 🗂 | N180: diviseurs d’index de carte | P180: 1137 | Q180: 1F977 | R180: 🥷 | S180: Ninja
A181: 166 | B181: 2139 | C181: ℹ | D181: information | F181: 490 | G181: 1F430 | H181: 🐰 | I181: visage de lapin | K181: 814 | L181: 1F5C3 | M181: 🗃 | N181: boîte de fichier de carte | P181: 1138 | Q181: 1F978 | R181: 🥸 | S181: visage déguisé
A182: 167 | B182: 24C2 | C182: Ⓜ | D182: encerclé M | F182: 491 | G182: 1F431 | H182: 🐱 | I182: cat faire | K182: 815 | L182: 1F5C4 | M182: 🗄 | N182: classeur | P182: 1139 | Q182: 1F979 | R182: 🥹
A183: 168 | B183: 2122 | C183: ™ | D183: marque | F183: 492 | G183: 1F432 | H183: 🐲 | I183: visage de dragon | K183: 816 | L183: 1F5D1 | M183: 🗑 | N183: Corbeille | P183: 1140 | Q183: 1F97A | R183: 🥺 | S183: plaider la face
A184: 169 | B184: 1F004 | C184: 🀄 | D184: mahjong dragon rouge | F184: 493 | G184: 1F433 | H184: 🐳 | I184: baleine jaillissante | K184: 817 | L184: 1F5D2 | M184: 🗒 | N184: bloc-notes en spirale | P184: 1141 | Q184: 1F97B | R184: 🥻 | S184: sari
A185: 170 | B185: 1F0CF | C185: 🃏 | D185: joker | F185: 494 | G185: 1F434 | H185: 🐴 | I185: visage de cheval | K185: 818 | L185: 1F5D3 | M185: 🗓 | N185: calendrier en spirale | P185: 1142 | Q185: 1F97C | R185: 🥼 | S185: Blouse
A186: 171 | B186: 1F170 | C186: 🅰 | D186: Un bouton (groupe sanguin) | F186: 495 | G186: 1F435 | H186: 🐵 | I186: visage de singe | K186: 819 | L186: 1F5DC | M186: 🗜 | N186: attache | P186: 1143 | Q186: 1F97D | R186: 🥽 | S186: lunettes de protection
A187: 172 | B187: 1F171 | C187: 🅱 | D187: Bouton B (groupe sanguin) | F187: 496 | G187: 1F436 | H187: 🐶 | I187: visage de chien | K187: 820 | L187: 1F5DD | M187: 🗝 | N187: ancienne clé | P187: 1144 | Q187: 1F97E | R187: 🥾 | S187: chaussure de randonnée
A188: 173 | B188: 1F17E | C188: 🅾 | D188: Bouton O (groupe sanguin) | F188: 497 | G188: 1F437 | H188: 🐷 | I188: visage de porc | K188: 821 | L188: 1F5DE | M188: 🗞 | N188: journal enroulé | P188: 1145 | Q188: 1F97F | R188: 🥿 | S188: chaussure plate
A189: 174 | B189: 1F17F | C189: 🅿 | D189: Bouton P | F189: 498 | G189: 1F438 | H189: 🐸 | I189: grenouille | K189: 822 | L189: 1F5E1 | M189: 🗡 | N189: dague | P189: 1146 | Q189: 1F980 | R189: 🦀 | S189: crabe
A190: 175 | B190: 1F18E | C190: 🆎 | D190: Bouton AB (groupe sanguin) | F190: 499 | G190: 1F439 | H190: 🐹 | I190: hamster | K190: 823 | L190: 1F5E3 | M190: 🗣 | N190: tête parlante | P190: 1147 | Q190: 1F981 | R190: 🦁 | S190: lion
A191: 176 | B191: 1F191 | C191: 🆑 | D191: Bouton CL | F191: 500 | G191: 1F43A | H191: 🐺 | I191: loup | K191: 824 | L191: 1F5E8 | M191: 🗨 | N191: bulle de parole gauche | P191: 1148 | Q191: 1F982 | R191: 🦂 | S191: scorpion
A192: 177 | B192: 1F192 | C192: 🆒 | D192: Bouton COOL | F192: 501 | G192: 1F43B | H192: 🐻 | I192: ours | K192: 825 | L192: 1F5EF | M192: 🗯 | N192: bulle de colère droite | P192: 1149 | Q192: 1F983 | R192: 🦃 | S192: Turquie
A193: 178 | B193: 1F193 | C193: 🆓 | D193: Bouton GRATUIT | F193: 502 | G193: 1F43C | H193: 🐼 | I193: panda | K193: 826 | L193: 1F5F3 | M193: 🗳 | N193: urne avec bulletin de vote | P193: 1150 | Q193: 1F984 | R193: 🦄 | S193: licorne
A194: 179 | B194: 1F194 | C194: 🆔 | D194: Bouton ID | F194: 503 | G194: 1F43D | H194: 🐽 | I194: nez de porc | K194: 827 | L194: 1F5FA | M194: 🗺 | N194: carte du monde | P194: 1151 | Q194: 1F985 | R194: 🦅 | S194: aigle
A195: 180 | B195: 1F195 | C195: 🆕 | D195: Bouton NOUVEAU | F195: 504 | G195: 1F43E | H195: 🐾 | I195: empreintes de pattes | K195: 828 | L195: 1F5FB | M195: 🗻 | N195: Mont Fuji | P195: 1152 | Q195: 1F986 | R195: 🦆 | S195: canard
A196: 181 | B196: 1F196 | C196: 🆖 | D196: Bouton NG | F196: 505 | G196: 1F43F | H196: 🐿 | I196: tamia | K196: 829 | L196: 1F5FC | M196: 🗼 | N196: Tour de Tokyo | P196: 1153 | Q196: 1F987 | R196: 🦇 | S196: bat
A197: 182 | B197: 1F197 | C197: 🆗 | D197: Bouton OK | F197: 506 | G197: 1F440 | H197: 👀 | I197: yeux | K197: 830 | L197: 1F5FD | M197: 🗽 | N197: Statue de la Liberté | P197: 1154 | Q197: 1F988 | R197: 🦈 | S197: requin
A198: 183 | B198: 1F198 | C198: 🆘 | D198: Bouton SOS | F198: 507 | G198: 1F441 | H198: 👁 | I198: oeil | K198: 831 | L198: 1F5FE | M198: 🗾 | N198: carte du Japon | P198: 1155 | Q198: 1F989 | R198: 🦉 | S198: hibou
A199: 184 | B199: 1F199 | C199: 🆙 | D199: EN HAUT! bouton | F199: 508 | G199: 1F442 | H199: 👂 | I199: oreille | K199: 832 | L199: 1F5FF | M199: 🗿 | N199: moai | P199: 1156 | Q199: 1F98A | R199: 🦊 | S199: Renard
A200: 185 | B200: 1F19A | C200: 🆚 | D200: Bouton VS | F200: 509 | G200: 1F443 | H200: 👃 | I200: nez | K200: 833 | L200: 1F600 | M200: 😀 | N200: ?? | P200: 1157 | Q200: 1F98B | R200: 🦋 | S200: papillon
A201: 186 | B201: 1F201 | C201: 🈁 | D201: Bouton japonais « ici » | F201: 510 | G201: 1F444 | H201: 👄 | I201: bouche | K201: 834 | L201: 1F600 | M201: 😀 | N201: Visage souriant | P201: 1158 | Q201: 1F98C | R201: 🦌 | S201: cerf
A202: 187 | B202: 1F202 | C202: 🈂 | D202: Bouton japonais « frais de service » | F202: 511 | G202: 1F445 | H202: 👅 | I202: langue | K202: 835 | L202: 1F601 | M202: 😁 | N202: visage rayonnant avec des yeux souriants | P202: 1159 | Q202: 1F98D | R202: 🦍 | S202: gorille
A203: 188 | B203: 1F21A | C203: 🈚 | D203: Bouton japonais « gratuit » | F203: 512 | G203: 1F446 | H203: 👆 | I203: index de revers pointant vers le haut | K203: 836 | L203: 1F602 | M203: 😂 | N203: visage avec des larmes de joie | P203: 1160 | Q203: 1F98E | R203: 🦎 | S203: lézard
A204: 189 | B204: 1F22F | C204: 🈯 | D204: Bouton japonais « réservé » | F204: 513 | G204: 1F447 | H204: 👇 | I204: index de revers pointant vers le bas | K204: 837 | L204: 1F603 | M204: 😃 | P204: 1161 | Q204: 1F98F | R204: 🦏 | S204: rhinocéros
A205: 190 | B205: 1F232 | C205: 🈲 | D205: Bouton japonais « interdit » | F205: 514 | G205: 1F448 | H205: 👈 | I205: index de revers pointant vers la gauche | K205: 838 | L205: 1F603 | M205: 😃 | N205: Visage souriant avec de grands yeux | P205: 1162 | Q205: 1F990 | R205: 🦐 | S205: crevette
A206: 191 | B206: 1F233 | C206: 🈳 | D206: Bouton japonais « vacance » | F206: 515 | G206: 1F449 | H206: 👉 | I206: index de revers pointant vers la droite | K206: 839 | L206: 1F604 | M206: 😄 | N206: Visage souriant avec des yeux souriants | P206: 1163 | Q206: 1F991 | R206: 🦑 | S206: calmar
A207: 192 | B207: 1F234 | C207: 🈴 | D207: Bouton japonais « passing grade » | F207: 516 | G207: 1F44A | H207: 👊 | I207: poing venant en avant | K207: 840 | L207: 1F605 | M207: 😅 | N207: Visage souriant avec de la sueur | P207: 1164 | Q207: 1F992 | R207: 🦒 | S207: girafe
... 132 more rows

Sheet Polices de Symboles
U2: Mise à jour du 14 Décembre 2021
U3: annule ou remplace les versions précédentes
A6: 0 | B6: COMMENT CHOISIR SA POLICE DE SYMBOLES UPRM 1991. Servez vous du pinceau pour reproduire les symboles que vous souhaitez utiliser.Attention saisissez la bonne lettre ou le bon chiffre pour la reproduction
B7: =CELL("nomfichier") -> E:\0-UPRT\1-UPRT.FR-SITE-WEB\re-recettes-jean-marc-catteau\re-catteau-galettes\[GA-pate.sud.finistere.xlsm]Modes.d'emploi
B8: Saisir lettre ou nombre | D8: Correspondance | E8: Police Wingdins | O8: Saisir lettre ou nombre | Q8: Correspondance | R8: Police Wingdins 2
B9: 45 | C9: = | D9: =B9 -> 45 | E9: Copiez / collez le symbole sur votre document ou faites un imprim'écran | O9: Aa | P9: = | Q9: =O9 -> Aa | R9: Copiez / collez le symbole sur votre document ou faites un imprim'écran
AD10: PREMIERE RANGÉE DU CLAVIER | BE10: PREMIERE RANGÉE DU CLAVIER
B11: Majuscules | C11: correspondance | E11: Minuscules | F11: correspondance | H11: Chiffres | I11: correspondance | K11: nombres | L11: correspondance | O11: Majuscules | P11: correspondance | R11: Minuscules | S11: correspondance | U11: Chiffres | V11: correspondance | X11: nombres | Y11: correspondance
B12: A | C12: = | D12: A | E12: a | F12: = | G12: a | H12: 1 | I12: = | J12: 1 | K12: 27 | L12: = | M12: 27 | O12: A | P12: = | Q12: A | R12: a | S12: = | T12: a | U12: 1 | V12: = | W12: 1 | X12: 27 | Y12: = | Z12: 27 | AD12: Raccourcis | AE12: Alt + 0169 | AG12: ALT + 0171 | AI12: ALT + 0172 | AK12: ALT + 0174 | AM12: ALT + 0177 | AO12: ALT + 0179 | AQ12: ALT + 0182 | AS12: ALT + 0183 | AU12: ALT + 0185 | AW12: ALT + 0187 | AY12: ALT + 0188 | BA12: ALT + 0189 | BD12: Arial Narrow | BE12: 1 | BH12: 2 | BK12: 3 | BN12: 4 | BQ12: 5 | BT12: 6 | BW12: 7 | BZ12: 8 | CC12: 9 | CF12: 0 | CI12: ° | CL12: +
B13: B | C13: = | D13: B | E13: b | F13: = | G13: b | H13: 2 | I13: = | J13: 2 | K13: 28 | L13: = | M13: 28 | O13: B | P13: = | Q13: B | R13: b | S13: = | T13: b | U13: 2 | V13: = | W13: 2 | X13: 28 | Y13: = | Z13: 28 | BE13: & | BH13: é | BI13: ~ | BK13: " | BL13: # | BN13: ' | BO13: { | BQ13: ( | BR13: [ | BT13: - | BU13: | | BW13: è | BX13: ` | BZ13: _ | CA13: \ | CC13: ç | CD13: ^ | CF13: à | CG13: @ | CI13: ) | CJ13: ] | CL13: = | CM13: }
B14: C | C14: = | D14: C | E14: c | F14: = | G14: c | H14: 3 | I14: = | J14: 3 | K14: 29 | L14: = | M14: 29 | O14: C | P14: = | Q14: C | R14: c | S14: = | T14: c | U14: 3 | V14: = | W14: 3 | X14: 29 | Y14: = | Z14: 29 | AD14: Arial | AE14: © | AG14: « | AI14: ¬ | AK14: ® | AM14: ± | AO14: ³ | AQ14: ¶ | AS14: · | AU14: ¹ | AW14: » | AY14: ¼ | BA14: ½
B15: D | C15: = | D15: D | E15: d | F15: = | G15: d | H15: 4 | I15: = | J15: 4 | K15: 30 | L15: = | M15: 30 | O15: D | P15: = | Q15: D | R15: d | S15: = | T15: d | U15: 4 | V15: = | W15: 4 | X15: 30 | Y15: = | Z15: 30 | BD15: Webdings | BE15: 1 | BH15: 2 | BK15: 3 | BN15: 4 | BQ15: 5 | BT15: 6 | BW15: 7 | BZ15: 8 | CC15: 9 | CF15: 0 | CI15: ° | CL15: +
B16: E | C16: = | D16: E | E16: e | F16: = | G16: e | H16: 5 | I16: = | J16: 5 | K16: 31 | L16: = | M16: 31 | O16: E | P16: = | Q16: E | R16: e | S16: = | T16: e | U16: 5 | V16: = | W16: 5 | X16: 31 | Y16: = | Z16: 31 | AD16: Webdings | AE16: © | AF16: 0 | AG16: « | AH16: 0 | AI16: ¬ | AJ16: 0 | AK16: ® | AL16: 0 | AM16: ± | AN16: 0 | AO16: ³ | AP16: 0 | AQ16: ¶ | AR16: 0 | AS16: · | AT16: 0 | AU16: ¹ | AV16: 0 | AW16: » | AX16: 0 | AY16: ¼ | AZ16: 0 | BA16: ½ | BE16: & | BH16: é | BI16: ~ | BK16: " | BL16: # | BN16: ' | BO16: { | BQ16: ( | BR16: [ | BT16: - | BU16: | | BW16: è | BX16: ` | BZ16: _ | CA16: \ | CC16: ç | CD16: ^ | CF16: à | CG16: @ | CI16: ) | CJ16: ] | CL16: = | CM16: }
B17: F | C17: = | D17: F | E17: f | F17: = | G17: f | H17: 6 | I17: = | J17: 6 | K17: 32 | L17: = | M17: 32 | O17: F | P17: = | Q17: F | R17: f | S17: = | T17: f | U17: 6 | V17: = | W17: 6 | X17: 32 | Y17: = | Z17: 32
B18: G | C18: = | D18: G | E18: g | F18: = | G18: g | H18: 7 | I18: = | J18: 7 | K18: 33 | L18: = | M18: 33 | O18: G | P18: = | Q18: G | R18: g | S18: = | T18: g | U18: 7 | V18: = | W18: 7 | X18: 33 | Y18: = | Z18: 33 | AD18: Windgins | AE18: © | AF18: 0 | AG18: « | AH18: 0 | AI18: ¬ | AJ18: 0 | AK18: ® | AL18: 0 | AM18: ± | AN18: 0 | AO18: ³ | AP18: 0 | AQ18: ¶ | AR18: 0 | AS18: · | AT18: 0 | AU18: ¹ | AV18: 0 | AW18: » | AX18: 0 | AY18: ¼ | AZ18: 0 | BA18: ½ | BD18: Windgings | BE18: 1 | BH18: 2 | BK18: 3 | BN18: 4 | BQ18: 5 | BT18: 6 | BW18: 7 | BZ18: 8 | CC18: 9 | CF18: 0 | CI18: ° | CL18: +
B19: H | C19: = | D19: H | E19: h | F19: = | G19: h | H19: 8 | I19: = | J19: 8 | K19: 34 | L19: = | M19: 34 | O19: H | P19: = | Q19: H | R19: h | S19: = | T19: h | U19: 8 | V19: = | W19: 8 | X19: 34 | Y19: = | Z19: 34 | BE19: & | BH19: é | BI19: ~ | BK19: " | BL19: # | BN19: ' | BO19: { | BQ19: ( | BR19: [ | BT19: - | BU19: | | BW19: è | BX19: ` | BZ19: _ | CA19: \ | CC19: ç | CD19: ^ | CF19: à | CG19: @ | CI19: ) | CJ19: ] | CL19: = | CM19: }
B20: I | C20: = | D20: I | E20: i | F20: = | G20: i | H20: 9 | I20: = | J20: 9 | K20: 35 | L20: = | M20: 35 | O20: I | P20: = | Q20: I | R20: i | S20: = | T20: i | U20: 9 | V20: = | W20: 9 | X20: 35 | Y20: = | Z20: 35 | AD20: Windings 2 | AE20: © | AF20: 0 | AG20: « | AH20: 0 | AI20: ¬ | AJ20: 0 | AK20: ® | AL20: 0 | AM20: ± | AN20: 0 | AO20: ³ | AP20: 0 | AQ20: ¶ | AR20: 0 | AS20: · | AT20: 0 | AU20: ¹ | AV20: 0 | AW20: » | AX20: 0 | AY20: ¼ | AZ20: 0 | BA20: ½
B21: J | C21: = | D21: J | E21: j | F21: = | G21: j | H21: 10 | I21: = | J21: 10 | K21: 36 | L21: = | M21: 36 | O21: J | P21: = | Q21: J | R21: j | S21: = | T21: j | U21: 10 | V21: = | W21: 10 | X21: 36 | Y21: = | Z21: 36 | BD21: Windgings 2 | BE21: 1 | BH21: 2 | BK21: 3 | BN21: 4 | BQ21: 5 | BT21: 6 | BW21: 7 | BZ21: 8 | CC21: 9 | CF21: 0 | CI21: ° | CL21: +
B22: K | C22: = | D22: K | E22: k | F22: = | G22: k | H22: 11 | I22: = | J22: 11 | K22: 37 | L22: = | M22: 37 | O22: K | P22: = | Q22: K | R22: k | S22: = | T22: k | U22: 11 | V22: = | W22: 11 | X22: 37 | Y22: = | Z22: 37 | AD22: Windgings 3 | AE22: © | AF22: 0 | AG22: « | AH22: 0 | AI22: ¬ | AJ22: 0 | AK22: ® | AL22: 0 | AM22: ± | AN22: 0 | AO22: ³ | AP22: 0 | AQ22: ¶ | AR22: 0 | AS22: · | AT22: 0 | AU22: ¹ | AV22: 0 | AW22: » | AX22: 0 | AY22: ¼ | AZ22: 0 | BA22: ½ | BE22: & | BH22: é | BI22: ~ | BK22: " | BL22: # | BN22: ' | BO22: { | BQ22: ( | BR22: [ | BT22: - | BU22: | | BW22: è | BX22: ` | BZ22: _ | CA22: \ | CC22: ç | CD22: ^ | CF22: à | CG22: @ | CI22: ) | CJ22: ] | CL22: = | CM22: }
B23: L | C23: = | D23: L | E23: l | F23: = | G23: l | H23: 12 | I23: = | J23: 12 | K23: 38 | L23: = | M23: 38 | O23: L | P23: = | Q23: L | R23: l | S23: = | T23: l | U23: 12 | V23: = | W23: 12 | X23: 38 | Y23: = | Z23: 38
B24: M | C24: = | D24: M | E24: m | F24: = | G24: m | H24: 13 | I24: = | J24: 13 | K24: 39 | L24: = | M24: 39 | O24: M | P24: = | Q24: M | R24: m | S24: = | T24: m | U24: 13 | V24: = | W24: 13 | X24: 39 | Y24: = | Z24: 39 | AD24: ABSENT DU CLAVIER | BD24: Windgings 3 | BE24: 1 | BH24: 2 | BK24: 3 | BN24: 4 | BQ24: 5 | BT24: 6 | BW24: 7 | BZ24: 8 | CC24: 9 | CF24: 0 | CI24: ° | CL24: +
B25: N | C25: = | D25: N | E25: n | F25: = | G25: n | H25: 14 | I25: = | J25: 14 | K25: 40 | L25: = | M25: 40 | O25: N | P25: = | Q25: N | R25: n | S25: = | T25: n | U25: 14 | V25: = | W25: 14 | X25: 40 | Y25: = | Z25: 40 | AD25: Raccourcis | AE25: Alt + 0190 | AG25: Alt + 0191 | AI25: Alt + 0192 | AK25: Alt + 0194 | AM25: Alt + 0195 | AO25: Alt + 0196 | AQ25: Alt + 0197 | AS25: Alt + 0198 | AU25: Alt + 0199 | AW25: Alt + 0200 | AY25: Alt + 0201 | BA25: Alt + 0202 | BE25: & | BH25: é | BI25: ~ | BK25: " | BL25: # | BN25: ' | BO25: { | BQ25: ( | BR25: [ | BT25: - | BU25: | | BW25: è | BX25: ` | BZ25: _ | CA25: \ | CC25: ç | CD25: ^ | CF25: à | CG25: @ | CI25: ) | CJ25: ] | CL25: = | CM25: }
B26: O | C26: = | D26: O | E26: o | F26: = | G26: o | H26: 15 | I26: = | J26: 15 | K26: 41 | L26: = | M26: 41 | O26: O | P26: = | Q26: O | R26: o | S26: = | T26: o | U26: 15 | V26: = | W26: 15 | X26: 41 | Y26: = | Z26: 41
B27: P | C27: = | D27: P | E27: p | F27: = | G27: p | H27: 16 | I27: = | J27: 16 | K27: 42 | L27: = | M27: 42 | O27: P | P27: = | Q27: P | R27: p | S27: = | T27: p | U27: 16 | V27: = | W27: 16 | X27: 42 | Y27: = | Z27: 42 | AD27: Arial | AE27: ¾ | AG27: ¿ | AI27: À | AK27: Â | AM27: Ã | AO27: Ä | AQ27: Å | AS27: Æ | AU27: Ç | AW27: È | AY27: É | BA27: Ê | BE27: DEUXIÈME RANGÉE DU CLAVIER
B28: Q | C28: = | D28: Q | E28: q | F28: = | G28: q | H28: 17 | I28: = | J28: 17 | K28: 43 | L28: = | M28: 43 | O28: Q | P28: = | Q28: Q | R28: q | S28: = | T28: q | U28: 17 | V28: = | W28: 17 | X28: 43 | Y28: = | Z28: 43 | BD28: Arial Narrow | BE28: A | BH28: Z | BK28: E | BN28: R | BQ28: T | BT28: Y | BW28: U | BZ28: I | CC28: O | CF28: P | CI28: ¨ | CL28: £
B29: R | C29: = | D29: R | E29: r | F29: = | G29: r | H29: 18 | I29: = | J29: 18 | K29: 44 | L29: = | M29: 44 | O29: R | P29: = | Q29: R | R29: r | S29: = | T29: r | U29: 18 | V29: = | W29: 18 | X29: 44 | Y29: = | Z29: 44 | AD29: Webdings | AE29: ¾ | AF29: 0 | AG29: ¿ | AH29: 0 | AI29: À | AJ29: 0 | AK29: Â | AL29: 0 | AM29: Ã | AN29: 0 | AO29: Ä | AP29: 0 | AQ29: Å | AR29: 0 | AS29: Æ | AT29: 0 | AU29: Ç | AV29: 0 | AW29: È | AX29: 0 | AY29: É | AZ29: 0 | BA29: Ê | BE29: a | BH29: z | BK29: e | BN29: r | BQ29: t | BT29: y | BW29: u | BZ29: i | CC29: o | CF29: p | CI29: ^ | CM29: ¤
B30: S | C30: = | D30: S | E30: s | F30: = | G30: s | H30: 19 | I30: = | J30: 19 | K30: 45 | L30: = | M30: 45 | O30: S | P30: = | Q30: S | R30: s | S30: = | T30: s | U30: 19 | V30: = | W30: 19 | X30: 45 | Y30: = | Z30: 45
B31: T | C31: = | D31: T | E31: t | F31: = | G31: t | H31: 20 | I31: = | J31: 20 | K31: 46 | L31: = | M31: 46 | O31: T | P31: = | Q31: T | R31: t | S31: = | T31: t | U31: 20 | V31: = | W31: 20 | X31: 46 | Y31: = | Z31: 46 | AD31: Windgins | AE31: ¾ | AF31: 0 | AG31: ¿ | AH31: 0 | AI31: À | AJ31: 0 | AK31: Â | AL31: 0 | AM31: Ã | AN31: 0 | AO31: Ä | AP31: 0 | AQ31: Å | AR31: 0 | AS31: Æ | AT31: 0 | AU31: Ç | AV31: 0 | AW31: È | AX31: 0 | AY31: É | AZ31: 0 | BA31: Ê | BD31: Webdings | BE31: A | BH31: Z | BK31: E | BN31: R | BQ31: T | BT31: Y | BW31: U | BZ31: I | CC31: O | CF31: P | CI31: ¨ | CL31: £
B32: U | C32: = | D32: U | E32: u | F32: = | G32: u | H32: 21 | I32: = | J32: 21 | K32: 47 | L32: = | M32: 47 | O32: U | P32: = | Q32: U | R32: u | S32: = | T32: u | U32: 21 | V32: = | W32: 21 | X32: 47 | Y32: = | Z32: 47 | BE32: a | BH32: z | BK32: e | BN32: r | BQ32: t | BT32: y | BW32: u | BZ32: i | CC32: o | CF32: p | CI32: ^ | CM32: ¤
B33: V | C33: = | D33: V | E33: v | F33: = | G33: v | H33: 22 | I33: = | J33: 22 | K33: 48 | L33: = | M33: 48 | O33: V | P33: = | Q33: V | R33: v | S33: = | T33: v | U33: 22 | V33: = | W33: 22 | X33: 48 | Y33: = | Z33: 48 | AD33: Windings 2 | AE33: ¾ | AF33: 0 | AG33: ¿ | AH33: 0 | AI33: À | AJ33: 0 | AK33: Â | AL33: 0 | AM33: Ã | AN33: 0 | AO33: Ä | AP33: 0 | AQ33: Å | AR33: 0 | AS33: Æ | AT33: 0 | AU33: Ç | AV33: 0 | AW33: È | AX33: 0 | AY33: É | AZ33: 0 | BA33: Ê
B34: W | C34: = | D34: W | E34: w | F34: = | G34: w | H34: 23 | I34: = | J34: 23 | K34: 49 | L34: = | M34: 49 | O34: W | P34: = | Q34: W | R34: w | S34: = | T34: w | U34: 23 | V34: = | W34: 23 | X34: 49 | Y34: = | Z34: 49 | BD34: Windgings | BE34: A | BH34: Z | BK34: E | BN34: R | BQ34: T | BT34: Y | BW34: U | BZ34: I | CC34: O | CF34: P | CI34: ¨ | CL34: £
B35: X | C35: = | D35: X | E35: x | F35: = | G35: x | H35: 24 | I35: = | J35: 24 | K35: 50 | L35: = | M35: 50 | O35: X | P35: = | Q35: X | R35: x | S35: = | T35: x | U35: 24 | V35: = | W35: 24 | X35: 50 | Y35: = | Z35: 50 | AD35: Windgings 3 | AE35: ¾ | AF35: 0 | AG35: ¿ | AH35: 0 | AI35: À | AJ35: 0 | AK35: Â | AL35: 0 | AM35: Ã | AN35: 0 | AO35: Ä | AP35: 0 | AQ35: Å | AR35: 0 | AS35: Æ | AT35: 0 | AU35: Ç | AV35: 0 | AW35: È | AX35: 0 | AY35: É | AZ35: 0 | BA35: Ê | BE35: a | BH35: z | BK35: e | BN35: r | BQ35: t | BT35: y | BW35: u | BZ35: i | CC35: o | CF35: p | CI35: ^ | CM35: ¤
B36: Y | C36: = | D36: Y | E36: y | F36: = | G36: y | H36: 25 | I36: = | J36: 25 | K36: 51 | L36: = | M36: 51 | O36: Y | P36: = | Q36: Y | R36: y | S36: = | T36: y | U36: 25 | V36: = | W36: 25 | X36: 51 | Y36: = | Z36: 51
B37: Z | C37: = | D37: Z | E37: z | F37: = | G37: z | H37: 26 | I37: = | J37: 26 | K37: 52 | L37: = | M37: 52 | O37: Z | P37: = | Q37: Z | R37: z | S37: = | T37: z | U37: 26 | V37: = | W37: 26 | X37: 52 | Y37: = | Z37: 52 | AD37: ABSENT DU CLAVIER | BD37: Windgings 2 | BE37: A | BH37: Z | BK37: E | BN37: R | BQ37: T | BT37: Y | BW37: U | BZ37: I | CC37: O | CF37: P | CI37: ¨ | CL37: £
B38: & | C38: = | D38: & | E38: % | F38: = | G38: % | H38: £ | I38: = | J38: £ | K38: ; | L38: = | M38: ; | O38: & | P38: = | Q38: & | R38: % | S38: = | T38: % | U38: £ | V38: = | W38: £ | X38: ; | Y38: = | Z38: ; | AD38: Raccourcis | AE38: Alt + 0203 | AG38: Alt + 0204 | AI38: Alt + 0205 | AK38: Alt + 0206 | AM38: Alt + 0207 | AO38: Alt + 0209 | AQ38: Alt + 0212 | AS38: Alt + 0214 | AU38: Alt + 0215 | AW38: Alt + 0216 | AY38: Alt + 0217 | BA38: Alt + 0219 | BE38: a | BH38: z | BK38: e | BN38: r | BQ38: t | BT38: y | BW38: u | BZ38: i | CC38: o | CF38: p | CI38: ^ | CM38: ¤
B39: é | C39: = | D39: é | E39: # | F39: = | G39: # | H39: @ | I39: = | J39: @ | K39: : | L39: = | M39: : | O39: é | P39: = | Q39: é | R39: # | S39: = | T39: # | U39: @ | V39: = | W39: @ | X39: : | Y39: = | Z39: :
B40: è | C40: = | D40: è | E40: ( | F40: = | G40: ( | H40: ! | I40: = | J40: ! | K40: - | L40: = | M40: - | O40: è | P40: = | Q40: è | R40: ( | S40: = | T40: ( | U40: ! | V40: = | W40: ! | X40: - | Y40: = | Z40: - | AD40: Arial | AE40: Ë | AG40: Ì | AI40: Í | AK40: Î | AM40: Ï | AO40: Ñ | AQ40: Ô | AS40: Ö | AU40: × | AW40: Ø | AY40: Ù | BA40: Û | BD40: Windgings 3 | BE40: A | BH40: Z | BK40: E | BN40: R | BQ40: T | BT40: Y | BW40: U | BZ40: I | CC40: O | CF40: P | CI40: ¨ | CL40: £
B41: ù | C41: = | D41: ù | E41: ) | F41: = | G41: ) | H41: ? | I41: = | J41: ? | K41: . | L41: = | M41: . | O41: ù | P41: = | Q41: ù | R41: ) | S41: = | T41: ) | U41: ? | V41: = | W41: ? | X41: . | Y41: = | Z41: . | BE41: a | BH41: z | BK41: e | BN41: r | BQ41: t | BT41: y | BW41: u | BZ41: i | CC41: o | CF41: p | CI41: ^ | CM41: ¤
B42: ç | C42: = | D42: ç | E42: [ | F42: = | G42: [ | H42: > | I42: = | J42: > | K42: ~ | L42: = | M42: ~ | O42: ç | P42: = | Q42: ç | R42: [ | S42: = | T42: [ | U42: > | V42: = | W42: > | X42: ~ | Y42: = | Z42: ~ | AD42: Webdings | AE42: Ë | AF42: 0 | AG42: Ì | AH42: 0 | AI42: Í | AJ42: 0 | AK42: Î | AL42: 0 | AM42: Ï | AN42: 0 | AO42: Ñ | AP42: 0 | AQ42: Ô | AR42: 0 | AS42: Ö | AT42: 0 | AU42: × | AV42: 0 | AW42: Ø | AX42: 0 | AY42: Ù | AZ42: 0 | BA42: Û
B43: à | C43: = | D43: à | E43: ] | F43: = | G43: ] | H43: < | I43: = | J43: < | K43: " | L43: = | M43: " | O43: à | P43: = | Q43: à | R43: ] | S43: = | T43: ] | U43: < | V43: = | W43: < | X43: " | Y43: = | Z43: " | BE43: TROISIÈME RANGÉE
B44: µ | C44: = | D44: µ | E44: { | F44: = | G44: { | H44: \ | I44: = | J44: \ | K44: * | L44: = | M44: * | O44: µ | P44: = | Q44: µ | R44: { | S44: = | T44: { | U44: \ | V44: = | W44: \ | X44: * | Y44: = | Z44: * | AD44: Windgins | AE44: Ë | AF44: 0 | AG44: Ì | AH44: 0 | AI44: Í | AJ44: 0 | AK44: Î | AL44: 0 | AM44: Ï | AN44: 0 | AO44: Ñ | AP44: 0 | AQ44: Ô | AR44: 0 | AS44: Ö | AT44: 0 | AU44: × | AV44: 0 | AW44: Ø | AX44: 0 | AY44: Ù | AZ44: 0 | BA44: Û | BD44: Arial Narrow | BE44: Q | BH44: S | BK44: D | BN44: F | BQ44: G | BT44: H | BW44: J | BZ44: K | CC44: L | CF44: M | CI44: % | CL44: µ
B45: § | C45: = | D45: § | E45: } | F45: = | G45: } | H45: / | I45: = | J45: / | K45: , | L45: = | M45: , | O45: § | P45: = | Q45: § | R45: } | S45: = | T45: } | U45: / | V45: = | W45: / | X45: , | Y45: = | Z45: , | BE45: q | BH45: s | BK45: d | BN45: f | BQ45: g | BT45: h | BW45: j | BZ45: k | CC45: l | CF45: m | CI45: ù | CL45: *
C46: = | E46: | | F46: = | G46: | | H46: _ | I46: = | J46: _ | L46: = | P46: = | R46: | | S46: = | T46: | | U46: _ | V46: = | W46: _ | Y46: = | AD46: Windings 2 | AE46: Ë | AF46: 0 | AG46: Ì | AH46: 0 | AI46: Í | AJ46: 0 | AK46: Î | AL46: 0 | AM46: Ï | AN46: 0 | AO46: Ñ | AP46: 0 | AQ46: Ô | AR46: 0 | AS46: Ö | AT46: 0 | AU46: × | AV46: 0 | AW46: Ø | AX46: 0 | AY46: Ù | AZ46: 0 | BA46: Û
BD47: Webdings | BE47: Q | BH47: S | BK47: D | BN47: F | BQ47: G | BT47: H | BW47: J | BZ47: K | CC47: L | CF47: M | CI47: % | CL47: µ
AD48: Windgings 3 | AE48: Ë | AF48: 0 | AG48: Ì | AH48: 0 | AI48: Í | AJ48: 0 | AK48: Î | AL48: 0 | AM48: Ï | AN48: 0 | AO48: Ñ | AP48: 0 | AQ48: Ô | AR48: 0 | AS48: Ö | AT48: 0 | AU48: × | AV48: 0 | AW48: Ø | AX48: 0 | AY48: Ù | AZ48: 0 | BA48: Û | BE48: q | BH48: s | BK48: d | BN48: f | BQ48: g | BT48: h | BW48: j | BZ48: k | CC48: l | CF48: m | CI48: ù | CL48: *
B50: Saisir lettre ou nombre | D50: Correspondance | E50: Police Wending 3 | O50: Saisir lettre ou nombre | Q50: Correspondance | R50: Police Webdings | AD50: ABSENT DU CLAVIER | BD50: Windgings | BE50: Q | BH50: S | BK50: D | BN50: F | BQ50: G | BT50: H | BW50: J | BZ50: K | CC50: L | CF50: M | CI50: % | CL50: µ
B51: Aa | C51: = | D51: =B51 -> Aa | E51: Copiez / collez le symbole sur votre document ou faites un imprim'écran | O51: Aa | P51: = | Q51: =O51 -> Aa | R51: Copiez / collez le symbole sur votre document ou faites un imprim'écran | AD51: Raccourcis | AE51: Alt + 0220 | AG51: Alt + 0223 | AI51: Alt + 0230 | AK51: Alt + 0237 | AM51: Alt + 0247 | AO51: Alt + 0140 | AQ51: Alt + 0156 | AS51: Alt + 11 | AU51: Alt + 12 | AW51: Alt + 13 | AY51: Alt + 14 | BA51: Alt + 6 | BE51: q | BH51: s | BK51: d | BN51: f | BQ51: g | BT51: h | BW51: j | BZ51: k | CC51: l | CF51: m | CI51: ù | CL51: *
B53: Majuscules | C53: correspondance | E53: Minuscules | F53: correspondance | H53: Chiffres | I53: correspondance | K53: nombres | L53: correspondance | O53: Majuscules | P53: correspondance | R53: Minuscules | S53: correspondance | U53: Chiffres | V53: correspondance | X53: nombres | Y53: correspondance | AD53: Arial | AE53: Ü | AG53: ß | AI53: æ | AK53: í | AM53: ÷ | AO53: Œ | AQ53: œ | AS53: ♂ | AU53: ♀ | AW53: ♪ | AY53: ♫ | BA53: ♠ | BD53: Windgings 2 | BE53: Q | BH53: S | BK53: D | BN53: F | BQ53: G | BT53: H | BW53: J | BZ53: K | CC53: L | CF53: M | CI53: % | CL53: µ
B54: A | C54: = | D54: A | E54: a | F54: = | G54: a | H54: 1 | I54: = | J54: 1 | K54: 27 | L54: = | M54: 27 | O54: A | P54: = | Q54: A | R54: a | S54: = | T54: a | U54: 1 | V54: = | W54: 1 | X54: 27 | Y54: = | Z54: 27 | BE54: q | BH54: s | BK54: d | BN54: f | BQ54: g | BT54: h | BW54: j | BZ54: k | CC54: l | CF54: m | CI54: ù | CL54: *
B55: B | C55: = | D55: B | E55: b | F55: = | G55: b | H55: 2 | I55: = | J55: 2 | K55: 28 | L55: = | M55: 28 | O55: B | P55: = | Q55: B | R55: b | S55: = | T55: b | U55: 2 | V55: = | W55: 2 | X55: 28 | Y55: = | Z55: 28 | AD55: Webdings | AE55: Ü | AF55: 0 | AG55: ß | AH55: 0 | AI55: æ | AJ55: 0 | AK55: í | AL55: 0 | AM55: ÷ | AN55: 0 | AO55: Œ | AP55: 0 | AQ55: œ | AR55: 0 | AS55: ♂ | AT55: 0 | AU55: ♀ | AV55: 0 | AW55: ♪ | AX55: 0 | AY55: ♫ | AZ55: 0 | BA55: ♠
B56: C | C56: = | D56: C | E56: c | F56: = | G56: c | H56: 3 | I56: = | J56: 3 | K56: 29 | L56: = | M56: 29 | O56: C | P56: = | Q56: C | R56: c | S56: = | T56: c | U56: 3 | V56: = | W56: 3 | X56: 29 | Y56: = | Z56: 29 | BD56: Windgings 3 | BE56: Q | BH56: S | BK56: D | BN56: F | BQ56: G | BT56: H | BW56: J | BZ56: K | CC56: L | CF56: M | CI56: % | CL56: µ
B57: D | C57: = | D57: D | E57: d | F57: = | G57: d | H57: 4 | I57: = | J57: 4 | K57: 30 | L57: = | M57: 30 | O57: D | P57: = | Q57: D | R57: d | S57: = | T57: d | U57: 4 | V57: = | W57: 4 | X57: 30 | Y57: = | Z57: 30 | AD57: Windgins | AE57: Ü | AF57: 0 | AG57: ß | AH57: 0 | AI57: æ | AJ57: 0 | AK57: í | AL57: 0 | AM57: ÷ | AN57: 0 | AO57: Œ | AP57: 0 | AQ57: œ | AR57: 0 | AS57: ♂ | AT57: 0 | AU57: ♀ | AV57: 0 | AW57: ♪ | AX57: 0 | AY57: ♫ | AZ57: 0 | BA57: ♠ | BE57: q | BH57: s | BK57: d | BN57: f | BQ57: g | BT57: h | BW57: j | BZ57: k | CC57: l | CF57: m | CI57: ù | CL57: *
B58: E | C58: = | D58: E | E58: e | F58: = | G58: e | H58: 5 | I58: = | J58: 5 | K58: 31 | L58: = | M58: 31 | O58: E | P58: = | Q58: E | R58: e | S58: = | T58: e | U58: 5 | V58: = | W58: 5 | X58: 31 | Y58: = | Z58: 31
B59: F | C59: = | D59: F | E59: f | F59: = | G59: f | H59: 6 | I59: = | J59: 6 | K59: 32 | L59: = | M59: 32 | O59: F | P59: = | Q59: F | R59: f | S59: = | T59: f | U59: 6 | V59: = | W59: 6 | X59: 32 | Y59: = | Z59: 32 | AD59: Windings 2 | AE59: Ü | AF59: 0 | AG59: ß | AH59: 0 | AI59: æ | AJ59: 0 | AK59: í | AL59: 0 | AM59: ÷ | AN59: 0 | AO59: Œ | AP59: 0 | AQ59: œ | AR59: 0 | AS59: ♂ | AT59: 0 | AU59: ♀ | AV59: 0 | AW59: ♪ | AX59: 0 | AY59: ♫ | AZ59: 0 | BA59: ♠ | BE59: QUATRIÈME RANGÉE
B60: G | C60: = | D60: G | E60: g | F60: = | G60: g | H60: 7 | I60: = | J60: 7 | K60: 33 | L60: = | M60: 33 | O60: G | P60: = | Q60: G | R60: g | S60: = | T60: g | U60: 7 | V60: = | W60: 7 | X60: 33 | Y60: = | Z60: 33 | BD60: Arial Narrow | BE60: < | BH60: W | BK60: X | BN60: C | BQ60: V | BT60: B | BW60: N | BZ60: ? | CC60: . | CF60: / | CI60: §
B61: H | C61: = | D61: H | E61: h | F61: = | G61: h | H61: 8 | I61: = | J61: 8 | K61: 34 | L61: = | M61: 34 | O61: H | P61: = | Q61: H | R61: h | S61: = | T61: h | U61: 8 | V61: = | W61: 8 | X61: 34 | Y61: = | Z61: 34 | AD61: Windgings 3 | AE61: Ü | AF61: 0 | AG61: ß | AH61: 0 | AI61: æ | AJ61: 0 | AK61: í | AL61: 0 | AM61: ÷ | AN61: 0 | AO61: Œ | AP61: 0 | AQ61: œ | AR61: 0 | AS61: ♂ | AT61: 0 | AU61: ♀ | AV61: 0 | AW61: ♪ | AX61: 0 | AY61: ♫ | AZ61: 0 | BA61: ♠ | BE61: < | BH61: w | BK61: x | BN61: c | BQ61: v | BT61: b | BW61: n | BZ61: , | CC61: ; | CF61: : | CI61: !
B62: I | C62: = | D62: I | E62: i | F62: = | G62: i | H62: 9 | I62: = | J62: 9 | K62: 35 | L62: = | M62: 35 | O62: I | P62: = | Q62: I | R62: i | S62: = | T62: i | U62: 9 | V62: = | W62: 9 | X62: 35 | Y62: = | Z62: 35
B63: J | C63: = | D63: J | E63: j | F63: = | G63: j | H63: 10 | I63: = | J63: 10 | K63: 36 | L63: = | M63: 36 | O63: J | P63: = | Q63: J | R63: j | S63: = | T63: j | U63: 10 | V63: = | W63: 10 | X63: 36 | Y63: = | Z63: 36 | AE63: Pour la couleur de numérotation cliquez sur Couleur de police et choisissez la couleur qui vous convient | BD63: Webdings | BE63: < | BH63: W | BK63: X | BN63: C | BQ63: V | BT63: B | BW63: N | BZ63: ? | CC63: . | CF63: / | CI63: §
B64: K | C64: = | D64: K | E64: k | F64: = | G64: k | H64: 11 | I64: = | J64: 11 | K64: 37 | L64: = | M64: 37 | O64: K | P64: = | Q64: K | R64: k | S64: = | T64: k | U64: 11 | V64: = | W64: 11 | X64: 37 | Y64: = | Z64: 37 | BE64: < | BH64: w | BK64: x | BN64: c | BQ64: v | BT64: b | BW64: n | BZ64: , | CC64: ; | CF64: : | CI64: !
B65: L | C65: = | D65: L | E65: l | F65: = | G65: l | H65: 12 | I65: = | J65: 12 | K65: 38 | L65: = | M65: 38 | O65: L | P65: = | Q65: L | R65: l | S65: = | T65: l | U65: 12 | V65: = | W65: 12 | X65: 38 | Y65: = | Z65: 38
B66: M | C66: = | D66: M | E66: m | F66: = | G66: m | H66: 13 | I66: = | J66: 13 | K66: 39 | L66: = | M66: 39 | O66: M | P66: = | Q66: M | R66: m | S66: = | T66: m | U66: 13 | V66: = | W66: 13 | X66: 39 | Y66: = | Z66: 39 | AE66: Polices de caractèes utilisées : ARIAL et CALIBRI en fonction de la largeur de colonne | AS66: ARIAL | AU66: CALIBRI | BD66: Windgings | BE66: < | BH66: W | BK66: X | BN66: C | BQ66: V | BT66: B | BW66: N | BZ66: ? | CC66: . | CF66: / | CI66: §
B67: N | C67: = | D67: N | E67: n | F67: = | G67: n | H67: 14 | I67: = | J67: 14 | K67: 40 | L67: = | M67: 40 | O67: N | P67: = | Q67: N | R67: n | S67: = | T67: n | U67: 14 | V67: = | W67: 14 | X67: 40 | Y67: = | Z67: 40 | AS67: arial | AU67: calibri | BE67: < | BH67: w | BK67: x | BN67: c | BQ67: v | BT67: b | BW67: n | BZ67: , | CC67: ; | CF67: : | CI67: !
B68: O | C68: = | D68: O | E68: o | F68: = | G68: o | H68: 15 | I68: = | J68: 15 | K68: 41 | L68: = | M68: 41 | O68: O | P68: = | Q68: O | R68: o | S68: = | T68: o | U68: 15 | V68: = | W68: 15 | X68: 41 | Y68: = | Z68: 41
B69: P | C69: = | D69: P | E69: p | F69: = | G69: p | H69: 16 | I69: = | J69: 16 | K69: 42 | L69: = | M69: 42 | O69: P | P69: = | Q69: P | R69: p | S69: = | T69: p | U69: 16 | V69: = | W69: 16 | X69: 42 | Y69: = | Z69: 42 | BD69: Windgings 2 | BE69: < | BH69: W | BK69: X | BN69: C | BQ69: V | BT69: B | BW69: N | BZ69: ? | CC69: . | CF69: / | CI69: §
B70: Q | C70: = | D70: Q | E70: q | F70: = | G70: q | H70: 17 | I70: = | J70: 17 | K70: 43 | L70: = | M70: 43 | O70: Q | P70: = | Q70: Q | R70: q | S70: = | T70: q | U70: 17 | V70: = | W70: 17 | X70: 43 | Y70: = | Z70: 43 | AG70: Copiez / Collez les N° dans vos fiches | BE70: < | BH70: w | BK70: x | BN70: c | BQ70: v | BT70: b | BW70: n | BZ70: , | CC70: ; | CF70: : | CI70: !
B71: R | C71: = | D71: R | E71: r | F71: = | G71: r | H71: 18 | I71: = | J71: 18 | K71: 44 | L71: = | M71: 44 | O71: R | P71: = | Q71: R | R71: r | S71: = | T71: r | U71: 18 | V71: = | W71: 18 | X71: 44 | Y71: = | Z71: 44
B72: S | C72: = | D72: S | E72: s | F72: = | G72: s | H72: 19 | I72: = | J72: 19 | K72: 45 | L72: = | M72: 45 | O72: S | P72: = | Q72: S | R72: s | S72: = | T72: s | U72: 19 | V72: = | W72: 19 | X72: 45 | Y72: = | Z72: 45 | AG72: ❶ | AI72: ① | AK72: ❶ | AM72: ① | AO72: ① | AQ72: ❶ | AS72: ❶ | AU72: ❶ | BD72: Windgings 3 | BE72: < | BH72: W | BK72: X | BN72: C | BQ72: V | BT72: B | BW72: N | BZ72: ? | CC72: . | CF72: / | CI72: §
B73: T | C73: = | D73: T | E73: t | F73: = | G73: t | H73: 20 | I73: = | J73: 20 | K73: 46 | L73: = | M73: 46 | O73: T | P73: = | Q73: T | R73: t | S73: = | T73: t | U73: 20 | V73: = | W73: 20 | X73: 46 | Y73: = | Z73: 46 | AG73: ❷ | AI73: ③ | AK73: ❷ | AM73: ② | AO73: ③ | AQ73: ❷ | AS73: ❷ | AU73: ❷ | BE73: < | BH73: w | BK73: x | BN73: c | BQ73: v | BT73: b | BW73: n | BZ73: , | CC73: ; | CF73: : | CI73: !
B74: U | C74: = | D74: U | E74: u | F74: = | G74: u | H74: 21 | I74: = | J74: 21 | K74: 47 | L74: = | M74: 47 | O74: U | P74: = | Q74: U | R74: u | S74: = | T74: u | U74: 21 | V74: = | W74: 21 | X74: 47 | Y74: = | Z74: 47 | AG74: ❸ | AI74: ② | AK74: ❸ | AM74: ③ | AQ74: ❸ | AS74: ❸ | AU74: ❸
B75: V | C75: = | D75: V | E75: v | F75: = | G75: v | H75: 22 | I75: = | J75: 22 | K75: 48 | L75: = | M75: 48 | O75: V | P75: = | Q75: V | R75: v | S75: = | T75: v | U75: 22 | V75: = | W75: 22 | X75: 48 | Y75: = | Z75: 48 | AG75: ❹ | AI75: ④ | AK75: ❹ | AM75: ④ | AO75: ② | AQ75: ❹ | AS75: ❹ | AU75: ❹
B76: W | C76: = | D76: W | E76: w | F76: = | G76: w | H76: 23 | I76: = | J76: 23 | K76: 49 | L76: = | M76: 49 | O76: W | P76: = | Q76: W | R76: w | S76: = | T76: w | U76: 23 | V76: = | W76: 23 | X76: 49 | Y76: = | Z76: 49 | AG76: ❺ | AI76: ⑤ | AK76: ❺ | AM76: ⑤ | AO76: ④ | AQ76: ❺ | AS76: ❺ | AU76: ❺
B77: X | C77: = | D77: X | E77: x | F77: = | G77: x | H77: 24 | I77: = | J77: 24 | K77: 50 | L77: = | M77: 50 | O77: X | P77: = | Q77: X | R77: x | S77: = | T77: x | U77: 24 | V77: = | W77: 24 | X77: 50 | Y77: = | Z77: 50 | AG77: ❻ | AI77: ⑥ | AK77: ❻ | AM77: ⑥ | AO77: ⑤ | AQ77: ❻ | AS77: ❻ | AU77: ❻
B78: Y | C78: = | D78: Y | E78: y | F78: = | G78: y | H78: 25 | I78: = | J78: 25 | K78: 51 | L78: = | M78: 51 | O78: Y | P78: = | Q78: Y | R78: y | S78: = | T78: y | U78: 25 | V78: = | W78: 25 | X78: 51 | Y78: = | Z78: 51 | AG78: ❼ | AI78: ⑦ | AK78: ❼ | AM78: ⑦ | AO78: ⑥ | AQ78: ❼ | AS78: ❼ | AU78: ❼
B79: Z | C79: = | D79: Z | E79: z | F79: = | G79: z | H79: 26 | I79: = | J79: 26 | K79: 52 | L79: = | M79: 52 | O79: Z | P79: = | Q79: Z | R79: z | S79: = | T79: z | U79: 26 | V79: = | W79: 26 | X79: 52 | Y79: = | Z79: 52 | AG79: ❽ | AI79: ⑧ | AK79: ❽ | AM79: ⑧ | AO79: ⑦ | AQ79: ❽ | AS79: ❽ | AU79: ❽
B80: & | C80: = | D80: & | E80: % | F80: = | G80: % | H80: £ | I80: = | J80: £ | K80: ; | L80: = | M80: ; | O80: & | P80: = | Q80: & | R80: % | S80: = | T80: % | U80: £ | V80: = | W80: £ | X80: ; | Y80: = | Z80: ; | AG80: ❾ | AI80: ⑨ | AK80: ❾ | AM80: ⑨ | AO80: ⑧ | AQ80: ❾ | AS80: ❾ | AU80: ❾
B81: é | C81: = | D81: é | E81: # | F81: = | G81: # | H81: @ | I81: = | J81: @ | K81: : | L81: = | M81: : | O81: é | P81: = | Q81: é | R81: # | S81: = | T81: # | U81: @ | V81: = | W81: @ | X81: : | Y81: = | Z81: : | AG81: ❿ | AI81: ⑩ | AK81: ❿ | AM81: ⑩ | AO81: ⑨ | AQ81: ❿ | AS81: ❿ | AU81: ❿
B82: è | C82: = | D82: è | E82: ( | F82: = | G82: ( | H82: ! | I82: = | J82: ! | K82: - | L82: = | M82: - | O82: è | P82: = | Q82: è | R82: ( | S82: = | T82: ( | U82: ! | V82: = | W82: ! | X82: - | Y82: = | Z82: - | AG82: ⓫ | AI82: ⑪ | AK82: ⓫ | AM82: ⑪ | AQ82: ⓫ | AS82: ⓫ | AU82: ⓫
B83: ù | C83: = | D83: ù | E83: ) | F83: = | G83: ) | H83: ? | I83: = | J83: ? | K83: . | L83: = | M83: . | O83: ù | P83: = | Q83: ù | R83: ) | S83: = | T83: ) | U83: ? | V83: = | W83: ? | X83: . | Y83: = | Z83: . | AG83: ⓬ | AI83: ⑫ | AK83: ⓬ | AM83: ⑫ | AQ83: ⓬ | AS83: ⓬ | AU83: ⓬
B84: ç | C84: = | D84: ç | E84: [ | F84: = | G84: [ | H84: > | I84: = | J84: > | K84: ~ | L84: = | M84: ~ | O84: ç | P84: = | Q84: ç | R84: [ | S84: = | T84: [ | U84: > | V84: = | W84: > | X84: ~ | Y84: = | Z84: ~ | AG84: ⓭ | AI84: ⑬ | AK84: ⓭ | AM84: ⑬ | AQ84: ⓭ | AS84: ⓭ | AU84: ⓭
B85: à | C85: = | D85: à | E85: ] | F85: = | G85: ] | H85: < | I85: = | J85: < | K85: " | L85: = | M85: " | O85: à | P85: = | Q85: à | R85: ] | S85: = | T85: ] | U85: < | V85: = | W85: < | X85: " | Y85: = | Z85: " | AG85: ⓮ | AI85: ⑭ | AK85: ⓮ | AM85: ⑭ | AQ85: ⓮ | AS85: ⓮ | AU85: ⓮
B86: µ | C86: = | D86: µ | E86: { | F86: = | G86: { | H86: \ | I86: = | J86: \ | K86: * | L86: = | M86: * | O86: µ | P86: = | Q86: µ | R86: { | S86: = | T86: { | U86: \ | V86: = | W86: \ | X86: * | Y86: = | Z86: * | AG86: ⓯ | AI86: ⑮ | AK86: ⓯ | AM86: ⑮ | AQ86: ⓯ | AS86: ⓯ | AU86: ⓯
B87: § | C87: = | D87: § | E87: } | F87: = | G87: } | H87: / | I87: = | J87: / | K87: , | L87: = | M87: , | O87: § | P87: = | Q87: § | R87: } | S87: = | T87: } | U87: / | V87: = | W87: / | X87: , | Y87: = | Z87: , | AG87: ⓰ | AI87: ⑯ | AK87: ⓰ | AM87: ⑯ | AQ87: ⓰ | AS87: ⓰ | AU87: ⓰
C88: = | E88: | | F88: = | G88: | | H88: _ | I88: = | J88: _ | L88: = | P88: = | R88: | | S88: = | T88: | | U88: _ | V88: = | W88: _ | Y88: = | AG88: ⓱ | AI88: ⑰ | AK88: ⓱ | AM88: ⑰ | AQ88: ⓱ | AS88: ⓱ | AU88: ⓱
AG89: ⓲ | AI89: ⑱ | AK89: ⓲ | AM89: ⑱ | AQ89: ⓲ | AS89: ⓲ | AU89: ⓲
AG90: ⓳ | AI90: ⑲ | AK90: ⓳ | AM90: ⑲ | AQ90: ⓳ | AS90: ⓳ | AU90: ⓳
AG91: ⓴ | AI91: ⑳ | AK91: ⓴ | AQ91: ⓴ | AS91: ⓴ | AU91: ⓴
B92: Saisir lettre ou nombre | D92: Correspondance | E92: Police ZDingbats | O92: Saisir lettre ou nombre | Q92: Correspondance | R92: Police Marlett
B93: Aa | C93: = | D93: =B93 -> Aa | E93: Pour reproduire la police de caractère vous pouvez utiliser le pinceau | O93: Aa | P93: = | Q93: =O93 -> Aa | R93: Copiez / collez le symbole sur votre document ou faites un imprim'écran
B95: Majuscules | C95: correspondance | E95: Minuscules | F95: correspondance | H95: Chiffres | I95: correspondance | K95: nombres | L95: correspondance | O95: Majuscules | P95: correspondance | R95: Minuscules | S95: correspondance | U95: Chiffres | V95: correspondance | X95: nombres | Y95: correspondance
B96: A | C96: = | D96: A | E96: a | F96: = | G96: a | H96: 1 | I96: = | J96: 1 | K96: 27 | L96: = | M96: 27 | O96: A | P96: = | Q96: A | R96: a | S96: = | T96: a | U96: 1 | V96: = | W96: 1 | X96: 27 | Y96: = | Z96: 27
B97: B | C97: = | D97: B | E97: b | F97: = | G97: b | H97: 2 | I97: = | J97: 2 | K97: 28 | L97: = | M97: 28 | O97: B | P97: = | Q97: B | R97: b | S97: = | T97: b | U97: 2 | V97: = | W97: 2 | X97: 28 | Y97: = | Z97: 28
B98: C | C98: = | D98: C | E98: c | F98: = | G98: c | H98: 3 | I98: = | J98: 3 | K98: 29 | L98: = | M98: 29 | O98: C | P98: = | Q98: C | R98: c | S98: = | T98: c | U98: 3 | V98: = | W98: 3 | X98: 29 | Y98: = | Z98: 29
B99: D | C99: = | D99: D | E99: d | F99: = | G99: d | H99: 4 | I99: = | J99: 4 | K99: 30 | L99: = | M99: 30 | O99: D | P99: = | Q99: D | R99: d | S99: = | T99: d | U99: 4 | V99: = | W99: 4 | X99: 30 | Y99: = | Z99: 30
B100: E | C100: = | D100: E | E100: e | F100: = | G100: e | H100: 5 | I100: = | J100: 5 | K100: 31 | L100: = | M100: 31 | O100: E | P100: = | Q100: E | R100: e | S100: = | T100: e | U100: 5 | V100: = | W100: 5 | X100: 31 | Y100: = | Z100: 31
B101: F | C101: = | D101: F | E101: f | F101: = | G101: f | H101: 6 | I101: = | J101: 6 | K101: 32 | L101: = | M101: 32 | O101: F | P101: = | Q101: F | R101: f | S101: = | T101: f | U101: 6 | V101: = | W101: 6 | X101: 32 | Y101: = | Z101: 32
B102: G | C102: = | D102: G | E102: g | F102: = | G102: g | H102: 7 | I102: = | J102: 7 | K102: 33 | L102: = | M102: 33 | O102: G | P102: = | Q102: G | R102: g | S102: = | T102: g | U102: 7 | V102: = | W102: 7 | X102: 33 | Y102: = | Z102: 33
B103: H | C103: = | D103: H | E103: h | F103: = | G103: h | H103: 8 | I103: = | J103: 8 | K103: 34 | L103: = | M103: 34 | O103: H | P103: = | Q103: H | R103: h | S103: = | T103: h | U103: 8 | V103: = | W103: 8 | X103: 34 | Y103: = | Z103: 34
B104: I | C104: = | D104: I | E104: i | F104: = | G104: i | H104: 9 | I104: = | J104: 9 | K104: 35 | L104: = | M104: 35 | O104: I | P104: = | Q104: I | R104: i | S104: = | T104: i | U104: 9 | V104: = | W104: 9 | X104: 35 | Y104: = | Z104: 35
B105: J | C105: = | D105: J | E105: j | F105: = | G105: j | H105: 10 | I105: = | J105: 10 | K105: 36 | L105: = | M105: 36 | O105: J | P105: = | Q105: J | R105: j | S105: = | T105: j | U105: 10 | V105: = | W105: 10 | X105: 36 | Y105: = | Z105: 36
B106: K | C106: = | D106: K | E106: k | F106: = | G106: k | H106: 11 | I106: = | J106: 11 | K106: 37 | L106: = | M106: 37 | O106: K | P106: = | Q106: K | R106: k | S106: = | T106: k | U106: 11 | V106: = | W106: 11 | X106: 37 | Y106: = | Z106: 37
B107: L | C107: = | D107: L | E107: l | F107: = | G107: l | H107: 12 | I107: = | J107: 12 | K107: 38 | L107: = | M107: 38 | O107: L | P107: = | Q107: L | R107: l | S107: = | T107: l | U107: 12 | V107: = | W107: 12 | X107: 38 | Y107: = | Z107: 38
B108: M | C108: = | D108: M | E108: m | F108: = | G108: m | H108: 13 | I108: = | J108: 13 | K108: 39 | L108: = | M108: 39 | O108: M | P108: = | Q108: M | R108: m | S108: = | T108: m | U108: 13 | V108: = | W108: 13 | X108: 39 | Y108: = | Z108: 39
B109: N | C109: = | D109: N | E109: n | F109: = | G109: n | H109: 14 | I109: = | J109: 14 | K109: 40 | L109: = | M109: 40 | O109: N | P109: = | Q109: N | R109: n | S109: = | T109: n | U109: 14 | V109: = | W109: 14 | X109: 40 | Y109: = | Z109: 40
B110: O | C110: = | D110: O | E110: o | F110: = | G110: o | H110: 15 | I110: = | J110: 15 | K110: 41 | L110: = | M110: 41 | O110: O | P110: = | Q110: O | R110: o | S110: = | T110: o | U110: 15 | V110: = | W110: 15 | X110: 41 | Y110: = | Z110: 41
B111: P | C111: = | D111: P | E111: p | F111: = | G111: p | H111: 16 | I111: = | J111: 16 | K111: 42 | L111: = | M111: 42 | O111: P | P111: = | Q111: P | R111: p | S111: = | T111: p | U111: 16 | V111: = | W111: 16 | X111: 42 | Y111: = | Z111: 42
B112: Q | C112: = | D112: Q | E112: q | F112: = | G112: q | H112: 17 | I112: = | J112: 17 | K112: 43 | L112: = | M112: 43 | O112: Q | P112: = | Q112: Q | R112: q | S112: = | T112: q | U112: 17 | V112: = | W112: 17 | X112: 43 | Y112: = | Z112: 43
B113: R | C113: = | D113: R | E113: r | F113: = | G113: r | H113: 18 | I113: = | J113: 18 | K113: 44 | L113: = | M113: 44 | O113: R | P113: = | Q113: R | R113: r | S113: = | T113: r | U113: 18 | V113: = | W113: 18 | X113: 44 | Y113: = | Z113: 44
B114: S | C114: = | D114: S | E114: s | F114: = | G114: s | H114: 19 | I114: = | J114: 19 | K114: 45 | L114: = | M114: 45 | O114: S | P114: = | Q114: S | R114: s | S114: = | T114: s | U114: 19 | V114: = | W114: 19 | X114: 45 | Y114: = | Z114: 45
B115: T | C115: = | D115: T | E115: t | F115: = | G115: t | H115: 20 | I115: = | J115: 20 | K115: 46 | L115: = | M115: 46 | O115: T | P115: = | Q115: T | R115: t | S115: = | T115: t | U115: 20 | V115: = | W115: 20 | X115: 46 | Y115: = | Z115: 46
B116: U | C116: = | D116: U | E116: u | F116: = | G116: u | H116: 21 | I116: = | J116: 21 | K116: 47 | L116: = | M116: 47 | O116: U | P116: = | Q116: U | R116: u | S116: = | T116: u | U116: 21 | V116: = | W116: 21 | X116: 47 | Y116: = | Z116: 47
B117: V | C117: = | D117: V | E117: v | F117: = | G117: v | H117: 22 | I117: = | J117: 22 | K117: 48 | L117: = | M117: 48 | O117: V | P117: = | Q117: V | R117: v | S117: = | T117: v | U117: 22 | V117: = | W117: 22 | X117: 48 | Y117: = | Z117: 48
B118: W | C118: = | D118: W | E118: w | F118: = | G118: w | H118: 23 | I118: = | J118: 23 | K118: 49 | L118: = | M118: 49 | O118: W | P118: = | Q118: W | R118: w | S118: = | T118: w | U118: 23 | V118: = | W118: 23 | X118: 49 | Y118: = | Z118: 49
B119: X | C119: = | D119: X | E119: x | F119: = | G119: x | H119: 24 | I119: = | J119: 24 | K119: 50 | L119: = | M119: 50 | O119: X | P119: = | Q119: X | R119: x | S119: = | T119: x | U119: 24 | V119: = | W119: 24 | X119: 50 | Y119: = | Z119: 50
B120: Y | C120: = | D120: Y | E120: y | F120: = | G120: y | H120: 25 | I120: = | J120: 25 | K120: 51 | L120: = | M120: 51 | O120: Y | P120: = | Q120: Y | R120: y | S120: = | T120: y | U120: 25 | V120: = | W120: 25 | X120: 51 | Y120: = | Z120: 51
B121: Z | C121: = | D121: Z | E121: z | F121: = | G121: z | H121: 26 | I121: = | J121: 26 | K121: 52 | L121: = | M121: 52 | O121: Z | P121: = | Q121: Z | R121: z | S121: = | T121: z | U121: 26 | V121: = | W121: 26 | X121: 52 | Y121: = | Z121: 52
B122: & | C122: = | D122: & | E122: % | F122: = | G122: % | H122: £ | I122: = | J122: £ | K122: ; | L122: = | M122: ; | O122: & | P122: = | Q122: & | R122: % | S122: = | T122: % | U122: £ | V122: = | W122: £ | X122: ; | Y122: = | Z122: ;
B123: é | C123: = | D123: é | E123: # | F123: = | G123: # | H123: @ | I123: = | J123: @ | K123: : | L123: = | M123: : | O123: é | P123: = | Q123: é | R123: # | S123: = | T123: # | U123: @ | V123: = | W123: @ | X123: : | Y123: = | Z123: :
B124: è | C124: = | D124: è | E124: ( | F124: = | G124: ( | H124: ! | I124: = | J124: ! | K124: - | L124: = | M124: - | O124: è | P124: = | Q124: è | R124: ( | S124: = | T124: ( | U124: ! | V124: = | W124: ! | X124: - | Y124: = | Z124: -
B125: ù | C125: = | D125: ù | E125: ) | F125: = | G125: ) | H125: ? | I125: = | J125: ? | K125: . | L125: = | M125: . | O125: ù | P125: = | Q125: ù | R125: ) | S125: = | T125: ) | U125: ? | V125: = | W125: ? | X125: . | Y125: = | Z125: .
B126: ç | C126: = | D126: ç | E126: [ | F126: = | G126: [ | H126: > | I126: = | J126: > | K126: ~ | L126: = | M126: ~ | O126: ç | P126: = | Q126: ç | R126: [ | S126: = | T126: [ | U126: > | V126: = | W126: > | X126: ~ | Y126: = | Z126: ~
B127: à | C127: = | D127: à | E127: ] | F127: = | G127: ] | H127: < | I127: = | J127: < | K127: " | L127: = | M127: " | O127: à | P127: = | Q127: à | R127: ] | S127: = | T127: ] | U127: < | V127: = | W127: < | X127: " | Y127: = | Z127: "
B128: µ | C128: = | D128: µ | E128: { | F128: = | G128: { | H128: \ | I128: = | J128: \ | K128: * | L128: = | M128: * | O128: µ | P128: = | Q128: µ | R128: { | S128: = | T128: { | U128: \ | V128: = | W128: \ | X128: * | Y128: = | Z128: *
B129: § | C129: = | D129: § | E129: } | F129: = | G129: } | H129: / | I129: = | J129: / | K129: , | L129: = | M129: , | O129: § | P129: = | Q129: § | R129: } | S129: = | T129: } | U129: / | V129: = | W129: / | X129: , | Y129: = | Z129: ,
C130: = | E130: | | F130: = | G130: | | H130: _ | I130: = | J130: _ | L130: = | P130: = | R130: | | S130: = | T130: | | U130: _ | V130: = | W130: _ | Y130: =
B134: Saisir lettre ou nombre | D134: Correspondance | E134: Police MT Extra | O134: Saisir lettre ou nombre | Q134: Correspondance | R134: Police Symbol
B135: Aa | C135: = | D135: =B135 -> Aa | E135: Copiez / collez le symbole sur votre document ou faites un imprim'écran | O135: Aa | P135: = | Q135: =O135 -> Aa | R135: Copiez / collez le symbole sur votre document ou faites un imprim'écran
B137: Majuscules | C137: correspondance | E137: Minuscules | F137: correspondance | H137: Chiffres | I137: correspondance | K137: nombres | L137: correspondance | O137: Majuscules | P137: correspondance | R137: Minuscules | S137: correspondance | U137: Chiffres | V137: correspondance | X137: nombres | Y137: correspondance
B138: A | C138: = | D138: A | E138: a | F138: = | G138: a | H138: 1 | I138: = | J138: 1 | K138: 27 | L138: = | M138: 27 | O138: A | P138: = | Q138: A | R138: a | S138: = | T138: a | U138: 1 | V138: = | W138: 1 | X138: 27 | Y138: = | Z138: 27
B139: B | C139: = | D139: B | E139: b | F139: = | G139: b | H139: 2 | I139: = | J139: 2 | K139: 28 | L139: = | M139: 28 | O139: B | P139: = | Q139: B | R139: b | S139: = | T139: b | U139: 2 | V139: = | W139: 2 | X139: 28 | Y139: = | Z139: 28
B140: C | C140: = | D140: C | E140: c | F140: = | G140: c | H140: 3 | I140: = | J140: 3 | K140: 29 | L140: = | M140: 29 | O140: C | P140: = | Q140: C | R140: c | S140: = | T140: c | U140: 3 | V140: = | W140: 3 | X140: 29 | Y140: = | Z140: 29
B141: D | C141: = | D141: D | E141: d | F141: = | G141: d | H141: 4 | I141: = | J141: 4 | K141: 30 | L141: = | M141: 30 | O141: D | P141: = | Q141: D | R141: d | S141: = | T141: d | U141: 4 | V141: = | W141: 4 | X141: 30 | Y141: = | Z141: 30
B142: E | C142: = | D142: E | E142: e | F142: = | G142: e | H142: 5 | I142: = | J142: 5 | K142: 31 | L142: = | M142: 31 | O142: E | P142: = | Q142: E | R142: e | S142: = | T142: e | U142: 5 | V142: = | W142: 5 | X142: 31 | Y142: = | Z142: 31
B143: F | C143: = | D143: F | E143: f | F143: = | G143: f | H143: 6 | I143: = | J143: 6 | K143: 32 | L143: = | M143: 32 | O143: F | P143: = | Q143: F | R143: f | S143: = | T143: f | U143: 6 | V143: = | W143: 6 | X143: 32 | Y143: = | Z143: 32
B144: G | C144: = | D144: G | E144: g | F144: = | G144: g | H144: 7 | I144: = | J144: 7 | K144: 33 | L144: = | M144: 33 | O144: G | P144: = | Q144: G | R144: g | S144: = | T144: g | U144: 7 | V144: = | W144: 7 | X144: 33 | Y144: = | Z144: 33
B145: H | C145: = | D145: H | E145: h | F145: = | G145: h | H145: 8 | I145: = | J145: 8 | K145: 34 | L145: = | M145: 34 | O145: H | P145: = | Q145: H | R145: h | S145: = | T145: h | U145: 8 | V145: = | W145: 8 | X145: 34 | Y145: = | Z145: 34
B146: I | C146: = | D146: I | E146: i | F146: = | G146: i | H146: 9 | I146: = | J146: 9 | K146: 35 | L146: = | M146: 35 | O146: I | P146: = | Q146: I | R146: i | S146: = | T146: i | U146: 9 | V146: = | W146: 9 | X146: 35 | Y146: = | Z146: 35
B147: J | C147: = | D147: J | E147: j | F147: = | G147: j | H147: 10 | I147: = | J147: 10 | K147: 36 | L147: = | M147: 36 | O147: J | P147: = | Q147: J | R147: j | S147: = | T147: j | U147: 10 | V147: = | W147: 10 | X147: 36 | Y147: = | Z147: 36
B148: K | C148: = | D148: K | E148: k | F148: = | G148: k | H148: 11 | I148: = | J148: 11 | K148: 37 | L148: = | M148: 37 | O148: K | P148: = | Q148: K | R148: k | S148: = | T148: k | U148: 11 | V148: = | W148: 11 | X148: 37 | Y148: = | Z148: 37
B149: L | C149: = | D149: L | E149: l | F149: = | G149: l | H149: 12 | I149: = | J149: 12 | K149: 38 | L149: = | M149: 38 | O149: L | P149: = | Q149: L | R149: l | S149: = | T149: l | U149: 12 | V149: = | W149: 12 | X149: 38 | Y149: = | Z149: 38
B150: M | C150: = | D150: M | E150: m | F150: = | G150: m | H150: 13 | I150: = | J150: 13 | K150: 39 | L150: = | M150: 39 | O150: M | P150: = | Q150: M | R150: m | S150: = | T150: m | U150: 13 | V150: = | W150: 13 | X150: 39 | Y150: = | Z150: 39
B151: N | C151: = | D151: N | E151: n | F151: = | G151: n | H151: 14 | I151: = | J151: 14 | K151: 40 | L151: = | M151: 40 | O151: N | P151: = | Q151: N | R151: n | S151: = | T151: n | U151: 14 | V151: = | W151: 14 | X151: 40 | Y151: = | Z151: 40
B152: O | C152: = | D152: O | E152: o | F152: = | G152: o | H152: 15 | I152: = | J152: 15 | K152: 41 | L152: = | M152: 41 | O152: O | P152: = | Q152: O | R152: o | S152: = | T152: o | U152: 15 | V152: = | W152: 15 | X152: 41 | Y152: = | Z152: 41
B153: P | C153: = | D153: P | E153: p | F153: = | G153: p | H153: 16 | I153: = | J153: 16 | K153: 42 | L153: = | M153: 42 | O153: P | P153: = | Q153: P | R153: p | S153: = | T153: p | U153: 16 | V153: = | W153: 16 | X153: 42 | Y153: = | Z153: 42
B154: Q | C154: = | D154: Q | E154: q | F154: = | G154: q | H154: 17 | I154: = | J154: 17 | K154: 43 | L154: = | M154: 43 | O154: Q | P154: = | Q154: Q | R154: q | S154: = | T154: q | U154: 17 | V154: = | W154: 17 | X154: 43 | Y154: = | Z154: 43
B155: R | C155: = | D155: R | E155: r | F155: = | G155: r | H155: 18 | I155: = | J155: 18 | K155: 44 | L155: = | M155: 44 | O155: R | P155: = | Q155: R | R155: r | S155: = | T155: r | U155: 18 | V155: = | W155: 18 | X155: 44 | Y155: = | Z155: 44
B156: S | C156: = | D156: S | E156: s | F156: = | G156: s | H156: 19 | I156: = | J156: 19 | K156: 45 | L156: = | M156: 45 | O156: S | P156: = | Q156: S | R156: s | S156: = | T156: s | U156: 19 | V156: = | W156: 19 | X156: 45 | Y156: = | Z156: 45
B157: T | C157: = | D157: T | E157: t | F157: = | G157: t | H157: 20 | I157: = | J157: 20 | K157: 46 | L157: = | M157: 46 | O157: T | P157: = | Q157: T | R157: t | S157: = | T157: t | U157: 20 | V157: = | W157: 20 | X157: 46 | Y157: = | Z157: 46
B158: U | C158: = | D158: U | E158: u | F158: = | G158: u | H158: 21 | I158: = | J158: 21 | K158: 47 | L158: = | M158: 47 | O158: U | P158: = | Q158: U | R158: u | S158: = | T158: u | U158: 21 | V158: = | W158: 21 | X158: 47 | Y158: = | Z158: 47
B159: V | C159: = | D159: V | E159: v | F159: = | G159: v | H159: 22 | I159: = | J159: 22 | K159: 48 | L159: = | M159: 48 | O159: V | P159: = | Q159: V | R159: v | S159: = | T159: v | U159: 22 | V159: = | W159: 22 | X159: 48 | Y159: = | Z159: 48
B160: W | C160: = | D160: W | E160: w | F160: = | G160: w | H160: 23 | I160: = | J160: 23 | K160: 49 | L160: = | M160: 49 | O160: W | P160: = | Q160: W | R160: w | S160: = | T160: w | U160: 23 | V160: = | W160: 23 | X160: 49 | Y160: = | Z160: 49
B161: X | C161: = | D161: X | E161: x | F161: = | G161: x | H161: 24 | I161: = | J161: 24 | K161: 50 | L161: = | M161: 50 | O161: X | P161: = | Q161: X | R161: x | S161: = | T161: x | U161: 24 | V161: = | W161: 24 | X161: 50 | Y161: = | Z161: 50
